Workbook

Sheet Introduction
C4: Joint Monitoring Programme for Water Supply, Sanitation and Hygiene
C6: Estimates on household water, sanitation and hygiene by wealth quintile and sub-national region in
C7: =+Water!B5 -> Lesotho
C9: Updated May 2021
C11: Follow the links below to find the following information:
C13: JMP Estimates
C14: WASH status and trends by wealth quintile (customized quintiles made without water and sanitation assets)
C15: Water
C16: Sanitation
C17: Hygiene
C19: Data inputs
C20: customized wealth quintiles and subnational data:
C21: =IF(INDIRECT(CONCATENATE("Water","!B105"))=0,"",INDIRECT(CONCATENATE("Water","!B105"))) -> MICS00
C22: =IF(INDIRECT(CONCATENATE("Water","!B106"))=0,"",INDIRECT(CONCATENATE("Water","!B106"))) -> HBS02
C23: =IF(INDIRECT(CONCATENATE("Water","!B107"))=0,"",INDIRECT(CONCATENATE("Water","!B107"))) -> DHS04
C24: =IF(INDIRECT(CONCATENATE("Water","!B108"))=0,"",INDIRECT(CONCATENATE("Water","!B108"))) -> DHS09
C25: =IF(INDIRECT(CONCATENATE("Water","!B109"))=0,"",INDIRECT(CONCATENATE("Water","!B109"))) -> DHS14
C26: =IF(INDIRECT(CONCATENATE("Water","!B110"))=0,"",INDIRECT(CONCATENATE("Water","!B110"))) -> MICS18
C27: =IF(INDIRECT(CONCATENATE("Water","!B111"))=0,"",INDIRECT(CONCATENATE("Water","!B111"))) -> 
C28: =IF(INDIRECT(CONCATENATE("Water","!B112"))=0,"",INDIRECT(CONCATENATE("Water","!B112"))) -> 
C29: =IF(INDIRECT(CONCATENATE("Water","!B113"))=0,"",INDIRECT(CONCATENATE("Water","!B113"))) -> 
C30: =IF(INDIRECT(CONCATENATE("Water","!B114"))=0,"",INDIRECT(CONCATENATE("Water","!B114"))) -> 
C31: =IF(INDIRECT(CONCATENATE("Water","!B115"))=0,"",INDIRECT(CONCATENATE("Water","!B115"))) -> 
C32: =IF(INDIRECT(CONCATENATE("Water","!B116"))=0,"",INDIRECT(CONCATENATE("Water","!B116"))) -> 
L55: =+IF(ISNUMBER(M48), "", "Insufficient data to estimate safely managed sanitation services at national level") -> Insufficient data to estimate safely managed sanitation services at national level

Sheet Water
A1: BGD
B4: Summary of trends in use of drinking water by wealth quintile (%)
B5: =IF(ISERROR(INDIRECT(CONCATENATE($B105,"!A2"))),"",INDIRECT(CONCATENATE($B105,"!A2"))) -> Lesotho
B7: =B118 -> National use of drinking water sources, 2000–2020 | J7: =B218 -> Urban use of drinking water sources, 2000–2020 | R7: =B318 -> Rural use of drinking water sources, 2000–2020
B31: =IF(ISERROR(INDIRECT(CONCATENATE($B105,"!A2"))),"",INDIRECT(CONCATENATE($B105,"!A2"))) -> Lesotho | F31: Poorest | J31: Poor | N31: Middle | R31: Rich | V31: Richest
F32: Basic | G32: Limited | H32: Unimproved | I32: Surface water | J32: Basic | K32: Limited | L32: Unimproved | M32: Surface water | N32: Basic | O32: Limited | P32: Unimproved | Q32: Surface water | R32: Basic | S32: Limited | T32: Unimproved | U32: Surface water | V32: Basic | W32: Limited | X32: Unimproved | Y32: Surface water
B33: NATIONAL | D33: Estimate | E33: =C99 -> 2000 | F33: =E99 -> 54.39287975 | G33: =F99 -> 8.956056203 | H33: 35.73091439 | I33: 0.9201496638 | J33: =J99 -> 61.11774297 | K33: =K99 -> 10.600896 | L33: 27.60647395 | M33: 0.674887078 | N33: =O99 -> 65.01118724 | O33: =P99 -> 10.19477425 | P33: 23.44046127 | Q33: 1.353577248 | R33: =T99 -> 73.24366238 | S33: =U99 -> 8.024014323 | T33: 17.94976933 | U33: 0.7825539673 | V33: =Y99 -> 84.51204848 | W33: =Z99 -> 4.769209075 | X33: 10.27794808 | Y33: 0.4407943667
E34: =C100 -> 2020 | F34: =E100 -> 60.68211466 | G34: 9.991609784 | H34: 27.95005722 | I34: 1.376218333 | J34: =J100 -> 69.88583605 | K34: 12.12172511 | L34: 16.75045921 | M34: 1.241979633 | N34: =O100 -> 76.45705114 | O34: 11.9896653 | P34: 10.91242118 | Q34: 0.6408623798 | R34: =T100 -> 84.56088675 | S34: 9.263842692 | T34: 5.52701473 | U34: 0.6482558243 | V34: =Y100 -> 93.92704713 | W34: 5.300519081 | X34: 0.4073672185 | Y34: 0.3650665696
B36: URBAN | D36: Estimate | E36: =C199 -> 2000 | F36: =E199 -> 80.30569341 | G36: =F199 -> 7.177570153 | H36: 12.48717634 | I36: 0.02956009611 | J36: =J199 -> 81.99452193 | K36: =K199 -> 4.391927451 | L36: 13.48797906 | M36: 0.1255715635 | N36: =O199 -> 85.64781088 | O36: =P199 -> 3.669817805 | P36: 10.56802479 | Q36: 0.1143465308 | R36: =T199 -> 90.12525973 | S36: =U199 -> 2.344544268 | T36: 7.334032893 | U36: 0.196163113 | V36: =Y199 -> 94.60091438 | W36: =Z199 -> 1.344504429 | X36: 4.045917291 | Y36: 0.008663903633
E37: =C200 -> 2020 | F37: =E200 -> 81.917633 | G37: 7.321642249 | H37: 10.49174574 | I37: 0.2689790117 | J37: =J200 -> 92.78803703 | K37: 4.970067724 | L37: 2.240729843 | M37: 0.001165404102 | N37: =O200 -> 95.04975073 | O37: 4.072669973 | P37: 0.8775792942 | Q37: 0 | R37: =T200 -> 97.38710547 | S37: 2.533455999 | T37: 0 | U37: 0.07943853418 | V37: =Y200 -> 98.58409734 | W37: 1.401114951 | X37: 0 | Y37: 0.01478770901
B39: RURAL | D39: Estimate | E39: =C299 -> 2000 | F39: =E299 -> 54.01043006 | G39: =F299 -> 8.631240465 | H39: 36.45528659 | I39: 0.9030428812 | J39: =J299 -> 57.04254141 | K39: =K299 -> 9.839735928 | L39: 32.38384872 | M39: 0.7338739416 | N39: =O299 -> 59.07874342 | O39: =P299 -> 11.2205459 | P39: 28.50568286 | Q39: 1.195027829 | R39: =T299 -> 62.91496654 | S39: =U299 -> 11.26824144 | T39: 24.50960348 | U39: 1.307188542 | V39: =Y299 -> 69.78142039 | W39: =Z299 -> 11.07918973 | X39: 18.29662751 | Y39: 0.8427623732
E40: =C300 -> 2020 | F40: =E300 -> 59.15492923 | G40: 9.45336703 | H40: 30.08853629 | I40: 1.303167453 | J40: =J300 -> 64.89985611 | K40: 11.1951086 | L40: 22.25530266 | M40: 1.649732622 | N40: =O300 -> 71.3596506 | O40: 13.55300043 | P40: 13.97914756 | Q40: 1.108201401 | R40: =T300 -> 73.25443354 | S40: 13.12006807 | T40: 12.60156428 | U40: 1.023934113 | V40: =Y300 -> 78.54109344 | W40: 12.46996222 | X40: 7.357583429 | Y40: 1.631360912
A97: NATIONAL | D97: Poorest | I97: Poor | N97: Middle | S97: Rich | X97: Richest
D98: Improved | E98: Basic | F98: Limited | G98: Unimproved | H98: Surface water | I98: Improved | J98: Basic | K98: Limited | L98: Unimproved | M98: Surface water | N98: Improved | O98: Basic | P98: Limited | Q98: Unimproved | R98: Surface water | S98: Improved | T98: Basic | U98: Limited | V98: Unimproved | W98: Surface water | X98: Improved | Y98: Basic | Z98: Limited | AA98: Unimproved | AB98: Surface water
A99: Forecast period: | C99: 2000 | D99: =IF((D101+H101)>100,D101*100/(D101+H101),D101) -> 63.34893595 | E99: =D99*AVERAGEIF(E105:E116,">0")/100 -> 54.39287975 | F99: =D99*(100-AVERAGEIF(E105:E116,">0"))/100 -> 8.956056203 | G99: =100-(E99+F99+H99) -> 35.73091439 | H99: =IF((D101+H101)>100,H101*100/(D101+H101),H101) -> 0.9201496638 | I99: =IF((I101+M101)>100,I101*100/(I101+M101),I101) -> 71.71863897 | J99: =I99*AVERAGEIF(J105:J116,">0")/100 -> 61.11774297 | K99: =I99*(100-AVERAGEIF(J105:J116,">0"))/100 -> 10.600896 | L99: =100-(J99+K99+M99) -> 27.60647395 | M99: =IF((I101+M101)>100,M101*100/(I101+M101),M101) -> 0.674887078 | N99: =IF((N101+R101)>100,N101*100/(N101+R101),N101) -> 75.20596148 | O99: =N99*AVERAGEIF(O105:O116,">0")/100 -> 65.01118724 | P99: =N99*(100-AVERAGEIF(O105:O116,">0"))/100 -> 10.19477425 | Q99: =100-(O99+P99+R99) -> 23.44046127 | R99: =IF((N101+R101)>100,R101*100/(N101+R101),R101) -> 1.353577248 | S99: =IF((S101+W101)>100,S101*100/(S101+W101),S101) -> 81.2676767 | T99: =S99*AVERAGEIF(T105:T116,">0")/100 -> 73.24366238 | U99: =S99*(100-AVERAGEIF(T105:T116,">0"))/100 -> 8.024014323 | V99: =100-(T99+U99+W99) -> 17.94976933 | W99: =IF((S101+W101)>100,W101*100/(S101+W101),W101) -> 0.7825539673 | X99: =IF((X101+AB101)>100,X101*100/(X101+AB101),X101) -> 89.28125755 | Y99: =X99*AVERAGEIF(Y105:Y116,">0")/100 -> 84.51204848 | Z99: =X99*(100-AVERAGEIF(Y105:Y116,">0"))/100 -> 4.769209075 | AA99: =100-(Y99+Z99+AB99) -> 10.27794808 | AB99: =IF((X101+AB101)>100,AB101*100/(X101+AB101),AB101) -> 0.4407943667
C100: 2020 | D100: =IF((D102+H102)>100,D102*100/(D102+H102),D102) -> 70.67372445 | E100: =D100*AVERAGEIF(E105:E116,">0")/100 -> 60.68211466 | F100: =D100*(100-AVERAGEIF(E105:E116,">0"))/100 -> 9.991609784 | G100: =100-(E100+F100+H100) -> 27.95005722 | H100: =IF((D102+H102)>100,H102*100/(D102+H102),H102) -> 1.376218333 | I100: =IF((I102+M102)>100,I102*100/(I102+M102),I102) -> 82.00756116 | J100: =I100*AVERAGEIF(J105:J116,">0")/100 -> 69.88583605 | K100: =I100*(100-AVERAGEIF(J105:J116,">0"))/100 -> 12.12172511 | L100: =100-(J100+K100+M100) -> 16.75045921 | M100: =IF((I102+M102)>100,M102*100/(I102+M102),M102) -> 1.241979633 | N100: =IF((N102+R102)>100,N102*100/(N102+R102),N102) -> 88.44671644 | O100: =N100*AVERAGEIF(O105:O116,">0")/100 -> 76.45705114 | P100: =N100*(100-AVERAGEIF(O105:O116,">0"))/100 -> 11.9896653 | Q100: =100-(O100+P100+R100) -> 10.91242118 | R100: =IF((N102+R102)>100,R102*100/(N102+R102),R102) -> 0.6408623798 | S100: =IF((S102+W102)>100,S102*100/(S102+W102),S102) -> 93.82472945 | T100: =S100*AVERAGEIF(T105:T116,">0")/100 -> 84.56088675 | U100: =S100*(100-AVERAGEIF(T105:T116,">0"))/100 -> 9.263842692 | V100: =100-(T100+U100+W100) -> 5.52701473 | W100: =IF((S102+W102)>100,W102*100/(S102+W102),W102) -> 0.6482558243 | X100: =IF((X102+AB102)>100,X102*100/(X102+AB102),X102) -> 99.22756621 | Y100: =X100*AVERAGEIF(Y105:Y116,">0")/100 -> 93.92704713 | Z100: =X100*(100-AVERAGEIF(Y105:Y116,">0"))/100 -> 5.300519081 | AA100: =100-(Y100+Z100+AB100) -> 0.4073672185 | AB100: =IF((X102+AB102)>100,AB102*100/(X102+AB102),AB102) -> 0.3650665696
A101: Regression period: | C101: =MinRegYear(C99,C105:C116) -> 2000 | D101: =IF(MAX(C105:C116)-MIN(C105:C116)<5,AVERAGEIF(C105:C116,">0",D105:D116), IF(FORECAST($C101,D$105:D$116,$C$105:$C$116)<0,0, IF(FORECAST($C101,D$105:D$116,$C$105:$C$116)>100,100, FORECAST($C101,D$105:D$116,$C$105:$C$116)))) -> 63.34893595 | H101: =IF(MAX(C105:C116)-MIN(C105:C116)<5,AVERAGEIF(C105:C116,">0",H105:H116), IF(FORECAST($C101,H$105:H$116,$C$105:$C$116)<0,0, IF(FORECAST($C101,H$105:H$116,$C$105:$C$116)>100,100, FORECAST($C101,H$105:H$116,$C$105:$C$116)))) -> 0.9201496638 | I101: =IF(MAX(C105:C116)-MIN(C105:C116)<5,AVERAGEIF(C105:C116,">0",I105:I116), IF(FORECAST($C101,I$105:I$116,$C$105:$C$116)<0,0, IF(FORECAST($C101,I$105:I$116,$C$105:$C$116)>100,100, FORECAST($C101,I$105:I$116,$C$105:$C$116)))) -> 71.71863897 | M101: =IF(MAX(C105:C116)-MIN(C105:C116)<5,AVERAGEIF(C105:C116,">0",M105:M116), IF(FORECAST($C101,M$105:M$116,$C$105:$C$116)<0,0, IF(FORECAST($C101,M$105:M$116,$C$105:$C$116)>100,100, FORECAST($C101,M$105:M$116,$C$105:$C$116)))) -> 0.674887078 | N101: =IF(MAX(C105:C116)-MIN(C105:C116)<5,AVERAGEIF(C105:C116,">0",N105:N116), IF(FORECAST($C101,N$105:N$116,$C$105:$C$116)<0,0, IF(FORECAST($C101,N$105:N$116,$C$105:$C$116)>100,100, FORECAST($C101,N$105:N$116,$C$105:$C$116)))) -> 75.20596148 | R101: =IF(MAX(C105:C116)-MIN(C105:C116)<5,AVERAGEIF(C105:C116,">0",R105:R116), IF(FORECAST($C101,R$105:R$116,$C$105:$C$116)<0,0, IF(FORECAST($C101,R$105:R$116,$C$105:$C$116)>100,100, FORECAST($C101,R$105:R$116,$C$105:$C$116)))) -> 1.353577248 | S101: =IF(MAX(C105:C116)-MIN(C105:C116)<5,AVERAGEIF(C105:C116,">0",S105:S116), IF(FORECAST($C101,S$105:S$116,$C$105:$C$116)<0,0, IF(FORECAST($C101,S$105:S$116,$C$105:$C$116)>100,100, FORECAST($C101,S$105:S$116,$C$105:$C$116)))) -> 81.2676767 | W101: =IF(MAX(C105:C116)-MIN(C105:C116)<5,AVERAGEIF(C105:C116,">0",W105:W116), IF(FORECAST($C101,W$105:W$116,$C$105:$C$116)<0,0, IF(FORECAST($C101,W$105:W$116,$C$105:$C$116)>100,100, FORECAST($C101,W$105:W$116,$C$105:$C$116)))) -> 0.7825539673 | X101: =IF(MAX(C105:C116)-MIN(C105:C116)<5,AVERAGEIF(C105:C116,">0",X105:X116), IF(FORECAST($C101,X$105:X$116,$C$105:$C$116)<0,0, IF(FORECAST($C101,X$105:X$116,$C$105:$C$116)>100,100, FORECAST($C101,X$105:X$116,$C$105:$C$116)))) -> 89.28125755 | AB101: =IF(MAX(C105:C116)-MIN(C105:C116)<5,AVERAGEIF(C105:C116,">0",AB105:AB116), IF(FORECAST($C101,AB$105:AB$116,$C$105:$C$116)<0,0, IF(FORECAST($C101,AB$105:AB$116,$C$105:$C$116)>100,100, FORECAST($C101,AB$105:AB$116,$C$105:$C$116)))) -> 0.4407943667
C102: =MaxRegYear(C100,C105:C116) -> 2020 | D102: =IF(MAX(C105:C116)-MIN(C105:C116)<5,AVERAGEIF(C105:C116,">0",D105:D116), IF(FORECAST($C102,D$105:D$116,$C$105:$C$116)<0,0, IF(FORECAST($C102,D$105:D$116,$C$105:$C$116)>100,100, FORECAST($C102,D$105:D$116,$C$105:$C$116)))) -> 70.67372445 | H102: =IF(MAX(C105:C116)-MIN(C105:C116)<5,AVERAGEIF(C105:C116,">0",H105:H116), IF(FORECAST($C102,H$105:H$116,$C$105:$C$116)<0,0, IF(FORECAST($C102,H$105:H$116,$C$105:$C$116)>100,100, FORECAST($C102,H$105:H$116,$C$105:$C$116)))) -> 1.376218333 | I102: =IF(MAX(C105:C116)-MIN(C105:C116)<5,AVERAGEIF(C105:C116,">0",I105:I116), IF(FORECAST($C102,I$105:I$116,$C$105:$C$116)<0,0, IF(FORECAST($C102,I$105:I$116,$C$105:$C$116)>100,100, FORECAST($C102,I$105:I$116,$C$105:$C$116)))) -> 82.00756116 | M102: =IF(MAX(C105:C116)-MIN(C105:C116)<5,AVERAGEIF(C105:C116,">0",M105:M116), IF(FORECAST($C102,M$105:M$116,$C$105:$C$116)<0,0, IF(FORECAST($C102,M$105:M$116,$C$105:$C$116)>100,100, FORECAST($C102,M$105:M$116,$C$105:$C$116)))) -> 1.241979633 | N102: =IF(MAX(C105:C116)-MIN(C105:C116)<5,AVERAGEIF(C105:C116,">0",N105:N116), IF(FORECAST($C102,N$105:N$116,$C$105:$C$116)<0,0, IF(FORECAST($C102,N$105:N$116,$C$105:$C$116)>100,100, FORECAST($C102,N$105:N$116,$C$105:$C$116)))) -> 88.44671644 | R102: =IF(MAX(C105:C116)-MIN(C105:C116)<5,AVERAGEIF(C105:C116,">0",R105:R116), IF(FORECAST($C102,R$105:R$116,$C$105:$C$116)<0,0, IF(FORECAST($C102,R$105:R$116,$C$105:$C$116)>100,100, FORECAST($C102,R$105:R$116,$C$105:$C$116)))) -> 0.6408623798 | S102: =IF(MAX(C105:C116)-MIN(C105:C116)<5,AVERAGEIF(C105:C116,">0",S105:S116), IF(FORECAST($C102,S$105:S$116,$C$105:$C$116)<0,0, IF(FORECAST($C102,S$105:S$116,$C$105:$C$116)>100,100, FORECAST($C102,S$105:S$116,$C$105:$C$116)))) -> 93.82472945 | W102: =IF(MAX(C105:C116)-MIN(C105:C116)<5,AVERAGEIF(C105:C116,">0",W105:W116), IF(FORECAST($C102,W$105:W$116,$C$105:$C$116)<0,0, IF(FORECAST($C102,W$105:W$116,$C$105:$C$116)>100,100, FORECAST($C102,W$105:W$116,$C$105:$C$116)))) -> 0.6482558243 | X102: =IF(MAX(C105:C116)-MIN(C105:C116)<5,AVERAGEIF(C105:C116,">0",X105:X116), IF(FORECAST($C102,X$105:X$116,$C$105:$C$116)<0,0, IF(FORECAST($C102,X$105:X$116,$C$105:$C$116)>100,100, FORECAST($C102,X$105:X$116,$C$105:$C$116)))) -> 99.22756621 | AB102: =IF(MAX(C105:C116)-MIN(C105:C116)<5,AVERAGEIF(C105:C116,">0",AB105:AB116), IF(FORECAST($C102,AB$105:AB$116,$C$105:$C$116)<0,0, IF(FORECAST($C102,AB$105:AB$116,$C$105:$C$116)>100,100, FORECAST($C102,AB$105:AB$116,$C$105:$C$116)))) -> 0.3650665696
B104: Survey | C104: Year | D104: Improved | E104: % Improved < = 30min | H104: Surface water | I104: Improved | J104: % Improved < = 30min | M104: Surface water | N104: Improved | O104: % Improved < = 30min | R104: Surface water | S104: Improved | T104: % Improved < = 30min | W104: Surface water | X104: Improved | Y104: % Improved < = 30min | AB104: Surface water
B105: MICS00 | C105: 2000 | D105: =IF(ISERROR(INDIRECT(CONCATENATE($B105,"!C16"))),"",INDIRECT(CONCATENATE($B105,"!C16"))) -> 62.35690236 | E105: =IF(ISERROR(INDIRECT(CONCATENATE($B105,"!C23"))),"",INDIRECT(CONCATENATE($B105,"!C23"))) -> 89.63282937 | H105: =IF(ISERROR(INDIRECT(CONCATENATE($B105,"!C21"))),"",INDIRECT(CONCATENATE($B105,"!C21"))) -> 0.6734006734 | I105: =IF(ISERROR(INDIRECT(CONCATENATE($B105,"!D16"))),"",INDIRECT(CONCATENATE($B105,"!D16"))) -> 73.06917394 | J105: =IF(ISERROR(INDIRECT(CONCATENATE($B105,"!D23"))),"",INDIRECT(CONCATENATE($B105,"!D23"))) -> 89.15441176 | M105: =IF(ISERROR(INDIRECT(CONCATENATE($B105,"!D21"))),"",INDIRECT(CONCATENATE($B105,"!D21"))) -> 0.8059100067 | N105: =IF(ISERROR(INDIRECT(CONCATENATE($B105,"!E16"))),"",INDIRECT(CONCATENATE($B105,"!E16"))) -> 76.24573379 | O105: =IF(ISERROR(INDIRECT(CONCATENATE($B105,"!E23"))),"",INDIRECT(CONCATENATE($B105,"!E23"))) -> 90.24171889 | R105: =IF(ISERROR(INDIRECT(CONCATENATE($B105,"!E21"))),"",INDIRECT(CONCATENATE($B105,"!E21"))) -> 0.6825938567 | S105: =IF(ISERROR(INDIRECT(CONCATENATE($B105,"!F16"))),"",INDIRECT(CONCATENATE($B105,"!F16"))) -> 83.98648649 | T105: =IF(ISERROR(INDIRECT(CONCATENATE($B105,"!F23"))),"",INDIRECT(CONCATENATE($B105,"!F23"))) -> 90.34593725 | W105: =IF(ISERROR(INDIRECT(CONCATENATE($B105,"!F21"))),"",INDIRECT(CONCATENATE($B105,"!F21"))) -> 0.6081081081 | X105: =IF(ISERROR(INDIRECT(CONCATENATE($B105,"!G16"))),"",INDIRECT(CONCATENATE($B105,"!G16"))) -> 89.72972973 | Y105: =IF(ISERROR(INDIRECT(CONCATENATE($B105,"!G23"))),"",INDIRECT(CONCATENATE($B105,"!G23"))) -> 92.62048193 | AB105: =IF(ISERROR(INDIRECT(CONCATENATE($B105,"!G221"))),"",INDIRECT(CONCATENATE($B105,"!G21"))) -> 0.2027027027
B106: HBS02 | C106: 2002 | D106: 68.88362373 | E106: N/A | H106: 0.3140856244 | I106: 80.52322556 | J106: N/A | M106: 0.1371945642 | N106: 82.8623712 | O106: N/A | R106: 0.3104072946 | S106: 84.310661 | T106: N/A | W106: 0.2778854818 | X106: 91.28353527 | Y106: N/A | AB106: 0.1231519385
B107: DHS04 | C107: 2004 | D107: 65.24400972 | E107: N/A | H107: 2.01156332 | I107: 66.96859658 | J107: N/A | M107: 1.58559981 | N107: 72.7304977 | O107: N/A | R107: 3.344498476 | S107: 79.52965946 | T107: N/A | W107: 1.925243889 | X107: 89.8039789 | Y107: N/A | AB107: 1.224568048
B108: DHS09 | C108: 2009 | D108: 60.10074659 | E108: 87.6 | H108: 1.117304216 | I108: 71.28220401 | J108: 85 | M108: 0.4220060404 | N108: 77.00638164 | O108: 85.4 | R108: 0.8335221379 | S108: 85.04178199 | T108: 92.6 | W108: 0.1761413583 | X108: 93.22682796 | Y108: 93.7 | AB108: 0.2813703485
B109: DHS14 | C109: 2014 | D109: 66.95097152 | E109: 83.30952899 | H109: 1.473923872 | I109: 76.96760589 | J109: 82.31156654 | M109: 1.212489535 | N109: 81.75414843 | O109: 80.96693464 | R109: 0.7430714605 | S109: 89.76912983 | T109: 86.43666524 | W109: 0.5735343941 | X109: 96.5209569 | Y109: 94.54552861 | AB109: 0.1852882944
B110: MICS18 | C110: 2018 | D110: 73.77061476 | E110: 82.90700779 | H110: 1.00238165 | I110: 85.67999497 | J110: 84.40910716 | M110: 1.218790015 | N110: 91.75241028 | O110: 89.16812244 | R110: 0.5324903235 | S110: 94.47741541 | T110: 91.12315011 | W110: 0.8188099369 | X110: 98.49634192 | Y110: 97.76686625 | AB110: 0.4497245449
D111: =IF(ISERROR(INDIRECT(CONCATENATE($B111,"!C16"))),"",INDIRECT(CONCATENATE($B111,"!C16"))) ->  | E111: =IF(ISERROR(INDIRECT(CONCATENATE($B111,"!C23"))),"",INDIRECT(CONCATENATE($B111,"!C23"))) ->  | H111: =IF(ISERROR(INDIRECT(CONCATENATE($B111,"!C21"))),"",INDIRECT(CONCATENATE($B111,"!C21"))) ->  | I111: =IF(ISERROR(INDIRECT(CONCATENATE($B111,"!D16"))),"",INDIRECT(CONCATENATE($B111,"!D16"))) ->  | J111: =IF(ISERROR(INDIRECT(CONCATENATE($B111,"!D23"))),"",INDIRECT(CONCATENATE($B111,"!D23"))) ->  | M111: =IF(ISERROR(INDIRECT(CONCATENATE($B111,"!D21"))),"",INDIRECT(CONCATENATE($B111,"!D21"))) ->  | N111: =IF(ISERROR(INDIRECT(CONCATENATE($B111,"!E16"))),"",INDIRECT(CONCATENATE($B111,"!E16"))) ->  | O111: =IF(ISERROR(INDIRECT(CONCATENATE($B111,"!E23"))),"",INDIRECT(CONCATENATE($B111,"!E23"))) ->  | R111: =IF(ISERROR(INDIRECT(CONCATENATE($B111,"!E21"))),"",INDIRECT(CONCATENATE($B111,"!E21"))) ->  | S111: =IF(ISERROR(INDIRECT(CONCATENATE($B111,"!F16"))),"",INDIRECT(CONCATENATE($B111,"!F16"))) ->  | T111: =IF(ISERROR(INDIRECT(CONCATENATE($B111,"!F23"))),"",INDIRECT(CONCATENATE($B111,"!F23"))) ->  | W111: =IF(ISERROR(INDIRECT(CONCATENATE($B111,"!F21"))),"",INDIRECT(CONCATENATE($B111,"!F21"))) ->  | X111: =IF(ISERROR(INDIRECT(CONCATENATE($B111,"!G16"))),"",INDIRECT(CONCATENATE($B111,"!G16"))) ->  | Y111: =IF(ISERROR(INDIRECT(CONCATENATE($B111,"!G23"))),"",INDIRECT(CONCATENATE($B111,"!G23"))) ->  | AB111: =IF(ISERROR(INDIRECT(CONCATENATE($B111,"!G221"))),"",INDIRECT(CONCATENATE($B111,"!G21"))) -> 
D112: =IF(ISERROR(INDIRECT(CONCATENATE($B112,"!C16"))),"",INDIRECT(CONCATENATE($B112,"!C16"))) ->  | E112: =IF(ISERROR(INDIRECT(CONCATENATE($B112,"!C23"))),"",INDIRECT(CONCATENATE($B112,"!C23"))) ->  | H112: =IF(ISERROR(INDIRECT(CONCATENATE($B112,"!C21"))),"",INDIRECT(CONCATENATE($B112,"!C21"))) ->  | I112: =IF(ISERROR(INDIRECT(CONCATENATE($B112,"!D16"))),"",INDIRECT(CONCATENATE($B112,"!D16"))) ->  | J112: =IF(ISERROR(INDIRECT(CONCATENATE($B112,"!D23"))),"",INDIRECT(CONCATENATE($B112,"!D23"))) ->  | M112: =IF(ISERROR(INDIRECT(CONCATENATE($B112,"!D21"))),"",INDIRECT(CONCATENATE($B112,"!D21"))) ->  | N112: =IF(ISERROR(INDIRECT(CONCATENATE($B112,"!E16"))),"",INDIRECT(CONCATENATE($B112,"!E16"))) ->  | O112: =IF(ISERROR(INDIRECT(CONCATENATE($B112,"!E23"))),"",INDIRECT(CONCATENATE($B112,"!E23"))) ->  | R112: =IF(ISERROR(INDIRECT(CONCATENATE($B112,"!E21"))),"",INDIRECT(CONCATENATE($B112,"!E21"))) ->  | S112: =IF(ISERROR(INDIRECT(CONCATENATE($B112,"!F16"))),"",INDIRECT(CONCATENATE($B112,"!F16"))) ->  | T112: =IF(ISERROR(INDIRECT(CONCATENATE($B112,"!F23"))),"",INDIRECT(CONCATENATE($B112,"!F23"))) ->  | W112: =IF(ISERROR(INDIRECT(CONCATENATE($B112,"!F21"))),"",INDIRECT(CONCATENATE($B112,"!F21"))) ->  | X112: =IF(ISERROR(INDIRECT(CONCATENATE($B112,"!G16"))),"",INDIRECT(CONCATENATE($B112,"!G16"))) ->  | Y112: =IF(ISERROR(INDIRECT(CONCATENATE($B112,"!G23"))),"",INDIRECT(CONCATENATE($B112,"!G23"))) ->  | AB112: =IF(ISERROR(INDIRECT(CONCATENATE($B112,"!G221"))),"",INDIRECT(CONCATENATE($B112,"!G21"))) -> 
B118: =CONCATENATE("National use of drinking water sources, ",C99,"–",C100) -> National use of drinking water sources, 2000–2020 | S118: Data points used for regression
E153: =IF(ISERROR(INDIRECT(CONCATENATE($B153,"!M18"))),"",INDIRECT(CONCATENATE($B153,"!M18"))) ->  | F153: =IF(ISERROR(INDIRECT(CONCATENATE($B153,"!M19"))),"",INDIRECT(CONCATENATE($B153,"!M19"))) ->  | G153: =IF(ISERROR(INDIRECT(CONCATENATE($B153,"!M20"))),"",INDIRECT(CONCATENATE($B153,"!M20"))) ->  | H153: =IF(ISERROR(INDIRECT(CONCATENATE($B153,"!M21"))),"",INDIRECT(CONCATENATE($B153,"!M21"))) ->  | J153: =IF(ISERROR(INDIRECT(CONCATENATE($B153,"!N18"))),"",INDIRECT(CONCATENATE($B153,"!N18"))) ->  | K153: =IF(ISERROR(INDIRECT(CONCATENATE($B153,"!N19"))),"",INDIRECT(CONCATENATE($B153,"!N19"))) ->  | L153: =IF(ISERROR(INDIRECT(CONCATENATE($B153,"!N20"))),"",INDIRECT(CONCATENATE($B153,"!N20"))) ->  | M153: =IF(ISERROR(INDIRECT(CONCATENATE($B153,"!N21"))),"",INDIRECT(CONCATENATE($B153,"!N21"))) ->  | O153: =IF(ISERROR(INDIRECT(CONCATENATE($B153,"!O18"))),"",INDIRECT(CONCATENATE($B153,"!O18"))) ->  | P153: =IF(ISERROR(INDIRECT(CONCATENATE($B153,"!O19"))),"",INDIRECT(CONCATENATE($B153,"!O19"))) ->  | Q153: =IF(ISERROR(INDIRECT(CONCATENATE($B153,"!O20"))),"",INDIRECT(CONCATENATE($B153,"!O20"))) ->  | R153: =IF(ISERROR(INDIRECT(CONCATENATE($B153,"!O21"))),"",INDIRECT(CONCATENATE($B153,"!O21"))) ->  | T153: =IF(ISERROR(INDIRECT(CONCATENATE($B153,"!P18"))),"",INDIRECT(CONCATENATE($B153,"!P18"))) ->  | U153: =IF(ISERROR(INDIRECT(CONCATENATE($B153,"!P19"))),"",INDIRECT(CONCATENATE($B153,"!P19"))) ->  | V153: =IF(ISERROR(INDIRECT(CONCATENATE($B153,"!P20"))),"",INDIRECT(CONCATENATE($B153,"!P20"))) ->  | W153: =IF(ISERROR(INDIRECT(CONCATENATE($B153,"!P21"))),"",INDIRECT(CONCATENATE($B153,"!P21"))) ->  | Y153: =IF(ISERROR(INDIRECT(CONCATENATE($B153,"!Q18"))),"",INDIRECT(CONCATENATE($B153,"!Q18"))) ->  | Z153: =IF(ISERROR(INDIRECT(CONCATENATE($B153,"!Q19"))),"",INDIRECT(CONCATENATE($B153,"!Q19"))) ->  | AA153: =IF(ISERROR(INDIRECT(CONCATENATE($B153,"!Q20"))),"",INDIRECT(CONCATENATE($B153,"!Q20"))) ->  | AB153: =IF(ISERROR(INDIRECT(CONCATENATE($B153,"!Q21"))),"",INDIRECT(CONCATENATE($B153,"!Q1"))) -> 
A197: URBAN | D197: Poorest | I197: Poor | N197: Middle | S197: Rich | X197: Richest
D198: Improved | E198: Basic | F198: Limited | G198: Unimproved | H198: Surface water | I198: Improved | J198: Basic | K198: Limited | L198: Unimproved | M198: Surface water | N198: Improved | O198: Basic | P198: Limited | Q198: Unimproved | R198: Surface water | S198: Improved | T198: Basic | U198: Limited | V198: Unimproved | W198: Surface water | X198: Improved | Y198: Basic | Z198: Limited | AA198: Unimproved | AB198: Surface water
A199: Forecast period: | C199: 2000 | D199: =IF((D201+H201)>100,D201*100/(D201+H201),D201) -> 87.48326356 | E199: =D199*AVERAGEIF(E205:E216,">0")/100 -> 80.30569341 | F199: =D199*(100-AVERAGEIF(E205:E216,">0"))/100 -> 7.177570153 | G199: =100-(E199+F199+H199) -> 12.48717634 | H199: =IF((D201+H201)>100,H201*100/(D201+H201),H201) -> 0.02956009611 | I199: =IF((I201+M201)>100,I201*100/(I201+M201),I201) -> 86.38644938 | J199: =I199*AVERAGEIF(J205:J216,">0")/100 -> 81.99452193 | K199: =I199*(100-AVERAGEIF(J205:J216,">0"))/100 -> 4.391927451 | L199: =100-(J199+K199+M199) -> 13.48797906 | M199: =IF((I201+M201)>100,M201*100/(I201+M201),M201) -> 0.1255715635 | N199: =IF((N201+R201)>100,N201*100/(N201+R201),N201) -> 89.31762868 | O199: =N199*AVERAGEIF(O205:O216,">0")/100 -> 85.64781088 | P199: =N199*(100-AVERAGEIF(O205:O216,">0"))/100 -> 3.669817805 | Q199: =100-(O199+P199+R199) -> 10.56802479 | R199: =IF((N201+R201)>100,R201*100/(N201+R201),R201) -> 0.1143465308 | S199: =IF((S201+W201)>100,S201*100/(S201+W201),S201) -> 92.46980399 | T199: =S199*AVERAGEIF(T205:T216,">0")/100 -> 90.12525973 | U199: =S199*(100-AVERAGEIF(T205:T216,">0"))/100 -> 2.344544268 | V199: =100-(T199+U199+W199) -> 7.334032893 | W199: =IF((S201+W201)>100,W201*100/(S201+W201),W201) -> 0.196163113 | X199: =IF((X201+AB201)>100,X201*100/(X201+AB201),X201) -> 95.94541881 | Y199: =X199*AVERAGEIF(Y205:Y216,">0")/100 -> 94.60091438 | Z199: =X199*(100-AVERAGEIF(Y205:Y216,">0"))/100 -> 1.344504429 | AA199: =100-(Y199+Z199+AB199) -> 4.045917291 | AB199: =IF((X201+AB201)>100,AB201*100/(X201+AB201),AB201) -> 0.008663903633
C200: 2020 | D200: =IF((D202+H202)>100,D202*100/(D202+H202),D202) -> 89.23927525 | E200: =D200*AVERAGEIF(E205:E216,">0")/100 -> 81.917633 | F200: =D200*(100-AVERAGEIF(E205:E216,">0"))/100 -> 7.321642249 | G200: =100-(E200+F200+H200) -> 10.49174574 | H200: =IF((D202+H202)>100,H202*100/(D202+H202),H202) -> 0.2689790117 | I200: =IF((I202+M202)>100,I202*100/(I202+M202),I202) -> 97.75810475 | J200: =I200*AVERAGEIF(J205:J216,">0")/100 -> 92.78803703 | K200: =I200*(100-AVERAGEIF(J205:J216,">0"))/100 -> 4.970067724 | L200: =100-(J200+K200+M200) -> 2.240729843 | M200: =IF((I202+M202)>100,M202*100/(I202+M202),M202) -> 0.001165404102 | N200: =IF((N202+R202)>100,N202*100/(N202+R202),N202) -> 99.12242071 | O200: =N200*AVERAGEIF(O205:O216,">0")/100 -> 95.04975073 | P200: =N200*(100-AVERAGEIF(O205:O216,">0"))/100 -> 4.072669973 | Q200: =100-(O200+P200+R200) -> 0.8775792942 | R200: =IF((N202+R202)>100,R202*100/(N202+R202),R202) -> 0 | S200: =IF((S202+W202)>100,S202*100/(S202+W202),S202) -> 99.92056147 | T200: =S200*AVERAGEIF(T205:T216,">0")/100 -> 97.38710547 | U200: =S200*(100-AVERAGEIF(T205:T216,">0"))/100 -> 2.533455999 | V200: =100-(T200+U200+W200) -> 0 | W200: =IF((S202+W202)>100,W202*100/(S202+W202),W202) -> 0.07943853418 | X200: =IF((X202+AB202)>100,X202*100/(X202+AB202),X202) -> 99.98521229 | Y200: =X200*AVERAGEIF(Y205:Y216,">0")/100 -> 98.58409734 | Z200: =X200*(100-AVERAGEIF(Y205:Y216,">0"))/100 -> 1.401114951 | AA200: =100-(Y200+Z200+AB200) -> 0 | AB200: =IF((X202+AB202)>100,AB202*100/(X202+AB202),AB202) -> 0.01478770901
A201: Regression period: | C201: =MinRegYear(C199,C205:C216) -> 2000 | D201: =IF(MAX(C205:C216)-MIN(C205:C216)<5,AVERAGEIF(C205:C216,">0",D205:D216), IF(FORECAST($C201,D$205:D$216,$C$205:$C$216)<0,0, IF(FORECAST($C201,D$205:D$216,$C$205:$C$216)>100,100, FORECAST($C201,D$205:D$216,$C$205:$C$216)))) -> 87.48326356 | H201: =IF(MAX(C205:C216)-MIN(C205:C216)<5,AVERAGEIF(C205:C216,">0",H205:H216), IF(FORECAST($C201,H$205:H$216,$C$205:$C$216)<0,0, IF(FORECAST($C201,H$205:H$216,$C$205:$C$216)>100,100, FORECAST($C201,H$205:H$216,$C$205:$C$216)))) -> 0.02956009611 | I201: =IF(MAX(C205:C216)-MIN(C205:C216)<5,AVERAGEIF(C205:C216,">0",I205:I216), IF(FORECAST($C201,I$205:I$216,$C$205:$C$216)<0,0, IF(FORECAST($C201,I$205:I$216,$C$205:$C$216)>100,100, FORECAST($C201,I$205:I$216,$C$205:$C$216)))) -> 86.38644938 | M201: =IF(MAX(C205:C216)-MIN(C205:C216)<5,AVERAGEIF(C205:C216,">0",M205:M216), IF(FORECAST($C201,M$205:M$216,$C$205:$C$216)<0,0, IF(FORECAST($C201,M$205:M$216,$C$205:$C$216)>100,100, FORECAST($C201,M$205:M$216,$C$205:$C$216)))) -> 0.1255715635 | N201: =IF(MAX(C205:C216)-MIN(C205:C216)<5,AVERAGEIF(C205:C216,">0",N205:N216), IF(FORECAST($C201,N$205:N$216,$C$205:$C$216)<0,0, IF(FORECAST($C201,N$205:N$216,$C$205:$C$216)>100,100, FORECAST($C201,N$205:N$216,$C$205:$C$216)))) -> 89.31762868 | R201: =IF(MAX(C205:C216)-MIN(C205:C216)<5,AVERAGEIF(C205:C216,">0",R205:R216), IF(FORECAST($C201,R$205:R$216,$C$205:$C$216)<0,0, IF(FORECAST($C201,R$205:R$216,$C$205:$C$216)>100,100, FORECAST($C201,R$205:R$216,$C$205:$C$216)))) -> 0.1143465308 | S201: =IF(MAX(C205:C216)-MIN(C205:C216)<5,AVERAGEIF(C205:C216,">0",S205:S216), IF(FORECAST($C201,S$205:S$216,$C$205:$C$216)<0,0, IF(FORECAST($C201,S$205:S$216,$C$205:$C$216)>100,100, FORECAST($C201,S$205:S$216,$C$205:$C$216)))) -> 92.46980399 | W201: =IF(MAX(C205:C216)-MIN(C205:C216)<5,AVERAGEIF(C205:C216,">0",W205:W216), IF(FORECAST($C201,W$205:W$216,$C$205:$C$216)<0,0, IF(FORECAST($C201,W$205:W$216,$C$205:$C$216)>100,100, FORECAST($C201,W$205:W$216,$C$205:$C$216)))) -> 0.196163113 | X201: =IF(MAX(C205:C216)-MIN(C205:C216)<5,AVERAGEIF(C205:C216,">0",X205:X216), IF(FORECAST($C201,X$205:X$216,$C$205:$C$216)<0,0, IF(FORECAST($C201,X$205:X$216,$C$205:$C$216)>100,100, FORECAST($C201,X$205:X$216,$C$205:$C$216)))) -> 95.94541881 | AB201: =IF(MAX(C205:C216)-MIN(C205:C216)<5,AVERAGEIF(C205:C216,">0",AB205:AB216), IF(FORECAST($C201,AB$205:AB$216,$C$205:$C$216)<0,0, IF(FORECAST($C201,AB$205:AB$216,$C$205:$C$216)>100,100, FORECAST($C201,AB$205:AB$216,$C$205:$C$216)))) -> 0.008663903633
C202: =MaxRegYear(C200,C205:C216) -> 2020 | D202: =IF(MAX(C205:C216)-MIN(C205:C216)<5,AVERAGEIF(C205:C216,">0",D205:D216), IF(FORECAST($C202,D$205:D$216,$C$205:$C$216)<0,0, IF(FORECAST($C202,D$205:D$216,$C$205:$C$216)>100,100, FORECAST($C202,D$205:D$216,$C$205:$C$216)))) -> 89.23927525 | H202: =IF(MAX(C205:C216)-MIN(C205:C216)<5,AVERAGEIF(C205:C216,">0",H205:H216), IF(FORECAST($C202,H$205:H$216,$C$205:$C$216)<0,0, IF(FORECAST($C202,H$205:H$216,$C$205:$C$216)>100,100, FORECAST($C202,H$205:H$216,$C$205:$C$216)))) -> 0.2689790117 | I202: =IF(MAX(C205:C216)-MIN(C205:C216)<5,AVERAGEIF(C205:C216,">0",I205:I216), IF(FORECAST($C202,I$205:I$216,$C$205:$C$216)<0,0, IF(FORECAST($C202,I$205:I$216,$C$205:$C$216)>100,100, FORECAST($C202,I$205:I$216,$C$205:$C$216)))) -> 97.75810475 | M202: =IF(MAX(C205:C216)-MIN(C205:C216)<5,AVERAGEIF(C205:C216,">0",M205:M216), IF(FORECAST($C202,M$205:M$216,$C$205:$C$216)<0,0, IF(FORECAST($C202,M$205:M$216,$C$205:$C$216)>100,100, FORECAST($C202,M$205:M$216,$C$205:$C$216)))) -> 0.001165404102 | N202: =IF(MAX(C205:C216)-MIN(C205:C216)<5,AVERAGEIF(C205:C216,">0",N205:N216), IF(FORECAST($C202,N$205:N$216,$C$205:$C$216)<0,0, IF(FORECAST($C202,N$205:N$216,$C$205:$C$216)>100,100, FORECAST($C202,N$205:N$216,$C$205:$C$216)))) -> 99.12242071 | R202: =IF(MAX(C205:C216)-MIN(C205:C216)<5,AVERAGEIF(C205:C216,">0",R205:R216), IF(FORECAST($C202,R$205:R$216,$C$205:$C$216)<0,0, IF(FORECAST($C202,R$205:R$216,$C$205:$C$216)>100,100, FORECAST($C202,R$205:R$216,$C$205:$C$216)))) -> 0 | S202: =IF(MAX(C205:C216)-MIN(C205:C216)<5,AVERAGEIF(C205:C216,">0",S205:S216), IF(FORECAST($C202,S$205:S$216,$C$205:$C$216)<0,0, IF(FORECAST($C202,S$205:S$216,$C$205:$C$216)>100,100, FORECAST($C202,S$205:S$216,$C$205:$C$216)))) -> 100 | W202: =IF(MAX(C205:C216)-MIN(C205:C216)<5,AVERAGEIF(C205:C216,">0",W205:W216), IF(FORECAST($C202,W$205:W$216,$C$205:$C$216)<0,0, IF(FORECAST($C202,W$205:W$216,$C$205:$C$216)>100,100, FORECAST($C202,W$205:W$216,$C$205:$C$216)))) -> 0.07950168916 | X202: =IF(MAX(C205:C216)-MIN(C205:C216)<5,AVERAGEIF(C205:C216,">0",X205:X216), IF(FORECAST($C202,X$205:X$216,$C$205:$C$216)<0,0, IF(FORECAST($C202,X$205:X$216,$C$205:$C$216)>100,100, FORECAST($C202,X$205:X$216,$C$205:$C$216)))) -> 100 | AB202: =IF(MAX(C205:C216)-MIN(C205:C216)<5,AVERAGEIF(C205:C216,">0",AB205:AB216), IF(FORECAST($C202,AB$205:AB$216,$C$205:$C$216)<0,0, IF(FORECAST($C202,AB$205:AB$216,$C$205:$C$216)>100,100, FORECAST($C202,AB$205:AB$216,$C$205:$C$216)))) -> 0.0147898961
B204: Survey | C204: Year | D204: Improved | E204: % Improved < = 30min | H204: Surface water | I204: Improved | J204: % Improved < = 30min | M204: Surface water | N204: Improved | O204: % Improved < = 30min | R204: Surface water | S204: Improved | T204: % Improved < = 30min | W204: Surface water | X204: Improved | Y204: % Improved < = 30min | AB204: Surface water
B205: MICS00 | C205: 2000 | D205: =IF(ISERROR(INDIRECT(CONCATENATE($B205,"!H16"))),"",INDIRECT(CONCATENATE($B205,"!H16"))) -> 88.51540616 | E205: =IF(ISERROR(INDIRECT(CONCATENATE($B205,"!H23"))),"",INDIRECT(CONCATENATE($B205,"!H23"))) -> 91.4556962 | H205: =IF(ISERROR(INDIRECT(CONCATENATE($B205,"!H21"))),"",INDIRECT(CONCATENATE($B205,"!H21"))) -> 0 | I205: =IF(ISERROR(INDIRECT(CONCATENATE($B205,"!I16"))),"",INDIRECT(CONCATENATE($B205,"!I16"))) -> 85.04155125 | J205: =IF(ISERROR(INDIRECT(CONCATENATE($B205,"!I23"))),"",INDIRECT(CONCATENATE($B205,"!I23"))) -> 92.18241042 | M205: =IF(ISERROR(INDIRECT(CONCATENATE($B205,"!I21"))),"",INDIRECT(CONCATENATE($B205,"!I21"))) -> 0.2770083102 | N205: =IF(ISERROR(INDIRECT(CONCATENATE($B205,"!J16"))),"",INDIRECT(CONCATENATE($B205,"!J16"))) -> 90.22346369 | O205: =IF(ISERROR(INDIRECT(CONCATENATE($B205,"!J23"))),"",INDIRECT(CONCATENATE($B205,"!J23"))) -> 94.11764706 | R205: =IF(ISERROR(INDIRECT(CONCATENATE($B205,"!J21"))),"",INDIRECT(CONCATENATE($B205,"!J21"))) -> 0.2793296089 | S205: =IF(ISERROR(INDIRECT(CONCATENATE($B205,"!K16"))),"",INDIRECT(CONCATENATE($B205,"!K16"))) -> 90.16853933 | T205: =IF(ISERROR(INDIRECT(CONCATENATE($B205,"!K23"))),"",INDIRECT(CONCATENATE($B205,"!K23"))) -> 94.70404984 | W205: =IF(ISERROR(INDIRECT(CONCATENATE($B205,"!K21"))),"",INDIRECT(CONCATENATE($B205,"!K21"))) -> 0.2808988764 | X205: =IF(ISERROR(INDIRECT(CONCATENATE($B205,"!L16"))),"",INDIRECT(CONCATENATE($B205,"!L16"))) -> 95.53072626 | Y205: =IF(ISERROR(INDIRECT(CONCATENATE($B205,"!L23"))),"",INDIRECT(CONCATENATE($B205,"!L23"))) -> 98.83040936 | AB205: =IF(ISERROR(INDIRECT(CONCATENATE($B205,"!L221"))),"",INDIRECT(CONCATENATE($B205,"!L21"))) -> 0
B206: HBS02 | C206: 2002 | D206: 90.08206202 | E206: N/A | H206: 0.04393533405 | I206: 86.81317457 | J206: N/A | M206: 0.04482334264 | N206: 85.77164242 | O206: N/A | R206: 0 | S206: 92.50468025 | T206: N/A | W206: 0 | X206: 94.46139024 | Y206: N/A | AB206: 0
B207: DHS04 | C207: 2004 | D207: 88.7278022 | E207: N/A | H207: 0 | I207: 92.57490555 | J207: N/A | M207: 0 | N207: 97.49432543 | O207: N/A | R207: 0 | S207: 97.96022322 | T207: N/A | W207: 0 | X207: 99.2732898 | Y207: N/A | AB207: 0
B208: DHS09 | C208: 2009 | D208: 80.60370322 | E208: 92.7 | H208: 0.2126334234 | I208: 88.5359007 | J208: 97.1 | M208: 0 | N208: 89.7942357 | O208: 98.3 | R208: 0 | S208: 95.8851669 | T208: 98.7 | W208: 0.6219254557 | X208: 98.83456172 | Y208: 96.4 | AB208: 0.06637950409
B209: DHS14 | C209: 2014 | D209: 88.50533644 | E209: 93.71038386 | H209: 0.4699906267 | I209: 96.21850881 | J209: 98.14989719 | M209: 0.1392432536 | N209: 97.31048937 | O209: 97.30017519 | R209: 0 | S209: 99.80057156 | T209: 98.38890683 | W209: 0 | X209: 99.71703033 | Y209: 100 | AB209: 0
B210: MICS18 | C210: 2018 | D210: 92.5918988 | E210: 89.31589345 | H210: 0.01343564404 | I210: 95.85804551 | J210: 92.23150548 | M210: 0 | N210: 98.35287675 | O210: 93.8472685 | R210: 0 | S210: 98.56602358 | T210: 98.06516277 | W210: 0 | X210: 99.65147075 | Y210: 99.16430194 | AB210: 0
B218: =CONCATENATE("Urban use of drinking water sources, ",C199,"–",C200) -> Urban use of drinking water sources, 2000–2020 | S218: Data points used for regression
E253: =IF(ISERROR(INDIRECT(CONCATENATE($B253,"!M18"))),"",INDIRECT(CONCATENATE($B253,"!M18"))) ->  | F253: =IF(ISERROR(INDIRECT(CONCATENATE($B253,"!M19"))),"",INDIRECT(CONCATENATE($B253,"!M19"))) ->  | G253: =IF(ISERROR(INDIRECT(CONCATENATE($B253,"!M20"))),"",INDIRECT(CONCATENATE($B253,"!M20"))) ->  | H253: =IF(ISERROR(INDIRECT(CONCATENATE($B253,"!M21"))),"",INDIRECT(CONCATENATE($B253,"!M21"))) ->  | J253: =IF(ISERROR(INDIRECT(CONCATENATE($B253,"!N18"))),"",INDIRECT(CONCATENATE($B253,"!N18"))) ->  | K253: =IF(ISERROR(INDIRECT(CONCATENATE($B253,"!N19"))),"",INDIRECT(CONCATENATE($B253,"!N19"))) ->  | L253: =IF(ISERROR(INDIRECT(CONCATENATE($B253,"!N20"))),"",INDIRECT(CONCATENATE($B253,"!N20"))) ->  | M253: =IF(ISERROR(INDIRECT(CONCATENATE($B253,"!N21"))),"",INDIRECT(CONCATENATE($B253,"!N21"))) ->  | O253: =IF(ISERROR(INDIRECT(CONCATENATE($B253,"!O18"))),"",INDIRECT(CONCATENATE($B253,"!O18"))) ->  | P253: =IF(ISERROR(INDIRECT(CONCATENATE($B253,"!O19"))),"",INDIRECT(CONCATENATE($B253,"!O19"))) ->  | Q253: =IF(ISERROR(INDIRECT(CONCATENATE($B253,"!O20"))),"",INDIRECT(CONCATENATE($B253,"!O20"))) ->  | R253: =IF(ISERROR(INDIRECT(CONCATENATE($B253,"!O21"))),"",INDIRECT(CONCATENATE($B253,"!O21"))) ->  | T253: =IF(ISERROR(INDIRECT(CONCATENATE($B253,"!P18"))),"",INDIRECT(CONCATENATE($B253,"!P18"))) ->  | U253: =IF(ISERROR(INDIRECT(CONCATENATE($B253,"!P19"))),"",INDIRECT(CONCATENATE($B253,"!P19"))) ->  | V253: =IF(ISERROR(INDIRECT(CONCATENATE($B253,"!P20"))),"",INDIRECT(CONCATENATE($B253,"!P20"))) ->  | W253: =IF(ISERROR(INDIRECT(CONCATENATE($B253,"!P21"))),"",INDIRECT(CONCATENATE($B253,"!P21"))) ->  | Y253: =IF(ISERROR(INDIRECT(CONCATENATE($B253,"!Q18"))),"",INDIRECT(CONCATENATE($B253,"!Q18"))) ->  | Z253: =IF(ISERROR(INDIRECT(CONCATENATE($B253,"!Q19"))),"",INDIRECT(CONCATENATE($B253,"!Q19"))) ->  | AA253: =IF(ISERROR(INDIRECT(CONCATENATE($B253,"!Q20"))),"",INDIRECT(CONCATENATE($B253,"!Q20"))) ->  | AB253: =IF(ISERROR(INDIRECT(CONCATENATE($B253,"!Q21"))),"",INDIRECT(CONCATENATE($B253,"!Q1"))) -> 
E254: =IF(ISERROR(INDIRECT(CONCATENATE($B254,"!M18"))),"",INDIRECT(CONCATENATE($B254,"!M18"))) ->  | F254: =IF(ISERROR(INDIRECT(CONCATENATE($B254,"!M19"))),"",INDIRECT(CONCATENATE($B254,"!M19"))) ->  | G254: =IF(ISERROR(INDIRECT(CONCATENATE($B254,"!M20"))),"",INDIRECT(CONCATENATE($B254,"!M20"))) ->  | H254: =IF(ISERROR(INDIRECT(CONCATENATE($B254,"!M21"))),"",INDIRECT(CONCATENATE($B254,"!M21"))) ->  | J254: =IF(ISERROR(INDIRECT(CONCATENATE($B254,"!N18"))),"",INDIRECT(CONCATENATE($B254,"!N18"))) ->  | K254: =IF(ISERROR(INDIRECT(CONCATENATE($B254,"!N19"))),"",INDIRECT(CONCATENATE($B254,"!N19"))) ->  | L254: =IF(ISERROR(INDIRECT(CONCATENATE($B254,"!N20"))),"",INDIRECT(CONCATENATE($B254,"!N20"))) ->  | M254: =IF(ISERROR(INDIRECT(CONCATENATE($B254,"!N21"))),"",INDIRECT(CONCATENATE($B254,"!N21"))) ->  | O254: =IF(ISERROR(INDIRECT(CONCATENATE($B254,"!O18"))),"",INDIRECT(CONCATENATE($B254,"!O18"))) ->  | P254: =IF(ISERROR(INDIRECT(CONCATENATE($B254,"!O19"))),"",INDIRECT(CONCATENATE($B254,"!O19"))) ->  | Q254: =IF(ISERROR(INDIRECT(CONCATENATE($B254,"!O20"))),"",INDIRECT(CONCATENATE($B254,"!O20"))) ->  | R254: =IF(ISERROR(INDIRECT(CONCATENATE($B254,"!O21"))),"",INDIRECT(CONCATENATE($B254,"!O21"))) ->  | T254: =IF(ISERROR(INDIRECT(CONCATENATE($B254,"!P18"))),"",INDIRECT(CONCATENATE($B254,"!P18"))) ->  | U254: =IF(ISERROR(INDIRECT(CONCATENATE($B254,"!P19"))),"",INDIRECT(CONCATENATE($B254,"!P19"))) ->  | V254: =IF(ISERROR(INDIRECT(CONCATENATE($B254,"!P20"))),"",INDIRECT(CONCATENATE($B254,"!P20"))) ->  | W254: =IF(ISERROR(INDIRECT(CONCATENATE($B254,"!P21"))),"",INDIRECT(CONCATENATE($B254,"!P21"))) ->  | Y254: =IF(ISERROR(INDIRECT(CONCATENATE($B254,"!Q18"))),"",INDIRECT(CONCATENATE($B254,"!Q18"))) ->  | Z254: =IF(ISERROR(INDIRECT(CONCATENATE($B254,"!Q19"))),"",INDIRECT(CONCATENATE($B254,"!Q19"))) ->  | AA254: =IF(ISERROR(INDIRECT(CONCATENATE($B254,"!Q20"))),"",INDIRECT(CONCATENATE($B254,"!Q20"))) ->  | AB254: =IF(ISERROR(INDIRECT(CONCATENATE($B254,"!Q21"))),"",INDIRECT(CONCATENATE($B254,"!Q1"))) -> 
E255: =IF(ISERROR(INDIRECT(CONCATENATE($B255,"!M18"))),"",INDIRECT(CONCATENATE($B255,"!M18"))) ->  | F255: =IF(ISERROR(INDIRECT(CONCATENATE($B255,"!M19"))),"",INDIRECT(CONCATENATE($B255,"!M19"))) ->  | G255: =IF(ISERROR(INDIRECT(CONCATENATE($B255,"!M20"))),"",INDIRECT(CONCATENATE($B255,"!M20"))) ->  | H255: =IF(ISERROR(INDIRECT(CONCATENATE($B255,"!M21"))),"",INDIRECT(CONCATENATE($B255,"!M21"))) ->  | J255: =IF(ISERROR(INDIRECT(CONCATENATE($B255,"!N18"))),"",INDIRECT(CONCATENATE($B255,"!N18"))) ->  | K255: =IF(ISERROR(INDIRECT(CONCATENATE($B255,"!N19"))),"",INDIRECT(CONCATENATE($B255,"!N19"))) ->  | L255: =IF(ISERROR(INDIRECT(CONCATENATE($B255,"!N20"))),"",INDIRECT(CONCATENATE($B255,"!N20"))) ->  | M255: =IF(ISERROR(INDIRECT(CONCATENATE($B255,"!N21"))),"",INDIRECT(CONCATENATE($B255,"!N21"))) ->  | O255: =IF(ISERROR(INDIRECT(CONCATENATE($B255,"!O18"))),"",INDIRECT(CONCATENATE($B255,"!O18"))) ->  | P255: =IF(ISERROR(INDIRECT(CONCATENATE($B255,"!O19"))),"",INDIRECT(CONCATENATE($B255,"!O19"))) ->  | Q255: =IF(ISERROR(INDIRECT(CONCATENATE($B255,"!O20"))),"",INDIRECT(CONCATENATE($B255,"!O20"))) ->  | R255: =IF(ISERROR(INDIRECT(CONCATENATE($B255,"!O21"))),"",INDIRECT(CONCATENATE($B255,"!O21"))) ->  | T255: =IF(ISERROR(INDIRECT(CONCATENATE($B255,"!P18"))),"",INDIRECT(CONCATENATE($B255,"!P18"))) ->  | U255: =IF(ISERROR(INDIRECT(CONCATENATE($B255,"!P19"))),"",INDIRECT(CONCATENATE($B255,"!P19"))) ->  | V255: =IF(ISERROR(INDIRECT(CONCATENATE($B255,"!P20"))),"",INDIRECT(CONCATENATE($B255,"!P20"))) ->  | W255: =IF(ISERROR(INDIRECT(CONCATENATE($B255,"!P21"))),"",INDIRECT(CONCATENATE($B255,"!P21"))) ->  | Y255: =IF(ISERROR(INDIRECT(CONCATENATE($B255,"!Q18"))),"",INDIRECT(CONCATENATE($B255,"!Q18"))) ->  | Z255: =IF(ISERROR(INDIRECT(CONCATENATE($B255,"!Q19"))),"",INDIRECT(CONCATENATE($B255,"!Q19"))) ->  | AA255: =IF(ISERROR(INDIRECT(CONCATENATE($B255,"!Q20"))),"",INDIRECT(CONCATENATE($B255,"!Q20"))) ->  | AB255: =IF(ISERROR(INDIRECT(CONCATENATE($B255,"!Q21"))),"",INDIRECT(CONCATENATE($B255,"!Q1"))) -> 
E256: =IF(ISERROR(INDIRECT(CONCATENATE($B256,"!M18"))),"",INDIRECT(CONCATENATE($B256,"!M18"))) ->  | F256: =IF(ISERROR(INDIRECT(CONCATENATE($B256,"!M19"))),"",INDIRECT(CONCATENATE($B256,"!M19"))) ->  | G256: =IF(ISERROR(INDIRECT(CONCATENATE($B256,"!M20"))),"",INDIRECT(CONCATENATE($B256,"!M20"))) ->  | H256: =IF(ISERROR(INDIRECT(CONCATENATE($B256,"!M21"))),"",INDIRECT(CONCATENATE($B256,"!M21"))) ->  | J256: =IF(ISERROR(INDIRECT(CONCATENATE($B256,"!N18"))),"",INDIRECT(CONCATENATE($B256,"!N18"))) ->  | K256: =IF(ISERROR(INDIRECT(CONCATENATE($B256,"!N19"))),"",INDIRECT(CONCATENATE($B256,"!N19"))) ->  | L256: =IF(ISERROR(INDIRECT(CONCATENATE($B256,"!N20"))),"",INDIRECT(CONCATENATE($B256,"!N20"))) ->  | M256: =IF(ISERROR(INDIRECT(CONCATENATE($B256,"!N21"))),"",INDIRECT(CONCATENATE($B256,"!N21"))) ->  | O256: =IF(ISERROR(INDIRECT(CONCATENATE($B256,"!O18"))),"",INDIRECT(CONCATENATE($B256,"!O18"))) ->  | P256: =IF(ISERROR(INDIRECT(CONCATENATE($B256,"!O19"))),"",INDIRECT(CONCATENATE($B256,"!O19"))) ->  | Q256: =IF(ISERROR(INDIRECT(CONCATENATE($B256,"!O20"))),"",INDIRECT(CONCATENATE($B256,"!O20"))) ->  | R256: =IF(ISERROR(INDIRECT(CONCATENATE($B256,"!O21"))),"",INDIRECT(CONCATENATE($B256,"!O21"))) ->  | T256: =IF(ISERROR(INDIRECT(CONCATENATE($B256,"!P18"))),"",INDIRECT(CONCATENATE($B256,"!P18"))) ->  | U256: =IF(ISERROR(INDIRECT(CONCATENATE($B256,"!P19"))),"",INDIRECT(CONCATENATE($B256,"!P19"))) ->  | V256: =IF(ISERROR(INDIRECT(CONCATENATE($B256,"!P20"))),"",INDIRECT(CONCATENATE($B256,"!P20"))) ->  | W256: =IF(ISERROR(INDIRECT(CONCATENATE($B256,"!P21"))),"",INDIRECT(CONCATENATE($B256,"!P21"))) ->  | Y256: =IF(ISERROR(INDIRECT(CONCATENATE($B256,"!Q18"))),"",INDIRECT(CONCATENATE($B256,"!Q18"))) ->  | Z256: =IF(ISERROR(INDIRECT(CONCATENATE($B256,"!Q19"))),"",INDIRECT(CONCATENATE($B256,"!Q19"))) ->  | AA256: =IF(ISERROR(INDIRECT(CONCATENATE($B256,"!Q20"))),"",INDIRECT(CONCATENATE($B256,"!Q20"))) ->  | AB256: =IF(ISERROR(INDIRECT(CONCATENATE($B256,"!Q21"))),"",INDIRECT(CONCATENATE($B256,"!Q1"))) -> 
E257: =IF(ISERROR(INDIRECT(CONCATENATE($B257,"!M18"))),"",INDIRECT(CONCATENATE($B257,"!M18"))) ->  | F257: =IF(ISERROR(INDIRECT(CONCATENATE($B257,"!M19"))),"",INDIRECT(CONCATENATE($B257,"!M19"))) ->  | G257: =IF(ISERROR(INDIRECT(CONCATENATE($B257,"!M20"))),"",INDIRECT(CONCATENATE($B257,"!M20"))) ->  | H257: =IF(ISERROR(INDIRECT(CONCATENATE($B257,"!M21"))),"",INDIRECT(CONCATENATE($B257,"!M21"))) ->  | J257: =IF(ISERROR(INDIRECT(CONCATENATE($B257,"!N18"))),"",INDIRECT(CONCATENATE($B257,"!N18"))) ->  | K257: =IF(ISERROR(INDIRECT(CONCATENATE($B257,"!N19"))),"",INDIRECT(CONCATENATE($B257,"!N19"))) ->  | L257: =IF(ISERROR(INDIRECT(CONCATENATE($B257,"!N20"))),"",INDIRECT(CONCATENATE($B257,"!N20"))) ->  | M257: =IF(ISERROR(INDIRECT(CONCATENATE($B257,"!N21"))),"",INDIRECT(CONCATENATE($B257,"!N21"))) ->  | O257: =IF(ISERROR(INDIRECT(CONCATENATE($B257,"!O18"))),"",INDIRECT(CONCATENATE($B257,"!O18"))) ->  | P257: =IF(ISERROR(INDIRECT(CONCATENATE($B257,"!O19"))),"",INDIRECT(CONCATENATE($B257,"!O19"))) ->  | Q257: =IF(ISERROR(INDIRECT(CONCATENATE($B257,"!O20"))),"",INDIRECT(CONCATENATE($B257,"!O20"))) ->  | R257: =IF(ISERROR(INDIRECT(CONCATENATE($B257,"!O21"))),"",INDIRECT(CONCATENATE($B257,"!O21"))) ->  | T257: =IF(ISERROR(INDIRECT(CONCATENATE($B257,"!P18"))),"",INDIRECT(CONCATENATE($B257,"!P18"))) ->  | U257: =IF(ISERROR(INDIRECT(CONCATENATE($B257,"!P19"))),"",INDIRECT(CONCATENATE($B257,"!P19"))) ->  | V257: =IF(ISERROR(INDIRECT(CONCATENATE($B257,"!P20"))),"",INDIRECT(CONCATENATE($B257,"!P20"))) ->  | W257: =IF(ISERROR(INDIRECT(CONCATENATE($B257,"!P21"))),"",INDIRECT(CONCATENATE($B257,"!P21"))) ->  | Y257: =IF(ISERROR(INDIRECT(CONCATENATE($B257,"!Q18"))),"",INDIRECT(CONCATENATE($B257,"!Q18"))) ->  | Z257: =IF(ISERROR(INDIRECT(CONCATENATE($B257,"!Q19"))),"",INDIRECT(CONCATENATE($B257,"!Q19"))) ->  | AA257: =IF(ISERROR(INDIRECT(CONCATENATE($B257,"!Q20"))),"",INDIRECT(CONCATENATE($B257,"!Q20"))) ->  | AB257: =IF(ISERROR(INDIRECT(CONCATENATE($B257,"!Q21"))),"",INDIRECT(CONCATENATE($B257,"!Q1"))) -> 
A297: RURAL | D297: Poorest | I297: Poor | N297: Middle | S297: Rich | X297: Richest
D298: Improved | E298: Basic | F298: Limited | G298: Unimproved | H298: Surface water | I298: Improved | J298: Basic | K298: Limited | L298: Unimproved | M298: Surface water | N298: Improved | O298: Basic | P298: Limited | Q298: Unimproved | R298: Surface water | S298: Improved | T298: Basic | U298: Limited | V298: Unimproved | W298: Surface water | X298: Improved | Y298: Basic | Z298: Limited | AA298: Unimproved | AB298: Surface water
A299: Forecast period: | C299: 2000 | D299: =IF((D301+H301)>100,D301*100/(D301+H301),D301) -> 62.64167053 | E299: =D299*AVERAGEIF(E305:E316,">0")/100 -> 54.01043006 | F299: =D299*(100-AVERAGEIF(E305:E316,">0"))/100 -> 8.631240465 | G299: =100-(E299+F299+H299) -> 36.45528659 | H299: =IF((D301+H301)>100,H301*100/(D301+H301),H301) -> 0.9030428812 | I299: =IF((I301+M301)>100,I301*100/(I301+M301),I301) -> 66.88227734 | J299: =I299*AVERAGEIF(J305:J316,">0")/100 -> 57.04254141 | K299: =I299*(100-AVERAGEIF(J305:J316,">0"))/100 -> 9.839735928 | L299: =100-(J299+K299+M299) -> 32.38384872 | M299: =IF((I301+M301)>100,M301*100/(I301+M301),M301) -> 0.7338739416 | N299: =IF((N301+R301)>100,N301*100/(N301+R301),N301) -> 70.29928931 | O299: =N299*AVERAGEIF(O305:O316,">0")/100 -> 59.07874342 | P299: =N299*(100-AVERAGEIF(O305:O316,">0"))/100 -> 11.2205459 | Q299: =100-(O299+P299+R299) -> 28.50568286 | R299: =IF((N301+R301)>100,R301*100/(N301+R301),R301) -> 1.195027829 | S299: =IF((S301+W301)>100,S301*100/(S301+W301),S301) -> 74.18320798 | T299: =S299*AVERAGEIF(T305:T316,">0")/100 -> 62.91496654 | U299: =S299*(100-AVERAGEIF(T305:T316,">0"))/100 -> 11.26824144 | V299: =100-(T299+U299+W299) -> 24.50960348 | W299: =IF((S301+W301)>100,W301*100/(S301+W301),W301) -> 1.307188542 | X299: =IF((X301+AB301)>100,X301*100/(X301+AB301),X301) -> 80.86061012 | Y299: =X299*AVERAGEIF(Y305:Y316,">0")/100 -> 69.78142039 | Z299: =X299*(100-AVERAGEIF(Y305:Y316,">0"))/100 -> 11.07918973 | AA299: =100-(Y299+Z299+AB299) -> 18.29662751 | AB299: =IF((X301+AB301)>100,AB301*100/(X301+AB301),AB301) -> 0.8427623732
C300: 2020 | D300: =IF((D302+H302)>100,D302*100/(D302+H302),D302) -> 68.60829626 | E300: =D300*AVERAGEIF(E305:E316,">0")/100 -> 59.15492923 | F300: =D300*(100-AVERAGEIF(E305:E316,">0"))/100 -> 9.45336703 | G300: =100-(E300+F300+H300) -> 30.08853629 | H300: =IF((D302+H302)>100,H302*100/(D302+H302),H302) -> 1.303167453 | I300: =IF((I302+M302)>100,I302*100/(I302+M302),I302) -> 76.09496472 | J300: =I300*AVERAGEIF(J305:J316,">0")/100 -> 64.89985611 | K300: =I300*(100-AVERAGEIF(J305:J316,">0"))/100 -> 11.1951086 | L300: =100-(J300+K300+M300) -> 22.25530266 | M300: =IF((I302+M302)>100,M302*100/(I302+M302),M302) -> 1.649732622 | N300: =IF((N302+R302)>100,N302*100/(N302+R302),N302) -> 84.91265103 | O300: =N300*AVERAGEIF(O305:O316,">0")/100 -> 71.3596506 | P300: =N300*(100-AVERAGEIF(O305:O316,">0"))/100 -> 13.55300043 | Q300: =100-(O300+P300+R300) -> 13.97914756 | R300: =IF((N302+R302)>100,R302*100/(N302+R302),R302) -> 1.108201401 | S300: =IF((S302+W302)>100,S302*100/(S302+W302),S302) -> 86.37450161 | T300: =S300*AVERAGEIF(T305:T316,">0")/100 -> 73.25443354 | U300: =S300*(100-AVERAGEIF(T305:T316,">0"))/100 -> 13.12006807 | V300: =100-(T300+U300+W300) -> 12.60156428 | W300: =IF((S302+W302)>100,W302*100/(S302+W302),W302) -> 1.023934113 | X300: =IF((X302+AB302)>100,X302*100/(X302+AB302),X302) -> 91.01105566 | Y300: =X300*AVERAGEIF(Y305:Y316,">0")/100 -> 78.54109344 | Z300: =X300*(100-AVERAGEIF(Y305:Y316,">0"))/100 -> 12.46996222 | AA300: =100-(Y300+Z300+AB300) -> 7.357583429 | AB300: =IF((X302+AB302)>100,AB302*100/(X302+AB302),AB302) -> 1.631360912
A301: Regression period: | C301: =MinRegYear(C299,C305:C316) -> 2000 | D301: =IF(MAX(C305:C316)-MIN(C305:C316)<5,AVERAGEIF(C305:C316,">0",D305:D316), IF(FORECAST($C301,D$305:D$316,$C$305:$C$316)<0,0, IF(FORECAST($C301,D$305:D$316,$C$305:$C$316)>100,100, FORECAST($C301,D$305:D$316,$C$305:$C$316)))) -> 62.64167053 | H301: =IF(MAX(C305:C316)-MIN(C305:C316)<5,AVERAGEIF(C305:C316,">0",H305:H316), IF(FORECAST($C301,H$305:H$316,$C$305:$C$316)<0,0, IF(FORECAST($C301,H$305:H$316,$C$305:$C$316)>100,100, FORECAST($C301,H$305:H$316,$C$305:$C$316)))) -> 0.9030428812 | I301: =IF(MAX(C305:C316)-MIN(C305:C316)<5,AVERAGEIF(C305:C316,">0",I305:I316), IF(FORECAST($C301,I$305:I$316,$C$305:$C$316)<0,0, IF(FORECAST($C301,I$305:I$316,$C$305:$C$316)>100,100, FORECAST($C301,I$305:I$316,$C$305:$C$316)))) -> 66.88227734 | M301: =IF(MAX(C305:C316)-MIN(C305:C316)<5,AVERAGEIF(C305:C316,">0",M305:M316), IF(FORECAST($C301,M$305:M$316,$C$305:$C$316)<0,0, IF(FORECAST($C301,M$305:M$316,$C$305:$C$316)>100,100, FORECAST($C301,M$305:M$316,$C$305:$C$316)))) -> 0.7338739416 | N301: =IF(MAX(C305:C316)-MIN(C305:C316)<5,AVERAGEIF(C305:C316,">0",N305:N316), IF(FORECAST($C301,N$305:N$316,$C$305:$C$316)<0,0, IF(FORECAST($C301,N$305:N$316,$C$305:$C$316)>100,100, FORECAST($C301,N$305:N$316,$C$305:$C$316)))) -> 70.29928931 | R301: =IF(MAX(C305:C316)-MIN(C305:C316)<5,AVERAGEIF(C305:C316,">0",R305:R316), IF(FORECAST($C301,R$305:R$316,$C$305:$C$316)<0,0, IF(FORECAST($C301,R$305:R$316,$C$305:$C$316)>100,100, FORECAST($C301,R$305:R$316,$C$305:$C$316)))) -> 1.195027829 | S301: =IF(MAX(C305:C316)-MIN(C305:C316)<5,AVERAGEIF(C305:C316,">0",S305:S316), IF(FORECAST($C301,S$305:S$316,$C$305:$C$316)<0,0, IF(FORECAST($C301,S$305:S$316,$C$305:$C$316)>100,100, FORECAST($C301,S$305:S$316,$C$305:$C$316)))) -> 74.18320798 | W301: =IF(MAX(C305:C316)-MIN(C305:C316)<5,AVERAGEIF(C305:C316,">0",W305:W316), IF(FORECAST($C301,W$305:W$316,$C$305:$C$316)<0,0, IF(FORECAST($C301,W$305:W$316,$C$305:$C$316)>100,100, FORECAST($C301,W$305:W$316,$C$305:$C$316)))) -> 1.307188542 | X301: =IF(MAX(C305:C316)-MIN(C305:C316)<5,AVERAGEIF(C305:C316,">0",X305:X316), IF(FORECAST($C301,X$305:X$316,$C$305:$C$316)<0,0, IF(FORECAST($C301,X$305:X$316,$C$305:$C$316)>100,100, FORECAST($C301,X$305:X$316,$C$305:$C$316)))) -> 80.86061012 | AB301: =IF(MAX(C305:C316)-MIN(C305:C316)<5,AVERAGEIF(C305:C316,">0",AB305:AB316), IF(FORECAST($C301,AB$305:AB$316,$C$305:$C$316)<0,0, IF(FORECAST($C301,AB$305:AB$316,$C$305:$C$316)>100,100, FORECAST($C301,AB$305:AB$316,$C$305:$C$316)))) -> 0.8427623732
C302: =MaxRegYear(C300,C305:C316) -> 2020 | D302: =IF(MAX(C305:C316)-MIN(C305:C316)<5,AVERAGEIF(C305:C316,">0",D305:D316), IF(FORECAST($C302,D$305:D$316,$C$305:$C$316)<0,0, IF(FORECAST($C302,D$305:D$316,$C$305:$C$316)>100,100, FORECAST($C302,D$305:D$316,$C$305:$C$316)))) -> 68.60829626 | H302: =IF(MAX(C305:C316)-MIN(C305:C316)<5,AVERAGEIF(C305:C316,">0",H305:H316), IF(FORECAST($C302,H$305:H$316,$C$305:$C$316)<0,0, IF(FORECAST($C302,H$305:H$316,$C$305:$C$316)>100,100, FORECAST($C302,H$305:H$316,$C$305:$C$316)))) -> 1.303167453 | I302: =IF(MAX(C305:C316)-MIN(C305:C316)<5,AVERAGEIF(C305:C316,">0",I305:I316), IF(FORECAST($C302,I$305:I$316,$C$305:$C$316)<0,0, IF(FORECAST($C302,I$305:I$316,$C$305:$C$316)>100,100, FORECAST($C302,I$305:I$316,$C$305:$C$316)))) -> 76.09496472 | M302: =IF(MAX(C305:C316)-MIN(C305:C316)<5,AVERAGEIF(C305:C316,">0",M305:M316), IF(FORECAST($C302,M$305:M$316,$C$305:$C$316)<0,0, IF(FORECAST($C302,M$305:M$316,$C$305:$C$316)>100,100, FORECAST($C302,M$305:M$316,$C$305:$C$316)))) -> 1.649732622 | N302: =IF(MAX(C305:C316)-MIN(C305:C316)<5,AVERAGEIF(C305:C316,">0",N305:N316), IF(FORECAST($C302,N$305:N$316,$C$305:$C$316)<0,0, IF(FORECAST($C302,N$305:N$316,$C$305:$C$316)>100,100, FORECAST($C302,N$305:N$316,$C$305:$C$316)))) -> 84.91265103 | R302: =IF(MAX(C305:C316)-MIN(C305:C316)<5,AVERAGEIF(C305:C316,">0",R305:R316), IF(FORECAST($C302,R$305:R$316,$C$305:$C$316)<0,0, IF(FORECAST($C302,R$305:R$316,$C$305:$C$316)>100,100, FORECAST($C302,R$305:R$316,$C$305:$C$316)))) -> 1.108201401 | S302: =IF(MAX(C305:C316)-MIN(C305:C316)<5,AVERAGEIF(C305:C316,">0",S305:S316), IF(FORECAST($C302,S$305:S$316,$C$305:$C$316)<0,0, IF(FORECAST($C302,S$305:S$316,$C$305:$C$316)>100,100, FORECAST($C302,S$305:S$316,$C$305:$C$316)))) -> 86.37450161 | W302: =IF(MAX(C305:C316)-MIN(C305:C316)<5,AVERAGEIF(C305:C316,">0",W305:W316), IF(FORECAST($C302,W$305:W$316,$C$305:$C$316)<0,0, IF(FORECAST($C302,W$305:W$316,$C$305:$C$316)>100,100, FORECAST($C302,W$305:W$316,$C$305:$C$316)))) -> 1.023934113 | X302: =IF(MAX(C305:C316)-MIN(C305:C316)<5,AVERAGEIF(C305:C316,">0",X305:X316), IF(FORECAST($C302,X$305:X$316,$C$305:$C$316)<0,0, IF(FORECAST($C302,X$305:X$316,$C$305:$C$316)>100,100, FORECAST($C302,X$305:X$316,$C$305:$C$316)))) -> 91.01105566 | AB302: =IF(MAX(C305:C316)-MIN(C305:C316)<5,AVERAGEIF(C305:C316,">0",AB305:AB316), IF(FORECAST($C302,AB$305:AB$316,$C$305:$C$316)<0,0, IF(FORECAST($C302,AB$305:AB$316,$C$305:$C$316)>100,100, FORECAST($C302,AB$305:AB$316,$C$305:$C$316)))) -> 1.631360912
B304: Survey | C304: Year | D304: Improved | E304: % Improved < = 30min | H304: Surface water | I304: Improved | J304: % Improved < = 30min | M304: Surface water | N304: Improved | O304: % Improved < = 30min | R304: Surface water | S304: Improved | T304: % Improved < = 30min | W304: Surface water | X304: Improved | Y304: % Improved < = 30min | AB304: Surface water
B305: MICS00 | C305: 2000 | D305: =IF(ISERROR(INDIRECT(CONCATENATE($B305,"!M16"))),"",INDIRECT(CONCATENATE($B305,"!M16"))) -> 63.31797235 | E305: =IF(ISERROR(INDIRECT(CONCATENATE($B305,"!M23"))),"",INDIRECT(CONCATENATE($B305,"!M23"))) -> 90.82969432 | H305: =IF(ISERROR(INDIRECT(CONCATENATE($B305,"!M21"))),"",INDIRECT(CONCATENATE($B305,"!M21"))) -> 0.7373271889 | I305: =IF(ISERROR(INDIRECT(CONCATENATE($B305,"!N16"))),"",INDIRECT(CONCATENATE($B305,"!N16"))) -> 67.58147513 | J305: =IF(ISERROR(INDIRECT(CONCATENATE($B305,"!N23"))),"",INDIRECT(CONCATENATE($B305,"!N23"))) -> 88.70558376 | M305: =IF(ISERROR(INDIRECT(CONCATENATE($B305,"!N21"))),"",INDIRECT(CONCATENATE($B305,"!N21"))) -> 0.6861063465 | N305: =IF(ISERROR(INDIRECT(CONCATENATE($B305,"!O16"))),"",INDIRECT(CONCATENATE($B305,"!O16"))) -> 69.18238994 | O305: =IF(ISERROR(INDIRECT(CONCATENATE($B305,"!O23"))),"",INDIRECT(CONCATENATE($B305,"!O23"))) -> 88.31168831 | R305: =IF(ISERROR(INDIRECT(CONCATENATE($B305,"!O21"))),"",INDIRECT(CONCATENATE($B305,"!O21"))) -> 1.078167116 | S305: =IF(ISERROR(INDIRECT(CONCATENATE($B305,"!P16"))),"",INDIRECT(CONCATENATE($B305,"!P16"))) -> 79.71530249 | T305: =IF(ISERROR(INDIRECT(CONCATENATE($B305,"!P23"))),"",INDIRECT(CONCATENATE($B305,"!P23"))) -> 90.40178571 | W305: =IF(ISERROR(INDIRECT(CONCATENATE($B305,"!P21"))),"",INDIRECT(CONCATENATE($B305,"!P21"))) -> 0.4448398577 | X305: =IF(ISERROR(INDIRECT(CONCATENATE($B305,"!Q16"))),"",INDIRECT(CONCATENATE($B305,"!Q16"))) -> 84.92417484 | Y305: =IF(ISERROR(INDIRECT(CONCATENATE($B305,"!Q23"))),"",INDIRECT(CONCATENATE($B305,"!Q23"))) -> 87.18487395 | AB305: =IF(ISERROR(INDIRECT(CONCATENATE($B305,"!Q221"))),"",INDIRECT(CONCATENATE($B305,"!Q21"))) -> 0.7136485281
B306: HBS02 | C306: 2002 | D306: 65.59464899 | E306: N/A | H306: 0.05372734428 | I306: 73.24496667 | J306: N/A | M306: 0.5355844092 | N306: 75.57847848 | O306: N/A | R306: 0.2609654187 | S306: 74.73911853 | T306: N/A | W306: 0.4956679439 | X306: 78.6239005 | Y306: N/A | AB306: 0.7543183157
B307: DHS04 | C307: 2004 | D307: 65.15197564 | E307: N/A | H307: 2.01156332 | I307: 63.89580726 | J307: N/A | M307: 1.660284706 | N307: 71.76087989 | O307: N/A | R307: 2.873205248 | S307: 72.47244909 | T307: N/A | W307: 3.512000204 | X307: 79.40817265 | Y307: N/A | AB307: 2.182995352
B308: DHS09 | C308: 2009 | D308: 58.05883431 | E308: 87.5 | H308: 1.217340189 | I308: 67.75449186 | J308: 87.2 | M308: 0.6611005213 | N308: 75.56968699 | O308: 84.4 | R308: 0.5355637008 | S308: 76.53591767 | T308: 84.6 | W308: 0.7900951978 | X308: 88.40261068 | Y308: 88.5 | AB308: 0.2118574021
B309: DHS14 | C309: 2014 | D309: 66.09284694 | E309: 82.38083508 | H309: 1.584385527 | I309: 72.68597576 | J309: 82.80203562 | M309: 1.239141307 | N309: 78.33469792 | O309: 80.35727149 | R309: 0.8231246735 | S309: 82.04721308 | T309: 77.82799182 | W309: 1.083806143 | X309: 88.18356532 | Y309: 81.37318902 | AB309: 0.7242050554
B310: MICS18 | C310: 2018 | D310: 71.6553154 | E310: 84.17446238 | H310: 0.7542064632 | I310: 77.78076267 | J310: 82.4442892 | M310: 1.773294258 | N310: 85.71100272 | O310: 83.08660587 | R310: 1.395098711 | S310: 88.23878703 | T310: 86.41123538 | W310: 0.8510739989 | X310: 89.47478375 | Y310: 88.13557475 | AB310: 2.322756152
B318: =CONCATENATE("Rural use of drinking water sources, ",C299,"–",C300) -> Rural use of drinking water sources, 2000–2020 | S318: Data points used for regression

Sheet Sanitation
B4: Summary of trends in use of sanitation facilities by wealth quintile (%)
B5: =IF(ISERROR(INDIRECT(CONCATENATE($B105,"!A2"))),"",INDIRECT(CONCATENATE($B105,"!A2"))) -> Lesotho
B7: =B118 -> National use of sanitation facilities, 2000–2020 | J7: =B218 -> Urban use of sanitation facilities, 2000–2020 | R7: =B318 -> Rural use of sanitation facilities, 2000–2020
B31: =IF(ISERROR(INDIRECT(CONCATENATE($B105,"!A2"))),"",INDIRECT(CONCATENATE($B105,"!A2"))) -> Lesotho | F31: Poorest | J31: Poor | N31: Middle | R31: Rich | V31: Richest
F32: Basic | G32: Limited | H32: Unimproved | I32: Open defecation | J32: Basic | K32: Limited | L32: Unimproved | M32: Open defecation | N32: Basic | O32: Limited | P32: Unimproved | Q32: Open defecation | R32: Basic | S32: Limited | T32: Unimproved | U32: Open defecation | V32: Basic | W32: Limited | X32: Unimproved | Y32: Open defecation
B33: NATIONAL | D33: Estimate | E33: =C99 -> 2000 | F33: =E99 -> 3.6697324 | G33: =F99 -> 0.4625265809 | H33: 10.55647936 | I33: 85.31126165 | J33: =J99 -> 8.495831997 | K33: =K99 -> 2.026719053 | L33: 27.96450812 | M33: 61.51294083 | N33: =O99 -> 13.26938075 | O33: =P99 -> 4.827299829 | P33: 42.8306991 | Q33: 39.07262032 | R33: =T99 -> 20.6401585 | S33: =U99 -> 12.47668615 | T33: 46.32597834 | U33: 20.55717701 | V33: =Y99 -> 42.21328425 | W33: =Z99 -> 18.54514137 | X33: 34.23387125 | Y33: 5.007703119
E34: =C100 -> 2020 | F34: =E100 -> 36.7564005 | G34: 4.632711706 | H34: 0 | I34: 58.6108878 | J34: =J100 -> 53.06712638 | K34: 12.65940242 | L34: 1.876237512 | M34: 32.3972337 | N34: =O100 -> 62.66071767 | O34: 22.79549267 | P34: 3.552157853 | Q34: 10.99163181 | R34: =T100 -> 59.06347019 | S34: 35.70303883 | T34: 4.360897335 | U34: 0.8725936523 | V34: =Y100 -> 68.85181117 | W34: 30.24797986 | X34: 0.900208962 | Y34: 0
B36: URBAN | D36: Estimate | E36: =C199 -> 2000 | F36: =E199 -> 12.84630354 | G36: =F199 -> 16.99689291 | H36: 50.83533092 | I36: 19.32147263 | J36: =J199 -> 14.50742549 | K36: =K199 -> 22.54816572 | L36: 49.25455443 | M36: 13.68985437 | N36: =O199 -> 21.32810248 | O36: =P199 -> 25.90765035 | P36: 45.00592185 | Q36: 7.758325325 | R36: =T199 -> 34.43452153 | S36: =U199 -> 27.50498438 | T36: 33.82446799 | U36: 4.2360261 | V36: =Y199 -> 64.20225843 | W36: =Z199 -> 21.13146516 | X36: 13.55259625 | Y36: 1.113680158
E37: =C200 -> 2020 | F37: =E200 -> 34.30958165 | G37: 45.39487044 | H37: 3.68887025 | I37: 16.60667767 | J37: =J200 -> 37.02739655 | K37: 57.54983022 | L37: 4.30282225 | M37: 1.119950981 | N37: =O200 -> 43.4311053 | O37: 52.75658684 | P37: 3.517958489 | Q37: 0.2943493764 | R37: =T200 -> 54.62541592 | S37: 43.63270185 | T37: 1.741882228 | U37: 0 | V37: =Y200 -> 73.62451998 | W37: 24.23269862 | X37: 1.879153583 | Y37: 0.2636278171
B39: RURAL | D39: Estimate | E39: =C299 -> 2000 | F39: =E299 -> 3.218666443 | G39: =F299 -> 0.3621702078 | H39: 9.49180377 | I39: 86.92735958 | J39: =J299 -> 5.503345255 | K39: =K299 -> 1.004579221 | L39: 18.01392548 | M39: 75.47815004 | N39: =O299 -> 7.516666292 | O39: =P299 -> 1.585803668 | P39: 31.13017219 | Q39: 59.76735785 | R39: =T299 -> 17.2727115 | S39: =U299 -> 3.367282656 | T39: 41.15895687 | U39: 38.20104897 | V39: =Y299 -> 34.44786551 | W39: =Z299 -> 5.406940222 | X39: 44.9867756 | Y39: 15.15841866
E40: =C300 -> 2020 | F40: =E300 -> 33.26550988 | G40: 3.743095731 | H40: 0 | I40: 62.99139439 | J40: =J300 -> 44.24771379 | K40: 8.076966243 | L40: 0.3458538458 | M40: 47.32946612 | N40: =O300 -> 59.86899515 | O40: 12.63066211 | P40: 4.290756953 | Q40: 23.20958579 | R40: =T300 -> 72.46623074 | S40: 14.12715553 | T40: 3.81234554 | U40: 9.594268183 | V40: =Y300 -> 83.35695483 | W40: 13.0837155 | X40: 2.051083242 | Y40: 1.508246434
A97: NATIONAL | D97: Poorest | I97: Poor | N97: Middle | S97: Rich | X97: Richest
D98: Improved | E98: Basic | F98: Limited | G98: Unimproved | H98: Open defecation | I98: Improved | J98: Basic | K98: Limited | L98: Unimproved | M98: Open defecation | N98: Improved | O98: Basic | P98: Limited | Q98: Unimproved | R98: Open defecation | S98: Improved | T98: Basic | U98: Limited | V98: Unimproved | W98: Open defecation | X98: Improved | Y98: Basic | Z98: Limited | AA98: Unimproved | AB98: Open defecation
A99: Forecast period: | C99: 2000 | D99: =IF((D101+H101)>100,D101*100/(D101+H101),D101) -> 4.132258981 | E99: =D99*AVERAGEIF(E105:E116,">0")/100 -> 3.6697324 | F99: =D99*(100-AVERAGEIF(E105:E116,">0"))/100 -> 0.4625265809 | G99: =100-(E99+F99+H99) -> 10.55647936 | H99: =IF((D101+H101)>100,H101*100/(D101+H101),H101) -> 85.31126165 | I99: =IF((I101+M101)>100,I101*100/(I101+M101),I101) -> 10.52255105 | J99: =I99*AVERAGEIF(J105:J116,">0")/100 -> 8.495831997 | K99: =I99*(100-AVERAGEIF(J105:J116,">0"))/100 -> 2.026719053 | L99: =100-(J99+K99+M99) -> 27.96450812 | M99: =IF((I101+M101)>100,M101*100/(I101+M101),M101) -> 61.51294083 | N99: =IF((N101+R101)>100,N101*100/(N101+R101),N101) -> 18.09668058 | O99: =N99*AVERAGEIF(O105:O116,">0")/100 -> 13.26938075 | P99: =N99*(100-AVERAGEIF(O105:O116,">0"))/100 -> 4.827299829 | Q99: =100-(O99+P99+R99) -> 42.8306991 | R99: =IF((N101+R101)>100,R101*100/(N101+R101),R101) -> 39.07262032 | S99: =IF((S101+W101)>100,S101*100/(S101+W101),S101) -> 33.11684465 | T99: =S99*AVERAGEIF(T105:T116,">0")/100 -> 20.6401585 | U99: =S99*(100-AVERAGEIF(T105:T116,">0"))/100 -> 12.47668615 | V99: =100-(T99+U99+W99) -> 46.32597834 | W99: =IF((S101+W101)>100,W101*100/(S101+W101),W101) -> 20.55717701 | X99: =IF((X101+AB101)>100,X101*100/(X101+AB101),X101) -> 60.75842563 | Y99: =X99*AVERAGEIF(Y105:Y116,">0")/100 -> 42.21328425 | Z99: =X99*(100-AVERAGEIF(Y105:Y116,">0"))/100 -> 18.54514137 | AA99: =100-(Y99+Z99+AB99) -> 34.23387125 | AB99: =IF((X101+AB101)>100,AB101*100/(X101+AB101),AB101) -> 5.007703119
C100: 2020 | D100: =IF((D102+H102)>100,D102*100/(D102+H102),D102) -> 41.3891122 | E100: =D100*AVERAGEIF(E105:E116,">0")/100 -> 36.7564005 | F100: =D100*(100-AVERAGEIF(E105:E116,">0"))/100 -> 4.632711706 | G100: =100-(E100+F100+H100) -> 0 | H100: =IF((D102+H102)>100,H102*100/(D102+H102),H102) -> 58.6108878 | I100: =IF((I102+M102)>100,I102*100/(I102+M102),I102) -> 65.72652879 | J100: =I100*AVERAGEIF(J105:J116,">0")/100 -> 53.06712638 | K100: =I100*(100-AVERAGEIF(J105:J116,">0"))/100 -> 12.65940242 | L100: =100-(J100+K100+M100) -> 1.876237512 | M100: =IF((I102+M102)>100,M102*100/(I102+M102),M102) -> 32.3972337 | N100: =IF((N102+R102)>100,N102*100/(N102+R102),N102) -> 85.45621034 | O100: =N100*AVERAGEIF(O105:O116,">0")/100 -> 62.66071767 | P100: =N100*(100-AVERAGEIF(O105:O116,">0"))/100 -> 22.79549267 | Q100: =100-(O100+P100+R100) -> 3.552157853 | R100: =IF((N102+R102)>100,R102*100/(N102+R102),R102) -> 10.99163181 | S100: =IF((S102+W102)>100,S102*100/(S102+W102),S102) -> 94.76650901 | T100: =S100*AVERAGEIF(T105:T116,">0")/100 -> 59.06347019 | U100: =S100*(100-AVERAGEIF(T105:T116,">0"))/100 -> 35.70303883 | V100: =100-(T100+U100+W100) -> 4.360897335 | W100: =IF((S102+W102)>100,W102*100/(S102+W102),W102) -> 0.8725936523 | X100: =IF((X102+AB102)>100,X102*100/(X102+AB102),X102) -> 99.09979104 | Y100: =X100*AVERAGEIF(Y105:Y116,">0")/100 -> 68.85181117 | Z100: =X100*(100-AVERAGEIF(Y105:Y116,">0"))/100 -> 30.24797986 | AA100: =100-(Y100+Z100+AB100) -> 0.900208962 | AB100: =IF((X102+AB102)>100,AB102*100/(X102+AB102),AB102) -> 0
A101: Regression period: | C101: =MinRegYear(C99,C105:C116) -> 2000 | D101: =IF(MAX(C105:C116)-MIN(C105:C116)<5,AVERAGEIF(C105:C116,">0",D105:D116), IF(FORECAST($C101,D$105:D$116,$C$105:$C$116)<0,0, IF(FORECAST($C101,D$105:D$116,$C$105:$C$116)>100,100, FORECAST($C101,D$105:D$116,$C$105:$C$116)))) -> 4.132258981 | H101: =IF(MAX(C105:C116)-MIN(C105:C116)<5,AVERAGEIF(C105:C116,">0",H105:H116), IF(FORECAST($C101,H$105:H$116,$C$105:$C$116)<0,0, IF(FORECAST($C101,H$105:H$116,$C$105:$C$116)>100,100, FORECAST($C101,H$105:H$116,$C$105:$C$116)))) -> 85.31126165 | I101: =IF(MAX(C105:C116)-MIN(C105:C116)<5,AVERAGEIF(C105:C116,">0",I105:I116), IF(FORECAST($C101,I$105:I$116,$C$105:$C$116)<0,0, IF(FORECAST($C101,I$105:I$116,$C$105:$C$116)>100,100, FORECAST($C101,I$105:I$116,$C$105:$C$116)))) -> 10.52255105 | M101: =IF(MAX(C105:C116)-MIN(C105:C116)<5,AVERAGEIF(C105:C116,">0",M105:M116), IF(FORECAST($C101,M$105:M$116,$C$105:$C$116)<0,0, IF(FORECAST($C101,M$105:M$116,$C$105:$C$116)>100,100, FORECAST($C101,M$105:M$116,$C$105:$C$116)))) -> 61.51294083 | N101: =IF(MAX(C105:C116)-MIN(C105:C116)<5,AVERAGEIF(C105:C116,">0",N105:N116), IF(FORECAST($C101,N$105:N$116,$C$105:$C$116)<0,0, IF(FORECAST($C101,N$105:N$116,$C$105:$C$116)>100,100, FORECAST($C101,N$105:N$116,$C$105:$C$116)))) -> 18.09668058 | R101: =IF(MAX(C105:C116)-MIN(C105:C116)<5,AVERAGEIF(C105:C116,">0",R105:R116), IF(FORECAST($C101,R$105:R$116,$C$105:$C$116)<0,0, IF(FORECAST($C101,R$105:R$116,$C$105:$C$116)>100,100, FORECAST($C101,R$105:R$116,$C$105:$C$116)))) -> 39.07262032 | S101: =IF(MAX(C105:C116)-MIN(C105:C116)<5,AVERAGEIF(C105:C116,">0",S105:S116), IF(FORECAST($C101,S$105:S$116,$C$105:$C$116)<0,0, IF(FORECAST($C101,S$105:S$116,$C$105:$C$116)>100,100, FORECAST($C101,S$105:S$116,$C$105:$C$116)))) -> 33.11684465 | W101: =IF(MAX(C105:C116)-MIN(C105:C116)<5,AVERAGEIF(C105:C116,">0",W105:W116), IF(FORECAST($C101,W$105:W$116,$C$105:$C$116)<0,0, IF(FORECAST($C101,W$105:W$116,$C$105:$C$116)>100,100, FORECAST($C101,W$105:W$116,$C$105:$C$116)))) -> 20.55717701 | X101: =IF(MAX(C105:C116)-MIN(C105:C116)<5,AVERAGEIF(C105:C116,">0",X105:X116), IF(FORECAST($C101,X$105:X$116,$C$105:$C$116)<0,0, IF(FORECAST($C101,X$105:X$116,$C$105:$C$116)>100,100, FORECAST($C101,X$105:X$116,$C$105:$C$116)))) -> 60.75842563 | AB101: =IF(MAX(C105:C116)-MIN(C105:C116)<5,AVERAGEIF(C105:C116,">0",AB105:AB116), IF(FORECAST($C101,AB$105:AB$116,$C$105:$C$116)<0,0, IF(FORECAST($C101,AB$105:AB$116,$C$105:$C$116)>100,100, FORECAST($C101,AB$105:AB$116,$C$105:$C$116)))) -> 5.007703119
C102: =MaxRegYear(C100,C105:C116) -> 2020 | D102: =IF(MAX(C105:C116)-MIN(C105:C116)<5,AVERAGEIF(C105:C116,">0",D105:D116), IF(FORECAST($C102,D$105:D$116,$C$105:$C$116)<0,0, IF(FORECAST($C102,D$105:D$116,$C$105:$C$116)>100,100, FORECAST($C102,D$105:D$116,$C$105:$C$116)))) -> 41.6306608 | H102: =IF(MAX(C105:C116)-MIN(C105:C116)<5,AVERAGEIF(C105:C116,">0",H105:H116), IF(FORECAST($C102,H$105:H$116,$C$105:$C$116)<0,0, IF(FORECAST($C102,H$105:H$116,$C$105:$C$116)>100,100, FORECAST($C102,H$105:H$116,$C$105:$C$116)))) -> 58.9529434 | I102: =IF(MAX(C105:C116)-MIN(C105:C116)<5,AVERAGEIF(C105:C116,">0",I105:I116), IF(FORECAST($C102,I$105:I$116,$C$105:$C$116)<0,0, IF(FORECAST($C102,I$105:I$116,$C$105:$C$116)>100,100, FORECAST($C102,I$105:I$116,$C$105:$C$116)))) -> 65.72652879 | M102: =IF(MAX(C105:C116)-MIN(C105:C116)<5,AVERAGEIF(C105:C116,">0",M105:M116), IF(FORECAST($C102,M$105:M$116,$C$105:$C$116)<0,0, IF(FORECAST($C102,M$105:M$116,$C$105:$C$116)>100,100, FORECAST($C102,M$105:M$116,$C$105:$C$116)))) -> 32.3972337 | N102: =IF(MAX(C105:C116)-MIN(C105:C116)<5,AVERAGEIF(C105:C116,">0",N105:N116), IF(FORECAST($C102,N$105:N$116,$C$105:$C$116)<0,0, IF(FORECAST($C102,N$105:N$116,$C$105:$C$116)>100,100, FORECAST($C102,N$105:N$116,$C$105:$C$116)))) -> 85.45621034 | R102: =IF(MAX(C105:C116)-MIN(C105:C116)<5,AVERAGEIF(C105:C116,">0",R105:R116), IF(FORECAST($C102,R$105:R$116,$C$105:$C$116)<0,0, IF(FORECAST($C102,R$105:R$116,$C$105:$C$116)>100,100, FORECAST($C102,R$105:R$116,$C$105:$C$116)))) -> 10.99163181 | S102: =IF(MAX(C105:C116)-MIN(C105:C116)<5,AVERAGEIF(C105:C116,">0",S105:S116), IF(FORECAST($C102,S$105:S$116,$C$105:$C$116)<0,0, IF(FORECAST($C102,S$105:S$116,$C$105:$C$116)>100,100, FORECAST($C102,S$105:S$116,$C$105:$C$116)))) -> 94.76650901 | W102: =IF(MAX(C105:C116)-MIN(C105:C116)<5,AVERAGEIF(C105:C116,">0",W105:W116), IF(FORECAST($C102,W$105:W$116,$C$105:$C$116)<0,0, IF(FORECAST($C102,W$105:W$116,$C$105:$C$116)>100,100, FORECAST($C102,W$105:W$116,$C$105:$C$116)))) -> 0.8725936523 | X102: =IF(MAX(C105:C116)-MIN(C105:C116)<5,AVERAGEIF(C105:C116,">0",X105:X116), IF(FORECAST($C102,X$105:X$116,$C$105:$C$116)<0,0, IF(FORECAST($C102,X$105:X$116,$C$105:$C$116)>100,100, FORECAST($C102,X$105:X$116,$C$105:$C$116)))) -> 99.09979104 | AB102: =IF(MAX(C105:C116)-MIN(C105:C116)<5,AVERAGEIF(C105:C116,">0",AB105:AB116), IF(FORECAST($C102,AB$105:AB$116,$C$105:$C$116)<0,0, IF(FORECAST($C102,AB$105:AB$116,$C$105:$C$116)>100,100, FORECAST($C102,AB$105:AB$116,$C$105:$C$116)))) -> 0
B104: Survey | C104: Year | D104: Improved | E104: Not shared | H104: Open defecation | I104: Improved | J104: Not shared | M104: Open defecation | N104: Improved | O104: Not shared | R104: Open defecation | S104: Improved | T104: Not shared | W104: Open defecation | X104: Improved | Y104: Not shared | AB104: Open defecation
B105: MICS00 | C105: 2000 | D105: =IF(ISERROR(INDIRECT(CONCATENATE($B105,"!C122"))),"",INDIRECT(CONCATENATE($B105,"!C122"))) -> 8.892355018 | E105: =IF(ISERROR(INDIRECT(CONCATENATE($B105,"!C129"))),"",INDIRECT(CONCATENATE($B105,"!C129"))) -> N/A | H105: =IF(ISERROR(INDIRECT(CONCATENATE($B105,"!C127"))),"",INDIRECT(CONCATENATE($B105,"!C127"))) -> 75.55555556 | I105: =IF(ISERROR(INDIRECT(CONCATENATE($B105,"!D122"))),"",INDIRECT(CONCATENATE($B105,"!D122"))) -> 15.85978039 | J105: =IF(ISERROR(INDIRECT(CONCATENATE($B105,"!D129"))),"",INDIRECT(CONCATENATE($B105,"!D129"))) -> N/A | M105: =IF(ISERROR(INDIRECT(CONCATENATE($B105,"!D127"))),"",INDIRECT(CONCATENATE($B105,"!D127"))) -> 57.45967742 | N105: =IF(ISERROR(INDIRECT(CONCATENATE($B105,"!E122"))),"",INDIRECT(CONCATENATE($B105,"!E122"))) -> 22.39185635 | O105: =IF(ISERROR(INDIRECT(CONCATENATE($B105,"!E129"))),"",INDIRECT(CONCATENATE($B105,"!E129"))) -> N/A | R105: =IF(ISERROR(INDIRECT(CONCATENATE($B105,"!E127"))),"",INDIRECT(CONCATENATE($B105,"!E127"))) -> 41.56996587 | S105: =IF(ISERROR(INDIRECT(CONCATENATE($B105,"!F122"))),"",INDIRECT(CONCATENATE($B105,"!F122"))) -> 37.57529868 | T105: =IF(ISERROR(INDIRECT(CONCATENATE($B105,"!F129"))),"",INDIRECT(CONCATENATE($B105,"!F129"))) -> N/A | W105: =IF(ISERROR(INDIRECT(CONCATENATE($B105,"!F127"))),"",INDIRECT(CONCATENATE($B105,"!F127"))) -> 21.82432432 | X105: =IF(ISERROR(INDIRECT(CONCATENATE($B105,"!G122"))),"",INDIRECT(CONCATENATE($B105,"!G122"))) -> 63.79462057 | Y105: =IF(ISERROR(INDIRECT(CONCATENATE($B105,"!G129"))),"",INDIRECT(CONCATENATE($B105,"!G129"))) -> N/A | AB105: =IF(ISERROR(INDIRECT(CONCATENATE($B105,"!G2127"))),"",INDIRECT(CONCATENATE($B105,"!G127"))) -> 5.345060893
B106: HBS02 | C106: 2002 | D106: 9.873592099 | E106: N/A | H106: 83.39922649 | I106: 24.88726048 | J106: N/A | M106: 43.93776924 | N106: 31.76928693 | O106: N/A | R106: 26.00895291 | S106: 43.16744235 | T106: N/A | W106: 15.61520962 | X106: 68.27710673 | Y106: N/A | AB106: 3.853068221
B107: DHS04 | C107: 2004 | D107: 7.676321206 | E107: N/A | H107: 87.47104499 | I107: 13.05698109 | J107: N/A | M107: 70.81628264 | N107: 25.48793353 | O107: N/A | R107: 40.28747216 | S107: 40.44032871 | T107: N/A | W107: 18.97014398 | X107: 64.80185309 | Y107: N/A | AB107: 4.616274346
B108: DHS09 | C108: 2009 | D108: 12.53595271 | E108: 91.76491287 | H108: 80.54597408 | I108: 20.19035771 | J108: 79.74912395 | M108: 57.73412758 | N108: 33.13668706 | O108: 76.94352353 | R108: 26.82811372 | S108: 46.01754179 | T108: 60.82601513 | W108: 10.75840348 | X108: 66.75698875 | Y108: 69.48284516 | AB108: 2.18480626
B109: DHS14 | C109: 2014 | D109: 33.89822078 | E109: 88.44059167 | H109: 65.88996505 | I109: 53.68429858 | J109: 82.68338489 | M109: 44.10601973 | N109: 73.81724176 | O109: 76.94867857 | R109: 24.40961319 | S109: 91.58232895 | T109: 64.05168994 | W109: 6.861849025 | X109: 97.20715107 | Y109: 69.00606664 | AB109: 1.636353369
B110: MICS18 | C110: 2018 | D110: 40.03835634 | E110: 86.21528977 | H110: 57.06375586 | I110: 65.18597575 | J110: 79.78533235 | M110: 26.60185662 | N110: 80.27197278 | O110: 66.08262741 | R110: 9.341281068 | S110: 84.79483867 | T110: 62.09806559 | W110: 3.054360743 | X110: 93.81504228 | Y110: 69.94284305 | AB110: 0.5513666339
B118: =CONCATENATE("National use of sanitation facilities, ",C99,"–",C100) -> National use of sanitation facilities, 2000–2020 | S118: Data points used for regression
A197: URBAN | D197: Poorest | I197: Poor | N197: Middle | S197: Rich | X197: Richest
D198: Improved | E198: Basic | F198: Limited | G198: Unimproved | H198: Open defecation | I198: Improved | J198: Basic | K198: Limited | L198: Unimproved | M198: Open defecation | N198: Improved | O198: Basic | P198: Limited | Q198: Unimproved | R198: Open defecation | S198: Improved | T198: Basic | U198: Limited | V198: Unimproved | W198: Open defecation | X198: Improved | Y198: Basic | Z198: Limited | AA198: Unimproved | AB198: Open defecation
A199: Forecast period: | C199: 2000 | D199: =IF((D201+H201)>100,D201*100/(D201+H201),D201) -> 29.84319645 | E199: =D199*AVERAGEIF(E205:E216,">0")/100 -> 12.84630354 | F199: =D199*(100-AVERAGEIF(E205:E216,">0"))/100 -> 16.99689291 | G199: =100-(E199+F199+H199) -> 50.83533092 | H199: =IF((D201+H201)>100,H201*100/(D201+H201),H201) -> 19.32147263 | I199: =IF((I201+M201)>100,I201*100/(I201+M201),I201) -> 37.05559121 | J199: =I199*AVERAGEIF(J205:J216,">0")/100 -> 14.50742549 | K199: =I199*(100-AVERAGEIF(J205:J216,">0"))/100 -> 22.54816572 | L199: =100-(J199+K199+M199) -> 49.25455443 | M199: =IF((I201+M201)>100,M201*100/(I201+M201),M201) -> 13.68985437 | N199: =IF((N201+R201)>100,N201*100/(N201+R201),N201) -> 47.23575282 | O199: =N199*AVERAGEIF(O205:O216,">0")/100 -> 21.32810248 | P199: =N199*(100-AVERAGEIF(O205:O216,">0"))/100 -> 25.90765035 | Q199: =100-(O199+P199+R199) -> 45.00592185 | R199: =IF((N201+R201)>100,R201*100/(N201+R201),R201) -> 7.758325325 | S199: =IF((S201+W201)>100,S201*100/(S201+W201),S201) -> 61.93950591 | T199: =S199*AVERAGEIF(T205:T216,">0")/100 -> 34.43452153 | U199: =S199*(100-AVERAGEIF(T205:T216,">0"))/100 -> 27.50498438 | V199: =100-(T199+U199+W199) -> 33.82446799 | W199: =IF((S201+W201)>100,W201*100/(S201+W201),W201) -> 4.2360261 | X199: =IF((X201+AB201)>100,X201*100/(X201+AB201),X201) -> 85.33372359 | Y199: =X199*AVERAGEIF(Y205:Y216,">0")/100 -> 64.20225843 | Z199: =X199*(100-AVERAGEIF(Y205:Y216,">0"))/100 -> 21.13146516 | AA199: =100-(Y199+Z199+AB199) -> 13.55259625 | AB199: =IF((X201+AB201)>100,AB201*100/(X201+AB201),AB201) -> 1.113680158
C200: 2020 | D200: =IF((D202+H202)>100,D202*100/(D202+H202),D202) -> 79.70445208 | E200: =D200*AVERAGEIF(E205:E216,">0")/100 -> 34.30958165 | F200: =D200*(100-AVERAGEIF(E205:E216,">0"))/100 -> 45.39487044 | G200: =100-(E200+F200+H200) -> 3.68887025 | H200: =IF((D202+H202)>100,H202*100/(D202+H202),H202) -> 16.60667767 | I200: =IF((I202+M202)>100,I202*100/(I202+M202),I202) -> 94.57722677 | J200: =I200*AVERAGEIF(J205:J216,">0")/100 -> 37.02739655 | K200: =I200*(100-AVERAGEIF(J205:J216,">0"))/100 -> 57.54983022 | L200: =100-(J200+K200+M200) -> 4.30282225 | M200: =IF((I202+M202)>100,M202*100/(I202+M202),M202) -> 1.119950981 | N200: =IF((N202+R202)>100,N202*100/(N202+R202),N202) -> 96.18769213 | O200: =N200*AVERAGEIF(O205:O216,">0")/100 -> 43.4311053 | P200: =N200*(100-AVERAGEIF(O205:O216,">0"))/100 -> 52.75658684 | Q200: =100-(O200+P200+R200) -> 3.517958489 | R200: =IF((N202+R202)>100,R202*100/(N202+R202),R202) -> 0.2943493764 | S200: =IF((S202+W202)>100,S202*100/(S202+W202),S202) -> 98.25811777 | T200: =S200*AVERAGEIF(T205:T216,">0")/100 -> 54.62541592 | U200: =S200*(100-AVERAGEIF(T205:T216,">0"))/100 -> 43.63270185 | V200: =100-(T200+U200+W200) -> 1.741882228 | W200: =IF((S202+W202)>100,W202*100/(S202+W202),W202) -> 0 | X200: =IF((X202+AB202)>100,X202*100/(X202+AB202),X202) -> 97.8572186 | Y200: =X200*AVERAGEIF(Y205:Y216,">0")/100 -> 73.62451998 | Z200: =X200*(100-AVERAGEIF(Y205:Y216,">0"))/100 -> 24.23269862 | AA200: =100-(Y200+Z200+AB200) -> 1.879153583 | AB200: =IF((X202+AB202)>100,AB202*100/(X202+AB202),AB202) -> 0.2636278171
A201: Regression period: | C201: =MinRegYear(C199,C205:C216) -> 2000 | D201: =IF(MAX(C205:C216)-MIN(C205:C216)<5,AVERAGEIF(C205:C216,">0",D205:D216), IF(FORECAST($C201,D$205:D$216,$C$205:$C$216)<0,0, IF(FORECAST($C201,D$205:D$216,$C$205:$C$216)>100,100, FORECAST($C201,D$205:D$216,$C$205:$C$216)))) -> 29.84319645 | H201: =IF(MAX(C205:C216)-MIN(C205:C216)<5,AVERAGEIF(C205:C216,">0",H205:H216), IF(FORECAST($C201,H$205:H$216,$C$205:$C$216)<0,0, IF(FORECAST($C201,H$205:H$216,$C$205:$C$216)>100,100, FORECAST($C201,H$205:H$216,$C$205:$C$216)))) -> 19.32147263 | I201: =IF(MAX(C205:C216)-MIN(C205:C216)<5,AVERAGEIF(C205:C216,">0",I205:I216), IF(FORECAST($C201,I$205:I$216,$C$205:$C$216)<0,0, IF(FORECAST($C201,I$205:I$216,$C$205:$C$216)>100,100, FORECAST($C201,I$205:I$216,$C$205:$C$216)))) -> 37.05559121 | M201: =IF(MAX(C205:C216)-MIN(C205:C216)<5,AVERAGEIF(C205:C216,">0",M205:M216), IF(FORECAST($C201,M$205:M$216,$C$205:$C$216)<0,0, IF(FORECAST($C201,M$205:M$216,$C$205:$C$216)>100,100, FORECAST($C201,M$205:M$216,$C$205:$C$216)))) -> 13.68985437 | N201: =IF(MAX(C205:C216)-MIN(C205:C216)<5,AVERAGEIF(C205:C216,">0",N205:N216), IF(FORECAST($C201,N$205:N$216,$C$205:$C$216)<0,0, IF(FORECAST($C201,N$205:N$216,$C$205:$C$216)>100,100, FORECAST($C201,N$205:N$216,$C$205:$C$216)))) -> 47.23575282 | R201: =IF(MAX(C205:C216)-MIN(C205:C216)<5,AVERAGEIF(C205:C216,">0",R205:R216), IF(FORECAST($C201,R$205:R$216,$C$205:$C$216)<0,0, IF(FORECAST($C201,R$205:R$216,$C$205:$C$216)>100,100, FORECAST($C201,R$205:R$216,$C$205:$C$216)))) -> 7.758325325 | S201: =IF(MAX(C205:C216)-MIN(C205:C216)<5,AVERAGEIF(C205:C216,">0",S205:S216), IF(FORECAST($C201,S$205:S$216,$C$205:$C$216)<0,0, IF(FORECAST($C201,S$205:S$216,$C$205:$C$216)>100,100, FORECAST($C201,S$205:S$216,$C$205:$C$216)))) -> 61.93950591 | W201: =IF(MAX(C205:C216)-MIN(C205:C216)<5,AVERAGEIF(C205:C216,">0",W205:W216), IF(FORECAST($C201,W$205:W$216,$C$205:$C$216)<0,0, IF(FORECAST($C201,W$205:W$216,$C$205:$C$216)>100,100, FORECAST($C201,W$205:W$216,$C$205:$C$216)))) -> 4.2360261 | X201: =IF(MAX(C205:C216)-MIN(C205:C216)<5,AVERAGEIF(C205:C216,">0",X205:X216), IF(FORECAST($C201,X$205:X$216,$C$205:$C$216)<0,0, IF(FORECAST($C201,X$205:X$216,$C$205:$C$216)>100,100, FORECAST($C201,X$205:X$216,$C$205:$C$216)))) -> 85.33372359 | AB201: =IF(MAX(C205:C216)-MIN(C205:C216)<5,AVERAGEIF(C205:C216,">0",AB205:AB216), IF(FORECAST($C201,AB$205:AB$216,$C$205:$C$216)<0,0, IF(FORECAST($C201,AB$205:AB$216,$C$205:$C$216)>100,100, FORECAST($C201,AB$205:AB$216,$C$205:$C$216)))) -> 1.113680158
C202: =MaxRegYear(C200,C205:C216) -> 2020 | D202: =IF(MAX(C205:C216)-MIN(C205:C216)<5,AVERAGEIF(C205:C216,">0",D205:D216), IF(FORECAST($C202,D$205:D$216,$C$205:$C$216)<0,0, IF(FORECAST($C202,D$205:D$216,$C$205:$C$216)>100,100, FORECAST($C202,D$205:D$216,$C$205:$C$216)))) -> 79.70445208 | H202: =IF(MAX(C205:C216)-MIN(C205:C216)<5,AVERAGEIF(C205:C216,">0",H205:H216), IF(FORECAST($C202,H$205:H$216,$C$205:$C$216)<0,0, IF(FORECAST($C202,H$205:H$216,$C$205:$C$216)>100,100, FORECAST($C202,H$205:H$216,$C$205:$C$216)))) -> 16.60667767 | I202: =IF(MAX(C205:C216)-MIN(C205:C216)<5,AVERAGEIF(C205:C216,">0",I205:I216), IF(FORECAST($C202,I$205:I$216,$C$205:$C$216)<0,0, IF(FORECAST($C202,I$205:I$216,$C$205:$C$216)>100,100, FORECAST($C202,I$205:I$216,$C$205:$C$216)))) -> 94.57722677 | M202: =IF(MAX(C205:C216)-MIN(C205:C216)<5,AVERAGEIF(C205:C216,">0",M205:M216), IF(FORECAST($C202,M$205:M$216,$C$205:$C$216)<0,0, IF(FORECAST($C202,M$205:M$216,$C$205:$C$216)>100,100, FORECAST($C202,M$205:M$216,$C$205:$C$216)))) -> 1.119950981 | N202: =IF(MAX(C205:C216)-MIN(C205:C216)<5,AVERAGEIF(C205:C216,">0",N205:N216), IF(FORECAST($C202,N$205:N$216,$C$205:$C$216)<0,0, IF(FORECAST($C202,N$205:N$216,$C$205:$C$216)>100,100, FORECAST($C202,N$205:N$216,$C$205:$C$216)))) -> 96.18769213 | R202: =IF(MAX(C205:C216)-MIN(C205:C216)<5,AVERAGEIF(C205:C216,">0",R205:R216), IF(FORECAST($C202,R$205:R$216,$C$205:$C$216)<0,0, IF(FORECAST($C202,R$205:R$216,$C$205:$C$216)>100,100, FORECAST($C202,R$205:R$216,$C$205:$C$216)))) -> 0.2943493764 | S202: =IF(MAX(C205:C216)-MIN(C205:C216)<5,AVERAGEIF(C205:C216,">0",S205:S216), IF(FORECAST($C202,S$205:S$216,$C$205:$C$216)<0,0, IF(FORECAST($C202,S$205:S$216,$C$205:$C$216)>100,100, FORECAST($C202,S$205:S$216,$C$205:$C$216)))) -> 98.25811777 | W202: =IF(MAX(C205:C216)-MIN(C205:C216)<5,AVERAGEIF(C205:C216,">0",W205:W216), IF(FORECAST($C202,W$205:W$216,$C$205:$C$216)<0,0, IF(FORECAST($C202,W$205:W$216,$C$205:$C$216)>100,100, FORECAST($C202,W$205:W$216,$C$205:$C$216)))) -> 0 | X202: =IF(MAX(C205:C216)-MIN(C205:C216)<5,AVERAGEIF(C205:C216,">0",X205:X216), IF(FORECAST($C202,X$205:X$216,$C$205:$C$216)<0,0, IF(FORECAST($C202,X$205:X$216,$C$205:$C$216)>100,100, FORECAST($C202,X$205:X$216,$C$205:$C$216)))) -> 97.8572186 | AB202: =IF(MAX(C205:C216)-MIN(C205:C216)<5,AVERAGEIF(C205:C216,">0",AB205:AB216), IF(FORECAST($C202,AB$205:AB$216,$C$205:$C$216)<0,0, IF(FORECAST($C202,AB$205:AB$216,$C$205:$C$216)>100,100, FORECAST($C202,AB$205:AB$216,$C$205:$C$216)))) -> 0.2636278171
B204: Survey | C204: Year | D204: Improved | E204: Not shared | H204: Open defecation | I204: Improved | J204: Not shared | M204: Open defecation | N204: Improved | O204: Not shared | R204: Open defecation | S204: Improved | T204: Not shared | W204: Open defecation | X204: Improved | Y204: Not shared | AB204: Open defecation
B205: MICS00 | C205: 2000 | D205: =IF(ISERROR(INDIRECT(CONCATENATE($B205,"!H122"))),"",INDIRECT(CONCATENATE($B205,"!H122"))) -> 33.31810042 | E205: =IF(ISERROR(INDIRECT(CONCATENATE($B205,"!H129"))),"",INDIRECT(CONCATENATE($B205,"!H129"))) -> N/A | H205: =IF(ISERROR(INDIRECT(CONCATENATE($B205,"!H127"))),"",INDIRECT(CONCATENATE($B205,"!H127"))) -> 21.8487395 | I205: =IF(ISERROR(INDIRECT(CONCATENATE($B205,"!I122"))),"",INDIRECT(CONCATENATE($B205,"!I122"))) -> 42.85161704 | J205: =IF(ISERROR(INDIRECT(CONCATENATE($B205,"!I129"))),"",INDIRECT(CONCATENATE($B205,"!I129"))) -> N/A | M205: =IF(ISERROR(INDIRECT(CONCATENATE($B205,"!I127"))),"",INDIRECT(CONCATENATE($B205,"!I127"))) -> 12.18836565 | N205: =IF(ISERROR(INDIRECT(CONCATENATE($B205,"!J122"))),"",INDIRECT(CONCATENATE($B205,"!J122"))) -> 52.55746362 | O205: =IF(ISERROR(INDIRECT(CONCATENATE($B205,"!J129"))),"",INDIRECT(CONCATENATE($B205,"!J129"))) -> N/A | R205: =IF(ISERROR(INDIRECT(CONCATENATE($B205,"!J127"))),"",INDIRECT(CONCATENATE($B205,"!J127"))) -> 6.145251397 | S205: =IF(ISERROR(INDIRECT(CONCATENATE($B205,"!K122"))),"",INDIRECT(CONCATENATE($B205,"!K122"))) -> 66.44168622 | T205: =IF(ISERROR(INDIRECT(CONCATENATE($B205,"!K129"))),"",INDIRECT(CONCATENATE($B205,"!K129"))) -> N/A | W205: =IF(ISERROR(INDIRECT(CONCATENATE($B205,"!K127"))),"",INDIRECT(CONCATENATE($B205,"!K127"))) -> 2.808988764 | X205: =IF(ISERROR(INDIRECT(CONCATENATE($B205,"!L122"))),"",INDIRECT(CONCATENATE($B205,"!L122"))) -> 87.72329957 | Y205: =IF(ISERROR(INDIRECT(CONCATENATE($B205,"!L129"))),"",INDIRECT(CONCATENATE($B205,"!L129"))) -> N/A | AB205: =IF(ISERROR(INDIRECT(CONCATENATE($B205,"!L2127"))),"",INDIRECT(CONCATENATE($B205,"!L127"))) -> 0.2808988764
B206: HBS02 | C206: 2002 | D206: 37.64975034 | E206: N/A | H206: 15.92472437 | I206: 42.59442819 | J206: N/A | M206: 16.31961291 | N206: 51.10085106 | O206: N/A | R206: 11.77872628 | S206: 64.82091697 | T206: N/A | W206: 7.33259332 | X206: 85.83471033 | Y206: N/A | AB206: 2.332474963
B207: DHS04 | C207: 2004 | D207: 35.39580556 | E207: N/A | H207: 21.19474323 | I207: 45.39000175 | J207: N/A | M207: 10.38045389 | N207: 55.09608751 | O207: N/A | R207: 3.88143436 | S207: 67.24736125 | T207: N/A | W207: 1.904409672 | X207: 88.53615257 | Y207: N/A | AB207: 0.5813681581
B208: DHS09 | C208: 2009 | D208: 39.68265559 | E208: 31.70994283 | H208: 15.0624435 | I208: 48.5753211 | J208: 35.36541789 | M208: 5.629148827 | N208: 56.54253992 | O208: 38.88121385 | R208: 3.11465736 | S208: 69.1952394 | T208: 57.98256109 | W208: 0.5029780958 | X208: 84.2678642 | Y208: 76.1471981 | AB208: 0.8495679568
B209: DHS14 | C209: 2014 | D209: 81.64177953 | E209: 50.18412256 | H209: 16.9267724 | I209: 95.50789792 | J209: 35.09730762 | M209: 4.294155272 | N209: 97.0535482 | O209: 48.56368086 | R209: 1.960493151 | S209: 97.39725206 | T209: 52.1400447 | W209: 0.9449282134 | X209: 98.98869657 | Y209: 74.69354027 | AB209: 0.05258895146
B210: MICS18 | C210: 2018 | D210: 68.545038 | E210: 47.24394667 | H210: 18.59164463 | I210: 82.59012482 | J210: 46.98858222 | M210: 3.788116694 | N210: 86.101084 | O210: 48.01247308 | R210: 2.12904593 | S210: 91.88331742 | T210: 56.65877723 | W210: 0.3193058472 | X210: 96.08183155 | Y210: 74.86929417 | AB210: 0.5875590418
B218: =CONCATENATE("Urban use of sanitation facilities, ",C199,"–",C200) -> Urban use of sanitation facilities, 2000–2020 | S218: Data points used for regression
A297: RURAL | D297: Poorest | I297: Poor | N297: Middle | S297: Rich | X297: Richest
D298: Improved | E298: Basic | F298: Limited | G298: Unimproved | H298: Open defecation | I298: Improved | J298: Basic | K298: Limited | L298: Unimproved | M298: Open defecation | N298: Improved | O298: Basic | P298: Limited | Q298: Unimproved | R298: Open defecation | S298: Improved | T298: Basic | U298: Limited | V298: Unimproved | W298: Open defecation | X298: Improved | Y298: Basic | Z298: Limited | AA298: Unimproved | AB298: Open defecation
A299: Forecast period: | C299: 2000 | D299: =IF((D301+H301)>100,D301*100/(D301+H301),D301) -> 3.580836651 | E299: =D299*AVERAGEIF(E305:E316,">0")/100 -> 3.218666443 | F299: =D299*(100-AVERAGEIF(E305:E316,">0"))/100 -> 0.3621702078 | G299: =100-(E299+F299+H299) -> 9.49180377 | H299: =IF((D301+H301)>100,H301*100/(D301+H301),H301) -> 86.92735958 | I299: =IF((I301+M301)>100,I301*100/(I301+M301),I301) -> 6.507924477 | J299: =I299*AVERAGEIF(J305:J316,">0")/100 -> 5.503345255 | K299: =I299*(100-AVERAGEIF(J305:J316,">0"))/100 -> 1.004579221 | L299: =100-(J299+K299+M299) -> 18.01392548 | M299: =IF((I301+M301)>100,M301*100/(I301+M301),M301) -> 75.47815004 | N299: =IF((N301+R301)>100,N301*100/(N301+R301),N301) -> 9.10246996 | O299: =N299*AVERAGEIF(O305:O316,">0")/100 -> 7.516666292 | P299: =N299*(100-AVERAGEIF(O305:O316,">0"))/100 -> 1.585803668 | Q299: =100-(O299+P299+R299) -> 31.13017219 | R299: =IF((N301+R301)>100,R301*100/(N301+R301),R301) -> 59.76735785 | S299: =IF((S301+W301)>100,S301*100/(S301+W301),S301) -> 20.63999416 | T299: =S299*AVERAGEIF(T305:T316,">0")/100 -> 17.2727115 | U299: =S299*(100-AVERAGEIF(T305:T316,">0"))/100 -> 3.367282656 | V299: =100-(T299+U299+W299) -> 41.15895687 | W299: =IF((S301+W301)>100,W301*100/(S301+W301),W301) -> 38.20104897 | X299: =IF((X301+AB301)>100,X301*100/(X301+AB301),X301) -> 39.85480574 | Y299: =X299*AVERAGEIF(Y305:Y316,">0")/100 -> 34.44786551 | Z299: =X299*(100-AVERAGEIF(Y305:Y316,">0"))/100 -> 5.406940222 | AA299: =100-(Y299+Z299+AB299) -> 44.9867756 | AB299: =IF((X301+AB301)>100,AB301*100/(X301+AB301),AB301) -> 15.15841866
C300: 2020 | D300: =IF((D302+H302)>100,D302*100/(D302+H302),D302) -> 37.00860561 | E300: =D300*AVERAGEIF(E305:E316,">0")/100 -> 33.26550988 | F300: =D300*(100-AVERAGEIF(E305:E316,">0"))/100 -> 3.743095731 | G300: =100-(E300+F300+H300) -> 0 | H300: =IF((D302+H302)>100,H302*100/(D302+H302),H302) -> 62.99139439 | I300: =IF((I302+M302)>100,I302*100/(I302+M302),I302) -> 52.32468003 | J300: =I300*AVERAGEIF(J305:J316,">0")/100 -> 44.24771379 | K300: =I300*(100-AVERAGEIF(J305:J316,">0"))/100 -> 8.076966243 | L300: =100-(J300+K300+M300) -> 0.3458538458 | M300: =IF((I302+M302)>100,M302*100/(I302+M302),M302) -> 47.32946612 | N300: =IF((N302+R302)>100,N302*100/(N302+R302),N302) -> 72.49965725 | O300: =N300*AVERAGEIF(O305:O316,">0")/100 -> 59.86899515 | P300: =N300*(100-AVERAGEIF(O305:O316,">0"))/100 -> 12.63066211 | Q300: =100-(O300+P300+R300) -> 4.290756953 | R300: =IF((N302+R302)>100,R302*100/(N302+R302),R302) -> 23.20958579 | S300: =IF((S302+W302)>100,S302*100/(S302+W302),S302) -> 86.59338628 | T300: =S300*AVERAGEIF(T305:T316,">0")/100 -> 72.46623074 | U300: =S300*(100-AVERAGEIF(T305:T316,">0"))/100 -> 14.12715553 | V300: =100-(T300+U300+W300) -> 3.81234554 | W300: =IF((S302+W302)>100,W302*100/(S302+W302),W302) -> 9.594268183 | X300: =IF((X302+AB302)>100,X302*100/(X302+AB302),X302) -> 96.44067032 | Y300: =X300*AVERAGEIF(Y305:Y316,">0")/100 -> 83.35695483 | Z300: =X300*(100-AVERAGEIF(Y305:Y316,">0"))/100 -> 13.0837155 | AA300: =100-(Y300+Z300+AB300) -> 2.051083242 | AB300: =IF((X302+AB302)>100,AB302*100/(X302+AB302),AB302) -> 1.508246434
A301: Regression period: | C301: =MinRegYear(C299,C305:C316) -> 2000 | D301: =IF(MAX(C305:C316)-MIN(C305:C316)<5,AVERAGEIF(C305:C316,">0",D305:D316), IF(FORECAST($C301,D$305:D$316,$C$305:$C$316)<0,0, IF(FORECAST($C301,D$305:D$316,$C$305:$C$316)>100,100, FORECAST($C301,D$305:D$316,$C$305:$C$316)))) -> 3.580836651 | H301: =IF(MAX(C305:C316)-MIN(C305:C316)<5,AVERAGEIF(C305:C316,">0",H305:H316), IF(FORECAST($C301,H$305:H$316,$C$305:$C$316)<0,0, IF(FORECAST($C301,H$305:H$316,$C$305:$C$316)>100,100, FORECAST($C301,H$305:H$316,$C$305:$C$316)))) -> 86.92735958 | I301: =IF(MAX(C305:C316)-MIN(C305:C316)<5,AVERAGEIF(C305:C316,">0",I305:I316), IF(FORECAST($C301,I$305:I$316,$C$305:$C$316)<0,0, IF(FORECAST($C301,I$305:I$316,$C$305:$C$316)>100,100, FORECAST($C301,I$305:I$316,$C$305:$C$316)))) -> 6.507924477 | M301: =IF(MAX(C305:C316)-MIN(C305:C316)<5,AVERAGEIF(C305:C316,">0",M305:M316), IF(FORECAST($C301,M$305:M$316,$C$305:$C$316)<0,0, IF(FORECAST($C301,M$305:M$316,$C$305:$C$316)>100,100, FORECAST($C301,M$305:M$316,$C$305:$C$316)))) -> 75.47815004 | N301: =IF(MAX(C305:C316)-MIN(C305:C316)<5,AVERAGEIF(C305:C316,">0",N305:N316), IF(FORECAST($C301,N$305:N$316,$C$305:$C$316)<0,0, IF(FORECAST($C301,N$305:N$316,$C$305:$C$316)>100,100, FORECAST($C301,N$305:N$316,$C$305:$C$316)))) -> 9.10246996 | R301: =IF(MAX(C305:C316)-MIN(C305:C316)<5,AVERAGEIF(C305:C316,">0",R305:R316), IF(FORECAST($C301,R$305:R$316,$C$305:$C$316)<0,0, IF(FORECAST($C301,R$305:R$316,$C$305:$C$316)>100,100, FORECAST($C301,R$305:R$316,$C$305:$C$316)))) -> 59.76735785 | S301: =IF(MAX(C305:C316)-MIN(C305:C316)<5,AVERAGEIF(C305:C316,">0",S305:S316), IF(FORECAST($C301,S$305:S$316,$C$305:$C$316)<0,0, IF(FORECAST($C301,S$305:S$316,$C$305:$C$316)>100,100, FORECAST($C301,S$305:S$316,$C$305:$C$316)))) -> 20.63999416 | W301: =IF(MAX(C305:C316)-MIN(C305:C316)<5,AVERAGEIF(C305:C316,">0",W305:W316), IF(FORECAST($C301,W$305:W$316,$C$305:$C$316)<0,0, IF(FORECAST($C301,W$305:W$316,$C$305:$C$316)>100,100, FORECAST($C301,W$305:W$316,$C$305:$C$316)))) -> 38.20104897 | X301: =IF(MAX(C305:C316)-MIN(C305:C316)<5,AVERAGEIF(C305:C316,">0",X305:X316), IF(FORECAST($C301,X$305:X$316,$C$305:$C$316)<0,0, IF(FORECAST($C301,X$305:X$316,$C$305:$C$316)>100,100, FORECAST($C301,X$305:X$316,$C$305:$C$316)))) -> 39.85480574 | AB301: =IF(MAX(C305:C316)-MIN(C305:C316)<5,AVERAGEIF(C305:C316,">0",AB305:AB316), IF(FORECAST($C301,AB$305:AB$316,$C$305:$C$316)<0,0, IF(FORECAST($C301,AB$305:AB$316,$C$305:$C$316)>100,100, FORECAST($C301,AB$305:AB$316,$C$305:$C$316)))) -> 15.15841866
C302: =MaxRegYear(C300,C305:C316) -> 2020 | D302: =IF(MAX(C305:C316)-MIN(C305:C316)<5,AVERAGEIF(C305:C316,">0",D305:D316), IF(FORECAST($C302,D$305:D$316,$C$305:$C$316)<0,0, IF(FORECAST($C302,D$305:D$316,$C$305:$C$316)>100,100, FORECAST($C302,D$305:D$316,$C$305:$C$316)))) -> 37.50229138 | H302: =IF(MAX(C305:C316)-MIN(C305:C316)<5,AVERAGEIF(C305:C316,">0",H305:H316), IF(FORECAST($C302,H$305:H$316,$C$305:$C$316)<0,0, IF(FORECAST($C302,H$305:H$316,$C$305:$C$316)>100,100, FORECAST($C302,H$305:H$316,$C$305:$C$316)))) -> 63.83168421 | I302: =IF(MAX(C305:C316)-MIN(C305:C316)<5,AVERAGEIF(C305:C316,">0",I305:I316), IF(FORECAST($C302,I$305:I$316,$C$305:$C$316)<0,0, IF(FORECAST($C302,I$305:I$316,$C$305:$C$316)>100,100, FORECAST($C302,I$305:I$316,$C$305:$C$316)))) -> 52.32468003 | M302: =IF(MAX(C305:C316)-MIN(C305:C316)<5,AVERAGEIF(C305:C316,">0",M305:M316), IF(FORECAST($C302,M$305:M$316,$C$305:$C$316)<0,0, IF(FORECAST($C302,M$305:M$316,$C$305:$C$316)>100,100, FORECAST($C302,M$305:M$316,$C$305:$C$316)))) -> 47.32946612 | N302: =IF(MAX(C305:C316)-MIN(C305:C316)<5,AVERAGEIF(C305:C316,">0",N305:N316), IF(FORECAST($C302,N$305:N$316,$C$305:$C$316)<0,0, IF(FORECAST($C302,N$305:N$316,$C$305:$C$316)>100,100, FORECAST($C302,N$305:N$316,$C$305:$C$316)))) -> 72.49965725 | R302: =IF(MAX(C305:C316)-MIN(C305:C316)<5,AVERAGEIF(C305:C316,">0",R305:R316), IF(FORECAST($C302,R$305:R$316,$C$305:$C$316)<0,0, IF(FORECAST($C302,R$305:R$316,$C$305:$C$316)>100,100, FORECAST($C302,R$305:R$316,$C$305:$C$316)))) -> 23.20958579 | S302: =IF(MAX(C305:C316)-MIN(C305:C316)<5,AVERAGEIF(C305:C316,">0",S305:S316), IF(FORECAST($C302,S$305:S$316,$C$305:$C$316)<0,0, IF(FORECAST($C302,S$305:S$316,$C$305:$C$316)>100,100, FORECAST($C302,S$305:S$316,$C$305:$C$316)))) -> 86.59338628 | W302: =IF(MAX(C305:C316)-MIN(C305:C316)<5,AVERAGEIF(C305:C316,">0",W305:W316), IF(FORECAST($C302,W$305:W$316,$C$305:$C$316)<0,0, IF(FORECAST($C302,W$305:W$316,$C$305:$C$316)>100,100, FORECAST($C302,W$305:W$316,$C$305:$C$316)))) -> 9.594268183 | X302: =IF(MAX(C305:C316)-MIN(C305:C316)<5,AVERAGEIF(C305:C316,">0",X305:X316), IF(FORECAST($C302,X$305:X$316,$C$305:$C$316)<0,0, IF(FORECAST($C302,X$305:X$316,$C$305:$C$316)>100,100, FORECAST($C302,X$305:X$316,$C$305:$C$316)))) -> 96.44067032 | AB302: =IF(MAX(C305:C316)-MIN(C305:C316)<5,AVERAGEIF(C305:C316,">0",AB305:AB316), IF(FORECAST($C302,AB$305:AB$316,$C$305:$C$316)<0,0, IF(FORECAST($C302,AB$305:AB$316,$C$305:$C$316)>100,100, FORECAST($C302,AB$305:AB$316,$C$305:$C$316)))) -> 1.508246434
B304: Survey | C304: Year | D304: Improved | E304: Not shared | H304: Open defecation | I304: Improved | J304: Not shared | M304: Open defecation | N304: Improved | O304: Not shared | R304: Open defecation | S304: Improved | T304: Not shared | W304: Open defecation | X304: Improved | Y304: Not shared | AB304: Open defecation
B305: MICS00 | C305: 2000 | D305: =IF(ISERROR(INDIRECT(CONCATENATE($B305,"!M122"))),"",INDIRECT(CONCATENATE($B305,"!M122"))) -> 9.154357735 | E305: =IF(ISERROR(INDIRECT(CONCATENATE($B305,"!M129"))),"",INDIRECT(CONCATENATE($B305,"!M129"))) -> N/A | H305: =IF(ISERROR(INDIRECT(CONCATENATE($B305,"!M127"))),"",INDIRECT(CONCATENATE($B305,"!M127"))) -> 74.93087558 | I305: =IF(ISERROR(INDIRECT(CONCATENATE($B305,"!N122"))),"",INDIRECT(CONCATENATE($B305,"!N122"))) -> 12.24293116 | J305: =IF(ISERROR(INDIRECT(CONCATENATE($B305,"!N129"))),"",INDIRECT(CONCATENATE($B305,"!N129"))) -> N/A | M305: =IF(ISERROR(INDIRECT(CONCATENATE($B305,"!N127"))),"",INDIRECT(CONCATENATE($B305,"!N127"))) -> 66.7238422 | N305: =IF(ISERROR(INDIRECT(CONCATENATE($B305,"!O122"))),"",INDIRECT(CONCATENATE($B305,"!O122"))) -> 13.88143168 | O305: =IF(ISERROR(INDIRECT(CONCATENATE($B305,"!O129"))),"",INDIRECT(CONCATENATE($B305,"!O129"))) -> N/A | R305: =IF(ISERROR(INDIRECT(CONCATENATE($B305,"!O127"))),"",INDIRECT(CONCATENATE($B305,"!O127"))) -> 58.63309353 | S305: =IF(ISERROR(INDIRECT(CONCATENATE($B305,"!P122"))),"",INDIRECT(CONCATENATE($B305,"!P122"))) -> 26.9117004 | T305: =IF(ISERROR(INDIRECT(CONCATENATE($B305,"!P129"))),"",INDIRECT(CONCATENATE($B305,"!P129"))) -> N/A | W305: =IF(ISERROR(INDIRECT(CONCATENATE($B305,"!P127"))),"",INDIRECT(CONCATENATE($B305,"!P127"))) -> 36.83274021 | X305: =IF(ISERROR(INDIRECT(CONCATENATE($B305,"!Q122"))),"",INDIRECT(CONCATENATE($B305,"!Q122"))) -> 44.69788873 | Y305: =IF(ISERROR(INDIRECT(CONCATENATE($B305,"!Q129"))),"",INDIRECT(CONCATENATE($B305,"!Q129"))) -> N/A | AB305: =IF(ISERROR(INDIRECT(CONCATENATE($B305,"!Q2127"))),"",INDIRECT(CONCATENATE($B305,"!Q127"))) -> 15.70026762
B306: HBS02 | C306: 2002 | D306: 5.587647032 | E306: N/A | H306: 91.19834197 | I306: 13.35300157 | J306: N/A | M306: 72.18280969 | N306: 16.02980566 | O306: N/A | R306: 60.2346781 | S306: 27.53573464 | T306: N/A | W306: 38.82257452 | X306: 46.18813377 | Y306: N/A | AB306: 15.28604384
B307: DHS04 | C307: 2004 | D307: 8.022222421 | E307: N/A | H307: 87.47104499 | I307: 10.8495225 | J307: N/A | M307: 78.10864676 | N307: 21.02954637 | O307: N/A | R307: 48.04928805 | S307: 30.83215455 | T307: N/A | W307: 32.0933874 | X307: 48.9026573 | Y307: N/A | AB307: 10.71190831
B308: DHS09 | C308: 2009 | D308: 12.20031215 | E308: 92.70741873 | H308: 81.67989123 | I308: 16.18522564 | J308: 85.29227995 | M308: 69.3605078 | N308: 25.10430379 | O308: 81.94182554 | R308: 43.68668962 | S308: 36.8984059 | T308: 83.609954 | W308: 21.82956053 | X308: 51.97902357 | Y308: 81.46023758 | AB308: 7.914131034
B309: DHS14 | C309: 2014 | D309: 30.9381716 | E309: 89.43765442 | H309: 68.77492588 | I309: 45.21019035 | J309: 85.44309105 | M309: 53.44367978 | N309: 60.44349513 | O309: 83.00285784 | R309: 37.37828013 | S309: 78.07428169 | T309: 81.3447607 | W309: 19.62842971 | X309: 92.92839369 | Y309: 86.79305271 | AB309: 5.680921661
B310: MICS18 | C310: 2018 | D310: 35.29772757 | E310: 87.51255916 | H310: 63.2342407 | I310: 48.8760512 | J310: 82.95589148 | M310: 46.90000682 | N310: 67.10962727 | O310: 82.79026082 | R310: 24.71135331 | S310: 78.57815925 | T310: 86.10220959 | W310: 12.7736666 | X310: 87.40951914 | Y310: 91.04692366 | AB310: 3.579334775
B318: =CONCATENATE("Rural use of sanitation facilities, ",C299,"–",C300) -> Rural use of sanitation facilities, 2000–2020 | S318: Data points used for regression

Sheet Hygiene
B4: Access to hygiene facilities by wealth quintile (%)
B5: =IF(ISERROR(INDIRECT(CONCATENATE($E$32,"!A2"))),"",INDIRECT(CONCATENATE($E$32,"!A2"))) -> Lesotho
B7: =CONCATENATE("National ",IF(ISERROR(INDIRECT(CONCATENATE($E$32,"!A2"))),"",INDIRECT(CONCATENATE($E$32,"!A210")))) -> National Access to hygiene facilities | K7: =CONCATENATE("Urban ",IF(ISERROR(INDIRECT(CONCATENATE($E$32,"!A2"))),"",INDIRECT(CONCATENATE($E$32,"!A210")))) -> Urban Access to hygiene facilities | S7: =CONCATENATE("Rural ",IF(ISERROR(INDIRECT(CONCATENATE($E$32,"!A2"))),"",INDIRECT(CONCATENATE($E$32,"!A210")))) -> Rural Access to hygiene facilities
E32: =INDEX(B88:B100,A88) -> MICS18 | G32: =IF(ISERROR(INDIRECT(CONCATENATE($E$32,"!A2"))),"",INDIRECT(CONCATENATE($E$32,"!A2"))) -> Lesotho | K32: Poorest | N32: Poor | Q32: Middle | T32: Rich | W32: Richest
K33: Basic | L33: Limited | M33: No facility | N33: Basic | O33: Limited | P33: No facility | Q33: Basic | R33: Limited | S33: No facility | T33: Basic | U33: Limited | V33: No facility | W33: Basic | X33: Limited | Y33: No facility
B34: >>> Select Survey : | G34: NATIONAL | J34: =IF(ISERROR(INDIRECT(CONCATENATE(#REF!,"!A2"))),"",INDIRECT(CONCATENATE(#REF!,"!A210"))) ->  | K34: =IF(ISERROR(INDIRECT(CONCATENATE($E$32,"!C222"))),"",INDIRECT(CONCATENATE($E$32,"!C222"))) -> 3.199841403 | L34: =IF(ISERROR(INDIRECT(CONCATENATE($E$32,"!C223"))),"",INDIRECT(CONCATENATE($E$32,"!C223"))) -> 24.40750762 | M34: =IF(ISERROR(INDIRECT(CONCATENATE($E$32,"!C224"))),"",INDIRECT(CONCATENATE($E$32,"!C224"))) -> 72.39265098 | N34: =IF(ISERROR(INDIRECT(CONCATENATE($E$32,"!D222"))),"",INDIRECT(CONCATENATE($E$32,"!D222"))) -> 5.185154897 | O34: =IF(ISERROR(INDIRECT(CONCATENATE($E$32,"!D223"))),"",INDIRECT(CONCATENATE($E$32,"!D223"))) -> 22.40966113 | P34: =IF(ISERROR(INDIRECT(CONCATENATE($E$32,"!D224"))),"",INDIRECT(CONCATENATE($E$32,"!D224"))) -> 72.40518397 | Q34: =IF(ISERROR(INDIRECT(CONCATENATE($E$32,"!E222"))),"",INDIRECT(CONCATENATE($E$32,"!E222"))) -> 7.265646982 | R34: =IF(ISERROR(INDIRECT(CONCATENATE($E$32,"!E223"))),"",INDIRECT(CONCATENATE($E$32,"!E223"))) -> 28.38796987 | S34: =IF(ISERROR(INDIRECT(CONCATENATE($E$32,"!E224"))),"",INDIRECT(CONCATENATE($E$32,"!E224"))) -> 64.34638315 | T34: =IF(ISERROR(INDIRECT(CONCATENATE($E$32,"!F222"))),"",INDIRECT(CONCATENATE($E$32,"!F222"))) -> 7.928038144 | U34: =IF(ISERROR(INDIRECT(CONCATENATE($E$32,"!F223"))),"",INDIRECT(CONCATENATE($E$32,"!F223"))) -> 33.69645978 | V34: =IF(ISERROR(INDIRECT(CONCATENATE($E$32,"!F224"))),"",INDIRECT(CONCATENATE($E$32,"!F224"))) -> 58.37550208 | W34: =IF(ISERROR(INDIRECT(CONCATENATE($E$32,"!G222"))),"",INDIRECT(CONCATENATE($E$32,"!G222"))) -> 23.70897891 | X34: =IF(ISERROR(INDIRECT(CONCATENATE($E$32,"!G223"))),"",INDIRECT(CONCATENATE($E$32,"!G223"))) -> 36.67137414 | Y34: =IF(ISERROR(INDIRECT(CONCATENATE($E$32,"!G224"))),"",INDIRECT(CONCATENATE($E$32,"!G224"))) -> 39.61964696
G37: URBAN | J37: =IF(ISERROR(INDIRECT(CONCATENATE(#REF!,"!A2"))),"",INDIRECT(CONCATENATE(#REF!,"!A210"))) ->  | K37: =IF(ISERROR(INDIRECT(CONCATENATE($E$32,"!H222"))),"",INDIRECT(CONCATENATE($E$32,"!H222"))) -> 5.770036715 | L37: =IF(ISERROR(INDIRECT(CONCATENATE($E$32,"!H223"))),"",INDIRECT(CONCATENATE($E$32,"!H223"))) -> 24.96699626 | M37: =IF(ISERROR(INDIRECT(CONCATENATE($E$32,"!H224"))),"",INDIRECT(CONCATENATE($E$32,"!H224"))) -> 69.26296702 | N37: =IF(ISERROR(INDIRECT(CONCATENATE($E$32,"!I222"))),"",INDIRECT(CONCATENATE($E$32,"!I222"))) -> 9.691488216 | O37: =IF(ISERROR(INDIRECT(CONCATENATE($E$32,"!I223"))),"",INDIRECT(CONCATENATE($E$32,"!I223"))) -> 33.32351724 | P37: =IF(ISERROR(INDIRECT(CONCATENATE($E$32,"!I224"))),"",INDIRECT(CONCATENATE($E$32,"!I224"))) -> 56.98499454 | Q37: =IF(ISERROR(INDIRECT(CONCATENATE($E$32,"!J222"))),"",INDIRECT(CONCATENATE($E$32,"!J222"))) -> 6.913268766 | R37: =IF(ISERROR(INDIRECT(CONCATENATE($E$32,"!J223"))),"",INDIRECT(CONCATENATE($E$32,"!J223"))) -> 38.6979497 | S37: =IF(ISERROR(INDIRECT(CONCATENATE($E$32,"!J224"))),"",INDIRECT(CONCATENATE($E$32,"!J224"))) -> 54.38878153 | T37: =IF(ISERROR(INDIRECT(CONCATENATE($E$32,"!K222"))),"",INDIRECT(CONCATENATE($E$32,"!K222"))) -> 13.02609372 | U37: =IF(ISERROR(INDIRECT(CONCATENATE($E$32,"!K223"))),"",INDIRECT(CONCATENATE($E$32,"!K223"))) -> 38.02146506 | V37: =IF(ISERROR(INDIRECT(CONCATENATE($E$32,"!K224"))),"",INDIRECT(CONCATENATE($E$32,"!K224"))) -> 48.95244122 | W37: =IF(ISERROR(INDIRECT(CONCATENATE($E$32,"!L222"))),"",INDIRECT(CONCATENATE($E$32,"!L222"))) -> 36.49391887 | X37: =IF(ISERROR(INDIRECT(CONCATENATE($E$32,"!L223"))),"",INDIRECT(CONCATENATE($E$32,"!L223"))) -> 37.38529053 | Y37: =IF(ISERROR(INDIRECT(CONCATENATE($E$32,"!L224"))),"",INDIRECT(CONCATENATE($E$32,"!L224"))) -> 26.1207906
G40: RURAL | J40: =IF(ISERROR(INDIRECT(CONCATENATE(#REF!,"!A2"))),"",INDIRECT(CONCATENATE(#REF!,"!A210"))) ->  | K40: =IF(ISERROR(INDIRECT(CONCATENATE($E$32,"!M222"))),"",INDIRECT(CONCATENATE($E$32,"!M222"))) -> 3.143314238 | L40: =IF(ISERROR(INDIRECT(CONCATENATE($E$32,"!M223"))),"",INDIRECT(CONCATENATE($E$32,"!M223"))) -> 23.99723917 | M40: =IF(ISERROR(INDIRECT(CONCATENATE($E$32,"!M224"))),"",INDIRECT(CONCATENATE($E$32,"!M224"))) -> 72.8594466 | N40: =IF(ISERROR(INDIRECT(CONCATENATE($E$32,"!N222"))),"",INDIRECT(CONCATENATE($E$32,"!N222"))) -> 3.272154394 | O40: =IF(ISERROR(INDIRECT(CONCATENATE($E$32,"!N223"))),"",INDIRECT(CONCATENATE($E$32,"!N223"))) -> 25.40365433 | P40: =IF(ISERROR(INDIRECT(CONCATENATE($E$32,"!N224"))),"",INDIRECT(CONCATENATE($E$32,"!N224"))) -> 71.32419127 | Q40: =IF(ISERROR(INDIRECT(CONCATENATE($E$32,"!O222"))),"",INDIRECT(CONCATENATE($E$32,"!O222"))) -> 5.190711981 | R40: =IF(ISERROR(INDIRECT(CONCATENATE($E$32,"!O223"))),"",INDIRECT(CONCATENATE($E$32,"!O223"))) -> 21.78362747 | S40: =IF(ISERROR(INDIRECT(CONCATENATE($E$32,"!O224"))),"",INDIRECT(CONCATENATE($E$32,"!O224"))) -> 73.02566055 | T40: =IF(ISERROR(INDIRECT(CONCATENATE($E$32,"!P222"))),"",INDIRECT(CONCATENATE($E$32,"!P222"))) -> 5.922700118 | U40: =IF(ISERROR(INDIRECT(CONCATENATE($E$32,"!P223"))),"",INDIRECT(CONCATENATE($E$32,"!P223"))) -> 25.67626591 | V40: =IF(ISERROR(INDIRECT(CONCATENATE($E$32,"!P224"))),"",INDIRECT(CONCATENATE($E$32,"!P224"))) -> 68.40103397 | W40: =IF(ISERROR(INDIRECT(CONCATENATE($E$32,"!Q222"))),"",INDIRECT(CONCATENATE($E$32,"!Q222"))) -> 10.3603787 | X40: =IF(ISERROR(INDIRECT(CONCATENATE($E$32,"!Q223"))),"",INDIRECT(CONCATENATE($E$32,"!Q223"))) -> 27.51493152 | Y40: =IF(ISERROR(INDIRECT(CONCATENATE($E$32,"!Q224"))),"",INDIRECT(CONCATENATE($E$32,"!Q224"))) -> 62.12468978
A88: 6 | B88: MICS00
B89: HBS02
B90: DHS04
B91: DHS09
B92: DHS14
B93: MICS18
B94: Template
B95: Input

Sheet MICS00
A2: =A1026 -> Lesotho
A3: =A1034 -> 2000
A4: Use of drinking water sources
A5: by wealth quintile and sub-national region
A6: Notes:
A7: WHO/UNICEF JMP customised wealth index excludes water,
A8: sanitation and hygiene assets.
A9: Survey used for analysis: | B9: =A1025 -> MICS00
A10: =B1028 -> 
A11: =B1027 -> 
A14: Use of drinking water sources | C14: NATIONAL wealth index quintile | H14: URBAN wealth index quintile | M14: RURAL wealth index quintile | R14: SUB-REGIONS: | BA14: Raw numbers of respondents: | BB14: Use of drinking water sources | BC14: NATIONAL wealth index quintile | BH14: URBAN wealth index quintile | BM14: RURAL wealth index quintile | BR14: SUB-REGIONS:
A15: Weighted percentage (used in graphs) | C15: Poorest | D15: Poor | E15: Middle | F15: Rich | G15: Richest | H15: Poorest | I15: Poor | J15: Middle | K15: Rich | L15: Richest | M15: Poorest | N15: Poor | O15: Middle | P15: Rich | Q15: Richest | R15: berea | S15: butha-buthe | T15: leribe | U15: mafeteng | V15: maseru | W15: mohale's hoek | X15: mokhotlong | Y15: qacha's nek | Z15: quthing | AA15: thaba-tseka | BA15: Water data, raw numbers (weighted) | BC15: Poorest | BD15: Poor | BE15: Middle | BF15: Rich | BG15: Richest | BH15: Poorest | BI15: Poor | BJ15: Middle | BK15: Rich | BL15: Richest | BM15: Poorest | BN15: Poor | BO15: Middle | BP15: Rich | BQ15: Richest | BR15: berea | BS15: butha-buthe | BT15: leribe | BU15: mafeteng | BV15: maseru | BW15: mohale's hoek | BX15: mokhotlong | BY15: qacha's nek | BZ15: quthing | CA15: thaba-tseka
A16: Water | B16: Improved | C16: 62.35690236 | D16: 73.06917394 | E16: 76.24573379 | F16: 83.98648649 | G16: 89.72972973 | H16: 88.51540616 | I16: 85.04155125 | J16: 90.22346369 | K16: 90.16853933 | L16: 95.53072626 | M16: 63.31797235 | N16: 67.58147513 | O16: 69.18238994 | P16: 79.71530249 | Q16: 84.92417484 | R16: 79.08878505 | S16: 85.40305011 | T16: 71.60714286 | U16: 86.16647128 | V16: 83.4528406 | W16: 72.18259629 | X16: 47.77777778 | Y16: 81.78571429 | Z16: 73.4204793 | AA16: 68.07228916 | BA16: Water | BB16: Improved | BC16: N/A | BD16: N/A | BE16: N/A | BF16: N/A | BG16: N/A | BH16: N/A | BI16: N/A | BJ16: N/A | BK16: N/A | BL16: N/A | BM16: N/A | BN16: N/A | BO16: N/A | BP16: N/A | BQ16: N/A | BR16: N/A | BS16: N/A | BT16: N/A | BU16: N/A | BV16: N/A | BW16: N/A | BX16: N/A | BY16: N/A | BZ16: N/A | CA16: N/A
B17: Not Improved | C17: 37.64309764 | D17: 26.93082606 | E17: 23.75426621 | F17: 16.01351351 | G17: 10.27027027 | H17: 11.48459384 | I17: 14.95844875 | J17: 9.776536313 | K17: 9.831460674 | L17: 4.469273743 | M17: 36.68202765 | N17: 32.41852487 | O17: 30.81761006 | P17: 20.28469751 | Q17: 15.07582516 | R17: 20.91121495 | S17: 14.59694989 | T17: 28.39285714 | U17: 13.83352872 | V17: 16.5471594 | W17: 27.81740371 | X17: 52.22222222 | Y17: 18.21428571 | Z17: 26.5795207 | AA17: 31.92771084 | BB17: Not Improved | BC17: N/A | BD17: N/A | BE17: N/A | BF17: N/A | BG17: N/A | BH17: N/A | BI17: N/A | BJ17: N/A | BK17: N/A | BL17: N/A | BM17: N/A | BN17: N/A | BO17: N/A | BP17: N/A | BQ17: N/A | BR17: N/A | BS17: N/A | BT17: N/A | BU17: N/A | BV17: N/A | BW17: N/A | BX17: N/A | BY17: N/A | BZ17: N/A | CA17: N/A
A18: Water ladder | B18: Basic | C18: 55.89225589 | D18: 65.14439221 | E18: 68.80546075 | F18: 75.87837838 | G18: 83.10810811 | H18: 80.95238095 | I18: 78.3933518 | J18: 84.91620112 | K18: 85.39325843 | L18: 94.41340782 | M18: 57.51152074 | N18: 59.94854202 | O18: 61.09613657 | P18: 72.06405694 | Q18: 74.04103479 | R18: 75.46728972 | S18: 78.43137255 | T18: 58.48214286 | U18: 76.67057444 | V18: 76.77881964 | W18: 63.19543509 | X18: 43.88888889 | Y18: 80 | Z18: 69.7167756 | AA18: 62.04819277 | BA18: Water ladder | BB18: Basic | BC18: N/A | BD18: N/A | BE18: N/A | BF18: N/A | BG18: N/A | BH18: N/A | BI18: N/A | BJ18: N/A | BK18: N/A | BL18: N/A | BM18: N/A | BN18: N/A | BO18: N/A | BP18: N/A | BQ18: N/A | BR18: N/A | BS18: N/A | BT18: N/A | BU18: N/A | BV18: N/A | BW18: N/A | BX18: N/A | BY18: N/A | BZ18: N/A | CA18: N/A
B19: Limited | C19: 6.464646465 | D19: 7.924781733 | E19: 7.440273038 | F19: 8.108108108 | G19: 6.621621622 | H19: 7.56302521 | I19: 6.648199446 | J19: 5.30726257 | K19: 4.775280899 | L19: 1.117318436 | M19: 5.806451613 | N19: 7.632933105 | O19: 8.086253369 | P19: 7.651245552 | Q19: 10.88314005 | R19: 3.621495327 | S19: 6.97167756 | T19: 13.125 | U19: 9.495896835 | V19: 6.67402096 | W19: 8.987161198 | X19: 3.888888889 | Y19: 1.785714286 | Z19: 3.703703704 | AA19: 6.024096386 | BB19: Limited | BC19: N/A | BD19: N/A | BE19: N/A | BF19: N/A | BG19: N/A | BH19: N/A | BI19: N/A | BJ19: N/A | BK19: N/A | BL19: N/A | BM19: N/A | BN19: N/A | BO19: N/A | BP19: N/A | BQ19: N/A | BR19: N/A | BS19: N/A | BT19: N/A | BU19: N/A | BV19: N/A | BW19: N/A | BX19: N/A | BY19: N/A | BZ19: N/A | CA19: N/A
B20: Unimproved | C20: 36.96969697 | D20: 26.12491605 | E20: 23.07167235 | F20: 15.40540541 | G20: 10.06756757 | H20: 11.48459384 | I20: 14.68144044 | J20: 9.497206704 | K20: 9.550561798 | L20: 4.469273743 | M20: 35.94470046 | N20: 31.73241852 | O20: 29.73944295 | P20: 19.83985765 | Q20: 14.36217663 | R20: 20.09345794 | S20: 13.94335512 | T20: 27.05357143 | U20: 13.59906213 | V20: 16.27137341 | W20: 27.532097 | X20: 52.22222222 | Y20: 18.21428571 | Z20: 24.83660131 | AA20: 31.52610442 | BB20: Unimproved | BC20: N/A | BD20: N/A | BE20: N/A | BF20: N/A | BG20: N/A | BH20: N/A | BI20: N/A | BJ20: N/A | BK20: N/A | BL20: N/A | BM20: N/A | BN20: N/A | BO20: N/A | BP20: N/A | BQ20: N/A | BR20: N/A | BS20: N/A | BT20: N/A | BU20: N/A | BV20: N/A | BW20: N/A | BX20: N/A | BY20: N/A | BZ20: N/A | CA20: N/A
B21: Surface water | C21: 0.6734006734 | D21: 0.8059100067 | E21: 0.6825938567 | F21: 0.6081081081 | G21: 0.2027027027 | H21: 0 | I21: 0.2770083102 | J21: 0.2793296089 | K21: 0.2808988764 | L21: 0 | M21: 0.7373271889 | N21: 0.6861063465 | O21: 1.078167116 | P21: 0.4448398577 | Q21: 0.7136485281 | R21: 0.8177570093 | S21: 0.6535947712 | T21: 1.339285714 | U21: 0.2344665885 | V21: 0.2757859901 | W21: 0.2853067047 | X21: 0 | Y21: 0 | Z21: 1.74291939 | AA21: 0.4016064257 | BB21: Surface water | BC21: N/A | BD21: N/A | BE21: N/A | BF21: N/A | BG21: N/A | BH21: N/A | BI21: N/A | BJ21: N/A | BK21: N/A | BL21: N/A | BM21: N/A | BN21: N/A | BO21: N/A | BP21: N/A | BQ21: N/A | BR21: N/A | BS21: N/A | BT21: N/A | BU21: N/A | BV21: N/A | BW21: N/A | BX21: N/A | BY21: N/A | BZ21: N/A | CA21: N/A
A22: Improved water point at more than 30 minutes | B22: Yes | C22: 10.36717063 | D22: 10.84558824 | E22: 9.75828111 | F22: 9.654062751 | G22: 7.379518072 | H22: 8.544303797 | I22: 7.817589577 | J22: 5.882352941 | K22: 5.295950156 | L22: 1.169590643 | M22: 9.170305677 | N22: 11.29441624 | O22: 11.68831169 | P22: 9.598214286 | Q22: 12.81512605 | R22: 4.579025111 | S22: 8.163265306 | T22: 18.32917706 | U22: 11.02040816 | V22: 7.997356246 | W22: 12.45059289 | X22: 8.139534884 | Y22: 2.183406114 | Z22: 5.044510386 | AA22: 8.849557522 | BA22: Improved water point at more than 30 minutes | BB22: Yes | BC22: N/A | BD22: N/A | BE22: N/A | BF22: N/A | BG22: N/A | BH22: N/A | BI22: N/A | BJ22: N/A | BK22: N/A | BL22: N/A | BM22: N/A | BN22: N/A | BO22: N/A | BP22: N/A | BQ22: N/A | BR22: N/A | BS22: N/A | BT22: N/A | BU22: N/A | BV22: N/A | BW22: N/A | BX22: N/A | BY22: N/A | BZ22: N/A | CA22: N/A
B23: No | C23: 89.63282937 | D23: 89.15441176 | E23: 90.24171889 | F23: 90.34593725 | G23: 92.62048193 | H23: 91.4556962 | I23: 92.18241042 | J23: 94.11764706 | K23: 94.70404984 | L23: 98.83040936 | M23: 90.82969432 | N23: 88.70558376 | O23: 88.31168831 | P23: 90.40178571 | Q23: 87.18487395 | R23: 95.42097489 | S23: 91.83673469 | T23: 81.67082294 | U23: 88.97959184 | V23: 92.00264375 | W23: 87.54940711 | X23: 91.86046512 | Y23: 97.81659389 | Z23: 94.95548961 | AA23: 91.15044248 | BB23: No | BC23: N/A | BD23: N/A | BE23: N/A | BF23: N/A | BG23: N/A | BH23: N/A | BI23: N/A | BJ23: N/A | BK23: N/A | BL23: N/A | BM23: N/A | BN23: N/A | BO23: N/A | BP23: N/A | BQ23: N/A | BR23: N/A | BS23: N/A | BT23: N/A | BU23: N/A | BV23: N/A | BW23: N/A | BX23: N/A | BY23: N/A | BZ23: N/A | CA23: N/A
A24: Manually calculated ratios | B24: Improved wells | C24: =C62/(C62+C66)*100 -> 29.23076923 | D24: 32.68292683 | E24: 38.88888889 | F24: 29 | G24: 33.33333333 | H24: 18.18181818 | I24: 9.090909091 | J24: 18.18181818 | K24: 33.33333333 | L24: 0 | M24: 28.125 | N24: 32.41758242 | O24: 35.79545455 | P24: 37.75510204 | Q24: 34.32835821 | R24: 23.36448598 | S24: 35.0877193 | T24: 40.94488189 | U24: 12.5 | V24: 11.42857143 | W24: 47.05882353 | X24: 6.666666667 | Y24: 37.5 | Z24: 70.83333333 | AA24: 31.1827957
B25: Improved springs | C25: =C63/(C63+C67)*100 -> 22.05323194 | D25: 27.59643917 | E25: 30.9148265 | F25: 30 | G25: 35.05154639 | H25: 21.05263158 | I25: 37.03703704 | J25: 38.46153846 | K25: 61.53846154 | L25: 50 | M25: 20.37533512 | N25: 26.70623145 | O25: 32.69230769 | P25: 26.29107981 | Q25: 28.76712329 | R25: 17.14285714 | S25: 37.20930233 | T25: 32.9305136 | U25: 1.111111111 | V25: 42.27642276 | W25: 21.50537634 | X25: 12.18274112 | Y25: 8.163265306 | Z25: 17.6 | AA25: 67.05882353
B26: Other
C27: NATIONAL wealth index quintile | H27: URBAN wealth index quintile | M27: RURAL wealth index quintile | R27: SUB-REGIONS: | BA27: Raw numbers of respondents: | BB27: Use of drinking water sources | BC27: NATIONAL wealth index quintile | BH27: URBAN wealth index quintile | BM27: RURAL wealth index quintile | BR27: SUB-REGIONS:
A28: Percentage based on weighted population | C28: Poorest | D28: Poor | E28: Middle | F28: Rich | G28: Richest | H28: Poorest | I28: Poor | J28: Middle | K28: Rich | L28: Richest | M28: Poorest | N28: Poor | O28: Middle | P28: Rich | Q28: Richest | R28: berea | S28: butha-buthe | T28: leribe | U28: mafeteng | V28: maseru | W28: mohale's hoek | X28: mokhotlong | Y28: qacha's nek | Z28: quthing | AA28: thaba-tseka | BA28: Water data, raw numbers (weighted) | BC28: Poorest | BD28: Poor | BE28: Middle | BF28: Rich | BG28: Richest | BH28: Poorest | BI28: Poor | BJ28: Middle | BK28: Rich | BL28: Richest | BM28: Poorest | BN28: Poor | BO28: Middle | BP28: Rich | BQ28: Richest | BR28: berea | BS28: butha-buthe | BT28: leribe | BU28: mafeteng | BV28: maseru | BW28: mohale's hoek | BX28: mokhotlong | BY28: qacha's nek | BZ28: quthing | CA28: thaba-tseka
A29: Piped water | B29: Yes | C29: 47.34006734 | D29: 57.21961048 | E29: 60.34129693 | F29: 69.59459459 | G29: 79.12162162 | H29: 81.51260504 | I29: 75.6232687 | J29: 82.12290503 | K29: 83.98876404 | L29: 90.78212291 | M29: 49.12442396 | N29: 50.42881647 | O29: 50.04492363 | P29: 63.87900356 | Q29: 67.9750223 | R29: 69.74299065 | S29: 66.88453159 | T29: 54.01785714 | U29: 67.17467761 | V29: 72.69718698 | W29: 50.92724679 | X29: 40.83333333 | Y29: 78.92857143 | Z29: 64.05228758 | AA29: 44.37751004 | BA29: Piped water | BB29: Yes | BC29: N/A | BD29: N/A | BE29: N/A | BF29: N/A | BG29: N/A | BH29: N/A | BI29: N/A | BJ29: N/A | BK29: N/A | BL29: N/A | BM29: N/A | BN29: N/A | BO29: N/A | BP29: N/A | BQ29: N/A | BR29: N/A | BS29: N/A | BT29: N/A | BU29: N/A | BV29: N/A | BW29: N/A | BX29: N/A | BY29: N/A | BZ29: N/A | CA29: N/A
B30: No | C30: 52.65993266 | D30: 42.78038952 | E30: 39.65870307 | F30: 30.40540541 | G30: 20.87837838 | H30: 18.48739496 | I30: 24.3767313 | J30: 17.87709497 | K30: 16.01123596 | L30: 9.217877095 | M30: 50.87557604 | N30: 49.57118353 | O30: 49.95507637 | P30: 36.12099644 | Q30: 32.0249777 | R30: 30.25700935 | S30: 33.11546841 | T30: 45.98214286 | U30: 32.82532239 | V30: 27.30281302 | W30: 49.07275321 | X30: 59.16666667 | Y30: 21.07142857 | Z30: 35.94771242 | AA30: 55.62248996 | BB30: No | BC30: N/A | BD30: N/A | BE30: N/A | BF30: N/A | BG30: N/A | BH30: N/A | BI30: N/A | BJ30: N/A | BK30: N/A | BL30: N/A | BM30: N/A | BN30: N/A | BO30: N/A | BP30: N/A | BQ30: N/A | BR30: N/A | BS30: N/A | BT30: N/A | BU30: N/A | BV30: N/A | BW30: N/A | BX30: N/A | BY30: N/A | BZ30: N/A | CA30: N/A
A31: Piped water on premises | B31: Yes | C31: 0.4713804714 | D31: 3.357958361 | E31: 4.368600683 | F31: 11.68918919 | G31: 35.27027027 | H31: 19.04761905 | I31: 24.3767313 | J31: 36.03351955 | K31: 44.66292135 | L31: 73.18435754 | M31: 0.4608294931 | N31: 0.8576329331 | O31: 0.8086253369 | P31: 1.601423488 | Q31: 6.066012489 | R31: 3.154205607 | S31: 2.178649237 | T31: 8.125 | U31: 9.847596717 | V31: 25.92388307 | W31: 5.278174037 | X31: 5.833333333 | Y31: 7.857142857 | Z31: 7.189542484 | AA31: 4.21686747 | BA31: Piped water on premises | BB31: Yes | BC31: N/A | BD31: N/A | BE31: N/A | BF31: N/A | BG31: N/A | BH31: N/A | BI31: N/A | BJ31: N/A | BK31: N/A | BL31: N/A | BM31: N/A | BN31: N/A | BO31: N/A | BP31: N/A | BQ31: N/A | BR31: N/A | BS31: N/A | BT31: N/A | BU31: N/A | BV31: N/A | BW31: N/A | BX31: N/A | BY31: N/A | BZ31: N/A | CA31: N/A
B32: No | C32: 99.52861953 | D32: 96.64204164 | E32: 95.63139932 | F32: 88.31081081 | G32: 64.72972973 | H32: 80.95238095 | I32: 75.6232687 | J32: 63.96648045 | K32: 55.33707865 | L32: 26.81564246 | M32: 99.53917051 | N32: 99.14236707 | O32: 99.19137466 | P32: 98.39857651 | Q32: 93.93398751 | R32: 96.84579439 | S32: 97.82135076 | T32: 91.875 | U32: 90.15240328 | V32: 74.07611693 | W32: 94.72182596 | X32: 94.16666667 | Y32: 92.14285714 | Z32: 92.81045752 | AA32: 95.78313253 | BB32: No | BC32: N/A | BD32: N/A | BE32: N/A | BF32: N/A | BG32: N/A | BH32: N/A | BI32: N/A | BJ32: N/A | BK32: N/A | BL32: N/A | BM32: N/A | BN32: N/A | BO32: N/A | BP32: N/A | BQ32: N/A | BR32: N/A | BS32: N/A | BT32: N/A | BU32: N/A | BV32: N/A | BW32: N/A | BX32: N/A | BY32: N/A | BZ32: N/A | CA32: N/A
A33: Piped water into dwelling | B33: Yes | C33: N/A | D33: N/A | E33: N/A | F33: N/A | G33: N/A | H33: N/A | I33: N/A | J33: N/A | K33: N/A | L33: N/A | M33: N/A | N33: N/A | O33: N/A | P33: N/A | Q33: N/A | R33: N/A | S33: N/A | T33: N/A | U33: N/A | V33: N/A | W33: N/A | X33: N/A | Y33: N/A | Z33: N/A | AA33: N/A | BA33: Piped water into dwelling | BB33: Yes | BC33: N/A | BD33: N/A | BE33: N/A | BF33: N/A | BG33: N/A | BH33: N/A | BI33: N/A | BJ33: N/A | BK33: N/A | BL33: N/A | BM33: N/A | BN33: N/A | BO33: N/A | BP33: N/A | BQ33: N/A | BR33: N/A | BS33: N/A | BT33: N/A | BU33: N/A | BV33: N/A | BW33: N/A | BX33: N/A | BY33: N/A | BZ33: N/A | CA33: N/A
B34: No | C34: N/A | D34: N/A | E34: N/A | F34: N/A | G34: N/A | H34: N/A | I34: N/A | J34: N/A | K34: N/A | L34: N/A | M34: N/A | N34: N/A | O34: N/A | P34: N/A | Q34: N/A | R34: N/A | S34: N/A | T34: N/A | U34: N/A | V34: N/A | W34: N/A | X34: N/A | Y34: N/A | Z34: N/A | AA34: N/A | BB34: No | BC34: N/A | BD34: N/A | BE34: N/A | BF34: N/A | BG34: N/A | BH34: N/A | BI34: N/A | BJ34: N/A | BK34: N/A | BL34: N/A | BM34: N/A | BN34: N/A | BO34: N/A | BP34: N/A | BQ34: N/A | BR34: N/A | BS34: N/A | BT34: N/A | BU34: N/A | BV34: N/A | BW34: N/A | BX34: N/A | BY34: N/A | BZ34: N/A | CA34: N/A
A35: Water source on premises | B35: Yes | C35: 0.8080808081 | D35: 3.492276696 | E35: 4.709897611 | F35: 11.95945946 | G35: 36.35135135 | H35: 19.32773109 | I35: 24.93074792 | J35: 36.31284916 | K35: 45.2247191 | L35: 74.30167598 | M35: 0.9216589862 | N35: 1.02915952 | O35: 0.8086253369 | P35: 2.046263345 | Q35: 6.958073149 | R35: 3.855140187 | S35: 2.178649237 | T35: 8.214285714 | U35: 10.90269637 | V35: 26.14451186 | W35: 6.276747504 | X35: 6.388888889 | Y35: 8.571428571 | Z35: 7.407407407 | AA35: 4.21686747 | BA35: Water source on premises | BB35: Yes | BC35: N/A | BD35: N/A | BE35: N/A | BF35: N/A | BG35: N/A | BH35: N/A | BI35: N/A | BJ35: N/A | BK35: N/A | BL35: N/A | BM35: N/A | BN35: N/A | BO35: N/A | BP35: N/A | BQ35: N/A | BR35: N/A | BS35: N/A | BT35: N/A | BU35: N/A | BV35: N/A | BW35: N/A | BX35: N/A | BY35: N/A | BZ35: N/A | CA35: N/A
B36: No | C36: 99.19191919 | D36: 96.5077233 | E36: 95.29010239 | F36: 88.04054054 | G36: 63.64864865 | H36: 80.67226891 | I36: 75.06925208 | J36: 63.68715084 | K36: 54.7752809 | L36: 25.69832402 | M36: 99.07834101 | N36: 98.97084048 | O36: 99.19137466 | P36: 97.95373665 | Q36: 93.04192685 | R36: 96.14485981 | S36: 97.82135076 | T36: 91.78571429 | U36: 89.09730363 | V36: 73.85548814 | W36: 93.7232525 | X36: 93.61111111 | Y36: 91.42857143 | Z36: 92.59259259 | AA36: 95.78313253 | BB36: No | BC36: N/A | BD36: N/A | BE36: N/A | BF36: N/A | BG36: N/A | BH36: N/A | BI36: N/A | BJ36: N/A | BK36: N/A | BL36: N/A | BM36: N/A | BN36: N/A | BO36: N/A | BP36: N/A | BQ36: N/A | BR36: N/A | BS36: N/A | BT36: N/A | BU36: N/A | BV36: N/A | BW36: N/A | BX36: N/A | BY36: N/A | BZ36: N/A | CA36: N/A
A37: Improved Water source on premises | B37: Yes | C37: 1.079913607 | D37: 4.779411765 | E37: 6.087735004 | F37: 14.15929204 | G37: 40.28614458 | H37: 21.83544304 | I37: 28.66449511 | J37: 40.24767802 | K37: 50.15576324 | L37: 77.19298246 | M37: 1.164483261 | N37: 1.52284264 | O37: 1.168831169 | P37: 2.566964286 | Q37: 8.088235294 | R37: 4.874446086 | S37: 2.551020408 | T37: 11.4713217 | U37: 12.24489796 | V37: 31.19629874 | W37: 8.498023715 | X37: 12.79069767 | Y37: 10.48034934 | Z37: 10.08902077 | AA37: 6.194690265 | BA37: Improved water source on premises | BB37: Yes | BC37: N/A | BD37: N/A | BE37: N/A | BF37: N/A | BG37: N/A | BH37: N/A | BI37: N/A | BJ37: N/A | BK37: N/A | BL37: N/A | BM37: N/A | BN37: N/A | BO37: N/A | BP37: N/A | BQ37: N/A | BR37: N/A | BS37: N/A | BT37: N/A | BU37: N/A | BV37: N/A | BW37: N/A | BX37: N/A | BY37: N/A | BZ37: N/A | CA37: N/A
B38: No | C38: 98.92008639 | D38: 95.22058824 | E38: 93.912265 | F38: 85.84070796 | G38: 59.71385542 | H38: 78.16455696 | I38: 71.33550489 | J38: 59.75232198 | K38: 49.84423676 | L38: 22.80701754 | M38: 98.83551674 | N38: 98.47715736 | O38: 98.83116883 | P38: 97.43303571 | Q38: 91.91176471 | R38: 95.12555391 | S38: 97.44897959 | T38: 88.5286783 | U38: 87.75510204 | V38: 68.80370126 | W38: 91.50197628 | X38: 87.20930233 | Y38: 89.51965066 | Z38: 89.91097923 | AA38: 93.80530973 | BB38: No | BC38: N/A | BD38: N/A | BE38: N/A | BF38: N/A | BG38: N/A | BH38: N/A | BI38: N/A | BJ38: N/A | BK38: N/A | BL38: N/A | BM38: N/A | BN38: N/A | BO38: N/A | BP38: N/A | BQ38: N/A | BR38: N/A | BS38: N/A | BT38: N/A | BU38: N/A | BV38: N/A | BW38: N/A | BX38: N/A | BY38: N/A | BZ38: N/A | CA38: N/A
A39: Piped water on premises available when needed | B39: Yes | C39: N/A | D39: N/A | E39: N/A | F39: N/A | G39: N/A | H39: N/A | I39: N/A | J39: N/A | K39: N/A | L39: N/A | M39: N/A | N39: N/A | O39: N/A | P39: N/A | Q39: N/A | R39: N/A | S39: N/A | T39: N/A | U39: N/A | V39: N/A | W39: N/A | X39: N/A | Y39: N/A | Z39: N/A | AA39: N/A | BA39: Piped water on premises available when needed | BB39: Yes | BC39: N/A | BD39: N/A | BE39: N/A | BF39: N/A | BG39: N/A | BH39: N/A | BI39: N/A | BJ39: N/A | BK39: N/A | BL39: N/A | BM39: N/A | BN39: N/A | BO39: N/A | BP39: N/A | BQ39: N/A | BR39: N/A | BS39: N/A | BT39: N/A | BU39: N/A | BV39: N/A | BW39: N/A | BX39: N/A | BY39: N/A | BZ39: N/A | CA39: N/A
B40: No | C40: N/A | D40: N/A | E40: N/A | F40: N/A | G40: N/A | H40: N/A | I40: N/A | J40: N/A | K40: N/A | L40: N/A | M40: N/A | N40: N/A | O40: N/A | P40: N/A | Q40: N/A | R40: N/A | S40: N/A | T40: N/A | U40: N/A | V40: N/A | W40: N/A | X40: N/A | Y40: N/A | Z40: N/A | AA40: N/A | BB40: No | BC40: N/A | BD40: N/A | BE40: N/A | BF40: N/A | BG40: N/A | BH40: N/A | BI40: N/A | BJ40: N/A | BK40: N/A | BL40: N/A | BM40: N/A | BN40: N/A | BO40: N/A | BP40: N/A | BQ40: N/A | BR40: N/A | BS40: N/A | BT40: N/A | BU40: N/A | BV40: N/A | BW40: N/A | BX40: N/A | BY40: N/A | BZ40: N/A | CA40: N/A
A41: Water point at more than 30 minutes | B41: Yes | C41: 14.47811448 | D41: 13.96910678 | E41: 12.96928328 | F41: 11.35135135 | G41: 8.581081081 | H41: 8.683473389 | I41: 8.033240997 | J41: 6.145251397 | K41: 5.337078652 | L41: 1.117318436 | M41: 14.19354839 | N41: 14.57975986 | O41: 14.55525606 | P41: 13.07829181 | Q41: 15.16503122 | R41: 5.257009346 | S41: 10.89324619 | T41: 22.76785714 | U41: 11.95779601 | V41: 9.43188086 | W41: 16.26248217 | X41: 15.55555556 | Y41: 2.857142857 | Z41: 7.189542484 | AA41: 14.85943775 | BA41: Water point at more than 30 minutes | BB41: Yes | BC41: N/A | BD41: N/A | BE41: N/A | BF41: N/A | BG41: N/A | BH41: N/A | BI41: N/A | BJ41: N/A | BK41: N/A | BL41: N/A | BM41: N/A | BN41: N/A | BO41: N/A | BP41: N/A | BQ41: N/A | BR41: N/A | BS41: N/A | BT41: N/A | BU41: N/A | BV41: N/A | BW41: N/A | BX41: N/A | BY41: N/A | BZ41: N/A | CA41: N/A
B42: No | C42: 85.52188552 | D42: 86.03089322 | E42: 87.03071672 | F42: 88.64864865 | G42: 91.41891892 | H42: 91.31652661 | I42: 91.966759 | J42: 93.8547486 | K42: 94.66292135 | L42: 98.88268156 | M42: 85.80645161 | N42: 85.42024014 | O42: 85.44474394 | P42: 86.92170819 | Q42: 84.83496878 | R42: 94.74299065 | S42: 89.10675381 | T42: 77.23214286 | U42: 88.04220399 | V42: 90.56811914 | W42: 83.73751783 | X42: 84.44444444 | Y42: 97.14285714 | Z42: 92.81045752 | AA42: 85.14056225 | BB42: No | BC42: N/A | BD42: N/A | BE42: N/A | BF42: N/A | BG42: N/A | BH42: N/A | BI42: N/A | BJ42: N/A | BK42: N/A | BL42: N/A | BM42: N/A | BN42: N/A | BO42: N/A | BP42: N/A | BQ42: N/A | BR42: N/A | BS42: N/A | BT42: N/A | BU42: N/A | BV42: N/A | BW42: N/A | BX42: N/A | BY42: N/A | BZ42: N/A | CA42: N/A
A43: Water source available when needed | B43: Yes | C43: N/A | D43: N/A | E43: N/A | F43: N/A | G43: N/A | H43: N/A | I43: N/A | J43: N/A | K43: N/A | L43: N/A | M43: N/A | N43: N/A | O43: N/A | P43: N/A | Q43: N/A | R43: N/A | S43: N/A | T43: N/A | U43: N/A | V43: N/A | W43: N/A | X43: N/A | Y43: N/A | Z43: N/A | AA43: N/A | BA43: Water source available when needed | BB43: Yes | BC43: N/A | BD43: N/A | BE43: N/A | BF43: N/A | BG43: N/A | BH43: N/A | BI43: N/A | BJ43: N/A | BK43: N/A | BL43: N/A | BM43: N/A | BN43: N/A | BO43: N/A | BP43: N/A | BQ43: N/A | BR43: N/A | BS43: N/A | BT43: N/A | BU43: N/A | BV43: N/A | BW43: N/A | BX43: N/A | BY43: N/A | BZ43: N/A | CA43: N/A
B44: No | C44: N/A | D44: N/A | E44: N/A | F44: N/A | G44: N/A | H44: N/A | I44: N/A | J44: N/A | K44: N/A | L44: N/A | M44: N/A | N44: N/A | O44: N/A | P44: N/A | Q44: N/A | R44: N/A | S44: N/A | T44: N/A | U44: N/A | V44: N/A | W44: N/A | X44: N/A | Y44: N/A | Z44: N/A | AA44: N/A | BB44: No | BC44: N/A | BD44: N/A | BE44: N/A | BF44: N/A | BG44: N/A | BH44: N/A | BI44: N/A | BJ44: N/A | BK44: N/A | BL44: N/A | BM44: N/A | BN44: N/A | BO44: N/A | BP44: N/A | BQ44: N/A | BR44: N/A | BS44: N/A | BT44: N/A | BU44: N/A | BV44: N/A | BW44: N/A | BX44: N/A | BY44: N/A | BZ44: N/A | CA44: N/A
A45: Improved water source available when needed | B45: Yes | C45: N/A | D45: N/A | E45: N/A | F45: N/A | G45: N/A | H45: N/A | I45: N/A | J45: N/A | K45: N/A | L45: N/A | M45: N/A | N45: N/A | O45: N/A | P45: N/A | Q45: N/A | R45: N/A | S45: N/A | T45: N/A | U45: N/A | V45: N/A | W45: N/A | X45: N/A | Y45: N/A | Z45: N/A | AA45: N/A | BA45: Improved water source available when needed | BB45: Yes | BC45: N/A | BD45: N/A | BE45: N/A | BF45: N/A | BG45: N/A | BH45: N/A | BI45: N/A | BJ45: N/A | BK45: N/A | BL45: N/A | BM45: N/A | BN45: N/A | BO45: N/A | BP45: N/A | BQ45: N/A | BR45: N/A | BS45: N/A | BT45: N/A | BU45: N/A | BV45: N/A | BW45: N/A | BX45: N/A | BY45: N/A | BZ45: N/A | CA45: N/A
B46: No | C46: N/A | D46: N/A | E46: N/A | F46: N/A | G46: N/A | H46: N/A | I46: N/A | J46: N/A | K46: N/A | L46: N/A | M46: N/A | N46: N/A | O46: N/A | P46: N/A | Q46: N/A | R46: N/A | S46: N/A | T46: N/A | U46: N/A | V46: N/A | W46: N/A | X46: N/A | Y46: N/A | Z46: N/A | AA46: N/A | BB46: No | BC46: N/A | BD46: N/A | BE46: N/A | BF46: N/A | BG46: N/A | BH46: N/A | BI46: N/A | BJ46: N/A | BK46: N/A | BL46: N/A | BM46: N/A | BN46: N/A | BO46: N/A | BP46: N/A | BQ46: N/A | BR46: N/A | BS46: N/A | BT46: N/A | BU46: N/A | BV46: N/A | BW46: N/A | BX46: N/A | BY46: N/A | BZ46: N/A | CA46: N/A
A47: Microbiological quality at point of collection | B47: Not contaminated (No E. coli in 100 mL) | C47: N/A | D47: N/A | E47: N/A | F47: N/A | G47: N/A | H47: N/A | I47: N/A | J47: N/A | K47: N/A | L47: N/A | M47: N/A | N47: N/A | O47: N/A | P47: N/A | Q47: N/A | R47: N/A | S47: N/A | T47: N/A | U47: N/A | V47: N/A | W47: N/A | X47: N/A | Y47: N/A | Z47: N/A | AA47: N/A | BA47: Microbiological quality at point of collection | BB47: Not contaminated (No E. coli in 100 mL) | BC47: N/A | BD47: N/A | BE47: N/A | BF47: N/A | BG47: N/A | BH47: N/A | BI47: N/A | BJ47: N/A | BK47: N/A | BL47: N/A | BM47: N/A | BN47: N/A | BO47: N/A | BP47: N/A | BQ47: N/A | BR47: N/A | BS47: N/A | BT47: N/A | BU47: N/A | BV47: N/A | BW47: N/A | BX47: N/A | BY47: N/A | BZ47: N/A | CA47: N/A
B48: Contaminated (E. coli detected in 100 mL) | C48: N/A | D48: N/A | E48: N/A | F48: N/A | G48: N/A | H48: N/A | I48: N/A | J48: N/A | K48: N/A | L48: N/A | M48: N/A | N48: N/A | O48: N/A | P48: N/A | Q48: N/A | R48: N/A | S48: N/A | T48: N/A | U48: N/A | V48: N/A | W48: N/A | X48: N/A | Y48: N/A | Z48: N/A | AA48: N/A | BB48: Contaminated (E. coli detected in 100 mL) | BC48: N/A | BD48: N/A | BE48: N/A | BF48: N/A | BG48: N/A | BH48: N/A | BI48: N/A | BJ48: N/A | BK48: N/A | BL48: N/A | BM48: N/A | BN48: N/A | BO48: N/A | BP48: N/A | BQ48: N/A | BR48: N/A | BS48: N/A | BT48: N/A | BU48: N/A | BV48: N/A | BW48: N/A | BX48: N/A | BY48: N/A | BZ48: N/A | CA48: N/A
B49: Highly contaminated (>100 CFU/100 mL) | C49: N/A | D49: N/A | E49: N/A | F49: N/A | G49: N/A | H49: N/A | I49: N/A | J49: N/A | K49: N/A | L49: N/A | M49: N/A | N49: N/A | O49: N/A | P49: N/A | Q49: N/A | R49: N/A | S49: N/A | T49: N/A | U49: N/A | V49: N/A | W49: N/A | X49: N/A | Y49: N/A | Z49: N/A | AA49: N/A | BB49: Highly contaminated (>100 CFU/100 mL) | BC49: N/A | BD49: N/A | BE49: N/A | BF49: N/A | BG49: N/A | BH49: N/A | BI49: N/A | BJ49: N/A | BK49: N/A | BL49: N/A | BM49: N/A | BN49: N/A | BO49: N/A | BP49: N/A | BQ49: N/A | BR49: N/A | BS49: N/A | BT49: N/A | BU49: N/A | BV49: N/A | BW49: N/A | BX49: N/A | BY49: N/A | BZ49: N/A | CA49: N/A
A50: Microbiological quality of improved water sources at point of collection | B50: Not contaminated (No E. coli in 100 mL) | C50: N/A | D50: N/A | E50: N/A | F50: N/A | G50: N/A | H50: N/A | I50: N/A | J50: N/A | K50: N/A | L50: N/A | M50: N/A | N50: N/A | O50: N/A | P50: N/A | Q50: N/A | R50: N/A | S50: N/A | T50: N/A | U50: N/A | V50: N/A | W50: N/A | X50: N/A | Y50: N/A | Z50: N/A | AA50: N/A | BA50: Microbiological quality of improved water sources at point of collection | BB50: Not contaminated (No E. coli in 100 mL) | BC50: N/A | BD50: N/A | BE50: N/A | BF50: N/A | BG50: N/A | BH50: N/A | BI50: N/A | BJ50: N/A | BK50: N/A | BL50: N/A | BM50: N/A | BN50: N/A | BO50: N/A | BP50: N/A | BQ50: N/A | BR50: N/A | BS50: N/A | BT50: N/A | BU50: N/A | BV50: N/A | BW50: N/A | BX50: N/A | BY50: N/A | BZ50: N/A | CA50: N/A
B51: Contaminated (E. coli detected in 100 mL) | C51: N/A | D51: N/A | E51: N/A | F51: N/A | G51: N/A | H51: N/A | I51: N/A | J51: N/A | K51: N/A | L51: N/A | M51: N/A | N51: N/A | O51: N/A | P51: N/A | Q51: N/A | R51: N/A | S51: N/A | T51: N/A | U51: N/A | V51: N/A | W51: N/A | X51: N/A | Y51: N/A | Z51: N/A | AA51: N/A | BB51: Contaminated (E. coli detected in 100 mL) | BC51: N/A | BD51: N/A | BE51: N/A | BF51: N/A | BG51: N/A | BH51: N/A | BI51: N/A | BJ51: N/A | BK51: N/A | BL51: N/A | BM51: N/A | BN51: N/A | BO51: N/A | BP51: N/A | BQ51: N/A | BR51: N/A | BS51: N/A | BT51: N/A | BU51: N/A | BV51: N/A | BW51: N/A | BX51: N/A | BY51: N/A | BZ51: N/A | CA51: N/A
B52: Highly contaminated (>100 CFU/100 mL) | C52: N/A | D52: N/A | E52: N/A | F52: N/A | G52: N/A | H52: N/A | I52: N/A | J52: N/A | K52: N/A | L52: N/A | M52: N/A | N52: N/A | O52: N/A | P52: N/A | Q52: N/A | R52: N/A | S52: N/A | T52: N/A | U52: N/A | V52: N/A | W52: N/A | X52: N/A | Y52: N/A | Z52: N/A | AA52: N/A | BB52: Highly contaminated (>100 CFU/100 mL) | BC52: N/A | BD52: N/A | BE52: N/A | BF52: N/A | BG52: N/A | BH52: N/A | BI52: N/A | BJ52: N/A | BK52: N/A | BL52: N/A | BM52: N/A | BN52: N/A | BO52: N/A | BP52: N/A | BQ52: N/A | BR52: N/A | BS52: N/A | BT52: N/A | BU52: N/A | BV52: N/A | BW52: N/A | BX52: N/A | BY52: N/A | BZ52: N/A | CA52: N/A
A53: Microbiological quality of piped on premises at point of collection | B53: Not contaminated (No E. coli in 100 mL) | C53: N/A | D53: N/A | E53: N/A | F53: N/A | G53: N/A | H53: N/A | I53: N/A | J53: N/A | K53: N/A | L53: N/A | M53: N/A | N53: N/A | O53: N/A | P53: N/A | Q53: N/A | R53: N/A | S53: N/A | T53: N/A | U53: N/A | V53: N/A | W53: N/A | X53: N/A | Y53: N/A | Z53: N/A | AA53: N/A | BA53: Microbiological quality of piped on premises at point of collection | BB53: Not contaminated (No E. coli in 100 mL) | BC53: N/A | BD53: N/A | BE53: N/A | BF53: N/A | BG53: N/A | BH53: N/A | BI53: N/A | BJ53: N/A | BK53: N/A | BL53: N/A | BM53: N/A | BN53: N/A | BO53: N/A | BP53: N/A | BQ53: N/A | BR53: N/A | BS53: N/A | BT53: N/A | BU53: N/A | BV53: N/A | BW53: N/A | BX53: N/A | BY53: N/A | BZ53: N/A | CA53: N/A
B54: Contaminated (E. coli detected in 100 mL) | C54: N/A | D54: N/A | E54: N/A | F54: N/A | G54: N/A | H54: N/A | I54: N/A | J54: N/A | K54: N/A | L54: N/A | M54: N/A | N54: N/A | O54: N/A | P54: N/A | Q54: N/A | R54: N/A | S54: N/A | T54: N/A | U54: N/A | V54: N/A | W54: N/A | X54: N/A | Y54: N/A | Z54: N/A | AA54: N/A | BB54: Contaminated (E. coli detected in 100 mL) | BC54: N/A | BD54: N/A | BE54: N/A | BF54: N/A | BG54: N/A | BH54: N/A | BI54: N/A | BJ54: N/A | BK54: N/A | BL54: N/A | BM54: N/A | BN54: N/A | BO54: N/A | BP54: N/A | BQ54: N/A | BR54: N/A | BS54: N/A | BT54: N/A | BU54: N/A | BV54: N/A | BW54: N/A | BX54: N/A | BY54: N/A | BZ54: N/A | CA54: N/A
B55: Highly contaminated (>100 CFU/100 mL) | C55: N/A | D55: N/A | E55: N/A | F55: N/A | G55: N/A | H55: N/A | I55: N/A | J55: N/A | K55: N/A | L55: N/A | M55: N/A | N55: N/A | O55: N/A | P55: N/A | Q55: N/A | R55: N/A | S55: N/A | T55: N/A | U55: N/A | V55: N/A | W55: N/A | X55: N/A | Y55: N/A | Z55: N/A | AA55: N/A | BB55: Highly contaminated (>100 CFU/100 mL) | BC55: N/A | BD55: N/A | BE55: N/A | BF55: N/A | BG55: N/A | BH55: N/A | BI55: N/A | BJ55: N/A | BK55: N/A | BL55: N/A | BM55: N/A | BN55: N/A | BO55: N/A | BP55: N/A | BQ55: N/A | BR55: N/A | BS55: N/A | BT55: N/A | BU55: N/A | BV55: N/A | BW55: N/A | BX55: N/A | BY55: N/A | BZ55: N/A | CA55: N/A
C56: NATIONAL wealth index quintile | H56: URBAN wealth index quintile | M56: RURAL wealth index quintile | R56: SUB-REGIONS: | BA56: Raw numbers of respondents: | BB56: Use of drinking water sources | BC56: NATIONAL wealth index quintile | BH56: URBAN wealth index quintile | BM56: RURAL wealth index quintile | BR56: SUB-REGIONS:
A57: Percentage based on weighted population | C57: Poorest | D57: Poor | E57: Middle | F57: Rich | G57: Richest | H57: Poorest | I57: Poor | J57: Middle | K57: Rich | L57: Richest | M57: Poorest | N57: Poor | O57: Middle | P57: Rich | Q57: Richest | R57: berea | S57: butha-buthe | T57: leribe | U57: mafeteng | V57: maseru | W57: mohale's hoek | X57: mokhotlong | Y57: qacha's nek | Z57: quthing | AA57: thaba-tseka | BA57: Water data, raw numbers (weighted) | BC57: Poorest | BD57: Poor | BE57: Middle | BF57: Rich | BG57: Richest | BH57: Poorest | BI57: Poor | BJ57: Middle | BK57: Rich | BL57: Richest | BM57: Poorest | BN57: Poor | BO57: Middle | BP57: Rich | BQ57: Richest | BR57: berea | BS57: butha-buthe | BT57: leribe | BU57: mafeteng | BV57: maseru | BW57: mohale's hoek | BX57: mokhotlong | BY57: qacha's nek | BZ57: quthing | CA57: thaba-tseka
A58: main source of water | B58: piped into dwelling | C58: 0.06734006734 | D58: 0.604432505 | E58: 1.023890785 | F58: 2.702702703 | G58: 13.17567568 | H58: 4.481792717 | I58: 4.432132964 | J58: 9.497206704 | K58: 10.11235955 | L58: 35.47486034 | M58: 0.09216589862 | N58: 0.08576329331 | O58: 0.1796945193 | P58: 0.3558718861 | Q58: 2.051739518 | R58: 1.518691589 | S58: 0.4357298475 | T58: 2.857142857 | U58: 2.579132474 | V58: 8.88030888 | W58: 2.282453638 | X58: 0.2777777778 | Y58: 2.5 | Z58: 1.089324619 | AA58: 0.2008032129
B59: piped into yard or plot | C59: 0.404040404 | D59: 2.753525856 | E59: 3.344709898 | F59: 8.986486486 | G59: 22.09459459 | H59: 14.56582633 | I59: 19.94459834 | J59: 26.53631285 | K59: 34.5505618 | L59: 37.70949721 | M59: 0.3686635945 | N59: 0.7718696398 | O59: 0.6289308176 | P59: 1.245551601 | Q59: 4.014272971 | R59: 1.635514019 | S59: 1.74291939 | T59: 5.267857143 | U59: 7.268464244 | V59: 17.04357419 | W59: 2.995720399 | X59: 5.555555556 | Y59: 5.357142857 | Z59: 6.100217865 | AA59: 4.016064257
B60: public tap | C60: 46.86868687 | D60: 53.86165212 | E60: 55.97269625 | F60: 57.90540541 | G60: 43.85135135 | H60: 62.46498599 | I60: 51.2465374 | J60: 46.08938547 | K60: 39.3258427 | L60: 17.59776536 | M60: 48.66359447 | N60: 49.57118353 | O60: 49.23629829 | P60: 62.27758007 | Q60: 61.90900981 | R60: 66.58878505 | S60: 64.70588235 | T60: 45.89285714 | U60: 57.32708089 | V60: 46.77330392 | W60: 45.64907275 | X60: 35 | Y60: 71.07142857 | Z60: 56.8627451 | AA60: 40.16064257
B61: tubewell/borehole with pump | C61: 3.164983165 | D61: 4.902619208 | E61: 5.324232082 | F61: 8.108108108 | G61: 6.418918919 | H61: 5.042016807 | I61: 6.094182825 | J61: 5.865921788 | K61: 3.08988764 | L61: 3.910614525 | M61: 3.686635945 | N61: 4.288164666 | O61: 4.043126685 | P61: 7.117437722 | Q61: 9.991079393 | R61: 3.738317757 | S61: 10.45751634 | T61: 2.946428571 | U61: 18.2883939 | V61: 4.081632653 | W61: 9.129814551 | X61: 0 | Y61: 0.3571428571 | Z61: 0.6535947712 | AA61: 0.4016064257
B62: protected dug well | C62: 3.838383838 | D62: 4.499664204 | E62: 3.822525597 | F62: 1.959459459 | G62: 1.148648649 | H62: 0.5602240896 | I62: 0.2770083102 | J62: 0.5586592179 | K62: 0.8426966292 | L62: 0 | M62: 3.31797235 | N62: 5.060034305 | O62: 5.660377358 | P62: 3.291814947 | Q62: 2.051739518 | R62: 2.920560748 | S62: 4.357298475 | T62: 4.642857143 | U62: 0.2344665885 | V62: 0.4412575841 | W62: 5.706134094 | X62: 0.2777777778 | Y62: 1.071428571 | Z62: 3.703703704 | AA62: 11.64658635
B63: protected spring | C63: 7.811447811 | D63: 6.245802552 | E63: 6.689419795 | F63: 3.648648649 | G63: 2.297297297 | H63: 1.120448179 | I63: 2.770083102 | J63: 1.396648045 | K63: 2.247191011 | L63: 0.5586592179 | M63: 7.004608295 | N63: 7.718696398 | O63: 9.164420485 | P63: 4.982206406 | Q63: 3.746654773 | R63: 2.102803738 | S63: 3.48583878 | T63: 9.732142857 | U63: 0.1172332943 | V63: 5.736348593 | W63: 5.706134094 | X63: 6.666666667 | Y63: 1.428571429 | Z63: 4.793028322 | AA63: 11.44578313
B64: rainwater collection | C64: 0.06734006734 | D64: 0 | E64: 0 | F64: 0.2027027027 | G64: 0.472972973 | H64: 0 | I64: 0 | J64: 0 | K64: 0 | L64: 0.2793296089 | M64: 0.09216589862 | N64: 0 | O64: 0 | P64: 0.1779359431 | Q64: 0.6244424621 | R64: 0.1168224299 | S64: 0 | T64: 0.08928571429 | U64: 0.3516998828 | V64: 0.110314396 | W64: 0.4279600571 | X64: 0 | Y64: 0 | Z64: 0.2178649237 | AA64: 0
B65: bottled water | C65: 0 | D65: 0.06715916723 | E65: 0 | F65: 0.06756756757 | G65: 0 | H65: 0 | I65: 0 | J65: 0 | K65: 0 | L65: 0 | M65: 0 | N65: 0 | O65: 0.08984725966 | P65: 0.08896797153 | Q65: 0 | R65: 0 | S65: 0 | T65: 0 | U65: 0 | V65: 0.05515719801 | W65: 0 | X65: 0 | Y65: 0 | Z65: 0 | AA65: 0.2008032129
B66: unprotected dug well | C66: 9.292929293 | D66: 9.267965077 | E66: 6.006825939 | F66: 4.797297297 | G66: 2.297297297 | H66: 2.521008403 | I66: 2.770083102 | J66: 2.51396648 | K66: 1.685393258 | L66: 0.5586592179 | M66: 8.479262673 | N66: 10.54888508 | O66: 10.15274034 | P66: 5.427046263 | Q66: 3.925066905 | R66: 9.579439252 | S66: 8.061002179 | T66: 6.696428571 | U66: 1.64126612 | V66: 3.419746277 | W66: 6.419400856 | X66: 3.888888889 | Y66: 1.785714286 | Z66: 1.525054466 | AA66: 25.70281124
B67: unprotected spring | C67: 27.60942761 | D67: 16.3868368 | E67: 14.94880546 | F67: 8.513513514 | G67: 4.256756757 | H67: 4.201680672 | I67: 4.709141274 | J67: 2.234636872 | K67: 1.404494382 | L67: 0.5586592179 | M67: 27.37327189 | N67: 21.18353345 | O67: 18.86792453 | P67: 13.96797153 | Q67: 9.277430865 | R67: 10.1635514 | S67: 5.882352941 | T67: 19.82142857 | U67: 10.43376319 | V67: 7.832322118 | W67: 20.82738944 | X67: 48.05555556 | Y67: 16.07142857 | Z67: 22.44008715 | AA67: 5.62248996
B68: pond, river or stream | C68: 0.6734006734 | D68: 0.8059100067 | E68: 0.6825938567 | F68: 0.6081081081 | G68: 0.2027027027 | H68: 0 | I68: 0.2770083102 | J68: 0.2793296089 | K68: 0.2808988764 | L68: 0 | M68: 0.7373271889 | N68: 0.6861063465 | O68: 1.078167116 | P68: 0.4448398577 | Q68: 0.7136485281 | R68: 0.8177570093 | S68: 0.6535947712 | T68: 1.339285714 | U68: 0.2344665885 | V68: 0.2757859901 | W68: 0.2853067047 | X68: 0 | Y68: 0 | Z68: 1.74291939 | AA68: 0.4016064257
B69: tanker truck vendor | C69: 0.1346801347 | D69: 0.1343183345 | E69: 0.06825938567 | F69: 0.4054054054 | G69: 0.2702702703 | H69: 0.2801120448 | I69: 0.2770083102 | J69: 0.2793296089 | K69: 0 | L69: 0 | M69: 0.09216589862 | N69: 0.08576329331 | O69: 0.1796945193 | P69: 0.1779359431 | Q69: 0.5352363961 | R69: 0.4672897196 | S69: 0.2178649237 | T69: 0.1785714286 | U69: 0 | V69: 0.3309431881 | W69: 0.2853067047 | X69: 0 | Y69: 0 | Z69: 0 | AA69: 0
B70: other | C70: 0.06734006734 | D70: 0.4701141706 | E70: 2.04778157 | F70: 2.027027027 | G70: 3.513513514 | H70: 4.761904762 | I70: 7.202216066 | J70: 4.748603352 | K70: 6.460674157 | L70: 3.351955307 | M70: 0.09216589862 | N70: 0 | O70: 0.6289308176 | P70: 0.3558718861 | Q70: 1.159678858 | R70: 0.3504672897 | S70: 0 | T70: 0.5357142857 | U70: 1.524032825 | V70: 5.019305019 | W70: 0.1426533524 | X70: 0.2777777778 | Y70: 0 | Z70: 0.871459695 | AA70: 0.2008032129
B71: don't know | C71: 0 | D71: 0 | E71: 0.06825938567 | F71: 0.06756756757 | G71: 0 | H71: 0 | I71: 0 | J71: 0 | K71: 0 | L71: 0 | M71: 0 | N71: 0 | O71: 0.08984725966 | P71: 0.08896797153 | Q71: 0 | R71: 0 | S71: 0 | T71: 0 | U71: 0 | V71: 0 | W71: 0.1426533524 | X71: 0 | Y71: 0.3571428571 | Z71: 0 | AA71: 0
A108: =A1026 -> Lesotho
A109: =A1034 -> 2000
A110: Use of sanitation facilities
A111: by wealth quintile and sub-national region
A112: Notes:
A113: WHO/UNICEF JMP customised wealth index excludes water,
A114: sanitation and hygiene assets.
A115: Survey used for analysis: | B115: =A1025 -> MICS00
A116: Ratio of Improved latrines based on: | B116: DHS09
A117: Ratio of Shared improved based on: | B117: DHS09
A120: Use of sanitation facilities | C120: NATIONAL wealth index quintile | H120: URBAN wealth index quintile | M120: RURAL wealth index quintile | R120: SUB-REGIONS: | BA120: Raw numbers of respondents: | BB120: Use of sanitation facilities | BC120: NATIONAL wealth index quintile | BH120: URBAN wealth index quintile | BM120: RURAL wealth index quintile | BR120: SUB-REGIONS:
A121: Weighted percentage (used in graphs) | C121: Poorest | D121: Poor | E121: Middle | F121: Rich | G121: Richest | H121: Poorest | I121: Poor | J121: Middle | K121: Rich | L121: Richest | M121: Poorest | N121: Poor | O121: Middle | P121: Rich | Q121: Richest | R121: berea | S121: butha-buthe | T121: leribe | U121: mafeteng | V121: maseru | W121: mohale's hoek | X121: mokhotlong | Y121: qacha's nek | Z121: quthing | AA121: thaba-tseka | BA121: Sanitation data, raw numbers (weighted) | BC121: Poorest | BD121: Poor | BE121: Middle | BF121: Rich | BG121: Richest | BH121: Poorest | BI121: Poor | BJ121: Middle | BK121: Rich | BL121: Richest | BM121: Poorest | BN121: Poor | BO121: Middle | BP121: Rich | BQ121: Richest | BR121: berea | BS121: butha-buthe | BT121: leribe | BU121: mafeteng | BV121: maseru | BW121: mohale's hoek | BX121: mokhotlong | BY121: qacha's nek | BZ121: quthing | CA121: thaba-tseka
A122: Sanitation | B122: Improved | C122: =C153+C154+(C155+C156)*'DHS09'!C130/100 -> 8.892355018 | D122: =D153+D154+(D155+D156)*'DHS09'!D130/100 -> 15.85978039 | E122: =E153+E154+(E155+E156)*'DHS09'!E130/100 -> 22.39185635 | F122: =F153+F154+(F155+F156)*'DHS09'!F130/100 -> 37.57529868 | G122: =G153+G154+(G155+G156)*'DHS09'!G130/100 -> 63.79462057 | H122: =H153+H154+(H155+H156)*'DHS09'!H130/100 -> 33.31810042 | I122: =I153+I154+(I155+I156)*'DHS09'!I130/100 -> 42.85161704 | J122: =J153+J154+(J155+J156)*'DHS09'!J130/100 -> 52.55746362 | K122: =K153+K154+(K155+K156)*'DHS09'!K130/100 -> 66.44168622 | L122: =L153+L154+(L155+L156)*'DHS09'!L130/100 -> 87.72329957 | M122: =M153+M154+(M155+M156)*'DHS09'!M130/100 -> 9.154357735 | N122: =N153+N154+(N155+N156)*'DHS09'!N130/100 -> 12.24293116 | O122: =O153+O154+(O155+O156)*'DHS09'!O130/100 -> 13.88143168 | P122: =P153+P154+(P155+P156)*'DHS09'!P130/100 -> 26.9117004 | Q122: =Q153+Q154+(Q155+Q156)*'DHS09'!Q130/100 -> 44.69788873 | R122: =R153+R154+(R155+R156)*'DHS09'!R130/100 -> 31.57206864 | S122: =S153+S154+(S155+S156)*'DHS09'!S130/100 -> 29.93534157 | T122: =T153+T154+(T155+T156)*'DHS09'!T130/100 -> 31.14401117 | U122: =U153+U154+(U155+U156)*'DHS09'!U130/100 -> 23.70319478 | V122: =V153+V154+(V155+V156)*'DHS09'!V130/100 -> 40.99499805 | W122: =W153+W154+(W155+W156)*'DHS09'!W130/100 -> 21.7136357 | X122: =X153+X154+(X155+X156)*'DHS09'!X130/100 -> 9.483714813 | Y122: =Y153+Y154+(Y155+Y156)*'DHS09'!Y130/100 -> 13.73038759 | Z122: =Z153+Z154+(Z155+Z156)*'DHS09'!Z130/100 -> 28.94780571 | AA122: =AA153+AA154+(AA155+AA156)*'DHS09'!AA130/100 -> 12.54094918 | BA122: Sanitation | BB122: Improved | BC122: N/A | BD122: N/A | BE122: N/A | BF122: N/A | BG122: N/A | BH122: N/A | BI122: N/A | BJ122: N/A | BK122: N/A | BL122: N/A | BM122: N/A | BN122: N/A | BO122: N/A | BP122: N/A | BQ122: N/A | BR122: N/A | BS122: N/A | BT122: N/A | BU122: N/A | BV122: N/A | BW122: N/A | BX122: N/A | BY122: N/A | BZ122: N/A | CA122: N/A
B123: Not Improved | C123: =100-C122 -> 91.10764498 | D123: =100-D122 -> 84.14021961 | E123: 77.60814365 | F123: 62.42470132 | G123: 36.20537943 | H123: 66.68189958 | I123: 57.14838296 | J123: 47.44253638 | K123: 33.55831378 | L123: 12.27670043 | M123: 90.84564227 | N123: 87.75706884 | O123: 86.11856832 | P123: 73.0882996 | Q123: 55.30211127 | R123: 68.42793136 | S123: 70.06465843 | T123: 68.85598883 | U123: 76.29680522 | V123: 59.00500195 | W123: 78.2863643 | X123: 90.51628519 | Y123: 86.26961241 | Z123: 71.05219429 | AA123: 87.45905082 | BB123: Not Improved | BC123: N/A | BD123: N/A | BE123: N/A | BF123: N/A | BG123: N/A | BH123: N/A | BI123: N/A | BJ123: N/A | BK123: N/A | BL123: N/A | BM123: N/A | BN123: N/A | BO123: N/A | BP123: N/A | BQ123: N/A | BR123: N/A | BS123: N/A | BT123: N/A | BU123: N/A | BV123: N/A | BW123: N/A | BX123: N/A | BY123: N/A | BZ123: N/A | CA123: N/A
A124: Sanitation ladder | B124: Basic | C124: =C122*'DHS09'!C129/100 -> 8.160061834 | D124: =D122*'DHS09'!D129/100 -> 12.64803593 | E124: =E122*'DHS09'!E129/100 -> 17.22908326 | F124: =F122*'DHS09'!F129/100 -> 22.85555686 | G124: =G122*'DHS09'!G129/100 -> 44.32631743 | H124: =H122*'DHS09'!H129/100 -> 10.5651506 | I124: =I122*'DHS09'!I129/100 -> 15.15465344 | J124: =J122*'DHS09'!J129/100 -> 20.43497982 | K124: =K122*'DHS09'!K129/100 -> 38.5245913 | L124: =L122*'DHS09'!L129/100 -> 66.79883471 | M124: =M122*'DHS09'!M129/100 -> 8.486768757 | N124: =N122*'DHS09'!N129/100 -> 10.44227512 | O124: =O122*'DHS09'!O129/100 -> 11.37469853 | P124: =P122*'DHS09'!P129/100 -> 22.50086032 | Q124: =Q122*'DHS09'!Q129/100 -> 36.41100635 | R124: =R122*'DHS09'!R129/100 -> 23.8830501 | S124: =S122*'DHS09'!S129/100 -> 24.32432197 | T124: =T122*'DHS09'!T129/100 -> 23.78218956 | U124: =U122*'DHS09'!U129/100 -> 16.57244648 | V124: =V122*'DHS09'!V129/100 -> 24.219962 | W124: =W122*'DHS09'!W129/100 -> 16.04664053 | X124: =X122*'DHS09'!X129/100 -> 7.482371433 | Y124: =Y122*'DHS09'!Y129/100 -> 10.17747481 | Z124: =Z122*'DHS09'!Z129/100 -> 23.07124093 | AA124: =AA122*'DHS09'!AA129/100 -> 11.04131952 | BA124: Sanitation ladder | BB124: Basic | BC124: N/A | BD124: N/A | BE124: N/A | BF124: N/A | BG124: N/A | BH124: N/A | BI124: N/A | BJ124: N/A | BK124: N/A | BL124: N/A | BM124: N/A | BN124: N/A | BO124: N/A | BP124: N/A | BQ124: N/A | BR124: N/A | BS124: N/A | BT124: N/A | BU124: N/A | BV124: N/A | BW124: N/A | BX124: N/A | BY124: N/A | BZ124: N/A | CA124: N/A
B125: Limited | C125: =C122*'DHS09'!C128/100 -> 0.7322931839 | D125: =D122*'DHS09'!D128/100 -> 3.211744469 | E125: =E122*'DHS09'!E128/100 -> 5.162773092 | F125: =F122*'DHS09'!F128/100 -> 14.71974182 | G125: =G122*'DHS09'!G128/100 -> 19.46830314 | H125: =H122*'DHS09'!H128/100 -> 22.75294983 | I125: =I122*'DHS09'!I128/100 -> 27.6969636 | J125: =J122*'DHS09'!J128/100 -> 32.1224838 | K125: =K122*'DHS09'!K128/100 -> 27.91709491 | L125: =L122*'DHS09'!L128/100 -> 20.92446486 | M125: =M122*'DHS09'!M128/100 -> 0.6675889778 | N125: =N122*'DHS09'!N128/100 -> 1.800656041 | O125: =O122*'DHS09'!O128/100 -> 2.50673315 | P125: =P122*'DHS09'!P128/100 -> 4.410840074 | Q125: =Q122*'DHS09'!Q128/100 -> 8.286882379 | R125: =R122*'DHS09'!R128/100 -> 7.689018536 | S125: =S122*'DHS09'!S128/100 -> 5.611019602 | T125: =T122*'DHS09'!T128/100 -> 7.36182161 | U125: =U122*'DHS09'!U128/100 -> 7.130748296 | V125: =V122*'DHS09'!V128/100 -> 16.77503606 | W125: =W122*'DHS09'!W128/100 -> 5.666995167 | X125: =X122*'DHS09'!X128/100 -> 2.00134338 | Y125: =Y122*'DHS09'!Y128/100 -> 3.552912776 | Z125: =Z122*'DHS09'!Z128/100 -> 5.876564778 | AA125: =AA122*'DHS09'!AA128/100 -> 1.499629657 | BB125: Limited | BC125: N/A | BD125: N/A | BE125: N/A | BF125: N/A | BG125: N/A | BH125: N/A | BI125: N/A | BJ125: N/A | BK125: N/A | BL125: N/A | BM125: N/A | BN125: N/A | BO125: N/A | BP125: N/A | BQ125: N/A | BR125: N/A | BS125: N/A | BT125: N/A | BU125: N/A | BV125: N/A | BW125: N/A | BX125: N/A | BY125: N/A | BZ125: N/A | CA125: N/A
B126: Unimproved | C126: =100-(C124+C125+C127) -> 15.55208943 | D126: =100-(D124+D125+D127) -> 26.68054219 | E126: 36.03817778 | F126: 40.600377 | G126: 30.86031854 | H126: 44.83316008 | I126: 44.96001731 | J126: 41.29728498 | K126: 30.74932502 | L126: 11.99580155 | M126: 15.91476669 | N126: 21.03322665 | O126: 27.48547479 | P126: 36.25555939 | Q126: 39.60184365 | R126: 27.89054818 | S126: 22.35224013 | T126: 37.78456026 | U126: 38.31321788 | V126: 37.13862978 | W126: 28.21503763 | X126: 3.849618521 | Y126: 20.5553267 | Z126: 30.09358863 | AA126: 23.27394016 | BB126: Unimproved | BC126: N/A | BD126: N/A | BE126: N/A | BF126: N/A | BG126: N/A | BH126: N/A | BI126: N/A | BJ126: N/A | BK126: N/A | BL126: N/A | BM126: N/A | BN126: N/A | BO126: N/A | BP126: N/A | BQ126: N/A | BR126: N/A | BS126: N/A | BT126: N/A | BU126: N/A | BV126: N/A | BW126: N/A | BX126: N/A | BY126: N/A | BZ126: N/A | CA126: N/A
B127: Open defecation | C127: =C160 -> 75.55555556 | D127: =D160 -> 57.45967742 | E127: 41.56996587 | F127: 21.82432432 | G127: 5.345060893 | H127: 21.8487395 | I127: 12.18836565 | J127: 6.145251397 | K127: 2.808988764 | L127: 0.2808988764 | M127: 74.93087558 | N127: 66.7238422 | O127: 58.63309353 | P127: 36.83274021 | Q127: 15.70026762 | R127: 40.53738318 | S127: 47.7124183 | T127: 31.07142857 | U127: 37.98358734 | V127: 21.86637217 | W127: 50.07132668 | X127: 86.66666667 | Y127: 65.71428571 | Z127: 40.95860566 | AA127: 64.18511066 | BB127: Open defecation | BC127: N/A | BD127: N/A | BE127: N/A | BF127: N/A | BG127: N/A | BH127: N/A | BI127: N/A | BJ127: N/A | BK127: N/A | BL127: N/A | BM127: N/A | BN127: N/A | BO127: N/A | BP127: N/A | BQ127: N/A | BR127: N/A | BS127: N/A | BT127: N/A | BU127: N/A | BV127: N/A | BW127: N/A | BX127: N/A | BY127: N/A | BZ127: N/A | CA127: N/A
A128: Shared among Improved Sanitation | B128: Yes | C128: N/A | D128: N/A | E128: N/A | F128: N/A | G128: N/A | H128: N/A | I128: N/A | J128: N/A | K128: N/A | L128: N/A | M128: N/A | N128: N/A | O128: N/A | P128: N/A | Q128: N/A | R128: N/A | S128: N/A | T128: N/A | U128: N/A | V128: N/A | W128: N/A | X128: N/A | Y128: N/A | Z128: N/A | AA128: N/A | BA128: Shared among improved sanitation facilities | BB128: Yes | BC128: N/A | BD128: N/A | BE128: N/A | BF128: N/A | BG128: N/A | BH128: N/A | BI128: N/A | BJ128: N/A | BK128: N/A | BL128: N/A | BM128: N/A | BN128: N/A | BO128: N/A | BP128: N/A | BQ128: N/A | BR128: N/A | BS128: N/A | BT128: N/A | BU128: N/A | BV128: N/A | BW128: N/A | BX128: N/A | BY128: N/A | BZ128: N/A | CA128: N/A
B129: No | C129: N/A | D129: N/A | E129: N/A | F129: N/A | G129: N/A | H129: N/A | I129: N/A | J129: N/A | K129: N/A | L129: N/A | M129: N/A | N129: N/A | O129: N/A | P129: N/A | Q129: N/A | R129: N/A | S129: N/A | T129: N/A | U129: N/A | V129: N/A | W129: N/A | X129: N/A | Y129: N/A | Z129: N/A | AA129: N/A | BB129: No | BC129: N/A | BD129: N/A | BE129: N/A | BF129: N/A | BG129: N/A | BH129: N/A | BI129: N/A | BJ129: N/A | BK129: N/A | BL129: N/A | BM129: N/A | BN129: N/A | BO129: N/A | BP129: N/A | BQ129: N/A | BR129: N/A | BS129: N/A | BT129: N/A | BU129: N/A | BV129: N/A | BW129: N/A | BX129: N/A | BY129: N/A | BZ129: N/A | CA129: N/A
A130: Manually calculated ratios | B130: Improved latrines
B131: Other
B132: Other
C133: NATIONAL wealth index quintile | H133: URBAN wealth index quintile | M133: RURAL wealth index quintile | R133: SUB-REGIONS: | BA133: Raw numbers of respondents: | BB133: Use of sanitation facilities | BC133: NATIONAL wealth index quintile | BH133: URBAN wealth index quintile | BM133: RURAL wealth index quintile | BR133: SUB-REGIONS:
A134: Percentage based on weighted population | C134: Poorest | D134: Poor | E134: Middle | F134: Rich | G134: Richest | H134: Poorest | I134: Poor | J134: Middle | K134: Rich | L134: Richest | M134: Poorest | N134: Poor | O134: Middle | P134: Rich | Q134: Richest | R134: berea | S134: butha-buthe | T134: leribe | U134: mafeteng | V134: maseru | W134: mohale's hoek | X134: mokhotlong | Y134: qacha's nek | Z134: quthing | AA134: thaba-tseka | BA134: Sanitation data, raw numbers (weighted) | BC134: Poorest | BD134: Poor | BE134: Middle | BF134: Rich | BG134: Richest | BH134: Poorest | BI134: Poor | BJ134: Middle | BK134: Rich | BL134: Richest | BM134: Poorest | BN134: Poor | BO134: Middle | BP134: Rich | BQ134: Richest | BR134: berea | BS134: butha-buthe | BT134: leribe | BU134: mafeteng | BV134: maseru | BW134: mohale's hoek | BX134: mokhotlong | BY134: qacha's nek | BZ134: quthing | CA134: thaba-tseka
A135: Sanitation type | B135: Sewer connection | C135: =C153*'DHS09'!C131/100 -> 0.202020202 | D135: =D153*'DHS09'!D131/100 -> 0 | E135: =E153*'DHS09'!E131/100 -> 0 | F135: =F153*'DHS09'!F131/100 -> 0.5486048855 | G135: =G153*'DHS09'!G131/100 -> 2.474811179 | H135: =H153*'DHS09'!H131/100 -> 0.2571886399 | I135: =I153*'DHS09'!I131/100 -> 0 | J135: =J153*'DHS09'!J131/100 -> 0.8759848013 | K135: =K153*'DHS09'!K131/100 -> 0.5299364003 | L135: =L153*'DHS09'!L131/100 -> 8.557699952 | M135: =M153*'DHS09'!M131/100 -> 0.09216589862 | N135: =N153*'DHS09'!N131/100 -> 0 | O135: =O153*'DHS09'!O131/100 -> 0 | P135: =P153*'DHS09'!P131/100 -> 0 | Q135: =Q153*'DHS09'!Q131/100 -> 0.2783381195 | R135: =R153*'DHS09'!R131/100 -> 0.1675932424 | S135: =S153*'DHS09'!S131/100 -> 0.07044713266 | T135: =T153*'DHS09'!T131/100 -> 0.7162664965 | U135: =U153*'DHS09'!U131/100 -> 0.8040156496 | V135: =V153*'DHS09'!V131/100 -> 1.540228883 | W135: =W153*'DHS09'!W131/100 -> 0.1698553965 | X135: =X153*'DHS09'!X131/100 -> 0 | Y135: =Y153*'DHS09'!Y131/100 -> 0.2958706128 | Z135: =Z153*'DHS09'!Z131/100 -> 0.07268400786 | AA135: =AA153*'DHS09'!AA131/100 -> 0 | BA135: Sanitation type | BB135: Sewer connection | BC135: N/A | BD135: N/A | BE135: N/A | BF135: N/A | BG135: N/A | BH135: N/A | BI135: N/A | BJ135: N/A | BK135: N/A | BL135: N/A | BM135: N/A | BN135: N/A | BO135: N/A | BP135: N/A | BQ135: N/A | BR135: N/A | BS135: N/A | BT135: N/A | BU135: N/A | BV135: N/A | BW135: N/A | BX135: N/A | BY135: N/A | BZ135: N/A | CA135: N/A
B136: Septic tank connection | C136: =C153-C135 -> 0 | D136: =D153-D135 -> 0.06720430108 | E136: 0.204778157 | F136: 0.3297734929 | G136: 3.411521703 | H136: 0.02292340491 | I136: 0.5540166205 | J136: 0.2413336344 | K136: 0.5936591053 | L136: 13.07151353 | M136: 0 | N136: 0.1715265866 | O136: 0.1798561151 | P136: 0.7117437722 | Q136: 0.2568982765 | R136: 0.2996964772 | S136: 0.1474177911 | T136: 0.980162075 | U136: 0.7200171757 | V136: 1.993730256 | W136: 0.1154513082 | X136: 0 | Y136: 0.06127224432 | Z136: 0.5809107634 | AA136: 0 | BB136: Septic tank connection | BC136: N/A | BD136: N/A | BE136: N/A | BF136: N/A | BG136: N/A | BH136: N/A | BI136: N/A | BJ136: N/A | BK136: N/A | BL136: N/A | BM136: N/A | BN136: N/A | BO136: N/A | BP136: N/A | BQ136: N/A | BR136: N/A | BS136: N/A | BT136: N/A | BU136: N/A | BV136: N/A | BW136: N/A | BX136: N/A | BY136: N/A | BZ136: N/A | CA136: N/A
B137: Improved latrines | C137: =C155+C156*'DHS09'!C130/100 -> 9.327201169 | D137: =D155+D156*'DHS09'!D130/100 -> 21.22159874 | E137: =E155+E156*'DHS09'!E130/100 -> 30.41624293 | F137: =F155+F156*'DHS09'!F130/100 -> 47.67139319 | G137: =G155+G156*'DHS09'!G130/100 -> 69.58213788 | H137: =H155+H156*'DHS09'!H130/100 -> 48.21817034 | I137: =I155+I156*'DHS09'!I130/100 -> 55.57761943 | J137: =J155+J156*'DHS09'!J130/100 -> 68.54274531 | K137: =K155+K156*'DHS09'!K130/100 -> 77.17696567 | L137: =L155+L156*'DHS09'!L130/100 -> 66.3788029 | M137: =M155+M156*'DHS09'!M130/100 -> 9.666229909 | N137: =N155+N156*'DHS09'!N130/100 -> 14.62364708 | O137: =O155+O156*'DHS09'!O130/100 -> 19.04062784 | P137: =P155+P156*'DHS09'!P130/100 -> 33.99631624 | Q137: =Q155+Q156*'DHS09'!Q130/100 -> 56.38503375 | R137: =R155+R156*'DHS09'!R130/100 -> 36.8030563 | S137: =S155+S156*'DHS09'!S130/100 -> 35.44307214 | T137: =T155+T156*'DHS09'!T130/100 -> 39.01365398 | U137: =U155+U156*'DHS09'!U130/100 -> 35.67325701 | V137: =V155+V156*'DHS09'!V130/100 -> 48.05169917 | W137: =W155+W156*'DHS09'!W130/100 -> 27.38351367 | X137: =X155+X156*'DHS09'!X130/100 -> 11.99006707 | Y137: =Y155+Y156*'DHS09'!Y130/100 -> 18.95997643 | Z137: =Z155+Z156*'DHS09'!Z130/100 -> 32.84779976 | AA137: =AA155+AA156*'DHS09'!AA130/100 -> 14.42343389 | BB137: Improved latrines | BC137: N/A | BD137: N/A | BE137: N/A | BF137: N/A | BG137: N/A | BH137: N/A | BI137: N/A | BJ137: N/A | BK137: N/A | BL137: N/A | BM137: N/A | BN137: N/A | BO137: N/A | BP137: N/A | BQ137: N/A | BR137: N/A | BS137: N/A | BT137: N/A | BU137: N/A | BV137: N/A | BW137: N/A | BX137: N/A | BY137: N/A | BZ137: N/A | CA137: N/A
B138: Unimproved facilities | C138: =100-(C135+C136+C137+C139) -> 14.91522307 | D138: =100-(D135+D136+D137+D139) -> 21.25151954 | E138: 27.80901304 | F138: 29.62590411 | G138: 19.18646834 | H138: 29.65297812 | I138: 31.6799983 | J138: 24.19468485 | K138: 18.89045006 | L138: 11.71108474 | M138: 15.31072862 | N138: 18.48098414 | O138: 22.14642252 | P138: 28.45919977 | Q138: 27.37946223 | R138: 22.1922708 | S138: 16.62664464 | T138: 28.21848888 | U138: 24.81912282 | V138: 26.54796952 | W138: 22.25985295 | X138: 1.343266265 | Y138: 14.968595 | Z138: 25.53999981 | AA138: 21.39145544 | BB138: Unimproved facilities | BC138: N/A | BD138: N/A | BE138: N/A | BF138: N/A | BG138: N/A | BH138: N/A | BI138: N/A | BJ138: N/A | BK138: N/A | BL138: N/A | BM138: N/A | BN138: N/A | BO138: N/A | BP138: N/A | BQ138: N/A | BR138: N/A | BS138: N/A | BT138: N/A | BU138: N/A | BV138: N/A | BW138: N/A | BX138: N/A | BY138: N/A | BZ138: N/A | CA138: N/A
B139: Open defecation | C139: =C160 -> 75.55555556 | D139: =D160 -> 57.45967742 | E139: 41.56996587 | F139: 21.82432432 | G139: 5.345060893 | H139: 21.8487395 | I139: 12.18836565 | J139: 6.145251397 | K139: 2.808988764 | L139: 0.2808988764 | M139: 74.93087558 | N139: 66.7238422 | O139: 58.63309353 | P139: 36.83274021 | Q139: 15.70026762 | R139: 40.53738318 | S139: 47.7124183 | T139: 31.07142857 | U139: 37.98358734 | V139: 21.86637217 | W139: 50.07132668 | X139: 86.66666667 | Y139: 65.71428571 | Z139: 40.95860566 | AA139: 64.18511066 | BB139: Open defecation | BC139: N/A | BD139: N/A | BE139: N/A | BF139: N/A | BG139: N/A | BH139: N/A | BI139: N/A | BJ139: N/A | BK139: N/A | BL139: N/A | BM139: N/A | BN139: N/A | BO139: N/A | BP139: N/A | BQ139: N/A | BR139: N/A | BS139: N/A | BT139: N/A | BU139: N/A | BV139: N/A | BW139: N/A | BX139: N/A | BY139: N/A | BZ139: N/A | CA139: N/A
A140: Septic tank emptying practices | B140: Not emptied/treated and disposed in situ | C140: N/A | D140: N/A | E140: N/A | F140: N/A | G140: N/A | H140: N/A | I140: N/A | J140: N/A | K140: N/A | L140: N/A | M140: N/A | N140: N/A | O140: N/A | P140: N/A | Q140: N/A | R140: N/A | S140: N/A | T140: N/A | U140: N/A | V140: N/A | W140: N/A | X140: N/A | Y140: N/A | Z140: N/A | AA140: N/A | BA140: Septic tank emptying practices | BB140: Not emptied/treated and disposed in situ | BC140: N/A | BD140: N/A | BE140: N/A | BF140: N/A | BG140: N/A | BH140: N/A | BI140: N/A | BJ140: N/A | BK140: N/A | BL140: N/A | BM140: N/A | BN140: N/A | BO140: N/A | BP140: N/A | BQ140: N/A | BR140: N/A | BS140: N/A | BT140: N/A | BU140: N/A | BV140: N/A | BW140: N/A | BX140: N/A | BY140: N/A | BZ140: N/A | CA140: N/A
B141: Emptied and buried on site | C141: N/A | D141: N/A | E141: N/A | F141: N/A | G141: N/A | H141: N/A | I141: N/A | J141: N/A | K141: N/A | L141: N/A | M141: N/A | N141: N/A | O141: N/A | P141: N/A | Q141: N/A | R141: N/A | S141: N/A | T141: N/A | U141: N/A | V141: N/A | W141: N/A | X141: N/A | Y141: N/A | Z141: N/A | AA141: N/A | BB141: Emptied and buried on site | BC141: N/A | BD141: N/A | BE141: N/A | BF141: N/A | BG141: N/A | BH141: N/A | BI141: N/A | BJ141: N/A | BK141: N/A | BL141: N/A | BM141: N/A | BN141: N/A | BO141: N/A | BP141: N/A | BQ141: N/A | BR141: N/A | BS141: N/A | BT141: N/A | BU141: N/A | BV141: N/A | BW141: N/A | BX141: N/A | BY141: N/A | BZ141: N/A | CA141: N/A
B142: Emptied and discharged locally | C142: N/A | D142: N/A | E142: N/A | F142: N/A | G142: N/A | H142: N/A | I142: N/A | J142: N/A | K142: N/A | L142: N/A | M142: N/A | N142: N/A | O142: N/A | P142: N/A | Q142: N/A | R142: N/A | S142: N/A | T142: N/A | U142: N/A | V142: N/A | W142: N/A | X142: N/A | Y142: N/A | Z142: N/A | AA142: N/A | BB142: Emptied and discharged locally | BC142: N/A | BD142: N/A | BE142: N/A | BF142: N/A | BG142: N/A | BH142: N/A | BI142: N/A | BJ142: N/A | BK142: N/A | BL142: N/A | BM142: N/A | BN142: N/A | BO142: N/A | BP142: N/A | BQ142: N/A | BR142: N/A | BS142: N/A | BT142: N/A | BU142: N/A | BV142: N/A | BW142: N/A | BX142: N/A | BY142: N/A | BZ142: N/A | CA142: N/A
B143: Emptied and removed offsite | C143: N/A | D143: N/A | E143: N/A | F143: N/A | G143: N/A | H143: N/A | I143: N/A | J143: N/A | K143: N/A | L143: N/A | M143: N/A | N143: N/A | O143: N/A | P143: N/A | Q143: N/A | R143: N/A | S143: N/A | T143: N/A | U143: N/A | V143: N/A | W143: N/A | X143: N/A | Y143: N/A | Z143: N/A | AA143: N/A | BB143: Emptied and removed offsite | BC143: N/A | BD143: N/A | BE143: N/A | BF143: N/A | BG143: N/A | BH143: N/A | BI143: N/A | BJ143: N/A | BK143: N/A | BL143: N/A | BM143: N/A | BN143: N/A | BO143: N/A | BP143: N/A | BQ143: N/A | BR143: N/A | BS143: N/A | BT143: N/A | BU143: N/A | BV143: N/A | BW143: N/A | BX143: N/A | BY143: N/A | BZ143: N/A | CA143: N/A
A144: Latrine emptying practices | B144: Not emptied/treated and disposed in situ | C144: N/A | D144: N/A | E144: N/A | F144: N/A | G144: N/A | H144: N/A | I144: N/A | J144: N/A | K144: N/A | L144: N/A | M144: N/A | N144: N/A | O144: N/A | P144: N/A | Q144: N/A | R144: N/A | S144: N/A | T144: N/A | U144: N/A | V144: N/A | W144: N/A | X144: N/A | Y144: N/A | Z144: N/A | AA144: N/A | BA144: Latrine emptying practices | BB144: Not emptied/treated and disposed in situ | BC144: N/A | BD144: N/A | BE144: N/A | BF144: N/A | BG144: N/A | BH144: N/A | BI144: N/A | BJ144: N/A | BK144: N/A | BL144: N/A | BM144: N/A | BN144: N/A | BO144: N/A | BP144: N/A | BQ144: N/A | BR144: N/A | BS144: N/A | BT144: N/A | BU144: N/A | BV144: N/A | BW144: N/A | BX144: N/A | BY144: N/A | BZ144: N/A | CA144: N/A
B145: Emptied and buried on site | C145: N/A | D145: N/A | E145: N/A | F145: N/A | G145: N/A | H145: N/A | I145: N/A | J145: N/A | K145: N/A | L145: N/A | M145: N/A | N145: N/A | O145: N/A | P145: N/A | Q145: N/A | R145: N/A | S145: N/A | T145: N/A | U145: N/A | V145: N/A | W145: N/A | X145: N/A | Y145: N/A | Z145: N/A | AA145: N/A | BB145: Emptied and buried on site | BC145: N/A | BD145: N/A | BE145: N/A | BF145: N/A | BG145: N/A | BH145: N/A | BI145: N/A | BJ145: N/A | BK145: N/A | BL145: N/A | BM145: N/A | BN145: N/A | BO145: N/A | BP145: N/A | BQ145: N/A | BR145: N/A | BS145: N/A | BT145: N/A | BU145: N/A | BV145: N/A | BW145: N/A | BX145: N/A | BY145: N/A | BZ145: N/A | CA145: N/A
B146: Emptied and discharged locally | C146: N/A | D146: N/A | E146: N/A | F146: N/A | G146: N/A | H146: N/A | I146: N/A | J146: N/A | K146: N/A | L146: N/A | M146: N/A | N146: N/A | O146: N/A | P146: N/A | Q146: N/A | R146: N/A | S146: N/A | T146: N/A | U146: N/A | V146: N/A | W146: N/A | X146: N/A | Y146: N/A | Z146: N/A | AA146: N/A | BB146: Emptied and discharged locally | BC146: N/A | BD146: N/A | BE146: N/A | BF146: N/A | BG146: N/A | BH146: N/A | BI146: N/A | BJ146: N/A | BK146: N/A | BL146: N/A | BM146: N/A | BN146: N/A | BO146: N/A | BP146: N/A | BQ146: N/A | BR146: N/A | BS146: N/A | BT146: N/A | BU146: N/A | BV146: N/A | BW146: N/A | BX146: N/A | BY146: N/A | BZ146: N/A | CA146: N/A
B147: Emptied and removed offsite | C147: N/A | D147: N/A | E147: N/A | F147: N/A | G147: N/A | H147: N/A | I147: N/A | J147: N/A | K147: N/A | L147: N/A | M147: N/A | N147: N/A | O147: N/A | P147: N/A | Q147: N/A | R147: N/A | S147: N/A | T147: N/A | U147: N/A | V147: N/A | W147: N/A | X147: N/A | Y147: N/A | Z147: N/A | AA147: N/A | BB147: Emptied and removed offsite | BC147: N/A | BD147: N/A | BE147: N/A | BF147: N/A | BG147: N/A | BH147: N/A | BI147: N/A | BJ147: N/A | BK147: N/A | BL147: N/A | BM147: N/A | BN147: N/A | BO147: N/A | BP147: N/A | BQ147: N/A | BR147: N/A | BS147: N/A | BT147: N/A | BU147: N/A | BV147: N/A | BW147: N/A | BX147: N/A | BY147: N/A | BZ147: N/A | CA147: N/A
A148: Shared among improved sanitation facilities | B148: Yes | C148: N/A | D148: N/A | E148: N/A | F148: N/A | G148: N/A | H148: N/A | I148: N/A | J148: N/A | K148: N/A | L148: N/A | M148: N/A | N148: N/A | O148: N/A | P148: N/A | Q148: N/A | R148: N/A | S148: N/A | T148: N/A | U148: N/A | V148: N/A | W148: N/A | X148: N/A | Y148: N/A | Z148: N/A | AA148: N/A | BA148: Shared among improved sanitation facilities | BB148: Yes | BC148: N/A | BD148: N/A | BE148: N/A | BF148: N/A | BG148: N/A | BH148: N/A | BI148: N/A | BJ148: N/A | BK148: N/A | BL148: N/A | BM148: N/A | BN148: N/A | BO148: N/A | BP148: N/A | BQ148: N/A | BR148: N/A | BS148: N/A | BT148: N/A | BU148: N/A | BV148: N/A | BW148: N/A | BX148: N/A | BY148: N/A | BZ148: N/A | CA148: N/A
B149: No | C149: N/A | D149: N/A | E149: N/A | F149: N/A | G149: N/A | H149: N/A | I149: N/A | J149: N/A | K149: N/A | L149: N/A | M149: N/A | N149: N/A | O149: N/A | P149: N/A | Q149: N/A | R149: N/A | S149: N/A | T149: N/A | U149: N/A | V149: N/A | W149: N/A | X149: N/A | Y149: N/A | Z149: N/A | AA149: N/A | BB149: No | BC149: N/A | BD149: N/A | BE149: N/A | BF149: N/A | BG149: N/A | BH149: N/A | BI149: N/A | BJ149: N/A | BK149: N/A | BL149: N/A | BM149: N/A | BN149: N/A | BO149: N/A | BP149: N/A | BQ149: N/A | BR149: N/A | BS149: N/A | BT149: N/A | BU149: N/A | BV149: N/A | BW149: N/A | BX149: N/A | BY149: N/A | BZ149: N/A | CA149: N/A
B150: DK/missing | C150: N/A | D150: N/A | E150: N/A | F150: N/A | G150: N/A | H150: N/A | I150: N/A | J150: N/A | K150: N/A | L150: N/A | M150: N/A | N150: N/A | O150: N/A | P150: N/A | Q150: N/A | R150: N/A | S150: N/A | T150: N/A | U150: N/A | V150: N/A | W150: N/A | X150: N/A | Y150: N/A | Z150: N/A | AA150: N/A | BB150: DK/missing | BC150: N/A | BD150: N/A | BE150: N/A | BF150: N/A | BG150: N/A | BH150: N/A | BI150: N/A | BJ150: N/A | BK150: N/A | BL150: N/A | BM150: N/A | BN150: N/A | BO150: N/A | BP150: N/A | BQ150: N/A | BR150: N/A | BS150: N/A | BT150: N/A | BU150: N/A | BV150: N/A | BW150: N/A | BX150: N/A | BY150: N/A | BZ150: N/A | CA150: N/A
A151: Shared among all sanitation facilities | B151: Yes | C151: N/A | D151: N/A | E151: N/A | F151: N/A | G151: N/A | H151: N/A | I151: N/A | J151: N/A | K151: N/A | L151: N/A | M151: N/A | N151: N/A | O151: N/A | P151: N/A | Q151: N/A | R151: N/A | S151: N/A | T151: N/A | U151: N/A | V151: N/A | W151: N/A | X151: N/A | Y151: N/A | Z151: N/A | AA151: N/A | BA151: Shared among all sanitation facilities | BB151: Yes | BC151: N/A | BD151: N/A | BE151: N/A | BF151: N/A | BG151: N/A | BH151: N/A | BI151: N/A | BJ151: N/A | BK151: N/A | BL151: N/A | BM151: N/A | BN151: N/A | BO151: N/A | BP151: N/A | BQ151: N/A | BR151: N/A | BS151: N/A | BT151: N/A | BU151: N/A | BV151: N/A | BW151: N/A | BX151: N/A | BY151: N/A | BZ151: N/A | CA151: N/A
B152: No | C152: N/A | D152: N/A | E152: N/A | F152: N/A | G152: N/A | H152: N/A | I152: N/A | J152: N/A | K152: N/A | L152: N/A | M152: N/A | N152: N/A | O152: N/A | P152: N/A | Q152: N/A | R152: N/A | S152: N/A | T152: N/A | U152: N/A | V152: N/A | W152: N/A | X152: N/A | Y152: N/A | Z152: N/A | AA152: N/A | BB152: No | BC152: N/A | BD152: N/A | BE152: N/A | BF152: N/A | BG152: N/A | BH152: N/A | BI152: N/A | BJ152: N/A | BK152: N/A | BL152: N/A | BM152: N/A | BN152: N/A | BO152: N/A | BP152: N/A | BQ152: N/A | BR152: N/A | BS152: N/A | BT152: N/A | BU152: N/A | BV152: N/A | BW152: N/A | BX152: N/A | BY152: N/A | BZ152: N/A | CA152: N/A
A153: type of toilet facility | B153: flush to sewage system/septic tank | C153: 0.202020202 | D153: 0.06720430108 | E153: 0.204778157 | F153: 0.8783783784 | G153: 5.886332882 | H153: 0.2801120448 | I153: 0.5540166205 | J153: 1.117318436 | K153: 1.123595506 | L153: 21.62921348 | M153: 0.09216589862 | N153: 0.1715265866 | O153: 0.1798561151 | P153: 0.7117437722 | Q153: 0.5352363961 | R153: 0.4672897196 | S153: 0.2178649237 | T153: 1.696428571 | U153: 1.524032825 | V153: 3.533959139 | W153: 0.2853067047 | X153: 0 | Y153: 0.3571428571 | Z153: 0.6535947712 | AA153: 0 | BA153: type of toilet facility | BB153: flush to sewage system/septic tank | BC153: 3 | BD153: 1 | BE153: 3 | BF153: 13 | BG153: 87 | BH153: 1 | BI153: 2 | BJ153: 4 | BK153: 4 | BL153: 77 | BM153: 1 | BN153: 2 | BO153: 2 | BP153: 8 | BQ153: 6 | BR153: 4 | BS153: 1 | BT153: 19 | BU153: 13 | BV153: 64 | BW153: 2 | BX153: 0 | BY153: 1 | BZ153: 3 | CA153: 0
B154: pour flush latrine | C154: 0.06734006734 | D154: 0.06720430108 | E154: 0.1365187713 | F154: 0.2027027027 | G154: 2.841677943 | H154: 0.2801120448 | I154: 0.2770083102 | J154: 0.5586592179 | K154: 3.08988764 | L154: 8.146067416 | M154: 0.09216589862 | N154: 0 | O154: 0 | P154: 0.1779359431 | Q154: 0.178412132 | R154: 0.1168224299 | S154: 0.2178649237 | T154: 0 | U154: 0.1172332943 | V154: 2.429596908 | W154: 0 | X154: 0 | Y154: 0 | Z154: 0.4357298475 | AA154: 0 | BB154: pour flush latrine | BC154: 1 | BD154: 1 | BE154: 2 | BF154: 3 | BG154: 42 | BH154: 1 | BI154: 1 | BJ154: 2 | BK154: 11 | BL154: 29 | BM154: 1 | BN154: 0 | BO154: 0 | BP154: 2 | BQ154: 2 | BR154: 1 | BS154: 1 | BT154: 0 | BU154: 1 | BV154: 44 | BW154: 0 | BX154: 0 | BY154: 0 | BZ154: 2 | CA154: 0
B155: improved pit latrine | C155: 1.818181818 | D155: 9.946236559 | E155: 14.60750853 | F155: 22.2972973 | G155: 41.54262517 | H155: 28.01120448 | I155: 27.42382271 | J155: 40.5027933 | K155: 46.34831461 | L155: 49.15730337 | M155: 1.935483871 | N155: 5.060034305 | O155: 8.992805755 | P155: 14.59074733 | Q155: 27.20785013 | R155: 13.90186916 | S155: 13.94335512 | T155: 17.41071429 | U155: 21.57092614 | V155: 26.50469354 | W155: 16.26248217 | X155: 9.722222222 | Y155: 9.285714286 | Z155: 16.77559913 | AA155: 7.847082495 | BB155: improved pit latrine | BC155: 27 | BD155: 148 | BE155: 214 | BF155: 330 | BG155: 614 | BH155: 100 | BI155: 99 | BJ155: 145 | BK155: 165 | BL155: 175 | BM155: 21 | BN155: 59 | BO155: 100 | BP155: 164 | BQ155: 305 | BR155: 119 | BS155: 64 | BT155: 195 | BU155: 184 | BV155: 480 | BW155: 114 | BX155: 35 | BY155: 26 | BZ155: 77 | CA155: 39
B156: traditional pit latrine | C156: 12.25589226 | D156: 25.2016129 | E156: 36.99658703 | F156: 50.87837838 | G156: 43.09878214 | H156: 45.09803922 | I156: 55.67867036 | J156: 49.72067039 | K156: 45.50561798 | L156: 20.78651685 | M156: 12.07373272 | N156: 19.29674099 | O156: 24.73021583 | P156: 42.79359431 | Q156: 53.61284567 | R156: 39.36915888 | S156: 37.47276688 | T156: 47.94642857 | U156: 38.21805393 | V156: 42.35229155 | W156: 17.54636234 | X156: 3.055555556 | Y156: 24.28571429 | Z156: 22.87581699 | AA156: 8.651911469 | BB156: traditional pit latrine | BC156: 182 | BD156: 375 | BE156: 542 | BF156: 753 | BG156: 637 | BH156: 161 | BI156: 201 | BJ156: 178 | BK156: 162 | BL156: 74 | BM156: 131 | BN156: 225 | BO156: 275 | BP156: 481 | BQ156: 601 | BR156: 337 | BS156: 172 | BT156: 537 | BU156: 326 | BV156: 767 | BW156: 123 | BX156: 11 | BY156: 68 | BZ156: 105 | CA156: 43
B157: open pit | C157: 3.569023569 | D157: 2.620967742 | E157: 3.003412969 | F157: 2.432432432 | G157: 0.9472259811 | H157: 3.921568627 | I157: 3.047091413 | J157: 0.8379888268 | K157: 0.5617977528 | L157: 0 | M157: 3.963133641 | N157: 2.830188679 | O157: 2.338129496 | P157: 3.024911032 | Q157: 1.78412132 | R157: 3.271028037 | S157: 0.4357298475 | T157: 0.1785714286 | U157: 0.5861664713 | V157: 1.987852015 | W157: 14.69329529 | X157: 0.5555555556 | Y157: 0 | Z157: 0.6535947712 | AA157: 1.006036217 | BB157: open pit | BC157: 53 | BD157: 39 | BE157: 44 | BF157: 36 | BG157: 14 | BH157: 14 | BI157: 11 | BJ157: 3 | BK157: 2 | BL157: 0 | BM157: 43 | BN157: 33 | BO157: 26 | BP157: 34 | BQ157: 20 | BR157: 28 | BS157: 2 | BT157: 2 | BU157: 5 | BV157: 36 | BW157: 103 | BX157: 2 | BY157: 0 | BZ157: 3 | CA157: 5
B158: bucket | C158: 0.06734006734 | D158: 0 | E158: 0 | F158: 0 | G158: 0 | H158: 0 | I158: 0 | J158: 0 | K158: 0 | L158: 0 | M158: 0 | N158: 0.08576329331 | O158: 0 | P158: 0 | Q158: 0 | R158: 0 | S158: 0 | T158: 0 | U158: 0 | V158: 0 | W158: 0 | X158: 0 | Y158: 0 | Z158: 0 | AA158: 0.2012072435 | BB158: bucket | BC158: 1 | BD158: 0 | BE158: 0 | BF158: 0 | BG158: 0 | BH158: 0 | BI158: 0 | BJ158: 0 | BK158: 0 | BL158: 0 | BM158: 0 | BN158: 1 | BO158: 0 | BP158: 0 | BQ158: 0 | BR158: 0 | BS158: 0 | BT158: 0 | BU158: 0 | BV158: 0 | BW158: 0 | BX158: 0 | BY158: 0 | BZ158: 0 | CA158: 1
B159: other | C159: 6.464646465 | D159: 4.637096774 | E159: 3.481228669 | F159: 1.486486486 | G159: 0.3382949932 | H159: 0.5602240896 | I159: 0.8310249307 | J159: 1.117318436 | K159: 0.5617977528 | L159: 0 | M159: 6.912442396 | N159: 5.831903945 | O159: 5.125899281 | P159: 1.868327402 | Q159: 0.9812667261 | R159: 2.336448598 | S159: 0 | T159: 1.696428571 | U159: 0 | V159: 1.325234677 | W159: 1.141226819 | X159: 0 | Y159: 0.3571428571 | Z159: 17.64705882 | AA159: 18.10865191 | BB159: other | BC159: 96 | BD159: 69 | BE159: 51 | BF159: 22 | BG159: 5 | BH159: 2 | BI159: 3 | BJ159: 4 | BK159: 2 | BL159: 0 | BM159: 75 | BN159: 68 | BO159: 57 | BP159: 21 | BQ159: 11 | BR159: 20 | BS159: 0 | BT159: 19 | BU159: 0 | BV159: 24 | BW159: 8 | BX159: 0 | BY159: 1 | BZ159: 81 | CA159: 90
B160: no facilities/bush/field | C160: 75.55555556 | D160: 57.45967742 | E160: 41.56996587 | F160: 21.82432432 | G160: 5.345060893 | H160: 21.8487395 | I160: 12.18836565 | J160: 6.145251397 | K160: 2.808988764 | L160: 0.2808988764 | M160: 74.93087558 | N160: 66.7238422 | O160: 58.63309353 | P160: 36.83274021 | Q160: 15.70026762 | R160: 40.53738318 | S160: 47.7124183 | T160: 31.07142857 | U160: 37.98358734 | V160: 21.86637217 | W160: 50.07132668 | X160: 86.66666667 | Y160: 65.71428571 | Z160: 40.95860566 | AA160: 64.18511066 | BB160: no facilities/bush/field | BC160: 1122 | BD160: 855 | BE160: 609 | BF160: 323 | BG160: 79 | BH160: 78 | BI160: 44 | BJ160: 22 | BK160: 10 | BL160: 1 | BM160: 813 | BN160: 778 | BO160: 652 | BP160: 414 | BQ160: 176 | BR160: 347 | BS160: 219 | BT160: 348 | BU160: 324 | BV160: 396 | BW160: 351 | BX160: 312 | BY160: 184 | BZ160: 188 | CA160: 319
BB161: Total | BC161: 1485 | BD161: 1488 | BE161: 1465 | BF161: 1480 | BG161: 1478 | BH161: 357 | BI161: 361 | BJ161: 358 | BK161: 356 | BL161: 356 | BM161: 1085 | BN161: 1166 | BO161: 1112 | BP161: 1124 | BQ161: 1121 | BR161: 856 | BS161: 459 | BT161: 1120 | BU161: 853 | BV161: 1811 | BW161: 701 | BX161: 360 | BY161: 280 | BZ161: 459 | CA161: 497
A208: =A1026 -> Lesotho
A209: =A1034 -> 2000
A210: Access to hygiene facilities
A211: by wealth quintile and sub-national region
A212: Notes:
A213: WHO/UNICEF JMP customised wealth index excludes water,
A214: sanitation and hygiene assets.
A215: Survey used for analysis: | B215: =A1025 -> MICS00
A220: Access to handwashing | C220: NATIONAL wealth index quintile | H220: URBAN wealth index quintile | M220: RURAL wealth index quintile | R220: SUB-REGIONS: | BA220: Raw numbers of respondents: | BB220: Access to handwashing | BC220: NATIONAL wealth index quintile | BH220: URBAN wealth index quintile | BM220: RURAL wealth index quintile | BR220: SUB-REGIONS:
A221: Weighted percentage (used in graphs) | C221: Poorest | D221: Poor | E221: Middle | F221: Rich | G221: Richest | H221: Poorest | I221: Poor | J221: Middle | K221: Rich | L221: Richest | M221: Poorest | N221: Poor | O221: Middle | P221: Rich | Q221: Richest | R221: berea | S221: butha-buthe | T221: leribe | U221: mafeteng | V221: maseru | W221: mohale's hoek | X221: mokhotlong | Y221: qacha's nek | Z221: quthing | AA221: thaba-tseka | BA221: Hygiene data, raw numbers (weighted) | BC221: Poorest | BD221: Poor | BE221: Middle | BF221: Rich | BG221: Richest | BH221: Poorest | BI221: Poor | BJ221: Middle | BK221: Rich | BL221: Richest | BM221: Poorest | BN221: Poor | BO221: Middle | BP221: Rich | BQ221: Richest | BR221: berea | BS221: butha-buthe | BT221: leribe | BU221: mafeteng | BV221: maseru | BW221: mohale's hoek | BX221: mokhotlong | BY221: qacha's nek | BZ221: quthing | CA221: thaba-tseka
A222: Hygiene ladder | B222: Basic | C222: N/A | D222: N/A | E222: N/A | F222: N/A | G222: N/A | H222: N/A | I222: N/A | J222: N/A | K222: N/A | L222: N/A | M222: N/A | N222: N/A | O222: N/A | P222: N/A | Q222: N/A | R222: N/A | S222: N/A | T222: N/A | U222: N/A | V222: N/A | W222: N/A | X222: N/A | Y222: N/A | Z222: N/A | AA222: N/A | BA222: Hygiene ladder | BB222: Basic | BC222: N/A | BD222: N/A | BE222: N/A | BF222: N/A | BG222: N/A | BH222: N/A | BI222: N/A | BJ222: N/A | BK222: N/A | BL222: N/A | BM222: N/A | BN222: N/A | BO222: N/A | BP222: N/A | BQ222: N/A | BR222: N/A | BS222: N/A | BT222: N/A | BU222: N/A | BV222: N/A | BW222: N/A | BX222: N/A | BY222: N/A | BZ222: N/A | CA222: N/A
B223: Limited | C223: N/A | D223: N/A | E223: N/A | F223: N/A | G223: N/A | H223: N/A | I223: N/A | J223: N/A | K223: N/A | L223: N/A | M223: N/A | N223: N/A | O223: N/A | P223: N/A | Q223: N/A | R223: N/A | S223: N/A | T223: N/A | U223: N/A | V223: N/A | W223: N/A | X223: N/A | Y223: N/A | Z223: N/A | AA223: N/A | BB223: Limited | BC223: N/A | BD223: N/A | BE223: N/A | BF223: N/A | BG223: N/A | BH223: N/A | BI223: N/A | BJ223: N/A | BK223: N/A | BL223: N/A | BM223: N/A | BN223: N/A | BO223: N/A | BP223: N/A | BQ223: N/A | BR223: N/A | BS223: N/A | BT223: N/A | BU223: N/A | BV223: N/A | BW223: N/A | BX223: N/A | BY223: N/A | BZ223: N/A | CA223: N/A
B224: No facility | C224: N/A | D224: N/A | E224: N/A | F224: N/A | G224: N/A | H224: N/A | I224: N/A | J224: N/A | K224: N/A | L224: N/A | M224: N/A | N224: N/A | O224: N/A | P224: N/A | Q224: N/A | R224: N/A | S224: N/A | T224: N/A | U224: N/A | V224: N/A | W224: N/A | X224: N/A | Y224: N/A | Z224: N/A | AA224: N/A | BB224: No facility | BC224: N/A | BD224: N/A | BE224: N/A | BF224: N/A | BG224: N/A | BH224: N/A | BI224: N/A | BJ224: N/A | BK224: N/A | BL224: N/A | BM224: N/A | BN224: N/A | BO224: N/A | BP224: N/A | BQ224: N/A | BR224: N/A | BS224: N/A | BT224: N/A | BU224: N/A | BV224: N/A | BW224: N/A | BX224: N/A | BY224: N/A | BZ224: N/A | CA224: N/A
BA225: Observed handwashing place | BB225: Fixed | BC225: N/A | BD225: N/A | BE225: N/A | BF225: N/A | BG225: N/A | BH225: N/A | BI225: N/A | BJ225: N/A | BK225: N/A | BL225: N/A | BM225: N/A | BN225: N/A | BO225: N/A | BP225: N/A | BQ225: N/A | BR225: N/A | BS225: N/A | BT225: N/A | BU225: N/A | BV225: N/A | BW225: N/A | BX225: N/A | BY225: N/A | BZ225: N/A | CA225: N/A
BB226: Mobile | BC226: N/A | BD226: N/A | BE226: N/A | BF226: N/A | BG226: N/A | BH226: N/A | BI226: N/A | BJ226: N/A | BK226: N/A | BL226: N/A | BM226: N/A | BN226: N/A | BO226: N/A | BP226: N/A | BQ226: N/A | BR226: N/A | BS226: N/A | BT226: N/A | BU226: N/A | BV226: N/A | BW226: N/A | BX226: N/A | BY226: N/A | BZ226: N/A | CA226: N/A
BA227: Water / Soap | BB227: Water and soap | BC227: N/A | BD227: N/A | BE227: N/A | BF227: N/A | BG227: N/A | BH227: N/A | BI227: N/A | BJ227: N/A | BK227: N/A | BL227: N/A | BM227: N/A | BN227: N/A | BO227: N/A | BP227: N/A | BQ227: N/A | BR227: N/A | BS227: N/A | BT227: N/A | BU227: N/A | BV227: N/A | BW227: N/A | BX227: N/A | BY227: N/A | BZ227: N/A | CA227: N/A
BB228: Water only | BC228: N/A | BD228: N/A | BE228: N/A | BF228: N/A | BG228: N/A | BH228: N/A | BI228: N/A | BJ228: N/A | BK228: N/A | BL228: N/A | BM228: N/A | BN228: N/A | BO228: N/A | BP228: N/A | BQ228: N/A | BR228: N/A | BS228: N/A | BT228: N/A | BU228: N/A | BV228: N/A | BW228: N/A | BX228: N/A | BY228: N/A | BZ228: N/A | CA228: N/A
BB229: Soap only | BC229: N/A | BD229: N/A | BE229: N/A | BF229: N/A | BG229: N/A | BH229: N/A | BI229: N/A | BJ229: N/A | BK229: N/A | BL229: N/A | BM229: N/A | BN229: N/A | BO229: N/A | BP229: N/A | BQ229: N/A | BR229: N/A | BS229: N/A | BT229: N/A | BU229: N/A | BV229: N/A | BW229: N/A | BX229: N/A | BY229: N/A | BZ229: N/A | CA229: N/A
BB230: Neither | BC230: N/A | BD230: N/A | BE230: N/A | BF230: N/A | BG230: N/A | BH230: N/A | BI230: N/A | BJ230: N/A | BK230: N/A | BL230: N/A | BM230: N/A | BN230: N/A | BO230: N/A | BP230: N/A | BQ230: N/A | BR230: N/A | BS230: N/A | BT230: N/A | BU230: N/A | BV230: N/A | BW230: N/A | BX230: N/A | BY230: N/A | BZ230: N/A | CA230: N/A
BA259: Raw numbers of respondents: | BB259: Menstrual health and hygiene | BC259: NATIONAL wealth index quintile | BH259: URBAN wealth index quintile | BM259: RURAL wealth index quintile | BR259: SUB-REGIONS:
BA260: MHH data, raw numbers (weighted) | BC260: Poorest | BD260: Poor | BE260: Middle | BF260: Rich | BG260: Richest | BH260: Poorest | BI260: Poor | BJ260: Middle | BK260: Rich | BL260: Richest | BM260: Poorest | BN260: Poor | BO260: Middle | BP260: Rich | BQ260: Richest | BR260: berea | BS260: butha-buthe | BT260: leribe | BU260: mafeteng | BV260: maseru | BW260: mohale's hoek | BX260: mokhotlong | BY260: qacha's nek | BZ260: quthing | CA260: thaba-tseka
BA261: Private place to wash and change | BB261: Yes | BC261: N/A | BD261: N/A | BE261: N/A | BF261: N/A | BG261: N/A | BH261: N/A | BI261: N/A | BJ261: N/A | BK261: N/A | BL261: N/A | BM261: N/A | BN261: N/A | BO261: N/A | BP261: N/A | BQ261: N/A | BR261: N/A | BS261: N/A | BT261: N/A | BU261: N/A | BV261: N/A | BW261: N/A | BX261: N/A | BY261: N/A | BZ261: N/A | CA261: N/A
BB262: No | BC262: N/A | BD262: N/A | BE262: N/A | BF262: N/A | BG262: N/A | BH262: N/A | BI262: N/A | BJ262: N/A | BK262: N/A | BL262: N/A | BM262: N/A | BN262: N/A | BO262: N/A | BP262: N/A | BQ262: N/A | BR262: N/A | BS262: N/A | BT262: N/A | BU262: N/A | BV262: N/A | BW262: N/A | BX262: N/A | BY262: N/A | BZ262: N/A | CA262: N/A
BB263: DK/not sure/missing | BC263: N/A | BD263: N/A | BE263: N/A | BF263: N/A | BG263: N/A | BH263: N/A | BI263: N/A | BJ263: N/A | BK263: N/A | BL263: N/A | BM263: N/A | BN263: N/A | BO263: N/A | BP263: N/A | BQ263: N/A | BR263: N/A | BS263: N/A | BT263: N/A | BU263: N/A | BV263: N/A | BW263: N/A | BX263: N/A | BY263: N/A | BZ263: N/A | CA263: N/A
BA264: Use of menstrual materials | BB264: Materials reusable | BC264: N/A | BD264: N/A | BE264: N/A | BF264: N/A | BG264: N/A | BH264: N/A | BI264: N/A | BJ264: N/A | BK264: N/A | BL264: N/A | BM264: N/A | BN264: N/A | BO264: N/A | BP264: N/A | BQ264: N/A | BR264: N/A | BS264: N/A | BT264: N/A | BU264: N/A | BV264: N/A | BW264: N/A | BX264: N/A | BY264: N/A | BZ264: N/A | CA264: N/A
BB265: Materials not reusable | BC265: N/A | BD265: N/A | BE265: N/A | BF265: N/A | BG265: N/A | BH265: N/A | BI265: N/A | BJ265: N/A | BK265: N/A | BL265: N/A | BM265: N/A | BN265: N/A | BO265: N/A | BP265: N/A | BQ265: N/A | BR265: N/A | BS265: N/A | BT265: N/A | BU265: N/A | BV265: N/A | BW265: N/A | BX265: N/A | BY265: N/A | BZ265: N/A | CA265: N/A
BB266: No materials used | BC266: N/A | BD266: N/A | BE266: N/A | BF266: N/A | BG266: N/A | BH266: N/A | BI266: N/A | BJ266: N/A | BK266: N/A | BL266: N/A | BM266: N/A | BN266: N/A | BO266: N/A | BP266: N/A | BQ266: N/A | BR266: N/A | BS266: N/A | BT266: N/A | BU266: N/A | BV266: N/A | BW266: N/A | BX266: N/A | BY266: N/A | BZ266: N/A | CA266: N/A
BB267: DK/not sure/missing | BC267: N/A | BD267: N/A | BE267: N/A | BF267: N/A | BG267: N/A | BH267: N/A | BI267: N/A | BJ267: N/A | BK267: N/A | BL267: N/A | BM267: N/A | BN267: N/A | BO267: N/A | BP267: N/A | BQ267: N/A | BR267: N/A | BS267: N/A | BT267: N/A | BU267: N/A | BV267: N/A | BW267: N/A | BX267: N/A | BY267: N/A | BZ267: N/A | CA267: N/A
BA268: Use of menstrual materials with private place to wash and change | BB268: Materials reusable | BC268: N/A | BD268: N/A | BE268: N/A | BF268: N/A | BG268: N/A | BH268: N/A | BI268: N/A | BJ268: N/A | BK268: N/A | BL268: N/A | BM268: N/A | BN268: N/A | BO268: N/A | BP268: N/A | BQ268: N/A | BR268: N/A | BS268: N/A | BT268: N/A | BU268: N/A | BV268: N/A | BW268: N/A | BX268: N/A | BY268: N/A | BZ268: N/A | CA268: N/A
BB269: Materials not reusable | BC269: N/A | BD269: N/A | BE269: N/A | BF269: N/A | BG269: N/A | BH269: N/A | BI269: N/A | BJ269: N/A | BK269: N/A | BL269: N/A | BM269: N/A | BN269: N/A | BO269: N/A | BP269: N/A | BQ269: N/A | BR269: N/A | BS269: N/A | BT269: N/A | BU269: N/A | BV269: N/A | BW269: N/A | BX269: N/A | BY269: N/A | BZ269: N/A | CA269: N/A
BB270: No materials used | BC270: N/A | BD270: N/A | BE270: N/A | BF270: N/A | BG270: N/A | BH270: N/A | BI270: N/A | BJ270: N/A | BK270: N/A | BL270: N/A | BM270: N/A | BN270: N/A | BO270: N/A | BP270: N/A | BQ270: N/A | BR270: N/A | BS270: N/A | BT270: N/A | BU270: N/A | BV270: N/A | BW270: N/A | BX270: N/A | BY270: N/A | BZ270: N/A | CA270: N/A
BA271: Awareness of menstruation before menarche | BB271: Yes | BC271: N/A | BD271: N/A | BE271: N/A | BF271: N/A | BG271: N/A | BH271: N/A | BI271: N/A | BJ271: N/A | BK271: N/A | BL271: N/A | BM271: N/A | BN271: N/A | BO271: N/A | BP271: N/A | BQ271: N/A | BR271: N/A | BS271: N/A | BT271: N/A | BU271: N/A | BV271: N/A | BW271: N/A | BX271: N/A | BY271: N/A | BZ271: N/A | CA271: N/A
BB272: No | BC272: N/A | BD272: N/A | BE272: N/A | BF272: N/A | BG272: N/A | BH272: N/A | BI272: N/A | BJ272: N/A | BK272: N/A | BL272: N/A | BM272: N/A | BN272: N/A | BO272: N/A | BP272: N/A | BQ272: N/A | BR272: N/A | BS272: N/A | BT272: N/A | BU272: N/A | BV272: N/A | BW272: N/A | BX272: N/A | BY272: N/A | BZ272: N/A | CA272: N/A
BB273: DK/not sure/missing | BC273: N/A | BD273: N/A | BE273: N/A | BF273: N/A | BG273: N/A | BH273: N/A | BI273: N/A | BJ273: N/A | BK273: N/A | BL273: N/A | BM273: N/A | BN273: N/A | BO273: N/A | BP273: N/A | BQ273: N/A | BR273: N/A | BS273: N/A | BT273: N/A | BU273: N/A | BV273: N/A | BW273: N/A | BX273: N/A | BY273: N/A | BZ273: N/A | CA273: N/A
BA274: Participation in (all) activities during menstruation | BB274: Yes | BC274: N/A | BD274: N/A | BE274: N/A | BF274: N/A | BG274: N/A | BH274: N/A | BI274: N/A | BJ274: N/A | BK274: N/A | BL274: N/A | BM274: N/A | BN274: N/A | BO274: N/A | BP274: N/A | BQ274: N/A | BR274: N/A | BS274: N/A | BT274: N/A | BU274: N/A | BV274: N/A | BW274: N/A | BX274: N/A | BY274: N/A | BZ274: N/A | CA274: N/A
BB275: No | BC275: N/A | BD275: N/A | BE275: N/A | BF275: N/A | BG275: N/A | BH275: N/A | BI275: N/A | BJ275: N/A | BK275: N/A | BL275: N/A | BM275: N/A | BN275: N/A | BO275: N/A | BP275: N/A | BQ275: N/A | BR275: N/A | BS275: N/A | BT275: N/A | BU275: N/A | BV275: N/A | BW275: N/A | BX275: N/A | BY275: N/A | BZ275: N/A | CA275: N/A
BB276: DK/not sure/missing/no such activity | BC276: N/A | BD276: N/A | BE276: N/A | BF276: N/A | BG276: N/A | BH276: N/A | BI276: N/A | BJ276: N/A | BK276: N/A | BL276: N/A | BM276: N/A | BN276: N/A | BO276: N/A | BP276: N/A | BQ276: N/A | BR276: N/A | BS276: N/A | BT276: N/A | BU276: N/A | BV276: N/A | BW276: N/A | BX276: N/A | BY276: N/A | BZ276: N/A | CA276: N/A
BA277: Participation in specific activities during menstruation | BB277: Did not go to school (amongst those usually attending school) | BC277: N/A | BD277: N/A | BE277: N/A | BF277: N/A | BG277: N/A | BH277: N/A | BI277: N/A | BJ277: N/A | BK277: N/A | BL277: N/A | BM277: N/A | BN277: N/A | BO277: N/A | BP277: N/A | BQ277: N/A | BR277: N/A | BS277: N/A | BT277: N/A | BU277: N/A | BV277: N/A | BW277: N/A | BX277: N/A | BY277: N/A | BZ277: N/A | CA277: N/A
BB278: Did not go to work (amongst those who usually work) | BC278: N/A | BD278: N/A | BE278: N/A | BF278: N/A | BG278: N/A | BH278: N/A | BI278: N/A | BJ278: N/A | BK278: N/A | BL278: N/A | BM278: N/A | BN278: N/A | BO278: N/A | BP278: N/A | BQ278: N/A | BR278: N/A | BS278: N/A | BT278: N/A | BU278: N/A | BV278: N/A | BW278: N/A | BX278: N/A | BY278: N/A | BZ278: N/A | CA278: N/A
BB279: Did not participate in social activities | BC279: N/A | BD279: N/A | BE279: N/A | BF279: N/A | BG279: N/A | BH279: N/A | BI279: N/A | BJ279: N/A | BK279: N/A | BL279: N/A | BM279: N/A | BN279: N/A | BO279: N/A | BP279: N/A | BQ279: N/A | BR279: N/A | BS279: N/A | BT279: N/A | BU279: N/A | BV279: N/A | BW279: N/A | BX279: N/A | BY279: N/A | BZ279: N/A | CA279: N/A
BB280: Did not cook food | BC280: N/A | BD280: N/A | BE280: N/A | BF280: N/A | BG280: N/A | BH280: N/A | BI280: N/A | BJ280: N/A | BK280: N/A | BL280: N/A | BM280: N/A | BN280: N/A | BO280: N/A | BP280: N/A | BQ280: N/A | BR280: N/A | BS280: N/A | BT280: N/A | BU280: N/A | BV280: N/A | BW280: N/A | BX280: N/A | BY280: N/A | BZ280: N/A | CA280: N/A
BB281: Did not eat with others | BC281: N/A | BD281: N/A | BE281: N/A | BF281: N/A | BG281: N/A | BH281: N/A | BI281: N/A | BJ281: N/A | BK281: N/A | BL281: N/A | BM281: N/A | BN281: N/A | BO281: N/A | BP281: N/A | BQ281: N/A | BR281: N/A | BS281: N/A | BT281: N/A | BU281: N/A | BV281: N/A | BW281: N/A | BX281: N/A | BY281: N/A | BZ281: N/A | CA281: N/A
BB282: Did not bathe in regular place | BC282: N/A | BD282: N/A | BE282: N/A | BF282: N/A | BG282: N/A | BH282: N/A | BI282: N/A | BJ282: N/A | BK282: N/A | BL282: N/A | BM282: N/A | BN282: N/A | BO282: N/A | BP282: N/A | BQ282: N/A | BR282: N/A | BS282: N/A | BT282: N/A | BU282: N/A | BV282: N/A | BW282: N/A | BX282: N/A | BY282: N/A | BZ282: N/A | CA282: N/A
BB283: Did not participate in other activities | BC283: N/A | BD283: N/A | BE283: N/A | BF283: N/A | BG283: N/A | BH283: N/A | BI283: N/A | BJ283: N/A | BK283: N/A | BL283: N/A | BM283: N/A | BN283: N/A | BO283: N/A | BP283: N/A | BQ283: N/A | BR283: N/A | BS283: N/A | BT283: N/A | BU283: N/A | BV283: N/A | BW283: N/A | BX283: N/A | BY283: N/A | BZ283: N/A | CA283: N/A
BB284: DK/not sure/missing/no such activity | BC284: N/A | BD284: N/A | BE284: N/A | BF284: N/A | BG284: N/A | BH284: N/A | BI284: N/A | BJ284: N/A | BK284: N/A | BL284: N/A | BM284: N/A | BN284: N/A | BO284: N/A | BP284: N/A | BQ284: N/A | BR284: N/A | BS284: N/A | BT284: N/A | BU284: N/A | BV284: N/A | BW284: N/A | BX284: N/A | BY284: N/A | BZ284: N/A | CA284: N/A
BA339: Raw numbers of respondents: | BB339: Basic water, sanitation and hygiene | BC339: NATIONAL wealth index quintile | BH339: URBAN wealth index quintile | BM339: RURAL wealth index quintile | BR339: SUB-REGIONS:
BA340: WatSan data, raw numbers (weighted) | BC340: Poorest | BD340: Poor | BE340: Middle | BF340: Rich | BG340: Richest | BH340: Poorest | BI340: Poor | BJ340: Middle | BK340: Rich | BL340: Richest | BM340: Poorest | BN340: Poor | BO340: Middle | BP340: Rich | BQ340: Richest | BR340: berea | BS340: butha-buthe | BT340: leribe | BU340: mafeteng | BV340: maseru | BW340: mohale's hoek | BX340: mokhotlong | BY340: qacha's nek | BZ340: quthing | CA340: thaba-tseka
BA341: Use of Basic Water Sanitation and Hygiene | BB341: Yes | BC341: N/A | BD341: N/A | BE341: N/A | BF341: N/A | BG341: N/A | BH341: N/A | BI341: N/A | BJ341: N/A | BK341: N/A | BL341: N/A | BM341: N/A | BN341: N/A | BO341: N/A | BP341: N/A | BQ341: N/A | BR341: N/A | BS341: N/A | BT341: N/A | BU341: N/A | BV341: N/A | BW341: N/A | BX341: N/A | BY341: N/A | BZ341: N/A | CA341: N/A
BB342: No | BC342: N/A | BD342: N/A | BE342: N/A | BF342: N/A | BG342: N/A | BH342: N/A | BI342: N/A | BJ342: N/A | BK342: N/A | BL342: N/A | BM342: N/A | BN342: N/A | BO342: N/A | BP342: N/A | BQ342: N/A | BR342: N/A | BS342: N/A | BT342: N/A | BU342: N/A | BV342: N/A | BW342: N/A | BX342: N/A | BY342: N/A | BZ342: N/A | CA342: N/A
BA343: Use of Basic Water and Sanitation | BB343: Yes | BC343: N/A | BD343: N/A | BE343: N/A | BF343: N/A | BG343: N/A | BH343: N/A | BI343: N/A | BJ343: N/A | BK343: N/A | BL343: N/A | BM343: N/A | BN343: N/A | BO343: N/A | BP343: N/A | BQ343: N/A | BR343: N/A | BS343: N/A | BT343: N/A | BU343: N/A | BV343: N/A | BW343: N/A | BX343: N/A | BY343: N/A | BZ343: N/A | CA343: N/A
BB344: No | BC344: N/A | BD344: N/A | BE344: N/A | BF344: N/A | BG344: N/A | BH344: N/A | BI344: N/A | BJ344: N/A | BK344: N/A | BL344: N/A | BM344: N/A | BN344: N/A | BO344: N/A | BP344: N/A | BQ344: N/A | BR344: N/A | BS344: N/A | BT344: N/A | BU344: N/A | BV344: N/A | BW344: N/A | BX344: N/A | BY344: N/A | BZ344: N/A | CA344: N/A
BA345: Use of Basic Water and Hygiene | BB345: Yes | BC345: N/A | BD345: N/A | BE345: N/A | BF345: N/A | BG345: N/A | BH345: N/A | BI345: N/A | BJ345: N/A | BK345: N/A | BL345: N/A | BM345: N/A | BN345: N/A | BO345: N/A | BP345: N/A | BQ345: N/A | BR345: N/A | BS345: N/A | BT345: N/A | BU345: N/A | BV345: N/A | BW345: N/A | BX345: N/A | BY345: N/A | BZ345: N/A | CA345: N/A
BB346: No | BC346: N/A | BD346: N/A | BE346: N/A | BF346: N/A | BG346: N/A | BH346: N/A | BI346: N/A | BJ346: N/A | BK346: N/A | BL346: N/A | BM346: N/A | BN346: N/A | BO346: N/A | BP346: N/A | BQ346: N/A | BR346: N/A | BS346: N/A | BT346: N/A | BU346: N/A | BV346: N/A | BW346: N/A | BX346: N/A | BY346: N/A | BZ346: N/A | CA346: N/A
BA347: Use of Basic Sanitation and Hygiene | BB347: Yes | BC347: N/A | BD347: N/A | BE347: N/A | BF347: N/A | BG347: N/A | BH347: N/A | BI347: N/A | BJ347: N/A | BK347: N/A | BL347: N/A | BM347: N/A | BN347: N/A | BO347: N/A | BP347: N/A | BQ347: N/A | BR347: N/A | BS347: N/A | BT347: N/A | BU347: N/A | BV347: N/A | BW347: N/A | BX347: N/A | BY347: N/A | BZ347: N/A | CA347: N/A
BB348: No | BC348: N/A | BD348: N/A | BE348: N/A | BF348: N/A | BG348: N/A | BH348: N/A | BI348: N/A | BJ348: N/A | BK348: N/A | BL348: N/A | BM348: N/A | BN348: N/A | BO348: N/A | BP348: N/A | BQ348: N/A | BR348: N/A | BS348: N/A | BT348: N/A | BU348: N/A | BV348: N/A | BW348: N/A | BX348: N/A | BY348: N/A | BZ348: N/A | CA348: N/A
BA349: Use of Basic Water | BB349: Yes | BC349: N/A | BD349: N/A | BE349: N/A | BF349: N/A | BG349: N/A | BH349: N/A | BI349: N/A | BJ349: N/A | BK349: N/A | BL349: N/A | BM349: N/A | BN349: N/A | BO349: N/A | BP349: N/A | BQ349: N/A | BR349: N/A | BS349: N/A | BT349: N/A | BU349: N/A | BV349: N/A | BW349: N/A | BX349: N/A | BY349: N/A | BZ349: N/A | CA349: N/A
BB350: No | BC350: N/A | BD350: N/A | BE350: N/A | BF350: N/A | BG350: N/A | BH350: N/A | BI350: N/A | BJ350: N/A | BK350: N/A | BL350: N/A | BM350: N/A | BN350: N/A | BO350: N/A | BP350: N/A | BQ350: N/A | BR350: N/A | BS350: N/A | BT350: N/A | BU350: N/A | BV350: N/A | BW350: N/A | BX350: N/A | BY350: N/A | BZ350: N/A | CA350: N/A
BA351: Use of Basic Sanitation | BB351: Yes | BC351: N/A | BD351: N/A | BE351: N/A | BF351: N/A | BG351: N/A | BH351: N/A | BI351: N/A | BJ351: N/A | BK351: N/A | BL351: N/A | BM351: N/A | BN351: N/A | BO351: N/A | BP351: N/A | BQ351: N/A | BR351: N/A | BS351: N/A | BT351: N/A | BU351: N/A | BV351: N/A | BW351: N/A | BX351: N/A | BY351: N/A | BZ351: N/A | CA351: N/A
BB352: No | BC352: N/A | BD352: N/A | BE352: N/A | BF352: N/A | BG352: N/A | BH352: N/A | BI352: N/A | BJ352: N/A | BK352: N/A | BL352: N/A | BM352: N/A | BN352: N/A | BO352: N/A | BP352: N/A | BQ352: N/A | BR352: N/A | BS352: N/A | BT352: N/A | BU352: N/A | BV352: N/A | BW352: N/A | BX352: N/A | BY352: N/A | BZ352: N/A | CA352: N/A
BA353: Access to Basic Hygiene | BB353: Yes | BC353: N/A | BD353: N/A | BE353: N/A | BF353: N/A | BG353: N/A | BH353: N/A | BI353: N/A | BJ353: N/A | BK353: N/A | BL353: N/A | BM353: N/A | BN353: N/A | BO353: N/A | BP353: N/A | BQ353: N/A | BR353: N/A | BS353: N/A | BT353: N/A | BU353: N/A | BV353: N/A | BW353: N/A | BX353: N/A | BY353: N/A | BZ353: N/A | CA353: N/A
BB354: No | BC354: N/A | BD354: N/A | BE354: N/A | BF354: N/A | BG354: N/A | BH354: N/A | BI354: N/A | BJ354: N/A | BK354: N/A | BL354: N/A | BM354: N/A | BN354: N/A | BO354: N/A | BP354: N/A | BQ354: N/A | BR354: N/A | BS354: N/A | BT354: N/A | BU354: N/A | BV354: N/A | BW354: N/A | BX354: N/A | BY354: N/A | BZ354: N/A | CA354: N/A
C399: INITIAL (national) Wealth Index | H399: URBAN Wealth Index | M399: RURAL Wealth Index
C400: Component Matrix | H400: Component Matrix | M400: Component Matrix
E401: Component | J401: Component | O401: Component
B402: Note: The INITIAL (national) Wealth Index is based on the first component of the Principal Component Analysis (PCA) which has been obtained at national level. The final national-level (NATIONAL) Wealth Index is based on the URBAN and RURAL specific wealth indexes. Regression procedures are used to establish the relationships between the two sets of scores (urban and rural) and the initial (national) wealth factors. This allows best use of the available information for each area and a better precision of the FINAL (NATIONAL) Wealth Index. For dependency reasons, all WASH variables (contained in the generic MICS and DHS scripts) have been excluded from the sets of asset variables used in the PCAs. The PCA can extracts as many components as there are asset variables in the input. Only the first of the components is used to represent the Wealth Index. The scores represent the weights of the asset variables on the Wealth Index (correlations between the variables and the component). The communalities are the proportion of each variable's variance that can be explained by the component. Proportion of explained variance is the part of the model's total variance that is explained by the component. For more information on the procedure used: The DHS Wealth Index, DHS Comparative Reports No. 6, Shea Oscar Rutstein, Kiersten Johnson, ORC Macro International Inc., 2004. The DHS Wealth Index: Approaches for Rural and Urban Areas, Shea O. Rutstein, ORC Macro International Inc., 2008. MICS Methodological Paper No. 4, Review of options for reporting water, sanitation and hygiene coverage by wealth quintile, UNICEF, 2016. | E402: 1 | J402: 1 | O402: 1
C403: Household member owns: asset2c | E403: 0.669280866 | H403: Household member owns: asset2c | J403: 0.7283817603 | M403: Household member owns: asset2e | O403: -0.7161067199
C404: Household member owns: asset2e | E404: -0.6552837382 | H404: Household member owns: asset2d | J404: 0.7087380212 | M404: Household member owns: asset2b | O404: 0.6901501696
C405: fuel7 | E405: -0.6358939761 | H405: Household member owns: asset2a | J405: 0.657358804 | M405: fuel7 | O405: -0.6234024948
C406: Household member owns: asset2d | E406: 0.6345878309 | H406: Household member owns: asset2h | J406: 0.5994123615 | M406: Household member owns: asset2c | O406: 0.5249826695
C407: Household member owns: asset2b | E407: 0.6179167571 | H407: Household member owns: asset2k | J407: -0.5729206755 | M407: Household member owns: asset2d | O407: 0.5000644596
C408: fuel2 | E408: 0.5716851312 | H408: Household member owns: asset2e | J408: -0.5168668464 | M408: fuel2 | O408: 0.4677176834
C409: Household member owns: asset2a | E409: 0.4941864819 | H409: fuel4 | J409: -0.5147461757 | M409: floor2 | O409: -0.4236538268
C410: Household member owns: asset2h | E410: 0.4662831014 | H410: fuel2 | J410: 0.5096543448 | M410: Household member owns: asset2h | O410: 0.366624102
C411: floor2 | E411: -0.4291001189 | H411: Household member owns: asset2b | J411: 0.4649635715 | M411: fuel4 | O411: 0.3552729906
C412: floor9 | E412: 0.3624783114 | H412: fuel1 | J412: 0.4495425999 | M412: floor9 | O412: 0.3517888427
C413: floor1 | E413: -0.344755104 | H413: floor7 | J413: 0.4076607663 | M413: floor8 | O413: 0.3514154422
C414: fuel1 | E414: 0.3287324287 | H414: Persons per sleeping rooms | J414: -0.3538538876 | M414: Household member owns: asset2i | O414: 0.3307064792
C415: floor7 | E415: 0.3268517067 | H415: Household member owns: asset2f | J415: 0.3245809133 | M415: Household member owns: asset2k | O415: -0.3110072748
C416: Persons per sleeping rooms | E416: -0.2826462598 | H416: floor1 | J416: -0.2872426914 | M416: floor1 | O416: -0.2993197407
C417: Household member owns: asset2f | E417: 0.2693819186 | H417: floor9 | J417: 0.2806312234 | M417: floor7 | O417: 0.260020214
... 141 more rows

Sheet HBS02
A2: =A1026 -> Lesotho
A3: =A1034 -> 2002
A4: Use of drinking water sources
A5: by wealth quintile and sub-national region
A6: Notes:
A7: WHO/UNICEF JMP customised wealth index excludes water,
A8: sanitation and hygiene assets.
A9: Survey used for analysis: | B9: =A1025 -> HBS02
A10: =B1028 -> Ratio of Improved wells based on: | B10: MICS00
A11: =B1027 -> Time to improved source based on: | B11: MICS00
A14: Use of drinking water sources | C14: NATIONAL wealth index quintile | H14: URBAN wealth index quintile | M14: RURAL wealth index quintile | R14: SUB-REGIONS: | BA14: Raw numbers of respondents: | BB14: Use of drinking water sources | BC14: NATIONAL wealth index quintile | BH14: URBAN wealth index quintile | BM14: RURAL wealth index quintile | BR14: SUB-REGIONS:
A15: Weighted percentage (used in graphs) | C15: Poorest | D15: Poor | E15: Middle | F15: Rich | G15: Richest | H15: Poorest | I15: Poor | J15: Middle | K15: Rich | L15: Richest | M15: Poorest | N15: Poor | O15: Middle | P15: Rich | Q15: Richest | R15: Berea | S15: Butha Buthe | T15: Leribe | U15: Mafeteng | V15: Maseru | W15: Mohale's Hoek | X15: Mokhotlong | Y15: Qacha's Nek | Z15: Quthing | AA15: Thaba Tseka | BA15: Water data, raw numbers (weighted) | BC15: Poorest | BD15: Poor | BE15: Middle | BF15: Rich | BG15: Richest | BH15: Poorest | BI15: Poor | BJ15: Middle | BK15: Rich | BL15: Richest | BM15: Poorest | BN15: Poor | BO15: Middle | BP15: Rich | BQ15: Richest | BR15: Berea | BS15: Butha Buthe | BT15: Leribe | BU15: Mafeteng | BV15: Maseru | BW15: Mohale's Hoek | BX15: Mokhotlong | BY15: Qacha's Nek | BZ15: Quthing | CA15: Thaba Tseka
A16: Water | B16: Improved | C16: =C58+C59+C60+C63+C66+(C61+C62)*MICS00!C24/100 -> 68.88362373 | D16: =D58+D59+D60+D63+D66+(D61+D62)*MICS00!D24/100 -> 80.52322556 | E16: =E58+E59+E60+E63+E66+(E61+E62)*MICS00!E24/100 -> 82.8623712 | F16: =F58+F59+F60+F63+F66+(F61+F62)*MICS00!F24/100 -> 84.310661 | G16: =G58+G59+G60+G63+G66+(G61+G62)*MICS00!G24/100 -> 91.28353527 | H16: =H58+H59+H60+H63+H66+(H61+H62)*MICS00!H24/100 -> 90.08206202 | I16: =I58+I59+I60+I63+I66+(I61+I62)*MICS00!I24/100 -> 86.81317457 | J16: =J58+J59+J60+J63+J66+(J61+J62)*MICS00!J24/100 -> 85.77164242 | K16: =K58+K59+K60+K63+K66+(K61+K62)*MICS00!K24/100 -> 92.50468025 | L16: =L58+L59+L60+L63+L66+(L61+L62)*MICS00!L24/100 -> 94.46139024 | M16: =M58+M59+M60+M63+M66+(M61+M62)*MICS00!M24/100 -> 65.59464899 | N16: =N58+N59+N60+N63+N66+(N61+N62)*MICS00!N24/100 -> 73.24496667 | O16: =O58+O59+O60+O63+O66+(O61+O62)*MICS00!O24/100 -> 75.57847848 | P16: =P58+P59+P60+P63+P66+(P61+P62)*MICS00!P24/100 -> 74.73911853 | Q16: =Q58+Q59+Q60+Q63+Q66+(Q61+Q62)*MICS00!Q24/100 -> 78.6239005 | R16: =R58+R59+R60+R63+R66+(R61+R62)*MICS00!R24/100 -> 85.05750881 | S16: =S58+S59+S60+S63+S66+(S61+S62)*MICS00!S24/100 -> 77.71883134 | T16: =T58+T59+T60+T63+T66+(T61+T62)*MICS00!T24/100 -> 79.35421171 | U16: =U58+U59+U60+U63+U66+(U61+U62)*MICS00!U24/100 -> 79.66527922 | V16: =V58+V59+V60+V63+V66+(V61+V62)*MICS00!V24/100 -> 82.4875208 | W16: =W58+W59+W60+W63+W66+(W61+W62)*MICS00!W24/100 -> 83.84820371 | X16: =X58+X59+X60+X63+X66+(X61+X62)*MICS00!X24/100 -> 73.18693694 | Y16: =Y58+Y59+Y60+Y63+Y66+(Y61+Y62)*MICS00!Y24/100 -> 84.30115274 | Z16: =Z58+Z59+Z60+Z63+Z66+(Z61+Z62)*MICS00!Z24/100 -> 82.74603837 | AA16: =AA58+AA59+AA60+AA63+AA66+(AA61+AA62)*MICS00!AA24/100 -> 80.01343362 | BA16: Water | BB16: Improved | BC16: N/A | BD16: N/A | BE16: N/A | BF16: N/A | BG16: N/A | BH16: N/A | BI16: N/A | BJ16: N/A | BK16: N/A | BL16: N/A | BM16: N/A | BN16: N/A | BO16: N/A | BP16: N/A | BQ16: N/A | BR16: N/A | BS16: N/A | BT16: N/A | BU16: N/A | BV16: N/A | BW16: N/A | BX16: N/A | BY16: N/A | BZ16: N/A | CA16: N/A
B17: Not Improved | C17: =100-C16 -> 31.11637627 | D17: =100-D16 -> 19.47677444 | E17: 17.1376288 | F17: 15.689339 | G17: 8.71646473 | H17: 9.917937981 | I17: 13.18682543 | J17: 14.22835758 | K17: 7.495319747 | L17: 5.538609757 | M17: 34.40535101 | N17: 26.75503333 | O17: 24.42152152 | P17: 25.26088147 | Q17: 21.3760995 | R17: 14.94249119 | S17: 22.28116866 | T17: 20.64578829 | U17: 20.33472078 | V17: 17.5124792 | W17: 16.15179629 | X17: 26.81306306 | Y17: 15.69884726 | Z17: 17.25396163 | AA17: 19.98656638 | BB17: Not Improved | BC17: N/A | BD17: N/A | BE17: N/A | BF17: N/A | BG17: N/A | BH17: N/A | BI17: N/A | BJ17: N/A | BK17: N/A | BL17: N/A | BM17: N/A | BN17: N/A | BO17: N/A | BP17: N/A | BQ17: N/A | BR17: N/A | BS17: N/A | BT17: N/A | BU17: N/A | BV17: N/A | BW17: N/A | BX17: N/A | BY17: N/A | BZ17: N/A | CA17: N/A
A18: Water ladder | B18: Basic | C18: =C16*MICS00!C23/100 -> 61.74234092 | D18: =D16*MICS00!D23/100 -> 71.79000808 | E18: =E16*MICS00!E23/100 -> 74.77642808 | F18: =F16*MICS00!F23/100 -> 76.17125688 | G18: =G16*MICS00!G23/100 -> 84.54725029 | H18: =H16*MICS00!H23/100 -> 82.38517697 | I18: =I16*MICS00!I23/100 -> 80.02647689 | J18: =J16*MICS00!J23/100 -> 80.72625169 | K18: =K16*MICS00!K23/100 -> 87.60567849 | L18: =L16*MICS00!L23/100 -> 93.35657866 | M18: =M16*MICS00!M23/100 -> 59.57941917 | N18: =N16*MICS00!N23/100 -> 64.97237526 | O18: =O16*MICS00!O23/100 -> 66.74463035 | P18: =P16*MICS00!P23/100 -> 67.56549778 | Q18: =Q16*MICS00!Q23/100 -> 68.54814855 | R18: =R16*MICS00!R23/100 -> 81.16270412 | S18: =S16*MICS00!S23/100 -> 71.37443695 | T18: =T16*MICS00!T23/100 -> 64.80923774 | U18: =U16*MICS00!U23/100 -> 70.88584029 | V18: =V16*MICS00!V23/100 -> 75.8906999 | W18: =W16*MICS00!W23/100 -> 73.40860523 | X18: =X16*MICS00!X23/100 -> 67.22986067 | Y18: =Y16*MICS00!Y23/100 -> 82.46051622 | Z18: =Z16*MICS00!Z23/100 -> 78.57190587 | AA18: =AA16*MICS00!AA23/100 -> 72.93259879 | BA18: Water ladder | BB18: Basic | BC18: N/A | BD18: N/A | BE18: N/A | BF18: N/A | BG18: N/A | BH18: N/A | BI18: N/A | BJ18: N/A | BK18: N/A | BL18: N/A | BM18: N/A | BN18: N/A | BO18: N/A | BP18: N/A | BQ18: N/A | BR18: N/A | BS18: N/A | BT18: N/A | BU18: N/A | BV18: N/A | BW18: N/A | BX18: N/A | BY18: N/A | BZ18: N/A | CA18: N/A
B19: Limited | C19: =C16*MICS00!C22/100 -> 7.141282806 | D19: =D16*MICS00!D22/100 -> 8.733217478 | E19: =E16*MICS00!E22/100 -> 8.085943116 | F19: =F16*MICS00!F22/100 -> 8.139404119 | G19: =G16*MICS00!G22/100 -> 6.736284982 | H19: =H16*MICS00!H22/100 -> 7.696885046 | I19: =I16*MICS00!I22/100 -> 6.786697687 | J19: =J16*MICS00!J22/100 -> 5.045390731 | K19: =K16*MICS00!K22/100 -> 4.899001758 | L19: =L16*MICS00!L22/100 -> 1.104811582 | M19: =M16*MICS00!M22/100 -> 6.01522982 | N19: =N16*MICS00!N22/100 -> 8.272591413 | O19: =O16*MICS00!O22/100 -> 8.833848134 | P19: =P16*MICS00!P22/100 -> 7.173620752 | Q19: =Q16*MICS00!Q22/100 -> 10.07575195 | R19: =R16*MICS00!R22/100 -> 3.894804687 | S19: =S16*MICS00!S22/100 -> 6.344394395 | T19: =T16*MICS00!T22/100 -> 14.54497397 | U19: =U16*MICS00!U22/100 -> 8.779438935 | V19: =V16*MICS00!V22/100 -> 6.596820897 | W19: =W16*MICS00!W22/100 -> 10.43959849 | X19: =X16*MICS00!X22/100 -> 5.957076262 | Y19: =Y16*MICS00!Y22/100 -> 1.840636523 | Z19: =Z16*MICS00!Z22/100 -> 4.174132499 | AA19: =AA16*MICS00!AA22/100 -> 7.080834834 | BB19: Limited | BC19: N/A | BD19: N/A | BE19: N/A | BF19: N/A | BG19: N/A | BH19: N/A | BI19: N/A | BJ19: N/A | BK19: N/A | BL19: N/A | BM19: N/A | BN19: N/A | BO19: N/A | BP19: N/A | BQ19: N/A | BR19: N/A | BS19: N/A | BT19: N/A | BU19: N/A | BV19: N/A | BW19: N/A | BX19: N/A | BY19: N/A | BZ19: N/A | CA19: N/A
B20: Unimproved | C20: =100-(C18+C19+C21) -> 30.80229064 | D20: =100-(D18+D19+D21) -> 19.33957988 | E20: 16.82722151 | F20: 15.41145352 | G20: 8.593312791 | H20: 9.874002646 | I20: 13.14200208 | J20: 14.22835758 | K20: 7.495319747 | L20: 5.538609757 | M20: 34.35162367 | N20: 26.21944892 | O20: 24.1605561 | P20: 24.76521352 | Q20: 20.62178118 | R20: 14.94249119 | S20: 21.84870026 | T20: 20.26795454 | U20: 19.64099896 | V20: 17.5124792 | W20: 16.10984998 | X20: 26.81306306 | Y20: 15.23775216 | Z20: 16.62844037 | AA20: 19.98656638 | BB20: Unimproved | BC20: N/A | BD20: N/A | BE20: N/A | BF20: N/A | BG20: N/A | BH20: N/A | BI20: N/A | BJ20: N/A | BK20: N/A | BL20: N/A | BM20: N/A | BN20: N/A | BO20: N/A | BP20: N/A | BQ20: N/A | BR20: N/A | BS20: N/A | BT20: N/A | BU20: N/A | BV20: N/A | BW20: N/A | BX20: N/A | BY20: N/A | BZ20: N/A | CA20: N/A
B21: Surface water | C21: =C65 -> 0.3140856244 | D21: 0.1371945642 | E21: 0.3104072946 | F21: 0.2778854818 | G21: 0.1231519385 | H21: 0.04393533405 | I21: 0.04482334264 | J21: 0 | K21: 0 | L21: 0 | M21: 0.05372734428 | N21: 0.5355844092 | O21: 0.2609654187 | P21: 0.4956679439 | Q21: 0.7543183157 | R21: 0 | S21: 0.4324683965 | T21: 0.3778337531 | U21: 0.6937218176 | V21: 0 | W21: 0.04194630872 | X21: 0 | Y21: 0.4610951009 | Z21: 0.6255212677 | AA21: 0 | BB21: Surface water | BC21: N/A | BD21: N/A | BE21: N/A | BF21: N/A | BG21: N/A | BH21: N/A | BI21: N/A | BJ21: N/A | BK21: N/A | BL21: N/A | BM21: N/A | BN21: N/A | BO21: N/A | BP21: N/A | BQ21: N/A | BR21: N/A | BS21: N/A | BT21: N/A | BU21: N/A | BV21: N/A | BW21: N/A | BX21: N/A | BY21: N/A | BZ21: N/A | CA21: N/A
A22: Improved water point at more than 30 minutes | B22: Yes | C22: N/A | D22: N/A | E22: N/A | F22: N/A | G22: N/A | H22: N/A | I22: N/A | J22: N/A | K22: N/A | L22: N/A | M22: N/A | N22: N/A | O22: N/A | P22: N/A | Q22: N/A | R22: N/A | S22: N/A | T22: N/A | U22: N/A | V22: N/A | W22: N/A | X22: N/A | Y22: N/A | Z22: N/A | AA22: N/A | BA22: Improved water point at more than 30 minutes | BB22: Yes | BC22: N/A | BD22: N/A | BE22: N/A | BF22: N/A | BG22: N/A | BH22: N/A | BI22: N/A | BJ22: N/A | BK22: N/A | BL22: N/A | BM22: N/A | BN22: N/A | BO22: N/A | BP22: N/A | BQ22: N/A | BR22: N/A | BS22: N/A | BT22: N/A | BU22: N/A | BV22: N/A | BW22: N/A | BX22: N/A | BY22: N/A | BZ22: N/A | CA22: N/A
B23: No | C23: N/A | D23: N/A | E23: N/A | F23: N/A | G23: N/A | H23: N/A | I23: N/A | J23: N/A | K23: N/A | L23: N/A | M23: N/A | N23: N/A | O23: N/A | P23: N/A | Q23: N/A | R23: N/A | S23: N/A | T23: N/A | U23: N/A | V23: N/A | W23: N/A | X23: N/A | Y23: N/A | Z23: N/A | AA23: N/A | BB23: No | BC23: N/A | BD23: N/A | BE23: N/A | BF23: N/A | BG23: N/A | BH23: N/A | BI23: N/A | BJ23: N/A | BK23: N/A | BL23: N/A | BM23: N/A | BN23: N/A | BO23: N/A | BP23: N/A | BQ23: N/A | BR23: N/A | BS23: N/A | BT23: N/A | BU23: N/A | BV23: N/A | BW23: N/A | BX23: N/A | BY23: N/A | BZ23: N/A | CA23: N/A
A24: Manually calculated ratios | B24: Improved wells
B25: Improved springs
B26: Other
C27: NATIONAL wealth index quintile | H27: URBAN wealth index quintile | M27: RURAL wealth index quintile | R27: SUB-REGIONS: | BA27: Raw numbers of respondents: | BB27: Use of drinking water sources | BC27: NATIONAL wealth index quintile | BH27: URBAN wealth index quintile | BM27: RURAL wealth index quintile | BR27: SUB-REGIONS:
A28: Percentage based on weighted population | C28: Poorest | D28: Poor | E28: Middle | F28: Rich | G28: Richest | H28: Poorest | I28: Poor | J28: Middle | K28: Rich | L28: Richest | M28: Poorest | N28: Poor | O28: Middle | P28: Rich | Q28: Richest | R28: Berea | S28: Butha Buthe | T28: Leribe | U28: Mafeteng | V28: Maseru | W28: Mohale's Hoek | X28: Mokhotlong | Y28: Qacha's Nek | Z28: Quthing | AA28: Thaba Tseka | BA28: Water data, raw numbers (weighted) | BC28: Poorest | BD28: Poor | BE28: Middle | BF28: Rich | BG28: Richest | BH28: Poorest | BI28: Poor | BJ28: Middle | BK28: Rich | BL28: Richest | BM28: Poorest | BN28: Poor | BO28: Middle | BP28: Rich | BQ28: Richest | BR28: Berea | BS28: Butha Buthe | BT28: Leribe | BU28: Mafeteng | BV28: Maseru | BW28: Mohale's Hoek | BX28: Mokhotlong | BY28: Qacha's Nek | BZ28: Quthing | CA28: Thaba Tseka
A29: Piped water | B29: Yes | C29: N/A | D29: N/A | E29: N/A | F29: N/A | G29: N/A | H29: N/A | I29: N/A | J29: N/A | K29: N/A | L29: N/A | M29: N/A | N29: N/A | O29: N/A | P29: N/A | Q29: N/A | R29: N/A | S29: N/A | T29: N/A | U29: N/A | V29: N/A | W29: N/A | X29: N/A | Y29: N/A | Z29: N/A | AA29: N/A | BA29: Piped water | BB29: Yes | BC29: N/A | BD29: N/A | BE29: N/A | BF29: N/A | BG29: N/A | BH29: N/A | BI29: N/A | BJ29: N/A | BK29: N/A | BL29: N/A | BM29: N/A | BN29: N/A | BO29: N/A | BP29: N/A | BQ29: N/A | BR29: N/A | BS29: N/A | BT29: N/A | BU29: N/A | BV29: N/A | BW29: N/A | BX29: N/A | BY29: N/A | BZ29: N/A | CA29: N/A
B30: No | C30: N/A | D30: N/A | E30: N/A | F30: N/A | G30: N/A | H30: N/A | I30: N/A | J30: N/A | K30: N/A | L30: N/A | M30: N/A | N30: N/A | O30: N/A | P30: N/A | Q30: N/A | R30: N/A | S30: N/A | T30: N/A | U30: N/A | V30: N/A | W30: N/A | X30: N/A | Y30: N/A | Z30: N/A | AA30: N/A | BB30: No | BC30: N/A | BD30: N/A | BE30: N/A | BF30: N/A | BG30: N/A | BH30: N/A | BI30: N/A | BJ30: N/A | BK30: N/A | BL30: N/A | BM30: N/A | BN30: N/A | BO30: N/A | BP30: N/A | BQ30: N/A | BR30: N/A | BS30: N/A | BT30: N/A | BU30: N/A | BV30: N/A | BW30: N/A | BX30: N/A | BY30: N/A | BZ30: N/A | CA30: N/A
A31: Piped water on premises | B31: Yes | C31: N/A | D31: N/A | E31: N/A | F31: N/A | G31: N/A | H31: N/A | I31: N/A | J31: N/A | K31: N/A | L31: N/A | M31: N/A | N31: N/A | O31: N/A | P31: N/A | Q31: N/A | R31: N/A | S31: N/A | T31: N/A | U31: N/A | V31: N/A | W31: N/A | X31: N/A | Y31: N/A | Z31: N/A | AA31: N/A | BA31: Piped water on premises | BB31: Yes | BC31: N/A | BD31: N/A | BE31: N/A | BF31: N/A | BG31: N/A | BH31: N/A | BI31: N/A | BJ31: N/A | BK31: N/A | BL31: N/A | BM31: N/A | BN31: N/A | BO31: N/A | BP31: N/A | BQ31: N/A | BR31: N/A | BS31: N/A | BT31: N/A | BU31: N/A | BV31: N/A | BW31: N/A | BX31: N/A | BY31: N/A | BZ31: N/A | CA31: N/A
B32: No | C32: N/A | D32: N/A | E32: N/A | F32: N/A | G32: N/A | H32: N/A | I32: N/A | J32: N/A | K32: N/A | L32: N/A | M32: N/A | N32: N/A | O32: N/A | P32: N/A | Q32: N/A | R32: N/A | S32: N/A | T32: N/A | U32: N/A | V32: N/A | W32: N/A | X32: N/A | Y32: N/A | Z32: N/A | AA32: N/A | BB32: No | BC32: N/A | BD32: N/A | BE32: N/A | BF32: N/A | BG32: N/A | BH32: N/A | BI32: N/A | BJ32: N/A | BK32: N/A | BL32: N/A | BM32: N/A | BN32: N/A | BO32: N/A | BP32: N/A | BQ32: N/A | BR32: N/A | BS32: N/A | BT32: N/A | BU32: N/A | BV32: N/A | BW32: N/A | BX32: N/A | BY32: N/A | BZ32: N/A | CA32: N/A
A33: Piped water into dwelling | B33: Yes | C33: N/A | D33: N/A | E33: N/A | F33: N/A | G33: N/A | H33: N/A | I33: N/A | J33: N/A | K33: N/A | L33: N/A | M33: N/A | N33: N/A | O33: N/A | P33: N/A | Q33: N/A | R33: N/A | S33: N/A | T33: N/A | U33: N/A | V33: N/A | W33: N/A | X33: N/A | Y33: N/A | Z33: N/A | AA33: N/A | BA33: Piped water into dwelling | BB33: Yes | BC33: N/A | BD33: N/A | BE33: N/A | BF33: N/A | BG33: N/A | BH33: N/A | BI33: N/A | BJ33: N/A | BK33: N/A | BL33: N/A | BM33: N/A | BN33: N/A | BO33: N/A | BP33: N/A | BQ33: N/A | BR33: N/A | BS33: N/A | BT33: N/A | BU33: N/A | BV33: N/A | BW33: N/A | BX33: N/A | BY33: N/A | BZ33: N/A | CA33: N/A
B34: No | C34: N/A | D34: N/A | E34: N/A | F34: N/A | G34: N/A | H34: N/A | I34: N/A | J34: N/A | K34: N/A | L34: N/A | M34: N/A | N34: N/A | O34: N/A | P34: N/A | Q34: N/A | R34: N/A | S34: N/A | T34: N/A | U34: N/A | V34: N/A | W34: N/A | X34: N/A | Y34: N/A | Z34: N/A | AA34: N/A | BB34: No | BC34: N/A | BD34: N/A | BE34: N/A | BF34: N/A | BG34: N/A | BH34: N/A | BI34: N/A | BJ34: N/A | BK34: N/A | BL34: N/A | BM34: N/A | BN34: N/A | BO34: N/A | BP34: N/A | BQ34: N/A | BR34: N/A | BS34: N/A | BT34: N/A | BU34: N/A | BV34: N/A | BW34: N/A | BX34: N/A | BY34: N/A | BZ34: N/A | CA34: N/A
A35: Water source on premises | B35: Yes | C35: N/A | D35: N/A | E35: N/A | F35: N/A | G35: N/A | H35: N/A | I35: N/A | J35: N/A | K35: N/A | L35: N/A | M35: N/A | N35: N/A | O35: N/A | P35: N/A | Q35: N/A | R35: N/A | S35: N/A | T35: N/A | U35: N/A | V35: N/A | W35: N/A | X35: N/A | Y35: N/A | Z35: N/A | AA35: N/A | BA35: Water source on premises | BB35: Yes | BC35: N/A | BD35: N/A | BE35: N/A | BF35: N/A | BG35: N/A | BH35: N/A | BI35: N/A | BJ35: N/A | BK35: N/A | BL35: N/A | BM35: N/A | BN35: N/A | BO35: N/A | BP35: N/A | BQ35: N/A | BR35: N/A | BS35: N/A | BT35: N/A | BU35: N/A | BV35: N/A | BW35: N/A | BX35: N/A | BY35: N/A | BZ35: N/A | CA35: N/A
B36: No | C36: N/A | D36: N/A | E36: N/A | F36: N/A | G36: N/A | H36: N/A | I36: N/A | J36: N/A | K36: N/A | L36: N/A | M36: N/A | N36: N/A | O36: N/A | P36: N/A | Q36: N/A | R36: N/A | S36: N/A | T36: N/A | U36: N/A | V36: N/A | W36: N/A | X36: N/A | Y36: N/A | Z36: N/A | AA36: N/A | BB36: No | BC36: N/A | BD36: N/A | BE36: N/A | BF36: N/A | BG36: N/A | BH36: N/A | BI36: N/A | BJ36: N/A | BK36: N/A | BL36: N/A | BM36: N/A | BN36: N/A | BO36: N/A | BP36: N/A | BQ36: N/A | BR36: N/A | BS36: N/A | BT36: N/A | BU36: N/A | BV36: N/A | BW36: N/A | BX36: N/A | BY36: N/A | BZ36: N/A | CA36: N/A
A37: Improved Water source on premises | B37: Yes | C37: N/A | D37: N/A | E37: N/A | F37: N/A | G37: N/A | H37: N/A | I37: N/A | J37: N/A | K37: N/A | L37: N/A | M37: N/A | N37: N/A | O37: N/A | P37: N/A | Q37: N/A | R37: N/A | S37: N/A | T37: N/A | U37: N/A | V37: N/A | W37: N/A | X37: N/A | Y37: N/A | Z37: N/A | AA37: N/A | BA37: Improved water source on premises | BB37: Yes | BC37: N/A | BD37: N/A | BE37: N/A | BF37: N/A | BG37: N/A | BH37: N/A | BI37: N/A | BJ37: N/A | BK37: N/A | BL37: N/A | BM37: N/A | BN37: N/A | BO37: N/A | BP37: N/A | BQ37: N/A | BR37: N/A | BS37: N/A | BT37: N/A | BU37: N/A | BV37: N/A | BW37: N/A | BX37: N/A | BY37: N/A | BZ37: N/A | CA37: N/A
B38: No | C38: N/A | D38: N/A | E38: N/A | F38: N/A | G38: N/A | H38: N/A | I38: N/A | J38: N/A | K38: N/A | L38: N/A | M38: N/A | N38: N/A | O38: N/A | P38: N/A | Q38: N/A | R38: N/A | S38: N/A | T38: N/A | U38: N/A | V38: N/A | W38: N/A | X38: N/A | Y38: N/A | Z38: N/A | AA38: N/A | BB38: No | BC38: N/A | BD38: N/A | BE38: N/A | BF38: N/A | BG38: N/A | BH38: N/A | BI38: N/A | BJ38: N/A | BK38: N/A | BL38: N/A | BM38: N/A | BN38: N/A | BO38: N/A | BP38: N/A | BQ38: N/A | BR38: N/A | BS38: N/A | BT38: N/A | BU38: N/A | BV38: N/A | BW38: N/A | BX38: N/A | BY38: N/A | BZ38: N/A | CA38: N/A
A39: Piped water on premises available when needed | B39: Yes | C39: N/A | D39: N/A | E39: N/A | F39: N/A | G39: N/A | H39: N/A | I39: N/A | J39: N/A | K39: N/A | L39: N/A | M39: N/A | N39: N/A | O39: N/A | P39: N/A | Q39: N/A | R39: N/A | S39: N/A | T39: N/A | U39: N/A | V39: N/A | W39: N/A | X39: N/A | Y39: N/A | Z39: N/A | AA39: N/A | BA39: Piped water on premises available when needed | BB39: Yes | BC39: N/A | BD39: N/A | BE39: N/A | BF39: N/A | BG39: N/A | BH39: N/A | BI39: N/A | BJ39: N/A | BK39: N/A | BL39: N/A | BM39: N/A | BN39: N/A | BO39: N/A | BP39: N/A | BQ39: N/A | BR39: N/A | BS39: N/A | BT39: N/A | BU39: N/A | BV39: N/A | BW39: N/A | BX39: N/A | BY39: N/A | BZ39: N/A | CA39: N/A
B40: No | C40: N/A | D40: N/A | E40: N/A | F40: N/A | G40: N/A | H40: N/A | I40: N/A | J40: N/A | K40: N/A | L40: N/A | M40: N/A | N40: N/A | O40: N/A | P40: N/A | Q40: N/A | R40: N/A | S40: N/A | T40: N/A | U40: N/A | V40: N/A | W40: N/A | X40: N/A | Y40: N/A | Z40: N/A | AA40: N/A | BB40: No | BC40: N/A | BD40: N/A | BE40: N/A | BF40: N/A | BG40: N/A | BH40: N/A | BI40: N/A | BJ40: N/A | BK40: N/A | BL40: N/A | BM40: N/A | BN40: N/A | BO40: N/A | BP40: N/A | BQ40: N/A | BR40: N/A | BS40: N/A | BT40: N/A | BU40: N/A | BV40: N/A | BW40: N/A | BX40: N/A | BY40: N/A | BZ40: N/A | CA40: N/A
A41: Water point at more than 30 minutes | B41: Yes | C41: N/A | D41: N/A | E41: N/A | F41: N/A | G41: N/A | H41: N/A | I41: N/A | J41: N/A | K41: N/A | L41: N/A | M41: N/A | N41: N/A | O41: N/A | P41: N/A | Q41: N/A | R41: N/A | S41: N/A | T41: N/A | U41: N/A | V41: N/A | W41: N/A | X41: N/A | Y41: N/A | Z41: N/A | AA41: N/A | BA41: Water point at more than 30 minutes | BB41: Yes | BC41: N/A | BD41: N/A | BE41: N/A | BF41: N/A | BG41: N/A | BH41: N/A | BI41: N/A | BJ41: N/A | BK41: N/A | BL41: N/A | BM41: N/A | BN41: N/A | BO41: N/A | BP41: N/A | BQ41: N/A | BR41: N/A | BS41: N/A | BT41: N/A | BU41: N/A | BV41: N/A | BW41: N/A | BX41: N/A | BY41: N/A | BZ41: N/A | CA41: N/A
B42: No | C42: N/A | D42: N/A | E42: N/A | F42: N/A | G42: N/A | H42: N/A | I42: N/A | J42: N/A | K42: N/A | L42: N/A | M42: N/A | N42: N/A | O42: N/A | P42: N/A | Q42: N/A | R42: N/A | S42: N/A | T42: N/A | U42: N/A | V42: N/A | W42: N/A | X42: N/A | Y42: N/A | Z42: N/A | AA42: N/A | BB42: No | BC42: N/A | BD42: N/A | BE42: N/A | BF42: N/A | BG42: N/A | BH42: N/A | BI42: N/A | BJ42: N/A | BK42: N/A | BL42: N/A | BM42: N/A | BN42: N/A | BO42: N/A | BP42: N/A | BQ42: N/A | BR42: N/A | BS42: N/A | BT42: N/A | BU42: N/A | BV42: N/A | BW42: N/A | BX42: N/A | BY42: N/A | BZ42: N/A | CA42: N/A
A43: Water source available when needed | B43: Yes | C43: N/A | D43: N/A | E43: N/A | F43: N/A | G43: N/A | H43: N/A | I43: N/A | J43: N/A | K43: N/A | L43: N/A | M43: N/A | N43: N/A | O43: N/A | P43: N/A | Q43: N/A | R43: N/A | S43: N/A | T43: N/A | U43: N/A | V43: N/A | W43: N/A | X43: N/A | Y43: N/A | Z43: N/A | AA43: N/A | BA43: Water source available when needed | BB43: Yes | BC43: N/A | BD43: N/A | BE43: N/A | BF43: N/A | BG43: N/A | BH43: N/A | BI43: N/A | BJ43: N/A | BK43: N/A | BL43: N/A | BM43: N/A | BN43: N/A | BO43: N/A | BP43: N/A | BQ43: N/A | BR43: N/A | BS43: N/A | BT43: N/A | BU43: N/A | BV43: N/A | BW43: N/A | BX43: N/A | BY43: N/A | BZ43: N/A | CA43: N/A
B44: No | C44: N/A | D44: N/A | E44: N/A | F44: N/A | G44: N/A | H44: N/A | I44: N/A | J44: N/A | K44: N/A | L44: N/A | M44: N/A | N44: N/A | O44: N/A | P44: N/A | Q44: N/A | R44: N/A | S44: N/A | T44: N/A | U44: N/A | V44: N/A | W44: N/A | X44: N/A | Y44: N/A | Z44: N/A | AA44: N/A | BB44: No | BC44: N/A | BD44: N/A | BE44: N/A | BF44: N/A | BG44: N/A | BH44: N/A | BI44: N/A | BJ44: N/A | BK44: N/A | BL44: N/A | BM44: N/A | BN44: N/A | BO44: N/A | BP44: N/A | BQ44: N/A | BR44: N/A | BS44: N/A | BT44: N/A | BU44: N/A | BV44: N/A | BW44: N/A | BX44: N/A | BY44: N/A | BZ44: N/A | CA44: N/A
A45: Improved water source available when needed | B45: Yes | C45: N/A | D45: N/A | E45: N/A | F45: N/A | G45: N/A | H45: N/A | I45: N/A | J45: N/A | K45: N/A | L45: N/A | M45: N/A | N45: N/A | O45: N/A | P45: N/A | Q45: N/A | R45: N/A | S45: N/A | T45: N/A | U45: N/A | V45: N/A | W45: N/A | X45: N/A | Y45: N/A | Z45: N/A | AA45: N/A | BA45: Improved water source available when needed | BB45: Yes | BC45: N/A | BD45: N/A | BE45: N/A | BF45: N/A | BG45: N/A | BH45: N/A | BI45: N/A | BJ45: N/A | BK45: N/A | BL45: N/A | BM45: N/A | BN45: N/A | BO45: N/A | BP45: N/A | BQ45: N/A | BR45: N/A | BS45: N/A | BT45: N/A | BU45: N/A | BV45: N/A | BW45: N/A | BX45: N/A | BY45: N/A | BZ45: N/A | CA45: N/A
B46: No | C46: N/A | D46: N/A | E46: N/A | F46: N/A | G46: N/A | H46: N/A | I46: N/A | J46: N/A | K46: N/A | L46: N/A | M46: N/A | N46: N/A | O46: N/A | P46: N/A | Q46: N/A | R46: N/A | S46: N/A | T46: N/A | U46: N/A | V46: N/A | W46: N/A | X46: N/A | Y46: N/A | Z46: N/A | AA46: N/A | BB46: No | BC46: N/A | BD46: N/A | BE46: N/A | BF46: N/A | BG46: N/A | BH46: N/A | BI46: N/A | BJ46: N/A | BK46: N/A | BL46: N/A | BM46: N/A | BN46: N/A | BO46: N/A | BP46: N/A | BQ46: N/A | BR46: N/A | BS46: N/A | BT46: N/A | BU46: N/A | BV46: N/A | BW46: N/A | BX46: N/A | BY46: N/A | BZ46: N/A | CA46: N/A
A47: Microbiological quality at point of collection | B47: Not contaminated (No E. coli in 100 mL) | C47: N/A | D47: N/A | E47: N/A | F47: N/A | G47: N/A | H47: N/A | I47: N/A | J47: N/A | K47: N/A | L47: N/A | M47: N/A | N47: N/A | O47: N/A | P47: N/A | Q47: N/A | R47: N/A | S47: N/A | T47: N/A | U47: N/A | V47: N/A | W47: N/A | X47: N/A | Y47: N/A | Z47: N/A | AA47: N/A | BA47: Microbiological quality at point of collection | BB47: Not contaminated (No E. coli in 100 mL) | BC47: N/A | BD47: N/A | BE47: N/A | BF47: N/A | BG47: N/A | BH47: N/A | BI47: N/A | BJ47: N/A | BK47: N/A | BL47: N/A | BM47: N/A | BN47: N/A | BO47: N/A | BP47: N/A | BQ47: N/A | BR47: N/A | BS47: N/A | BT47: N/A | BU47: N/A | BV47: N/A | BW47: N/A | BX47: N/A | BY47: N/A | BZ47: N/A | CA47: N/A
B48: Contaminated (E. coli detected in 100 mL) | C48: N/A | D48: N/A | E48: N/A | F48: N/A | G48: N/A | H48: N/A | I48: N/A | J48: N/A | K48: N/A | L48: N/A | M48: N/A | N48: N/A | O48: N/A | P48: N/A | Q48: N/A | R48: N/A | S48: N/A | T48: N/A | U48: N/A | V48: N/A | W48: N/A | X48: N/A | Y48: N/A | Z48: N/A | AA48: N/A | BB48: Contaminated (E. coli detected in 100 mL) | BC48: N/A | BD48: N/A | BE48: N/A | BF48: N/A | BG48: N/A | BH48: N/A | BI48: N/A | BJ48: N/A | BK48: N/A | BL48: N/A | BM48: N/A | BN48: N/A | BO48: N/A | BP48: N/A | BQ48: N/A | BR48: N/A | BS48: N/A | BT48: N/A | BU48: N/A | BV48: N/A | BW48: N/A | BX48: N/A | BY48: N/A | BZ48: N/A | CA48: N/A
B49: Highly contaminated (>100 CFU/100 mL) | C49: N/A | D49: N/A | E49: N/A | F49: N/A | G49: N/A | H49: N/A | I49: N/A | J49: N/A | K49: N/A | L49: N/A | M49: N/A | N49: N/A | O49: N/A | P49: N/A | Q49: N/A | R49: N/A | S49: N/A | T49: N/A | U49: N/A | V49: N/A | W49: N/A | X49: N/A | Y49: N/A | Z49: N/A | AA49: N/A | BB49: Highly contaminated (>100 CFU/100 mL) | BC49: N/A | BD49: N/A | BE49: N/A | BF49: N/A | BG49: N/A | BH49: N/A | BI49: N/A | BJ49: N/A | BK49: N/A | BL49: N/A | BM49: N/A | BN49: N/A | BO49: N/A | BP49: N/A | BQ49: N/A | BR49: N/A | BS49: N/A | BT49: N/A | BU49: N/A | BV49: N/A | BW49: N/A | BX49: N/A | BY49: N/A | BZ49: N/A | CA49: N/A
A50: Microbiological quality of improved water sources at point of collection | B50: Not contaminated (No E. coli in 100 mL) | C50: N/A | D50: N/A | E50: N/A | F50: N/A | G50: N/A | H50: N/A | I50: N/A | J50: N/A | K50: N/A | L50: N/A | M50: N/A | N50: N/A | O50: N/A | P50: N/A | Q50: N/A | R50: N/A | S50: N/A | T50: N/A | U50: N/A | V50: N/A | W50: N/A | X50: N/A | Y50: N/A | Z50: N/A | AA50: N/A | BA50: Microbiological quality of improved water sources at point of collection | BB50: Not contaminated (No E. coli in 100 mL) | BC50: N/A | BD50: N/A | BE50: N/A | BF50: N/A | BG50: N/A | BH50: N/A | BI50: N/A | BJ50: N/A | BK50: N/A | BL50: N/A | BM50: N/A | BN50: N/A | BO50: N/A | BP50: N/A | BQ50: N/A | BR50: N/A | BS50: N/A | BT50: N/A | BU50: N/A | BV50: N/A | BW50: N/A | BX50: N/A | BY50: N/A | BZ50: N/A | CA50: N/A
B51: Contaminated (E. coli detected in 100 mL) | C51: N/A | D51: N/A | E51: N/A | F51: N/A | G51: N/A | H51: N/A | I51: N/A | J51: N/A | K51: N/A | L51: N/A | M51: N/A | N51: N/A | O51: N/A | P51: N/A | Q51: N/A | R51: N/A | S51: N/A | T51: N/A | U51: N/A | V51: N/A | W51: N/A | X51: N/A | Y51: N/A | Z51: N/A | AA51: N/A | BB51: Contaminated (E. coli detected in 100 mL) | BC51: N/A | BD51: N/A | BE51: N/A | BF51: N/A | BG51: N/A | BH51: N/A | BI51: N/A | BJ51: N/A | BK51: N/A | BL51: N/A | BM51: N/A | BN51: N/A | BO51: N/A | BP51: N/A | BQ51: N/A | BR51: N/A | BS51: N/A | BT51: N/A | BU51: N/A | BV51: N/A | BW51: N/A | BX51: N/A | BY51: N/A | BZ51: N/A | CA51: N/A
B52: Highly contaminated (>100 CFU/100 mL) | C52: N/A | D52: N/A | E52: N/A | F52: N/A | G52: N/A | H52: N/A | I52: N/A | J52: N/A | K52: N/A | L52: N/A | M52: N/A | N52: N/A | O52: N/A | P52: N/A | Q52: N/A | R52: N/A | S52: N/A | T52: N/A | U52: N/A | V52: N/A | W52: N/A | X52: N/A | Y52: N/A | Z52: N/A | AA52: N/A | BB52: Highly contaminated (>100 CFU/100 mL) | BC52: N/A | BD52: N/A | BE52: N/A | BF52: N/A | BG52: N/A | BH52: N/A | BI52: N/A | BJ52: N/A | BK52: N/A | BL52: N/A | BM52: N/A | BN52: N/A | BO52: N/A | BP52: N/A | BQ52: N/A | BR52: N/A | BS52: N/A | BT52: N/A | BU52: N/A | BV52: N/A | BW52: N/A | BX52: N/A | BY52: N/A | BZ52: N/A | CA52: N/A
A53: Microbiological quality of piped on premises at point of collection | B53: Not contaminated (No E. coli in 100 mL) | C53: N/A | D53: N/A | E53: N/A | F53: N/A | G53: N/A | H53: N/A | I53: N/A | J53: N/A | K53: N/A | L53: N/A | M53: N/A | N53: N/A | O53: N/A | P53: N/A | Q53: N/A | R53: N/A | S53: N/A | T53: N/A | U53: N/A | V53: N/A | W53: N/A | X53: N/A | Y53: N/A | Z53: N/A | AA53: N/A | BA53: Microbiological quality of piped on premises at point of collection | BB53: Not contaminated (No E. coli in 100 mL) | BC53: N/A | BD53: N/A | BE53: N/A | BF53: N/A | BG53: N/A | BH53: N/A | BI53: N/A | BJ53: N/A | BK53: N/A | BL53: N/A | BM53: N/A | BN53: N/A | BO53: N/A | BP53: N/A | BQ53: N/A | BR53: N/A | BS53: N/A | BT53: N/A | BU53: N/A | BV53: N/A | BW53: N/A | BX53: N/A | BY53: N/A | BZ53: N/A | CA53: N/A
B54: Contaminated (E. coli detected in 100 mL) | C54: N/A | D54: N/A | E54: N/A | F54: N/A | G54: N/A | H54: N/A | I54: N/A | J54: N/A | K54: N/A | L54: N/A | M54: N/A | N54: N/A | O54: N/A | P54: N/A | Q54: N/A | R54: N/A | S54: N/A | T54: N/A | U54: N/A | V54: N/A | W54: N/A | X54: N/A | Y54: N/A | Z54: N/A | AA54: N/A | BB54: Contaminated (E. coli detected in 100 mL) | BC54: N/A | BD54: N/A | BE54: N/A | BF54: N/A | BG54: N/A | BH54: N/A | BI54: N/A | BJ54: N/A | BK54: N/A | BL54: N/A | BM54: N/A | BN54: N/A | BO54: N/A | BP54: N/A | BQ54: N/A | BR54: N/A | BS54: N/A | BT54: N/A | BU54: N/A | BV54: N/A | BW54: N/A | BX54: N/A | BY54: N/A | BZ54: N/A | CA54: N/A
B55: Highly contaminated (>100 CFU/100 mL) | C55: N/A | D55: N/A | E55: N/A | F55: N/A | G55: N/A | H55: N/A | I55: N/A | J55: N/A | K55: N/A | L55: N/A | M55: N/A | N55: N/A | O55: N/A | P55: N/A | Q55: N/A | R55: N/A | S55: N/A | T55: N/A | U55: N/A | V55: N/A | W55: N/A | X55: N/A | Y55: N/A | Z55: N/A | AA55: N/A | BB55: Highly contaminated (>100 CFU/100 mL) | BC55: N/A | BD55: N/A | BE55: N/A | BF55: N/A | BG55: N/A | BH55: N/A | BI55: N/A | BJ55: N/A | BK55: N/A | BL55: N/A | BM55: N/A | BN55: N/A | BO55: N/A | BP55: N/A | BQ55: N/A | BR55: N/A | BS55: N/A | BT55: N/A | BU55: N/A | BV55: N/A | BW55: N/A | BX55: N/A | BY55: N/A | BZ55: N/A | CA55: N/A
C56: NATIONAL wealth index quintile | H56: URBAN wealth index quintile | M56: RURAL wealth index quintile | R56: SUB-REGIONS: | BA56: Raw numbers of respondents: | BB56: Use of drinking water sources | BC56: NATIONAL wealth index quintile | BH56: URBAN wealth index quintile | BM56: RURAL wealth index quintile | BR56: SUB-REGIONS:
A57: Percentage based on weighted population | C57: Poorest | D57: Poor | E57: Middle | F57: Rich | G57: Richest | H57: Poorest | I57: Poor | J57: Middle | K57: Rich | L57: Richest | M57: Poorest | N57: Poor | O57: Middle | P57: Rich | Q57: Richest | R57: Berea | S57: Butha Buthe | T57: Leribe | U57: Mafeteng | V57: Maseru | W57: Mohale's Hoek | X57: Mokhotlong | Y57: Qacha's Nek | Z57: Quthing | AA57: Thaba Tseka | BA57: Water data, raw numbers (weighted) | BC57: Poorest | BD57: Poor | BE57: Middle | BF57: Rich | BG57: Richest | BH57: Poorest | BI57: Poor | BJ57: Middle | BK57: Rich | BL57: Richest | BM57: Poorest | BN57: Poor | BO57: Middle | BP57: Rich | BQ57: Richest | BR57: Berea | BS57: Butha Buthe | BT57: Leribe | BU57: Mafeteng | BV57: Maseru | BW57: Mohale's Hoek | BX57: Mokhotlong | BY57: Qacha's Nek | BZ57: Quthing | CA57: Thaba Tseka
A58: Source of Water | B58: Piped water prem | C58: 1.191570738 | D58: 18.37899329 | E58: 19.74220707 | F58: 28.26822666 | G58: 58.65638677 | H58: 45.44836042 | I58: 34.09862217 | J58: 40.26225505 | K58: 58.34485935 | L58: 77.82789925 | M58: 0.4875722018 | N58: 1.748489358 | O58: 1.735908967 | P58: 2.192963113 | Q58: 6.263604136 | R58: 17.65117092 | S58: 24.11842981 | T58: 23.50125945 | U58: 19.94450225 | V58: 42.61647255 | W58: 23.40604027 | X58: 25 | Y58: 16.36887608 | Z58: 17.84820684 | AA58: 15.99353796
B59: Community water | C59: 50.63348502 | D59: 45.10458131 | E59: 48.0230556 | F59: 42.13514913 | G59: 23.08577415 | H59: 36.74877174 | I59: 45.62047234 | J59: 35.88615638 | K59: 29.3631261 | L59: 11.93849142 | M59: 49.06533864 | N59: 52.60806193 | O59: 51.69230496 | P59: 50.26310401 | Q59: 48.59681568 | R59: 55.22544565 | S59: 34.59747172 | T59: 36.24685139 | U59: 37.39160597 | V59: 32.88269551 | W59: 41.10738255 | X59: 34.90990991 | Y59: 60.74927954 | Z59: 54.33694746 | AA59: 52.45018848
B60: Catchment tank | C60: 0.9120815251 | D60: 1.403564637 | E60: 1.868927804 | F60: 1.127005243 | G60: 0.5297964156 | H60: 2.279980119 | I60: 0.9469136718 | J60: 1.256489958 | K60: 0.7237590132 | L60: 0.409206296 | M60: 0.5566234982 | N60: 1.155180587 | O60: 1.051787907 | P60: 2.240403773 | Q60: 1.01970397 | R60: 0.8738203425 | S60: 1.330671989 | T60: 2.040302267 | U60: 0.5202913632 | V60: 0.9775374376 | W60: 1.593959732 | X60: 0.1689189189 | Y60: 0.1729106628 | Z60: 0.5838198499 | AA60: 2.369413032
B61: Public well | C61: 18.34089877 | D61: 7.481548328 | E61: 8.369039982 | F61: 8.151673847 | G61: 5.207525709 | H61: 2.952495811 | I61: 6.414660081 | J61: 8.302651883 | K61: 4.863017901 | L61: 2.316754493 | M61: 19.93885465 | N61: 16.96087941 | O61: 8.147560927 | P61: 12.4032088 | Q61: 9.992278229 | R61: 9.856693464 | S61: 11.34397871 | T61: 12.14105793 | U61: 5.757891086 | V61: 6.260399334 | W61: 11.82885906 | X61: 20.66441441 | Y61: 5.129682997 | Z61: 7.75646372 | AA61: 10.50080775
B62: Private Well | C62: 1.301201003 | D62: 0.6807646314 | E62: 0.6935322714 | F62: 1.209091893 | G62: 0.9763758609 | H62: 0.9453460621 | I62: 0.6872740357 | J62: 1.788904137 | K62: 1.08310201 | L62: 1.349319862 | M62: 1.070443597 | N62: 1.795613833 | O62: 0.5658441961 | P62: 0.2828198474 | Q62: 0.2773653565 | R62: 0.8388675288 | S62: 1.097804391 | T62: 0.5541561713 | U62: 0 | V62: 1.747088186 | W62: 0.3775167785 | X62: 2.815315315 | Y62: 0.8069164265 | Z62: 0.5004170142 | AA62: 1.561658589
B63: Covered spring | C63: 9.150789349 | D63: 6.200229891 | E63: 4.238766284 | F63: 3.120660172 | G63: 1.5176754 | H63: 1.906887392 | I63: 1.031356271 | J63: 2.348161955 | K63: 0.5056433414 | L63: 0.422457146 | M63: 8.908714091 | N63: 9.889659076 | O63: 8.110621823 | P63: 8.112698641 | Q63: 5.053622717 | R63: 4.928346732 | S63: 11.67664671 | T63: 9.017632242 | U63: 3.087062088 | V63: 1.164725458 | W63: 2.894295302 | X63: 11.54279279 | Y63: 4.783861671 | Z63: 3.461217681 | AA63: 2.854065697
B64: Uncovered spring | C64: 16.90172773 | D64: 12.23621302 | E64: 8.846828095 | F64: 7.080403653 | G64: 2.82722407 | H64: 2.968569978 | I64: 2.38616357 | J64: 3.086207412 | K64: 1.351333463 | L64: 0.1478600011 | M64: 19.25119055 | N64: 13.54335733 | O64: 18.02721797 | P64: 16.86880794 | Q64: 13.57782271 | R64: 6.431317721 | S64: 13.0073187 | T64: 10.85642317 | U64: 12.83385362 | V64: 7.529118136 | W64: 8.934563758 | X64: 4.898648649 | Y64: 9.913544669 | Z64: 12.30191827 | AA64: 11.68551427
B65: River | C65: 0.3140856244 | D65: 0.1371945642 | E65: 0.3104072946 | F65: 0.2778854818 | G65: 0.1231519385 | H65: 0.04393533405 | I65: 0.04482334264 | J65: 0 | K65: 0 | L65: 0 | M65: 0.05372734428 | N65: 0.5355844092 | O65: 0.2609654187 | P65: 0.4956679439 | Q65: 0.7543183157 | R65: 0 | S65: 0.4324683965 | T65: 0.3778337531 | U65: 0.6937218176 | V65: 0 | W65: 0.04194630872 | X65: 0 | Y65: 0.4610951009 | Z65: 0.6255212677 | AA65: 0
B66: Borehole | C66: 1.254160243 | D66: 6.768173653 | E66: 5.465080786 | F66: 6.944997729 | G66: 5.43260201 | H66: 2.98936383 | I66: 4.470179748 | J66: 4.183750721 | K66: 1.585252478 | L66: 3.863336133 | M66: 0.6675354287 | N66: 1.763174069 | O66: 9.868851851 | P66: 7.140325939 | Q66: 14.16475396 | R66: 3.879762321 | S66: 1.630073187 | T66: 3.350125945 | U66: 18.00208117 | V66: 3.930948419 | W66: 9.102348993 | X66: 0 | Y66: 0 | Z66: 0.6672226856 | AA66: 2.584814216
B67: Other | C67: 0 | D67: 1.608736667 | E67: 2.442154816 | F67: 1.684906194 | G67: 1.643487675 | H67: 3.716289318 | I67: 4.299534771 | J67: 2.885422512 | K67: 2.179906344 | L67: 1.724675401 | M67: 0 | N67: 0 | O67: 0.5389359755 | P67: 0 | Q67: 0.2997149236 | R67: 0.3145753233 | S67: 0.7651363939 | T67: 1.914357683 | U67: 1.768990635 | V67: 2.891014975 | W67: 0.7130872483 | X67: 0 | Y67: 1.613832853 | Z67: 1.918265221 | AA67: 0
A108: =A1026 -> Lesotho
A109: =A1034 -> 2002
A110: Use of sanitation facilities
A111: by wealth quintile and sub-national region
A112: Notes:
A113: WHO/UNICEF JMP customised wealth index excludes water,
A114: sanitation and hygiene assets.
A115: Survey used for analysis: | B115: =A1025 -> HBS02
A116: Ratio of Improved latrines based on: | B116: DHS09
A117: Ratio of Shared improved based on: | B117: DHS09
A120: Use of sanitation facilities | C120: NATIONAL wealth index quintile | H120: URBAN wealth index quintile | M120: RURAL wealth index quintile | R120: SUB-REGIONS: | BA120: Raw numbers of respondents: | BB120: Use of sanitation facilities | BC120: NATIONAL wealth index quintile | BH120: URBAN wealth index quintile | BM120: RURAL wealth index quintile | BR120: SUB-REGIONS:
A121: Weighted percentage (used in graphs) | C121: Poorest | D121: Poor | E121: Middle | F121: Rich | G121: Richest | H121: Poorest | I121: Poor | J121: Middle | K121: Rich | L121: Richest | M121: Poorest | N121: Poor | O121: Middle | P121: Rich | Q121: Richest | R121: Berea | S121: Butha Buthe | T121: Leribe | U121: Mafeteng | V121: Maseru | W121: Mohale's Hoek | X121: Mokhotlong | Y121: Qacha's Nek | Z121: Quthing | AA121: Thaba Tseka | BA121: Sanitation data, raw numbers (weighted) | BC121: Poorest | BD121: Poor | BE121: Middle | BF121: Rich | BG121: Richest | BH121: Poorest | BI121: Poor | BJ121: Middle | BK121: Rich | BL121: Richest | BM121: Poorest | BN121: Poor | BO121: Middle | BP121: Rich | BQ121: Richest | BR121: Berea | BS121: Butha Buthe | BT121: Leribe | BU121: Mafeteng | BV121: Maseru | BW121: Mohale's Hoek | BX121: Mokhotlong | BY121: Qacha's Nek | BZ121: Quthing | CA121: Thaba Tseka
A122: Sanitation | B122: Improved | C122: =C154+(C156+C158+C155)*'DHS09'!C130/100 -> 9.873592099 | D122: =D154+(D156+D158+D155)*'DHS09'!D130/100 -> 24.88726048 | E122: =E154+(E156+E158+E155)*'DHS09'!E130/100 -> 31.76928693 | F122: =F154+(F156+F158+F155)*'DHS09'!F130/100 -> 43.16744235 | G122: =G154+(G156+G158+G155)*'DHS09'!G130/100 -> 68.27710673 | H122: =H154+(H156+H158+H155)*'DHS09'!H130/100 -> 37.64975034 | I122: =I154+(I156+I158+I155)*'DHS09'!I130/100 -> 42.59442819 | J122: =J154+(J156+J158+J155)*'DHS09'!J130/100 -> 51.10085106 | K122: =K154+(K156+K158+K155)*'DHS09'!K130/100 -> 64.82091697 | L122: =L154+(L156+L158+L155)*'DHS09'!L130/100 -> 85.83471033 | M122: =M154+(M156+M158+M155)*'DHS09'!M130/100 -> 5.587647032 | N122: =N154+(N156+N158+N155)*'DHS09'!N130/100 -> 13.35300157 | O122: =O154+(O156+O158+O155)*'DHS09'!O130/100 -> 16.02980566 | P122: =P154+(P156+P158+P155)*'DHS09'!P130/100 -> 27.53573464 | Q122: =Q154+(Q156+Q158+Q155)*'DHS09'!Q130/100 -> 46.18813377 | R122: =R154+(R156+R158+R155)*'DHS09'!R130/100 -> 38.91052596 | S122: =S154+(S156+S158+S155)*'DHS09'!S130/100 -> 42.03096447 | T122: =T154+(T156+T158+T155)*'DHS09'!T130/100 -> 35.04853601 | U122: =U154+(U156+U158+U155)*'DHS09'!U130/100 -> 29.90016162 | V122: =V154+(V156+V158+V155)*'DHS09'!V130/100 -> 45.36082091 | W122: =W154+(W156+W158+W155)*'DHS09'!W130/100 -> 31.84103393 | X122: =X154+(X156+X158+X155)*'DHS09'!X130/100 -> 27.02492077 | Y122: =Y154+(Y156+Y158+Y155)*'DHS09'!Y130/100 -> 18.81956664 | Z122: =Z154+(Z156+Z158+Z155)*'DHS09'!Z130/100 -> 36.61251553 | AA122: =AA154+(AA156+AA158+AA155)*'DHS09'!AA130/100 -> 30.00477989 | BA122: Sanitation | BB122: Improved | BC122: N/A | BD122: N/A | BE122: N/A | BF122: N/A | BG122: N/A | BH122: N/A | BI122: N/A | BJ122: N/A | BK122: N/A | BL122: N/A | BM122: N/A | BN122: N/A | BO122: N/A | BP122: N/A | BQ122: N/A | BR122: N/A | BS122: N/A | BT122: N/A | BU122: N/A | BV122: N/A | BW122: N/A | BX122: N/A | BY122: N/A | BZ122: N/A | CA122: N/A
B123: Not Improved | C123: =100-C122 -> 90.1264079 | D123: =100-D122 -> 75.11273952 | E123: 68.23071307 | F123: 56.83255765 | G123: 31.72289327 | H123: 62.35024966 | I123: 57.40557181 | J123: 48.89914894 | K123: 35.17908303 | L123: 14.16528967 | M123: 94.41235297 | N123: 86.64699843 | O123: 83.97019434 | P123: 72.46426536 | Q123: 53.81186623 | R123: 61.08947404 | S123: 57.96903553 | T123: 64.95146399 | U123: 70.09983838 | V123: 54.63917909 | W123: 68.15896607 | X123: 72.97507923 | Y123: 81.18043336 | Z123: 63.38748447 | AA123: 69.99522011 | BB123: Not Improved | BC123: N/A | BD123: N/A | BE123: N/A | BF123: N/A | BG123: N/A | BH123: N/A | BI123: N/A | BJ123: N/A | BK123: N/A | BL123: N/A | BM123: N/A | BN123: N/A | BO123: N/A | BP123: N/A | BQ123: N/A | BR123: N/A | BS123: N/A | BT123: N/A | BU123: N/A | BV123: N/A | BW123: N/A | BX123: N/A | BY123: N/A | BZ123: N/A | CA123: N/A
A124: Sanitation ladder | B124: Basic | C124: =C122*'DHS09'!C129/100 -> 9.060493187 | D124: =D122*'DHS09'!D129/100 -> 19.8473722 | E124: =E122*'DHS09'!E129/100 -> 24.44440876 | F124: =F122*'DHS09'!F129/100 -> 26.25703502 | G124: =G122*'DHS09'!G129/100 -> 47.44087635 | H124: =H122*'DHS09'!H129/100 -> 11.93871431 | I124: =I122*'DHS09'!I129/100 -> 15.06369753 | J124: =J122*'DHS09'!J129/100 -> 19.86863118 | K124: =K122*'DHS09'!K129/100 -> 37.58482778 | L124: =L122*'DHS09'!L129/100 -> 65.36072692 | M124: =M122*'DHS09'!M129/100 -> 5.180163331 | N124: =N122*'DHS09'!N129/100 -> 11.38907948 | O124: =O122*'DHS09'!O129/100 -> 13.13511539 | P124: =P122*'DHS09'!P129/100 -> 23.02261507 | Q124: =Q122*'DHS09'!Q129/100 -> 37.6249635 | R124: =R122*'DHS09'!R129/100 -> 29.43430954 | S124: =S122*'DHS09'!S129/100 -> 34.15276588 | T124: =T122*'DHS09'!T129/100 -> 26.76376279 | U124: =U122*'DHS09'!U129/100 -> 20.90514941 | V124: =V122*'DHS09'!V129/100 -> 26.79930262 | W124: =W122*'DHS09'!W129/100 -> 23.53091084 | X124: =X122*'DHS09'!X129/100 -> 21.32186587 | Y124: =Y122*'DHS09'!Y129/100 -> 13.94976393 | Z124: =Z122*'DHS09'!Z129/100 -> 29.17997223 | AA124: =AA122*'DHS09'!AA129/100 -> 26.4168491 | BA124: Sanitation ladder | BB124: Basic | BC124: N/A | BD124: N/A | BE124: N/A | BF124: N/A | BG124: N/A | BH124: N/A | BI124: N/A | BJ124: N/A | BK124: N/A | BL124: N/A | BM124: N/A | BN124: N/A | BO124: N/A | BP124: N/A | BQ124: N/A | BR124: N/A | BS124: N/A | BT124: N/A | BU124: N/A | BV124: N/A | BW124: N/A | BX124: N/A | BY124: N/A | BZ124: N/A | CA124: N/A
B125: Limited | C125: =C122*'DHS09'!C128/100 -> 0.8130989125 | D125: =D122*'DHS09'!D128/100 -> 5.03988827 | E125: =E122*'DHS09'!E128/100 -> 7.324878166 | F125: =F122*'DHS09'!F128/100 -> 16.91040734 | G125: =G122*'DHS09'!G128/100 -> 20.83623038 | H125: =H122*'DHS09'!H128/100 -> 25.71103603 | I125: =I122*'DHS09'!I128/100 -> 27.53073066 | J125: =J122*'DHS09'!J128/100 -> 31.23221988 | K125: =K122*'DHS09'!K128/100 -> 27.23608919 | L125: =L122*'DHS09'!L128/100 -> 20.47398341 | M125: =M122*'DHS09'!M128/100 -> 0.407483701 | N125: =N122*'DHS09'!N128/100 -> 1.963922089 | O125: =O122*'DHS09'!O128/100 -> 2.894690272 | P125: =P122*'DHS09'!P128/100 -> 4.513119575 | Q125: =Q122*'DHS09'!Q128/100 -> 8.563170269 | R125: =R122*'DHS09'!R128/100 -> 9.476216424 | S125: =S122*'DHS09'!S128/100 -> 7.878198581 | T125: =T122*'DHS09'!T128/100 -> 8.284773224 | U125: =U122*'DHS09'!U128/100 -> 8.995012214 | V125: =V122*'DHS09'!V128/100 -> 18.56151829 | W125: =W122*'DHS09'!W128/100 -> 8.310123091 | X125: =X122*'DHS09'!X128/100 -> 5.703054905 | Y125: =Y122*'DHS09'!Y128/100 -> 4.869802716 | Z125: =Z122*'DHS09'!Z128/100 -> 7.432543294 | AA125: =AA122*'DHS09'!AA128/100 -> 3.587930795 | BB125: Limited | BC125: N/A | BD125: N/A | BE125: N/A | BF125: N/A | BG125: N/A | BH125: N/A | BI125: N/A | BJ125: N/A | BK125: N/A | BL125: N/A | BM125: N/A | BN125: N/A | BO125: N/A | BP125: N/A | BQ125: N/A | BR125: N/A | BS125: N/A | BT125: N/A | BU125: N/A | BV125: N/A | BW125: N/A | BX125: N/A | BY125: N/A | BZ125: N/A | CA125: N/A
B126: Unimproved | C126: =100-(C124+C125+C127) -> 6.727181415 | D126: =100-(D124+D125+D127) -> 31.17497029 | E126: 42.22176016 | F126: 41.21734803 | G126: 27.86982505 | H126: 46.42552529 | I126: 41.0859589 | J126: 37.12042266 | K126: 27.84648971 | L126: 11.8328147 | M126: 3.214010994 | N126: 14.46418875 | O126: 23.73551623 | P126: 33.64169083 | Q126: 38.5258224 | R126: 26.41628284 | S126: 29.35958776 | T126: 40.6441592 | U126: 48.59446203 | V126: 34.54766495 | W126: 15.97775801 | X126: 10.02462878 | Y126: 28.09685987 | Z126: 15.05554119 | AA126: 8.605882464 | BB126: Unimproved | BC126: N/A | BD126: N/A | BE126: N/A | BF126: N/A | BG126: N/A | BH126: N/A | BI126: N/A | BJ126: N/A | BK126: N/A | BL126: N/A | BM126: N/A | BN126: N/A | BO126: N/A | BP126: N/A | BQ126: N/A | BR126: N/A | BS126: N/A | BT126: N/A | BU126: N/A | BV126: N/A | BW126: N/A | BX126: N/A | BY126: N/A | BZ126: N/A | CA126: N/A
B127: Open defecation | C127: =C153 -> 83.39922649 | D127: =D153 -> 43.93776924 | E127: 26.00895291 | F127: 15.61520962 | G127: 3.853068221 | H127: 15.92472437 | I127: 16.31961291 | J127: 11.77872628 | K127: 7.33259332 | L127: 2.332474963 | M127: 91.19834197 | N127: 72.18280969 | O127: 60.2346781 | P127: 38.82257452 | Q127: 15.28604384 | R127: 34.67319119 | S127: 28.60944777 | T127: 24.30730479 | U127: 21.50537634 | V127: 20.09151414 | W127: 52.18120805 | X127: 62.95045045 | Y127: 53.08357349 | Z127: 48.33194329 | AA127: 61.38933764 | BB127: Open defecation | BC127: N/A | BD127: N/A | BE127: N/A | BF127: N/A | BG127: N/A | BH127: N/A | BI127: N/A | BJ127: N/A | BK127: N/A | BL127: N/A | BM127: N/A | BN127: N/A | BO127: N/A | BP127: N/A | BQ127: N/A | BR127: N/A | BS127: N/A | BT127: N/A | BU127: N/A | BV127: N/A | BW127: N/A | BX127: N/A | BY127: N/A | BZ127: N/A | CA127: N/A
A128: Shared among Improved Sanitation | B128: Yes | C128: N/A | D128: N/A | E128: N/A | F128: N/A | G128: N/A | H128: N/A | I128: N/A | J128: N/A | K128: N/A | L128: N/A | M128: N/A | N128: N/A | O128: N/A | P128: N/A | Q128: N/A | R128: N/A | S128: N/A | T128: N/A | U128: N/A | V128: N/A | W128: N/A | X128: N/A | Y128: N/A | Z128: N/A | AA128: N/A | BA128: Shared among improved sanitation facilities | BB128: Yes | BC128: N/A | BD128: N/A | BE128: N/A | BF128: N/A | BG128: N/A | BH128: N/A | BI128: N/A | BJ128: N/A | BK128: N/A | BL128: N/A | BM128: N/A | BN128: N/A | BO128: N/A | BP128: N/A | BQ128: N/A | BR128: N/A | BS128: N/A | BT128: N/A | BU128: N/A | BV128: N/A | BW128: N/A | BX128: N/A | BY128: N/A | BZ128: N/A | CA128: N/A
B129: No | C129: N/A | D129: N/A | E129: N/A | F129: N/A | G129: N/A | H129: N/A | I129: N/A | J129: N/A | K129: N/A | L129: N/A | M129: N/A | N129: N/A | O129: N/A | P129: N/A | Q129: N/A | R129: N/A | S129: N/A | T129: N/A | U129: N/A | V129: N/A | W129: N/A | X129: N/A | Y129: N/A | Z129: N/A | AA129: N/A | BB129: No | BC129: N/A | BD129: N/A | BE129: N/A | BF129: N/A | BG129: N/A | BH129: N/A | BI129: N/A | BJ129: N/A | BK129: N/A | BL129: N/A | BM129: N/A | BN129: N/A | BO129: N/A | BP129: N/A | BQ129: N/A | BR129: N/A | BS129: N/A | BT129: N/A | BU129: N/A | BV129: N/A | BW129: N/A | BX129: N/A | BY129: N/A | BZ129: N/A | CA129: N/A
A130: Manually calculated ratios | B130: Improved latrines
B131: Other
B132: Other
C133: NATIONAL wealth index quintile | H133: URBAN wealth index quintile | M133: RURAL wealth index quintile | R133: SUB-REGIONS: | BA133: Raw numbers of respondents: | BB133: Use of sanitation facilities | BC133: NATIONAL wealth index quintile | BH133: URBAN wealth index quintile | BM133: RURAL wealth index quintile | BR133: SUB-REGIONS:
A134: Percentage based on weighted population | C134: Poorest | D134: Poor | E134: Middle | F134: Rich | G134: Richest | H134: Poorest | I134: Poor | J134: Middle | K134: Rich | L134: Richest | M134: Poorest | N134: Poor | O134: Middle | P134: Rich | Q134: Richest | R134: Berea | S134: Butha Buthe | T134: Leribe | U134: Mafeteng | V134: Maseru | W134: Mohale's Hoek | X134: Mokhotlong | Y134: Qacha's Nek | Z134: Quthing | AA134: Thaba Tseka | BA134: Sanitation data, raw numbers (weighted) | BC134: Poorest | BD134: Poor | BE134: Middle | BF134: Rich | BG134: Richest | BH134: Poorest | BI134: Poor | BJ134: Middle | BK134: Rich | BL134: Richest | BM134: Poorest | BN134: Poor | BO134: Middle | BP134: Rich | BQ134: Richest | BR134: Berea | BS134: Butha Buthe | BT134: Leribe | BU134: Mafeteng | BV134: Maseru | BW134: Mohale's Hoek | BX134: Mokhotlong | BY134: Qacha's Nek | BZ134: Quthing | CA134: Thaba Tseka
A135: Sanitation type | B135: Sewer connection | C135: =C154*'DHS09'!C131/100 -> 0 | D135: =D154*'DHS09'!D131/100 -> 0 | E135: =E154*'DHS09'!E131/100 -> 0 | F135: =F154*'DHS09'!F131/100 -> 1.61085388 | G135: =G154*'DHS09'!G131/100 -> 7.086693935 | H135: =H154*'DHS09'!H131/100 -> 0.5614801159 | I135: =I154*'DHS09'!I131/100 -> 0 | J135: =J154*'DHS09'!J131/100 -> 2.799808046 | K135: =K154*'DHS09'!K131/100 -> 3.423604714 | L135: =L154*'DHS09'!L131/100 -> 11.88019917 | M135: =M154*'DHS09'!M131/100 -> 0 | N135: =N154*'DHS09'!N131/100 -> 0 | O135: =O154*'DHS09'!O131/100 -> 0 | P135: =P154*'DHS09'!P131/100 -> 0 | Q135: =Q154*'DHS09'!Q131/100 -> 0.2884757178 | R135: =R154*'DHS09'!R131/100 -> 0.8148276834 | S135: =S154*'DHS09'!S131/100 -> 0.9573638777 | T135: =T154*'DHS09'!T131/100 -> 0.9784449131 | U135: =U154*'DHS09'!U131/100 -> 1.317522483 | V135: =V154*'DHS09'!V131/100 -> 4.260466339 | W135: =W154*'DHS09'!W131/100 -> 2.622107059 | X135: =X154*'DHS09'!X131/100 -> 1.723480859 | Y135: =Y154*'DHS09'!Y131/100 -> 0.8117257159 | Z135: =Z154*'DHS09'!Z131/100 -> 0.2040486826 | AA135: =AA154*'DHS09'!AA131/100 -> 1.599353796 | BA135: Sanitation type | BB135: Sewer connection | BC135: N/A | BD135: N/A | BE135: N/A | BF135: N/A | BG135: N/A | BH135: N/A | BI135: N/A | BJ135: N/A | BK135: N/A | BL135: N/A | BM135: N/A | BN135: N/A | BO135: N/A | BP135: N/A | BQ135: N/A | BR135: N/A | BS135: N/A | BT135: N/A | BU135: N/A | BV135: N/A | BW135: N/A | BX135: N/A | BY135: N/A | BZ135: N/A | CA135: N/A
B136: Septic tank connection | C136: =C154-C135 -> 0 | D136: =D154-D135 -> 0.4447975432 | E136: 0.6917840696 | F136: 0.9683051038 | G136: 9.768991819 | H136: 0.05004511882 | I136: 1.376174041 | J136: 0.7713465466 | K136: 3.83527931 | L136: 18.14648622 | M136: 0 | N136: 0 | O136: 0.4979196366 | P136: 0 | Q136: 0.2662549953 | R136: 1.457105207 | S136: 2.003381299 | T136: 1.33893544 | U136: 1.17987606 | V136: 5.514908037 | W136: 1.782255357 | X136: 0.9792218435 | Y136: 0.1681013735 | Z136: 1.630813703 | AA136: 1.308562197 | BB136: Septic tank connection | BC136: N/A | BD136: N/A | BE136: N/A | BF136: N/A | BG136: N/A | BH136: N/A | BI136: N/A | BJ136: N/A | BK136: N/A | BL136: N/A | BM136: N/A | BN136: N/A | BO136: N/A | BP136: N/A | BQ136: N/A | BR136: N/A | BS136: N/A | BT136: N/A | BU136: N/A | BV136: N/A | BW136: N/A | BX136: N/A | BY136: N/A | BZ136: N/A | CA136: N/A
B137: Improved latrines | C137: =C156+C155*'DHS09'!C130/100 -> 12.03512498 | D137: =D156+D155*'DHS09'!D130/100 -> 26.2680294 | E137: =E156+E155*'DHS09'!E130/100 -> 45.27711782 | F137: =F156+F155*'DHS09'!F130/100 -> 58.07006657 | G137: =G156+G155*'DHS09'!G130/100 -> 68.34233098 | H137: =H156+H155*'DHS09'!H130/100 -> 35.32761148 | I137: =I156+I155*'DHS09'!I130/100 -> 53.72696081 | J137: =J156+J155*'DHS09'!J130/100 -> 62.42669266 | K137: =K156+K155*'DHS09'!K130/100 -> 73.29786249 | L137: =L156+L155*'DHS09'!L130/100 -> 64.04023069 | M137: =M156+M155*'DHS09'!M130/100 -> 6.905125192 | N137: =N156+N155*'DHS09'!N130/100 -> 17.51396787 | O137: =O156+O155*'DHS09'!O130/100 -> 21.83745529 | P137: =P156+P155*'DHS09'!P130/100 -> 39.77313456 | Q137: =Q156+Q155*'DHS09'!Q130/100 -> 61.0986576 | R137: =R156+R155*'DHS09'!R130/100 -> 47.37172329 | S137: =S156+S155*'DHS09'!S130/100 -> 49.87129673 | T137: =T156+T155*'DHS09'!T130/100 -> 43.99429321 | U137: =U156+U155*'DHS09'!U130/100 -> 48.06518702 | V137: =V156+V155*'DHS09'!V130/100 -> 44.66626994 | W137: =W156+W155*'DHS09'!W130/100 -> 33.47853451 | X137: =X156+X155*'DHS09'!X130/100 -> 29.03871917 | Y137: =Y156+Y155*'DHS09'!Y130/100 -> 31.49603172 | Z137: =Z156+Z155*'DHS09'!Z130/100 -> 40.20643826 | AA137: =AA156+AA155*'DHS09'!AA130/100 -> 29.87729098 | BB137: Improved latrines | BC137: N/A | BD137: N/A | BE137: N/A | BF137: N/A | BG137: N/A | BH137: N/A | BI137: N/A | BJ137: N/A | BK137: N/A | BL137: N/A | BM137: N/A | BN137: N/A | BO137: N/A | BP137: N/A | BQ137: N/A | BR137: N/A | BS137: N/A | BT137: N/A | BU137: N/A | BV137: N/A | BW137: N/A | BX137: N/A | BY137: N/A | BZ137: N/A | CA137: N/A
B138: Unimproved facilities | C138: =100-(C135+C136+C137+C139) -> 4.565648536 | D138: =100-(D135+D136+D137+D139) -> 29.34940382 | E138: 28.0221452 | F138: 23.73556483 | G138: 10.94891505 | H138: 48.13613892 | I138: 28.57725223 | J138: 22.22342647 | K138: 12.11066017 | L138: 3.600608952 | M138: 1.896532833 | N138: 10.30322244 | O138: 17.42994696 | P138: 21.40429092 | Q138: 23.06056785 | R138: 15.68315262 | S138: 18.55851032 | T138: 29.38102165 | U138: 27.93203809 | V138: 25.46684154 | W138: 9.935895017 | X138: 5.308127677 | Y138: 14.4405677 | Z138: 9.626756071 | AA138: 5.825455381 | BB138: Unimproved facilities | BC138: N/A | BD138: N/A | BE138: N/A | BF138: N/A | BG138: N/A | BH138: N/A | BI138: N/A | BJ138: N/A | BK138: N/A | BL138: N/A | BM138: N/A | BN138: N/A | BO138: N/A | BP138: N/A | BQ138: N/A | BR138: N/A | BS138: N/A | BT138: N/A | BU138: N/A | BV138: N/A | BW138: N/A | BX138: N/A | BY138: N/A | BZ138: N/A | CA138: N/A
B139: Open defecation | C139: =C153 -> 83.39922649 | D139: =D153 -> 43.93776924 | E139: 26.00895291 | F139: 15.61520962 | G139: 3.853068221 | H139: 15.92472437 | I139: 16.31961291 | J139: 11.77872628 | K139: 7.33259332 | L139: 2.332474963 | M139: 91.19834197 | N139: 72.18280969 | O139: 60.2346781 | P139: 38.82257452 | Q139: 15.28604384 | R139: 34.67319119 | S139: 28.60944777 | T139: 24.30730479 | U139: 21.50537634 | V139: 20.09151414 | W139: 52.18120805 | X139: 62.95045045 | Y139: 53.08357349 | Z139: 48.33194329 | AA139: 61.38933764 | BB139: Open defecation | BC139: N/A | BD139: N/A | BE139: N/A | BF139: N/A | BG139: N/A | BH139: N/A | BI139: N/A | BJ139: N/A | BK139: N/A | BL139: N/A | BM139: N/A | BN139: N/A | BO139: N/A | BP139: N/A | BQ139: N/A | BR139: N/A | BS139: N/A | BT139: N/A | BU139: N/A | BV139: N/A | BW139: N/A | BX139: N/A | BY139: N/A | BZ139: N/A | CA139: N/A
A140: Septic tank emptying practices | B140: Not emptied/treated and disposed in situ | C140: N/A | D140: N/A | E140: N/A | F140: N/A | G140: N/A | H140: N/A | I140: N/A | J140: N/A | K140: N/A | L140: N/A | M140: N/A | N140: N/A | O140: N/A | P140: N/A | Q140: N/A | R140: N/A | S140: N/A | T140: N/A | U140: N/A | V140: N/A | W140: N/A | X140: N/A | Y140: N/A | Z140: N/A | AA140: N/A | BA140: Septic tank emptying practices | BB140: Not emptied/treated and disposed in situ | BC140: N/A | BD140: N/A | BE140: N/A | BF140: N/A | BG140: N/A | BH140: N/A | BI140: N/A | BJ140: N/A | BK140: N/A | BL140: N/A | BM140: N/A | BN140: N/A | BO140: N/A | BP140: N/A | BQ140: N/A | BR140: N/A | BS140: N/A | BT140: N/A | BU140: N/A | BV140: N/A | BW140: N/A | BX140: N/A | BY140: N/A | BZ140: N/A | CA140: N/A
B141: Emptied and buried on site | C141: N/A | D141: N/A | E141: N/A | F141: N/A | G141: N/A | H141: N/A | I141: N/A | J141: N/A | K141: N/A | L141: N/A | M141: N/A | N141: N/A | O141: N/A | P141: N/A | Q141: N/A | R141: N/A | S141: N/A | T141: N/A | U141: N/A | V141: N/A | W141: N/A | X141: N/A | Y141: N/A | Z141: N/A | AA141: N/A | BB141: Emptied and buried on site | BC141: N/A | BD141: N/A | BE141: N/A | BF141: N/A | BG141: N/A | BH141: N/A | BI141: N/A | BJ141: N/A | BK141: N/A | BL141: N/A | BM141: N/A | BN141: N/A | BO141: N/A | BP141: N/A | BQ141: N/A | BR141: N/A | BS141: N/A | BT141: N/A | BU141: N/A | BV141: N/A | BW141: N/A | BX141: N/A | BY141: N/A | BZ141: N/A | CA141: N/A
B142: Emptied and discharged locally | C142: N/A | D142: N/A | E142: N/A | F142: N/A | G142: N/A | H142: N/A | I142: N/A | J142: N/A | K142: N/A | L142: N/A | M142: N/A | N142: N/A | O142: N/A | P142: N/A | Q142: N/A | R142: N/A | S142: N/A | T142: N/A | U142: N/A | V142: N/A | W142: N/A | X142: N/A | Y142: N/A | Z142: N/A | AA142: N/A | BB142: Emptied and discharged locally | BC142: N/A | BD142: N/A | BE142: N/A | BF142: N/A | BG142: N/A | BH142: N/A | BI142: N/A | BJ142: N/A | BK142: N/A | BL142: N/A | BM142: N/A | BN142: N/A | BO142: N/A | BP142: N/A | BQ142: N/A | BR142: N/A | BS142: N/A | BT142: N/A | BU142: N/A | BV142: N/A | BW142: N/A | BX142: N/A | BY142: N/A | BZ142: N/A | CA142: N/A
B143: Emptied and removed offsite | C143: N/A | D143: N/A | E143: N/A | F143: N/A | G143: N/A | H143: N/A | I143: N/A | J143: N/A | K143: N/A | L143: N/A | M143: N/A | N143: N/A | O143: N/A | P143: N/A | Q143: N/A | R143: N/A | S143: N/A | T143: N/A | U143: N/A | V143: N/A | W143: N/A | X143: N/A | Y143: N/A | Z143: N/A | AA143: N/A | BB143: Emptied and removed offsite | BC143: N/A | BD143: N/A | BE143: N/A | BF143: N/A | BG143: N/A | BH143: N/A | BI143: N/A | BJ143: N/A | BK143: N/A | BL143: N/A | BM143: N/A | BN143: N/A | BO143: N/A | BP143: N/A | BQ143: N/A | BR143: N/A | BS143: N/A | BT143: N/A | BU143: N/A | BV143: N/A | BW143: N/A | BX143: N/A | BY143: N/A | BZ143: N/A | CA143: N/A
A144: Latrine emptying practices | B144: Not emptied/treated and disposed in situ | C144: N/A | D144: N/A | E144: N/A | F144: N/A | G144: N/A | H144: N/A | I144: N/A | J144: N/A | K144: N/A | L144: N/A | M144: N/A | N144: N/A | O144: N/A | P144: N/A | Q144: N/A | R144: N/A | S144: N/A | T144: N/A | U144: N/A | V144: N/A | W144: N/A | X144: N/A | Y144: N/A | Z144: N/A | AA144: N/A | BA144: Latrine emptying practices | BB144: Not emptied/treated and disposed in situ | BC144: N/A | BD144: N/A | BE144: N/A | BF144: N/A | BG144: N/A | BH144: N/A | BI144: N/A | BJ144: N/A | BK144: N/A | BL144: N/A | BM144: N/A | BN144: N/A | BO144: N/A | BP144: N/A | BQ144: N/A | BR144: N/A | BS144: N/A | BT144: N/A | BU144: N/A | BV144: N/A | BW144: N/A | BX144: N/A | BY144: N/A | BZ144: N/A | CA144: N/A
B145: Emptied and buried on site | C145: N/A | D145: N/A | E145: N/A | F145: N/A | G145: N/A | H145: N/A | I145: N/A | J145: N/A | K145: N/A | L145: N/A | M145: N/A | N145: N/A | O145: N/A | P145: N/A | Q145: N/A | R145: N/A | S145: N/A | T145: N/A | U145: N/A | V145: N/A | W145: N/A | X145: N/A | Y145: N/A | Z145: N/A | AA145: N/A | BB145: Emptied and buried on site | BC145: N/A | BD145: N/A | BE145: N/A | BF145: N/A | BG145: N/A | BH145: N/A | BI145: N/A | BJ145: N/A | BK145: N/A | BL145: N/A | BM145: N/A | BN145: N/A | BO145: N/A | BP145: N/A | BQ145: N/A | BR145: N/A | BS145: N/A | BT145: N/A | BU145: N/A | BV145: N/A | BW145: N/A | BX145: N/A | BY145: N/A | BZ145: N/A | CA145: N/A
B146: Emptied and discharged locally | C146: N/A | D146: N/A | E146: N/A | F146: N/A | G146: N/A | H146: N/A | I146: N/A | J146: N/A | K146: N/A | L146: N/A | M146: N/A | N146: N/A | O146: N/A | P146: N/A | Q146: N/A | R146: N/A | S146: N/A | T146: N/A | U146: N/A | V146: N/A | W146: N/A | X146: N/A | Y146: N/A | Z146: N/A | AA146: N/A | BB146: Emptied and discharged locally | BC146: N/A | BD146: N/A | BE146: N/A | BF146: N/A | BG146: N/A | BH146: N/A | BI146: N/A | BJ146: N/A | BK146: N/A | BL146: N/A | BM146: N/A | BN146: N/A | BO146: N/A | BP146: N/A | BQ146: N/A | BR146: N/A | BS146: N/A | BT146: N/A | BU146: N/A | BV146: N/A | BW146: N/A | BX146: N/A | BY146: N/A | BZ146: N/A | CA146: N/A
B147: Emptied and removed offsite | C147: N/A | D147: N/A | E147: N/A | F147: N/A | G147: N/A | H147: N/A | I147: N/A | J147: N/A | K147: N/A | L147: N/A | M147: N/A | N147: N/A | O147: N/A | P147: N/A | Q147: N/A | R147: N/A | S147: N/A | T147: N/A | U147: N/A | V147: N/A | W147: N/A | X147: N/A | Y147: N/A | Z147: N/A | AA147: N/A | BB147: Emptied and removed offsite | BC147: N/A | BD147: N/A | BE147: N/A | BF147: N/A | BG147: N/A | BH147: N/A | BI147: N/A | BJ147: N/A | BK147: N/A | BL147: N/A | BM147: N/A | BN147: N/A | BO147: N/A | BP147: N/A | BQ147: N/A | BR147: N/A | BS147: N/A | BT147: N/A | BU147: N/A | BV147: N/A | BW147: N/A | BX147: N/A | BY147: N/A | BZ147: N/A | CA147: N/A
A148: Shared among improved sanitation facilities | B148: Yes | C148: N/A | D148: N/A | E148: N/A | F148: N/A | G148: N/A | H148: N/A | I148: N/A | J148: N/A | K148: N/A | L148: N/A | M148: N/A | N148: N/A | O148: N/A | P148: N/A | Q148: N/A | R148: N/A | S148: N/A | T148: N/A | U148: N/A | V148: N/A | W148: N/A | X148: N/A | Y148: N/A | Z148: N/A | AA148: N/A | BA148: Shared among improved sanitation facilities | BB148: Yes | BC148: N/A | BD148: N/A | BE148: N/A | BF148: N/A | BG148: N/A | BH148: N/A | BI148: N/A | BJ148: N/A | BK148: N/A | BL148: N/A | BM148: N/A | BN148: N/A | BO148: N/A | BP148: N/A | BQ148: N/A | BR148: N/A | BS148: N/A | BT148: N/A | BU148: N/A | BV148: N/A | BW148: N/A | BX148: N/A | BY148: N/A | BZ148: N/A | CA148: N/A
B149: No | C149: N/A | D149: N/A | E149: N/A | F149: N/A | G149: N/A | H149: N/A | I149: N/A | J149: N/A | K149: N/A | L149: N/A | M149: N/A | N149: N/A | O149: N/A | P149: N/A | Q149: N/A | R149: N/A | S149: N/A | T149: N/A | U149: N/A | V149: N/A | W149: N/A | X149: N/A | Y149: N/A | Z149: N/A | AA149: N/A | BB149: No | BC149: N/A | BD149: N/A | BE149: N/A | BF149: N/A | BG149: N/A | BH149: N/A | BI149: N/A | BJ149: N/A | BK149: N/A | BL149: N/A | BM149: N/A | BN149: N/A | BO149: N/A | BP149: N/A | BQ149: N/A | BR149: N/A | BS149: N/A | BT149: N/A | BU149: N/A | BV149: N/A | BW149: N/A | BX149: N/A | BY149: N/A | BZ149: N/A | CA149: N/A
B150: DK/missing | C150: N/A | D150: N/A | E150: N/A | F150: N/A | G150: N/A | H150: N/A | I150: N/A | J150: N/A | K150: N/A | L150: N/A | M150: N/A | N150: N/A | O150: N/A | P150: N/A | Q150: N/A | R150: N/A | S150: N/A | T150: N/A | U150: N/A | V150: N/A | W150: N/A | X150: N/A | Y150: N/A | Z150: N/A | AA150: N/A | BB150: DK/missing | BC150: N/A | BD150: N/A | BE150: N/A | BF150: N/A | BG150: N/A | BH150: N/A | BI150: N/A | BJ150: N/A | BK150: N/A | BL150: N/A | BM150: N/A | BN150: N/A | BO150: N/A | BP150: N/A | BQ150: N/A | BR150: N/A | BS150: N/A | BT150: N/A | BU150: N/A | BV150: N/A | BW150: N/A | BX150: N/A | BY150: N/A | BZ150: N/A | CA150: N/A
A151: Shared among all sanitation facilities | B151: Yes | C151: N/A | D151: N/A | E151: N/A | F151: N/A | G151: N/A | H151: N/A | I151: N/A | J151: N/A | K151: N/A | L151: N/A | M151: N/A | N151: N/A | O151: N/A | P151: N/A | Q151: N/A | R151: N/A | S151: N/A | T151: N/A | U151: N/A | V151: N/A | W151: N/A | X151: N/A | Y151: N/A | Z151: N/A | AA151: N/A | BA151: Shared among all sanitation facilities | BB151: Yes | BC151: N/A | BD151: N/A | BE151: N/A | BF151: N/A | BG151: N/A | BH151: N/A | BI151: N/A | BJ151: N/A | BK151: N/A | BL151: N/A | BM151: N/A | BN151: N/A | BO151: N/A | BP151: N/A | BQ151: N/A | BR151: N/A | BS151: N/A | BT151: N/A | BU151: N/A | BV151: N/A | BW151: N/A | BX151: N/A | BY151: N/A | BZ151: N/A | CA151: N/A
B152: No | C152: N/A | D152: N/A | E152: N/A | F152: N/A | G152: N/A | H152: N/A | I152: N/A | J152: N/A | K152: N/A | L152: N/A | M152: N/A | N152: N/A | O152: N/A | P152: N/A | Q152: N/A | R152: N/A | S152: N/A | T152: N/A | U152: N/A | V152: N/A | W152: N/A | X152: N/A | Y152: N/A | Z152: N/A | AA152: N/A | BB152: No | BC152: N/A | BD152: N/A | BE152: N/A | BF152: N/A | BG152: N/A | BH152: N/A | BI152: N/A | BJ152: N/A | BK152: N/A | BL152: N/A | BM152: N/A | BN152: N/A | BO152: N/A | BP152: N/A | BQ152: N/A | BR152: N/A | BS152: N/A | BT152: N/A | BU152: N/A | BV152: N/A | BW152: N/A | BX152: N/A | BY152: N/A | BZ152: N/A | CA152: N/A
A153: Type of Toilet | B153: No toilet | C153: 83.39922649 | D153: 43.93776924 | E153: 26.00895291 | F153: 15.61520962 | G153: 3.853068221 | H153: 15.92472437 | I153: 16.31961291 | J153: 11.77872628 | K153: 7.33259332 | L153: 2.332474963 | M153: 91.19834197 | N153: 72.18280969 | O153: 60.2346781 | P153: 38.82257452 | Q153: 15.28604384 | R153: 34.67319119 | S153: 28.60944777 | T153: 24.30730479 | U153: 21.50537634 | V153: 20.09151414 | W153: 52.18120805 | X153: 62.95045045 | Y153: 53.08357349 | Z153: 48.33194329 | AA153: 61.38933764 | BA153: Type of Toilet | BB153: No toilet | BC153: 307235.6421 | BD153: 163986.7737 | BE153: 94286.89743 | BF153: 57694.06569 | BG153: 14193.15645 | BH153: 27404.39916 | BI153: 28105.89561 | BJ153: 20274.84196 | BK153: 12642.30737 | BL153: 4011.12432 | BM153: 178862.8603 | BN153: 141740.632 | BO153: 118187.4479 | BP153: 76168.04623 | BQ153: 29998.9805 | BR153: 83477.0976 | BS153: 31239.2248 | BT153: 72960.80325 | BU153: 45584.9482 | BV153: 77526.92892 | BW153: 96031.16468 | BX153: 53903.20728 | BY153: 38042.34708 | BZ153: 61063.54919 | CA153: 77567.2644
B154: Sewage sytem | C154: 0 | D154: 0.4447975432 | E154: 0.6917840696 | F154: 2.579158984 | G154: 16.85568575 | H154: 0.6115252347 | I154: 1.376174041 | J154: 3.571154592 | K154: 7.258884023 | L154: 30.02668539 | M154: 0 | N154: 0 | O154: 0.4979196366 | P154: 0 | Q154: 0.5547307131 | R154: 2.271932891 | S154: 2.960745176 | T154: 2.317380353 | U154: 2.497398543 | V154: 9.775374376 | W154: 4.404362416 | X154: 2.702702703 | Y154: 0.9798270893 | Z154: 1.834862385 | AA154: 2.907915994 | BB154: Sewage sytem | BC154: 0 | BD154: 1660.09598 | BE154: 2507.83543 | BF154: 9529.30966 | BG154: 62089.57934 | BH154: 1052.35615 | BI154: 2370.06871 | BJ154: 6147.06491 | BK154: 12515.22333 | BL154: 51636.46768 | BM154: 0 | BN154: 0 | BO154: 976.97627 | BP154: 0 | BQ154: 1088.66336 | BR154: 5469.7695 | BS154: 3232.89652 | BT154: 6955.8486 | BU154: 5293.73592 | BV154: 37720.1414 | BW154: 8105.52435 | BX154: 2314.27008 | BY154: 702.19316 | BZ154: 2318.20204 | CA154: 3674.23884
B155: Own pit latrine | C155: 10.53440933 | D155: 24.93150865 | E155: 38.89194454 | F155: 40.80435764 | G155: 27.70595278 | H155: 23.48286199 | I155: 41.0187568 | J155: 38.60356967 | K155: 30.33397845 | L155: 15.43731807 | M155: 5.064022305 | N155: 18.28979441 | O155: 27.08131797 | P155: 37.87184357 | Q155: 48.93323597 | R155: 34.56833275 | S155: 38.85562209 | T155: 41.23425693 | U155: 37.01005897 | V155: 33.38186356 | W155: 11.32550336 | X155: 3.772522523 | Y155: 19.02017291 | Z155: 13.71976647 | AA155: 11.03931072 | BB155: Own pit latrine | BC155: 38807.86612 | BD155: 93050.64273 | BE155: 140989.9429 | BF155: 150761.2993 | BG155: 102057.6071 | BH155: 40410.98034 | BI155: 70643.15207 | BJ155: 66448.71914 | BK155: 52299.57024 | BL155: 26547.33831 | BM155: 9931.81997 | BN155: 35914.46537 | BO155: 53136.69731 | BP155: 74302.75729 | BQ155: 96031.85803 | BR155: 83224.6467 | BS155: 42427.22624 | BT155: 123768.7409 | BU155: 78450.22537 | BV155: 128810.2701 | BW155: 20842.7769 | BX155: 3230.33532 | BY155: 13630.8084 | BZ155: 17333.82889 | CA155: 13948.4993
B156: Own VIP | C156: 5.58083492 | D156: 15.11351358 | E156: 28.6584924 | F156: 37.72009245 | G156: 50.31719484 | H156: 24.80570412 | I156: 32.98591702 | J156: 40.65622511 | K156: 52.74752874 | L156: 51.25050899 | M156: 3.662658982 | N156: 8.449405542 | O156: 10.83438656 | P156: 22.59942709 | Q156: 34.46821124 | R156: 27.26319469 | S156: 27.57817698 | T156: 25.41561713 | U156: 34.40860215 | V156: 27.68302829 | W156: 26.30033557 | X156: 26.23873874 | Y156: 23.91930836 | Z156: 30.56713928 | AA156: 21.48626817 | BB156: Own VIP | BC156: 20559.32018 | BD156: 56407.42291 | BE156: 103891.9307 | BF156: 139365.7559 | BG156: 185348.3452 | BH156: 42687.42123 | BI156: 56808.86827 | BJ156: 69981.97594 | BK156: 90943.33236 | BL156: 88134.778 | BM156: 7183.39443 | BN156: 16591.54149 | BO156: 21258.32722 | BP156: 44339.00194 | BQ156: 67644.13395 | BR156: 65637.234 | BS156: 30113.15972 | BT156: 76287.51345 | BU156: 72935.91712 | BV156: 106820.2302 | BW156: 48401.55969 | BX156: 22467.70536 | BY156: 17141.7742 | BZ156: 38619.13853 | CA156: 27148.54254
B157: Bucket | C157: 0 | D157: 0.2968165227 | E157: 0.06256840315 | F157: 0.249058499 | G157: 0.1898908889 | H157: 0.03953896197 | I157: 0.1317030925 | J157: 0.08542807565 | K157: 0.2240259161 | L157: 0.2800125989 | M157: 0 | N157: 0 | O157: 0.3372465569 | P157: 0.192683184 | Q157: 0.3082058554 | R157: 0.0699056274 | S157: 0.1996007984 | T157: 0.40302267 | U157: 0.3815469997 | V157: 0.1247920133 | W157: 0 | X157: 0 | Y157: 0 | Z157: 0 | AA157: 0.05385029618 | BB157: Bucket | BC157: 0 | BD157: 1107.7937 | BE157: 226.82115 | BF157: 920.20522 | BG157: 699.4818 | BH157: 68.04146 | BI157: 226.82115 | BJ157: 147.04822 | BK157: 386.24868 | BL157: 481.53372 | BM157: 0 | BN157: 0 | BO157: 661.71699 | BP157: 378.03525 | BQ157: 604.8564 | BR157: 168.3006 | BS157: 217.94808 | BT157: 1209.7128 | BU157: 808.76521 | BV157: 481.53372 | BW157: 0 | BX157: 0 | BY157: 0 | BZ157: 0 | CA157: 68.04146
B158: Public/shared to | C158: 0 | D158: 14.58643698 | E158: 5.179075106 | F158: 2.860362514 | G158: 1.015337897 | H158: 34.37358812 | I158: 7.511066631 | J158: 5.020248588 | K158: 1.884775502 | L158: 0.6729999913 | M158: 0 | N158: 0.2034857026 | O158: 0.3121711787 | P158: 0.2511468427 | Q158: 0.4495723854 | R158: 1.153442852 | S158: 1.663339987 | T158: 5.994962217 | U158: 2.844259452 | V158: 8.881031614 | W158: 5.662751678 | X158: 2.759009009 | Y158: 1.844380403 | Z158: 5.212677231 | AA158: 3.123317178 | BB158: Public/shared to | BC158: 0 | BD158: 54440.24089 | BE158: 18775.032 | BF158: 10568.28226 | BG158: 3740.09719 | BH158: 59152.51702 | BI158: 12935.67781 | BJ158: 8641.40522 | BK158: 3249.58854 | BL158: 1157.3486 | BM158: 0 | BN158: 399.57148 | BO158: 612.51618 | BP158: 492.73817 | BQ158: 882.28932 | BR158: 2776.9599 | BS158: 1816.234 | BT158: 17994.4779 | BU158: 6028.97702 | BV158: 34269.14974 | BW158: 10421.38845 | BX158: 2362.48404 | BY158: 1321.77536 | BZ158: 6585.80125 | CA158: 3946.40468
B159: Other | C159: 0.4855292597 | D159: 0.6891574865 | E159: 0.5071825649 | F159: 0.1717603059 | G159: 0.06286961183 | H159: 0.7620572057 | I159: 0.6567695024 | J159: 0.2846476906 | K159: 0.2182140463 | L159: 0 | M159: 0.07497673823 | N159: 0.8745046613 | O159: 0.7022799978 | P159: 0.2623247893 | Q159: 0 | R159: 0 | S159: 0.1330671989 | T159: 0.3274559194 | U159: 1.352757544 | V159: 0.06239600666 | W159: 0.1258389262 | X159: 1.576576577 | Y159: 1.152737752 | Z159: 0.3336113428 | AA159: 0 | BB159: Other | BC159: 1788.64841 | BD159: 2572.10857 | BE159: 1838.62344 | BF159: 634.60886 | BG159: 231.58641 | BH159: 1311.40228 | BI159: 1131.09883 | BJ159: 489.96698 | BK159: 376.22829 | BL159: 0 | BM159: 147.04822 | BN159: 1717.20724 | BO159: 1377.95508 | BP159: 514.66877 | BQ159: 0 | BR159: 0 | BS159: 145.29872 | BT159: 982.89165 | BU159: 2867.44029 | BV159: 240.76686 | BW159: 231.58641 | BX159: 1349.99088 | BY159: 826.1096 | BZ159: 421.49128 | CA159: 0
BB160: Total | BC160: 368391.4768 | BD160: 373225.0785 | BE160: 362517.083 | BF160: 369473.5268 | BG160: 368359.8534 | BH160: 172087.1176 | BI160: 172221.5824 | BJ160: 172131.0224 | BK160: 172412.4988 | BL160: 171968.5906 | BM160: 196125.1229 | BN160: 196363.4176 | BO160: 196211.637 | BP160: 196195.2476 | BQ160: 196250.7816 | BR160: 240754.0083 | BS160: 109191.9881 | BT160: 300159.9885 | BU160: 211970.0091 | BV160: 385869.021 | BW160: 184034.0005 | BX160: 85627.99296 | BY160: 71665.0078 | BZ160: 126342.0112 | CA160: 126352.9912
A208: =A1026 -> Lesotho
A209: =A1034 -> 2002
A210: Access to hygiene facilities
A211: by wealth quintile and sub-national region
A212: Notes:
A213: WHO/UNICEF JMP customised wealth index excludes water,
A214: sanitation and hygiene assets.
A215: Survey used for analysis: | B215: =A1025 -> HBS02
A220: Access to handwashing | C220: NATIONAL wealth index quintile | H220: URBAN wealth index quintile | M220: RURAL wealth index quintile | R220: SUB-REGIONS: | BA220: Raw numbers of respondents: | BB220: Access to handwashing | BC220: NATIONAL wealth index quintile | BH220: URBAN wealth index quintile | BM220: RURAL wealth index quintile | BR220: SUB-REGIONS:
A221: Weighted percentage (used in graphs) | C221: Poorest | D221: Poor | E221: Middle | F221: Rich | G221: Richest | H221: Poorest | I221: Poor | J221: Middle | K221: Rich | L221: Richest | M221: Poorest | N221: Poor | O221: Middle | P221: Rich | Q221: Richest | R221: Berea | S221: Butha Buthe | T221: Leribe | U221: Mafeteng | V221: Maseru | W221: Mohale's Hoek | X221: Mokhotlong | Y221: Qacha's Nek | Z221: Quthing | AA221: Thaba Tseka | BA221: Hygiene data, raw numbers (weighted) | BC221: Poorest | BD221: Poor | BE221: Middle | BF221: Rich | BG221: Richest | BH221: Poorest | BI221: Poor | BJ221: Middle | BK221: Rich | BL221: Richest | BM221: Poorest | BN221: Poor | BO221: Middle | BP221: Rich | BQ221: Richest | BR221: Berea | BS221: Butha Buthe | BT221: Leribe | BU221: Mafeteng | BV221: Maseru | BW221: Mohale's Hoek | BX221: Mokhotlong | BY221: Qacha's Nek | BZ221: Quthing | CA221: Thaba Tseka
A222: Hygiene ladder | B222: Basic | C222: N/A | D222: N/A | E222: N/A | F222: N/A | G222: N/A | H222: N/A | I222: N/A | J222: N/A | K222: N/A | L222: N/A | M222: N/A | N222: N/A | O222: N/A | P222: N/A | Q222: N/A | R222: N/A | S222: N/A | T222: N/A | U222: N/A | V222: N/A | W222: N/A | X222: N/A | Y222: N/A | Z222: N/A | AA222: N/A | BA222: Hygiene ladder | BB222: Basic | BC222: N/A | BD222: N/A | BE222: N/A | BF222: N/A | BG222: N/A | BH222: N/A | BI222: N/A | BJ222: N/A | BK222: N/A | BL222: N/A | BM222: N/A | BN222: N/A | BO222: N/A | BP222: N/A | BQ222: N/A | BR222: N/A | BS222: N/A | BT222: N/A | BU222: N/A | BV222: N/A | BW222: N/A | BX222: N/A | BY222: N/A | BZ222: N/A | CA222: N/A
B223: Limited | C223: N/A | D223: N/A | E223: N/A | F223: N/A | G223: N/A | H223: N/A | I223: N/A | J223: N/A | K223: N/A | L223: N/A | M223: N/A | N223: N/A | O223: N/A | P223: N/A | Q223: N/A | R223: N/A | S223: N/A | T223: N/A | U223: N/A | V223: N/A | W223: N/A | X223: N/A | Y223: N/A | Z223: N/A | AA223: N/A | BB223: Limited | BC223: N/A | BD223: N/A | BE223: N/A | BF223: N/A | BG223: N/A | BH223: N/A | BI223: N/A | BJ223: N/A | BK223: N/A | BL223: N/A | BM223: N/A | BN223: N/A | BO223: N/A | BP223: N/A | BQ223: N/A | BR223: N/A | BS223: N/A | BT223: N/A | BU223: N/A | BV223: N/A | BW223: N/A | BX223: N/A | BY223: N/A | BZ223: N/A | CA223: N/A
B224: No facility | C224: N/A | D224: N/A | E224: N/A | F224: N/A | G224: N/A | H224: N/A | I224: N/A | J224: N/A | K224: N/A | L224: N/A | M224: N/A | N224: N/A | O224: N/A | P224: N/A | Q224: N/A | R224: N/A | S224: N/A | T224: N/A | U224: N/A | V224: N/A | W224: N/A | X224: N/A | Y224: N/A | Z224: N/A | AA224: N/A | BB224: No facility | BC224: N/A | BD224: N/A | BE224: N/A | BF224: N/A | BG224: N/A | BH224: N/A | BI224: N/A | BJ224: N/A | BK224: N/A | BL224: N/A | BM224: N/A | BN224: N/A | BO224: N/A | BP224: N/A | BQ224: N/A | BR224: N/A | BS224: N/A | BT224: N/A | BU224: N/A | BV224: N/A | BW224: N/A | BX224: N/A | BY224: N/A | BZ224: N/A | CA224: N/A
BA225: Observed handwashing place | BB225: Fixed | BC225: N/A | BD225: N/A | BE225: N/A | BF225: N/A | BG225: N/A | BH225: N/A | BI225: N/A | BJ225: N/A | BK225: N/A | BL225: N/A | BM225: N/A | BN225: N/A | BO225: N/A | BP225: N/A | BQ225: N/A | BR225: N/A | BS225: N/A | BT225: N/A | BU225: N/A | BV225: N/A | BW225: N/A | BX225: N/A | BY225: N/A | BZ225: N/A | CA225: N/A
BB226: Mobile | BC226: N/A | BD226: N/A | BE226: N/A | BF226: N/A | BG226: N/A | BH226: N/A | BI226: N/A | BJ226: N/A | BK226: N/A | BL226: N/A | BM226: N/A | BN226: N/A | BO226: N/A | BP226: N/A | BQ226: N/A | BR226: N/A | BS226: N/A | BT226: N/A | BU226: N/A | BV226: N/A | BW226: N/A | BX226: N/A | BY226: N/A | BZ226: N/A | CA226: N/A
BA227: Water / Soap | BB227: Water and soap | BC227: N/A | BD227: N/A | BE227: N/A | BF227: N/A | BG227: N/A | BH227: N/A | BI227: N/A | BJ227: N/A | BK227: N/A | BL227: N/A | BM227: N/A | BN227: N/A | BO227: N/A | BP227: N/A | BQ227: N/A | BR227: N/A | BS227: N/A | BT227: N/A | BU227: N/A | BV227: N/A | BW227: N/A | BX227: N/A | BY227: N/A | BZ227: N/A | CA227: N/A
BB228: Water only | BC228: N/A | BD228: N/A | BE228: N/A | BF228: N/A | BG228: N/A | BH228: N/A | BI228: N/A | BJ228: N/A | BK228: N/A | BL228: N/A | BM228: N/A | BN228: N/A | BO228: N/A | BP228: N/A | BQ228: N/A | BR228: N/A | BS228: N/A | BT228: N/A | BU228: N/A | BV228: N/A | BW228: N/A | BX228: N/A | BY228: N/A | BZ228: N/A | CA228: N/A
BB229: Soap only | BC229: N/A | BD229: N/A | BE229: N/A | BF229: N/A | BG229: N/A | BH229: N/A | BI229: N/A | BJ229: N/A | BK229: N/A | BL229: N/A | BM229: N/A | BN229: N/A | BO229: N/A | BP229: N/A | BQ229: N/A | BR229: N/A | BS229: N/A | BT229: N/A | BU229: N/A | BV229: N/A | BW229: N/A | BX229: N/A | BY229: N/A | BZ229: N/A | CA229: N/A
BB230: Neither | BC230: N/A | BD230: N/A | BE230: N/A | BF230: N/A | BG230: N/A | BH230: N/A | BI230: N/A | BJ230: N/A | BK230: N/A | BL230: N/A | BM230: N/A | BN230: N/A | BO230: N/A | BP230: N/A | BQ230: N/A | BR230: N/A | BS230: N/A | BT230: N/A | BU230: N/A | BV230: N/A | BW230: N/A | BX230: N/A | BY230: N/A | BZ230: N/A | CA230: N/A
BA259: Raw numbers of respondents: | BB259: Menstrual health and hygiene | BC259: NATIONAL wealth index quintile | BH259: URBAN wealth index quintile | BM259: RURAL wealth index quintile | BR259: SUB-REGIONS:
BA260: MHH data, raw numbers (weighted) | BC260: Poorest | BD260: Poor | BE260: Middle | BF260: Rich | BG260: Richest | BH260: Poorest | BI260: Poor | BJ260: Middle | BK260: Rich | BL260: Richest | BM260: Poorest | BN260: Poor | BO260: Middle | BP260: Rich | BQ260: Richest | BR260: Berea | BS260: Butha Buthe | BT260: Leribe | BU260: Mafeteng | BV260: Maseru | BW260: Mohale's Hoek | BX260: Mokhotlong | BY260: Qacha's Nek | BZ260: Quthing | CA260: Thaba Tseka
BA261: Private place to wash and change | BB261: Yes | BC261: N/A | BD261: N/A | BE261: N/A | BF261: N/A | BG261: N/A | BH261: N/A | BI261: N/A | BJ261: N/A | BK261: N/A | BL261: N/A | BM261: N/A | BN261: N/A | BO261: N/A | BP261: N/A | BQ261: N/A | BR261: N/A | BS261: N/A | BT261: N/A | BU261: N/A | BV261: N/A | BW261: N/A | BX261: N/A | BY261: N/A | BZ261: N/A | CA261: N/A
BB262: No | BC262: N/A | BD262: N/A | BE262: N/A | BF262: N/A | BG262: N/A | BH262: N/A | BI262: N/A | BJ262: N/A | BK262: N/A | BL262: N/A | BM262: N/A | BN262: N/A | BO262: N/A | BP262: N/A | BQ262: N/A | BR262: N/A | BS262: N/A | BT262: N/A | BU262: N/A | BV262: N/A | BW262: N/A | BX262: N/A | BY262: N/A | BZ262: N/A | CA262: N/A
BB263: DK/not sure/missing | BC263: N/A | BD263: N/A | BE263: N/A | BF263: N/A | BG263: N/A | BH263: N/A | BI263: N/A | BJ263: N/A | BK263: N/A | BL263: N/A | BM263: N/A | BN263: N/A | BO263: N/A | BP263: N/A | BQ263: N/A | BR263: N/A | BS263: N/A | BT263: N/A | BU263: N/A | BV263: N/A | BW263: N/A | BX263: N/A | BY263: N/A | BZ263: N/A | CA263: N/A
BA264: Use of menstrual materials | BB264: Materials reusable | BC264: N/A | BD264: N/A | BE264: N/A | BF264: N/A | BG264: N/A | BH264: N/A | BI264: N/A | BJ264: N/A | BK264: N/A | BL264: N/A | BM264: N/A | BN264: N/A | BO264: N/A | BP264: N/A | BQ264: N/A | BR264: N/A | BS264: N/A | BT264: N/A | BU264: N/A | BV264: N/A | BW264: N/A | BX264: N/A | BY264: N/A | BZ264: N/A | CA264: N/A
BB265: Materials not reusable | BC265: N/A | BD265: N/A | BE265: N/A | BF265: N/A | BG265: N/A | BH265: N/A | BI265: N/A | BJ265: N/A | BK265: N/A | BL265: N/A | BM265: N/A | BN265: N/A | BO265: N/A | BP265: N/A | BQ265: N/A | BR265: N/A | BS265: N/A | BT265: N/A | BU265: N/A | BV265: N/A | BW265: N/A | BX265: N/A | BY265: N/A | BZ265: N/A | CA265: N/A
BB266: No materials used | BC266: N/A | BD266: N/A | BE266: N/A | BF266: N/A | BG266: N/A | BH266: N/A | BI266: N/A | BJ266: N/A | BK266: N/A | BL266: N/A | BM266: N/A | BN266: N/A | BO266: N/A | BP266: N/A | BQ266: N/A | BR266: N/A | BS266: N/A | BT266: N/A | BU266: N/A | BV266: N/A | BW266: N/A | BX266: N/A | BY266: N/A | BZ266: N/A | CA266: N/A
BB267: DK/not sure/missing | BC267: N/A | BD267: N/A | BE267: N/A | BF267: N/A | BG267: N/A | BH267: N/A | BI267: N/A | BJ267: N/A | BK267: N/A | BL267: N/A | BM267: N/A | BN267: N/A | BO267: N/A | BP267: N/A | BQ267: N/A | BR267: N/A | BS267: N/A | BT267: N/A | BU267: N/A | BV267: N/A | BW267: N/A | BX267: N/A | BY267: N/A | BZ267: N/A | CA267: N/A
BA268: Use of menstrual materials with private place to wash and change | BB268: Materials reusable | BC268: N/A | BD268: N/A | BE268: N/A | BF268: N/A | BG268: N/A | BH268: N/A | BI268: N/A | BJ268: N/A | BK268: N/A | BL268: N/A | BM268: N/A | BN268: N/A | BO268: N/A | BP268: N/A | BQ268: N/A | BR268: N/A | BS268: N/A | BT268: N/A | BU268: N/A | BV268: N/A | BW268: N/A | BX268: N/A | BY268: N/A | BZ268: N/A | CA268: N/A
BB269: Materials not reusable | BC269: N/A | BD269: N/A | BE269: N/A | BF269: N/A | BG269: N/A | BH269: N/A | BI269: N/A | BJ269: N/A | BK269: N/A | BL269: N/A | BM269: N/A | BN269: N/A | BO269: N/A | BP269: N/A | BQ269: N/A | BR269: N/A | BS269: N/A | BT269: N/A | BU269: N/A | BV269: N/A | BW269: N/A | BX269: N/A | BY269: N/A | BZ269: N/A | CA269: N/A
BB270: No materials used | BC270: N/A | BD270: N/A | BE270: N/A | BF270: N/A | BG270: N/A | BH270: N/A | BI270: N/A | BJ270: N/A | BK270: N/A | BL270: N/A | BM270: N/A | BN270: N/A | BO270: N/A | BP270: N/A | BQ270: N/A | BR270: N/A | BS270: N/A | BT270: N/A | BU270: N/A | BV270: N/A | BW270: N/A | BX270: N/A | BY270: N/A | BZ270: N/A | CA270: N/A
BA271: Awareness of menstruation before menarche | BB271: Yes | BC271: N/A | BD271: N/A | BE271: N/A | BF271: N/A | BG271: N/A | BH271: N/A | BI271: N/A | BJ271: N/A | BK271: N/A | BL271: N/A | BM271: N/A | BN271: N/A | BO271: N/A | BP271: N/A | BQ271: N/A | BR271: N/A | BS271: N/A | BT271: N/A | BU271: N/A | BV271: N/A | BW271: N/A | BX271: N/A | BY271: N/A | BZ271: N/A | CA271: N/A
BB272: No | BC272: N/A | BD272: N/A | BE272: N/A | BF272: N/A | BG272: N/A | BH272: N/A | BI272: N/A | BJ272: N/A | BK272: N/A | BL272: N/A | BM272: N/A | BN272: N/A | BO272: N/A | BP272: N/A | BQ272: N/A | BR272: N/A | BS272: N/A | BT272: N/A | BU272: N/A | BV272: N/A | BW272: N/A | BX272: N/A | BY272: N/A | BZ272: N/A | CA272: N/A
BB273: DK/not sure/missing | BC273: N/A | BD273: N/A | BE273: N/A | BF273: N/A | BG273: N/A | BH273: N/A | BI273: N/A | BJ273: N/A | BK273: N/A | BL273: N/A | BM273: N/A | BN273: N/A | BO273: N/A | BP273: N/A | BQ273: N/A | BR273: N/A | BS273: N/A | BT273: N/A | BU273: N/A | BV273: N/A | BW273: N/A | BX273: N/A | BY273: N/A | BZ273: N/A | CA273: N/A
BA274: Participation in (all) activities during menstruation | BB274: Yes | BC274: N/A | BD274: N/A | BE274: N/A | BF274: N/A | BG274: N/A | BH274: N/A | BI274: N/A | BJ274: N/A | BK274: N/A | BL274: N/A | BM274: N/A | BN274: N/A | BO274: N/A | BP274: N/A | BQ274: N/A | BR274: N/A | BS274: N/A | BT274: N/A | BU274: N/A | BV274: N/A | BW274: N/A | BX274: N/A | BY274: N/A | BZ274: N/A | CA274: N/A
BB275: No | BC275: N/A | BD275: N/A | BE275: N/A | BF275: N/A | BG275: N/A | BH275: N/A | BI275: N/A | BJ275: N/A | BK275: N/A | BL275: N/A | BM275: N/A | BN275: N/A | BO275: N/A | BP275: N/A | BQ275: N/A | BR275: N/A | BS275: N/A | BT275: N/A | BU275: N/A | BV275: N/A | BW275: N/A | BX275: N/A | BY275: N/A | BZ275: N/A | CA275: N/A
BB276: DK/not sure/missing/no such activity | BC276: N/A | BD276: N/A | BE276: N/A | BF276: N/A | BG276: N/A | BH276: N/A | BI276: N/A | BJ276: N/A | BK276: N/A | BL276: N/A | BM276: N/A | BN276: N/A | BO276: N/A | BP276: N/A | BQ276: N/A | BR276: N/A | BS276: N/A | BT276: N/A | BU276: N/A | BV276: N/A | BW276: N/A | BX276: N/A | BY276: N/A | BZ276: N/A | CA276: N/A
BA277: Participation in specific activities during menstruation | BB277: Did not go to school (amongst those usually attending school) | BC277: N/A | BD277: N/A | BE277: N/A | BF277: N/A | BG277: N/A | BH277: N/A | BI277: N/A | BJ277: N/A | BK277: N/A | BL277: N/A | BM277: N/A | BN277: N/A | BO277: N/A | BP277: N/A | BQ277: N/A | BR277: N/A | BS277: N/A | BT277: N/A | BU277: N/A | BV277: N/A | BW277: N/A | BX277: N/A | BY277: N/A | BZ277: N/A | CA277: N/A
BB278: Did not go to work (amongst those who usually work) | BC278: N/A | BD278: N/A | BE278: N/A | BF278: N/A | BG278: N/A | BH278: N/A | BI278: N/A | BJ278: N/A | BK278: N/A | BL278: N/A | BM278: N/A | BN278: N/A | BO278: N/A | BP278: N/A | BQ278: N/A | BR278: N/A | BS278: N/A | BT278: N/A | BU278: N/A | BV278: N/A | BW278: N/A | BX278: N/A | BY278: N/A | BZ278: N/A | CA278: N/A
BB279: Did not participate in social activities | BC279: N/A | BD279: N/A | BE279: N/A | BF279: N/A | BG279: N/A | BH279: N/A | BI279: N/A | BJ279: N/A | BK279: N/A | BL279: N/A | BM279: N/A | BN279: N/A | BO279: N/A | BP279: N/A | BQ279: N/A | BR279: N/A | BS279: N/A | BT279: N/A | BU279: N/A | BV279: N/A | BW279: N/A | BX279: N/A | BY279: N/A | BZ279: N/A | CA279: N/A
BB280: Did not cook food | BC280: N/A | BD280: N/A | BE280: N/A | BF280: N/A | BG280: N/A | BH280: N/A | BI280: N/A | BJ280: N/A | BK280: N/A | BL280: N/A | BM280: N/A | BN280: N/A | BO280: N/A | BP280: N/A | BQ280: N/A | BR280: N/A | BS280: N/A | BT280: N/A | BU280: N/A | BV280: N/A | BW280: N/A | BX280: N/A | BY280: N/A | BZ280: N/A | CA280: N/A
BB281: Did not eat with others | BC281: N/A | BD281: N/A | BE281: N/A | BF281: N/A | BG281: N/A | BH281: N/A | BI281: N/A | BJ281: N/A | BK281: N/A | BL281: N/A | BM281: N/A | BN281: N/A | BO281: N/A | BP281: N/A | BQ281: N/A | BR281: N/A | BS281: N/A | BT281: N/A | BU281: N/A | BV281: N/A | BW281: N/A | BX281: N/A | BY281: N/A | BZ281: N/A | CA281: N/A
BB282: Did not bathe in regular place | BC282: N/A | BD282: N/A | BE282: N/A | BF282: N/A | BG282: N/A | BH282: N/A | BI282: N/A | BJ282: N/A | BK282: N/A | BL282: N/A | BM282: N/A | BN282: N/A | BO282: N/A | BP282: N/A | BQ282: N/A | BR282: N/A | BS282: N/A | BT282: N/A | BU282: N/A | BV282: N/A | BW282: N/A | BX282: N/A | BY282: N/A | BZ282: N/A | CA282: N/A
BB283: Did not participate in other activities | BC283: N/A | BD283: N/A | BE283: N/A | BF283: N/A | BG283: N/A | BH283: N/A | BI283: N/A | BJ283: N/A | BK283: N/A | BL283: N/A | BM283: N/A | BN283: N/A | BO283: N/A | BP283: N/A | BQ283: N/A | BR283: N/A | BS283: N/A | BT283: N/A | BU283: N/A | BV283: N/A | BW283: N/A | BX283: N/A | BY283: N/A | BZ283: N/A | CA283: N/A
BB284: DK/not sure/missing/no such activity | BC284: N/A | BD284: N/A | BE284: N/A | BF284: N/A | BG284: N/A | BH284: N/A | BI284: N/A | BJ284: N/A | BK284: N/A | BL284: N/A | BM284: N/A | BN284: N/A | BO284: N/A | BP284: N/A | BQ284: N/A | BR284: N/A | BS284: N/A | BT284: N/A | BU284: N/A | BV284: N/A | BW284: N/A | BX284: N/A | BY284: N/A | BZ284: N/A | CA284: N/A
BA339: Raw numbers of respondents: | BB339: Basic water, sanitation and hygiene | BC339: NATIONAL wealth index quintile | BH339: URBAN wealth index quintile | BM339: RURAL wealth index quintile | BR339: SUB-REGIONS:
BA340: WatSan data, raw numbers (weighted) | BC340: Poorest | BD340: Poor | BE340: Middle | BF340: Rich | BG340: Richest | BH340: Poorest | BI340: Poor | BJ340: Middle | BK340: Rich | BL340: Richest | BM340: Poorest | BN340: Poor | BO340: Middle | BP340: Rich | BQ340: Richest | BR340: Berea | BS340: Butha Buthe | BT340: Leribe | BU340: Mafeteng | BV340: Maseru | BW340: Mohale's Hoek | BX340: Mokhotlong | BY340: Qacha's Nek | BZ340: Quthing | CA340: Thaba Tseka
BA341: Use of Basic Water Sanitation and Hygiene | BB341: Yes | BC341: N/A | BD341: N/A | BE341: N/A | BF341: N/A | BG341: N/A | BH341: N/A | BI341: N/A | BJ341: N/A | BK341: N/A | BL341: N/A | BM341: N/A | BN341: N/A | BO341: N/A | BP341: N/A | BQ341: N/A | BR341: N/A | BS341: N/A | BT341: N/A | BU341: N/A | BV341: N/A | BW341: N/A | BX341: N/A | BY341: N/A | BZ341: N/A | CA341: N/A
BB342: No | BC342: N/A | BD342: N/A | BE342: N/A | BF342: N/A | BG342: N/A | BH342: N/A | BI342: N/A | BJ342: N/A | BK342: N/A | BL342: N/A | BM342: N/A | BN342: N/A | BO342: N/A | BP342: N/A | BQ342: N/A | BR342: N/A | BS342: N/A | BT342: N/A | BU342: N/A | BV342: N/A | BW342: N/A | BX342: N/A | BY342: N/A | BZ342: N/A | CA342: N/A
BA343: Use of Basic Water and Sanitation | BB343: Yes | BC343: N/A | BD343: N/A | BE343: N/A | BF343: N/A | BG343: N/A | BH343: N/A | BI343: N/A | BJ343: N/A | BK343: N/A | BL343: N/A | BM343: N/A | BN343: N/A | BO343: N/A | BP343: N/A | BQ343: N/A | BR343: N/A | BS343: N/A | BT343: N/A | BU343: N/A | BV343: N/A | BW343: N/A | BX343: N/A | BY343: N/A | BZ343: N/A | CA343: N/A
BB344: No | BC344: N/A | BD344: N/A | BE344: N/A | BF344: N/A | BG344: N/A | BH344: N/A | BI344: N/A | BJ344: N/A | BK344: N/A | BL344: N/A | BM344: N/A | BN344: N/A | BO344: N/A | BP344: N/A | BQ344: N/A | BR344: N/A | BS344: N/A | BT344: N/A | BU344: N/A | BV344: N/A | BW344: N/A | BX344: N/A | BY344: N/A | BZ344: N/A | CA344: N/A
BA345: Use of Basic Water and Hygiene | BB345: Yes | BC345: N/A | BD345: N/A | BE345: N/A | BF345: N/A | BG345: N/A | BH345: N/A | BI345: N/A | BJ345: N/A | BK345: N/A | BL345: N/A | BM345: N/A | BN345: N/A | BO345: N/A | BP345: N/A | BQ345: N/A | BR345: N/A | BS345: N/A | BT345: N/A | BU345: N/A | BV345: N/A | BW345: N/A | BX345: N/A | BY345: N/A | BZ345: N/A | CA345: N/A
BB346: No | BC346: N/A | BD346: N/A | BE346: N/A | BF346: N/A | BG346: N/A | BH346: N/A | BI346: N/A | BJ346: N/A | BK346: N/A | BL346: N/A | BM346: N/A | BN346: N/A | BO346: N/A | BP346: N/A | BQ346: N/A | BR346: N/A | BS346: N/A | BT346: N/A | BU346: N/A | BV346: N/A | BW346: N/A | BX346: N/A | BY346: N/A | BZ346: N/A | CA346: N/A
BA347: Use of Basic Sanitation and Hygiene | BB347: Yes | BC347: N/A | BD347: N/A | BE347: N/A | BF347: N/A | BG347: N/A | BH347: N/A | BI347: N/A | BJ347: N/A | BK347: N/A | BL347: N/A | BM347: N/A | BN347: N/A | BO347: N/A | BP347: N/A | BQ347: N/A | BR347: N/A | BS347: N/A | BT347: N/A | BU347: N/A | BV347: N/A | BW347: N/A | BX347: N/A | BY347: N/A | BZ347: N/A | CA347: N/A
BB348: No | BC348: N/A | BD348: N/A | BE348: N/A | BF348: N/A | BG348: N/A | BH348: N/A | BI348: N/A | BJ348: N/A | BK348: N/A | BL348: N/A | BM348: N/A | BN348: N/A | BO348: N/A | BP348: N/A | BQ348: N/A | BR348: N/A | BS348: N/A | BT348: N/A | BU348: N/A | BV348: N/A | BW348: N/A | BX348: N/A | BY348: N/A | BZ348: N/A | CA348: N/A
BA349: Use of Basic Water | BB349: Yes | BC349: N/A | BD349: N/A | BE349: N/A | BF349: N/A | BG349: N/A | BH349: N/A | BI349: N/A | BJ349: N/A | BK349: N/A | BL349: N/A | BM349: N/A | BN349: N/A | BO349: N/A | BP349: N/A | BQ349: N/A | BR349: N/A | BS349: N/A | BT349: N/A | BU349: N/A | BV349: N/A | BW349: N/A | BX349: N/A | BY349: N/A | BZ349: N/A | CA349: N/A
BB350: No | BC350: N/A | BD350: N/A | BE350: N/A | BF350: N/A | BG350: N/A | BH350: N/A | BI350: N/A | BJ350: N/A | BK350: N/A | BL350: N/A | BM350: N/A | BN350: N/A | BO350: N/A | BP350: N/A | BQ350: N/A | BR350: N/A | BS350: N/A | BT350: N/A | BU350: N/A | BV350: N/A | BW350: N/A | BX350: N/A | BY350: N/A | BZ350: N/A | CA350: N/A
BA351: Use of Basic Sanitation | BB351: Yes | BC351: N/A | BD351: N/A | BE351: N/A | BF351: N/A | BG351: N/A | BH351: N/A | BI351: N/A | BJ351: N/A | BK351: N/A | BL351: N/A | BM351: N/A | BN351: N/A | BO351: N/A | BP351: N/A | BQ351: N/A | BR351: N/A | BS351: N/A | BT351: N/A | BU351: N/A | BV351: N/A | BW351: N/A | BX351: N/A | BY351: N/A | BZ351: N/A | CA351: N/A
BB352: No | BC352: N/A | BD352: N/A | BE352: N/A | BF352: N/A | BG352: N/A | BH352: N/A | BI352: N/A | BJ352: N/A | BK352: N/A | BL352: N/A | BM352: N/A | BN352: N/A | BO352: N/A | BP352: N/A | BQ352: N/A | BR352: N/A | BS352: N/A | BT352: N/A | BU352: N/A | BV352: N/A | BW352: N/A | BX352: N/A | BY352: N/A | BZ352: N/A | CA352: N/A
BA353: Access to Basic Hygiene | BB353: Yes | BC353: N/A | BD353: N/A | BE353: N/A | BF353: N/A | BG353: N/A | BH353: N/A | BI353: N/A | BJ353: N/A | BK353: N/A | BL353: N/A | BM353: N/A | BN353: N/A | BO353: N/A | BP353: N/A | BQ353: N/A | BR353: N/A | BS353: N/A | BT353: N/A | BU353: N/A | BV353: N/A | BW353: N/A | BX353: N/A | BY353: N/A | BZ353: N/A | CA353: N/A
BB354: No | BC354: N/A | BD354: N/A | BE354: N/A | BF354: N/A | BG354: N/A | BH354: N/A | BI354: N/A | BJ354: N/A | BK354: N/A | BL354: N/A | BM354: N/A | BN354: N/A | BO354: N/A | BP354: N/A | BQ354: N/A | BR354: N/A | BS354: N/A | BT354: N/A | BU354: N/A | BV354: N/A | BW354: N/A | BX354: N/A | BY354: N/A | BZ354: N/A | CA354: N/A
C399: INITIAL (national) Wealth Index | H399: URBAN Wealth Index | M399: RURAL Wealth Index
C400: Component Matrix | H400: Component Matrix | M400: Component Matrix
E401: Component | J401: Component | O401: Component
B402: Note: The INITIAL (national) Wealth Index is based on the first component of the Principal Component Analysis (PCA) which has been obtained at national level. The final national-level (NATIONAL) Wealth Index is based on the URBAN and RURAL specific wealth indexes. Regression procedures are used to establish the relationships between the two sets of scores (urban and rural) and the initial (national) wealth factors. This allows best use of the available information for each area and a better precision of the FINAL (NATIONAL) Wealth Index. For dependency reasons, all WASH variables (contained in the generic MICS and DHS scripts) have been excluded from the sets of asset variables used in the PCAs. The PCA can extracts as many components as there are asset variables in the input. Only the first of the components is used to represent the Wealth Index. The scores represent the weights of the asset variables on the Wealth Index (correlations between the variables and the component). The communalities are the proportion of each variable's variance that can be explained by the component. Proportion of explained variance is the part of the model's total variance that is explained by the component. For more information on the procedure used: The DHS Wealth Index, DHS Comparative Reports No. 6, Shea Oscar Rutstein, Kiersten Johnson, ORC Macro International Inc., 2004. The DHS Wealth Index: Approaches for Rural and Urban Areas, Shea O. Rutstein, ORC Macro International Inc., 2008. MICS Methodological Paper No. 4, Review of options for reporting water, sanitation and hygiene coverage by wealth quintile, UNICEF, 2016. | E402: 1 | J402: 1 | O402: 1
C403: roof1 | E403: -0.7231024914 | H403: Number of Rooms | J403: 0.7224815168 | M403: roof1 | O403: -0.8852725373
C404: house1 | E404: -0.6607863833 | H404: FREEZERS | J404: 0.5609479411 | M404: roof3 | O404: 0.8193709547
C405: Number of Rooms | E405: 0.6152583907 | H405: ELECTRICST | J405: 0.5389864995 | M405: house1 | O405: -0.8119389298
C406: fuel5 | E406: -0.5458197647 | H406: roof3 | J406: -0.528520987 | M406: house3 | O406: 0.6349548383
C407: BANKACCOUN | E407: -0.5231874454 | H407: CELLULAR | J407: 0.5166348725 | M407: Number of Rooms | O407: 0.6004111431
C408: roof3 | E408: 0.4652837091 | H408: TELEVISION | J408: 0.5032241038 | M408: BANKACCOUN | O408: -0.4278020526
C409: CELLULAR | E409: 0.4643448493 | H409: roof4 | J409: 0.4785380548 | M409: IRON | O409: 0.4123125191
C410: ELECTRICST | E410: 0.4420276748 | H410: fuel1 | J410: 0.4627510842 | M410: fuel5 | O410: -0.3909601914
C411: FREEZERS | E411: 0.4338797362 | H411: RADIO | J411: 0.4558518978 | M411: fuel3 | O411: 0.3607559466
C412: RADIO | E412: 0.432640551 | H412: house5 | J412: 0.4457079903 | M412: house5 | O412: 0.321058956
C413: TELEVISION | E413: 0.4085965944 | H413: BANKACCOUN | J413: -0.4065926494 | M413: RADIO | O413: 0.3146858394
C414: fuel1 | E414: 0.3850406228 | H414: roof5 | J414: 0.3516774521 | M414: WHEELBARRO | O414: 0.2536368011
C415: IRON | E415: 0.3751003117 | H415: fuel3 | J415: -0.3443881378 | M415: CELLULAR | O415: 0.2258296959
C416: house5 | E416: 0.3530891258 | H416: house4 | J416: -0.3222811264 | M416: fuel4 | O416: 0.2152138888
C417: fuel3 | E417: 0.3278426042 | H417: WHEELBARRO | J417: 0.3029550348 | M417: house2 | O417: -0.1925258896
C418: roof4 | E418: 0.3180465298 | H418: FAN | J418: 0.2845766278 | M418: fuel2 | O418: 0.1903424961
C419: house3 | E419: 0.2493691763 | H419: VIDEOPLAYE | J419: 0.2796955548 | M419: ELECTRICST | O419: 0.1812687477
C420: house6 | E420: 0.2410893728 | H420: Q21_RENT | J420: 0.2767736619 | M420: house6 | O420: 0.1735779425
C421: FAN | E421: 0.237553875 | H421: house6 | J421: 0.2714041504 | M421: PLOUGHING | O421: 0.1640524459
C422: roof5 | E422: 0.2315192414 | H422: BICYCLE | J422: 0.2697059707 | M422: SEWINGMACH | O422: 0.1529821393
... 285 more rows

Sheet DHS04
A2: =A1026 -> Lesotho
A3: =A1034 -> 2004
A4: Use of drinking water sources
A5: by wealth quintile and sub-national region
A6: Notes:
A7: WHO/UNICEF JMP customised wealth index excludes water,
A8: sanitation and hygiene assets.
A9: Survey used for analysis: | B9: =A1025 -> DHS04
A10: Ratio of Improved wells based on: | B10: MICS00
A11: Time to improved source based on: | B11: MICS00
A14: Use of drinking water sources | C14: NATIONAL wealth index quintile | H14: URBAN wealth index quintile | M14: RURAL wealth index quintile | R14: SUB-REGIONS: | BA14: Raw numbers of respondents: | BB14: Use of drinking water sources | BC14: NATIONAL wealth index quintile | BH14: URBAN wealth index quintile | BM14: RURAL wealth index quintile | BR14: SUB-REGIONS:
A15: Weighted percentage (used in graphs) | C15: Poorest | D15: Poor | E15: Middle | F15: Rich | G15: Richest | H15: Poorest | I15: Poor | J15: Middle | K15: Rich | L15: Richest | M15: Poorest | N15: Poor | O15: Middle | P15: Rich | Q15: Richest | R15: Berea | S15: Butha-Buthe | T15: Leribe | U15: Mafeteng | V15: Maseru | W15: Mohale's Hoek | X15: Mokhotlong | Y15: Qasha's Nek | Z15: Quthing | AA15: Thaba-Tseka | BA15: Water data, raw numbers (weighted) | BC15: Poorest | BD15: Poor | BE15: Middle | BF15: Rich | BG15: Richest | BH15: Poorest | BI15: Poor | BJ15: Middle | BK15: Rich | BL15: Richest | BM15: Poorest | BN15: Poor | BO15: Middle | BP15: Rich | BQ15: Richest | BR15: Berea | BS15: Butha-Buthe | BT15: Leribe | BU15: Mafeteng | BV15: Maseru | BW15: Mohale's Hoek | BX15: Mokhotlong | BY15: Qasha's Nek | BZ15: Quthing | CA15: Thaba-Tseka
